{"text_format":"1","workbook":"xlsx","n_sheets":22,"sheets":["Copyright","Cover","All Result","Instruction","Sheet1","MEW nonplant","MEW nonplant_WS","MEW plant","MEW plant_WS","FW metal nonplant","FW metal nonplant_WS","FW nonmetal nonplant","FW nonmetal nonplant_WS","FW metal plant","FW metal plant_WS","FW nonmetal plant","FW nonmetal plant_WS","Terrestrial Data QA","Terrestrial Quality","Sediment Data QA","Sediment Quality","Sheet2"],"not_rendered":{"charts":0,"images":0,"macros":1,"external_links":0,"defined_names":12,"comments":11,"pivot_tables":0},"unopened":[],"bounds":{"document_bytes":16777216,"sheet_cells":100000,"rows_first":2000,"rows_last":500,"rows_between":2000,"halvings":0,"cell_chars":16384,"cell_head_chars":4096},"cells_cut":0,"cells_raw":0,"read":"whole","date_system":"1900"}

{"sheet":"Copyright","index":0,"n_rows":0,"n_cols":0,"rows_kept":0,"cut":false,"hidden":false,"merged":[]}

{"sheet":"Cover","index":1,"n_rows":20,"n_cols":7,"rows_kept":20,"cut":false,"hidden":false,"merged":[[18,6,18,8],[14,6,14,8],[13,6,13,8],[4,4,4,10],[9,6,9,8],[12,6,12,8],[5,5,6,9]]}
[]
[]
[]
[]
[null,null,null,null,"Ecotoxicity Data Quality Assessment Method V2"]
[null,null,null,null,null,"To be used to assess the quality of data used for the Australian and New Zealand Guidelines for Fresh and Marine Water Quality (including sediment) and the Australian National Environment Protection (Assessment of Site Contamination) Measure"]
[]
[]
[]
[null,null,null,null,null,null,"Developed by "]
[]
[]
[null,null,null,null,null,null,"Zoe Zhang"]
[null,null,null,null,null,null,"   Dr. Michael Warne"]
[null,null,null,null,null,null,"Alison Vieritz "]
[]
[]
[]
[null,null,null,null,null,null,"Water Quality & Investigations "]
[null,null,null,null,null,"                 Department of Science,Information Technology and Innovation"]

{"sheet":"All Result","index":2,"n_rows":194,"n_cols":22,"rows_kept":194,"cut":false,"hidden":false,"merged":[]}
[]
[{"$f":"'FW nonmetal plant'!C2","v":"Category"},{"$f":"'FW nonmetal plant'!C3","v":"Paper and data unique identifier(eg. 1-1,10-150)"},{"$f":"'FW nonmetal plant'!C70","v":"Total score"},{"$f":"'FW nonmetal plant'!C72","v":"Quality Score"},"Comment ",{"$f":"'FW nonmetal plant'!G3","v":"Species (Scientific name)"},{"$f":"'FW nonmetal plant'!G4","v":"Lifestage"},{"$f":"'FW nonmetal plant'!G5","v":"Exposure duration"},{"$f":"'FW nonmetal plant'!G6","v":"Measure of toxicity"},{"$f":"'FW nonmetal plant'!G7","v":"Toxicity endpoint"},{"$f":"'FW nonmetal plant'!G8","v":"Toxicity value"},{"$f":"'FW nonmetal plant'!J2","v":"Taxonomic group"},{"$f":"'FW nonmetal plant'!J3","v":"Phylum"},{"$f":"'FW nonmetal plant'!J4","v":"Class"},{"$f":"'FW nonmetal plant'!J5","v":"Media"},{"$f":"'FW nonmetal plant'!J6","v":"Temperature "},{"$f":"'FW nonmetal plant'!J7","v":"Acute Or Chronic "},{"$f":"'FW nonmetal plant'!J8","v":"PH"},{"$f":"'FW metal plant'!J9","v":"Salinity/Conductivity"},{"$f":"'FW metal plant'!C4","v":"Citation"},{"$f":"'FW metal plant'!G2","v":"Citation No."},"Comment"]
["MEW_nonplant","1-1",51,0.57446799999999998,"The highest possible grade for this datum is acceptable.","Nitocra spinipes","Adult","96-h","LC50","Mortality","70,000 µg/L","Crustacean","Arthropoda","Coepoda","Brackish Water","20 oC","Acute",8,"7 PSU","Bengtsson, B-E. (1978). Use of a harpacticoid copepod in toxicity tests. Marine Pollution Bulletin 9, 238-241. ","1","Failed QA Q7 regarding test acceptability criteria and citing standard methods"]
["MEW_plant","2-1",60,0.65934065934065933,"The highest possible grade for this datum is acceptable.","Ditylum brightwellii","3-d old","120-h","EC50","Growth","1500 µg/L","Microalga","Ochrophyta","Bacillariophyceae","SiO2 Stosch-modified Schreiber medium containing EDTA","ND","Chronic",8,"ND","Canterford, G.S. and Canterford, D.R. (1980). Toxicity of heavy metals to the marine diatom Ditylum brightwelli (west) Grunow: Correlation between toxicity and metal speciation. Journal of the Marine Biological Association of the UK 60, 227-242.","2","Failed QA Q7 regarding test acceptability criteria and citing standard methods"]
["MEW_nonplant","3-1",61,0.64893617021276595,"The highest possible grade for this datum is acceptable.","Crassostrea virginica","embryo","48-h","EC50","embryo development","16,000 µg/L","Mollusc","Mollusca","Bivalvia","Synthetic seawater","26 oC","Chronic","7.0-8.5","25 PSU","Calabrese, A., Collier, R.S., Nelson, D.A. and MacInnes, J.R. (1973). The toxicity of heavy metals to embryos of the American oyster Crassostrea virginica.  Marine Biology 18, 162-166.","3","Failed QA Q7 regarding test acceptability criteria and citing standard methods"]
["MEW_nonplant","3-2",57,0.6063829787234043,"The highest possible grade for this datum is acceptable.","Crassostrea virginica","embryo","48-h","NOEC","embryo development","5,000 µg/L","Mollusc","Mollusca","Bivalvia","Synthetic seawater","26 oC","Chronic","7.0-8.5","25 PSU","Calabrese, A., Collier, R.S., Nelson, D.A. and MacInnes, J.R. (1973). The toxicity of heavy metals to embryos of the American oyster Crassostrea virginica.  Marine Biology 18, 162-166.","3","Failed QA Q7 regarding test acceptability criteria and citing standard methods"]
["MEW_nonplant","4-1",70,0.74468085106382975,"The highest possible grade for this datum is acceptable.","Heliocidaris tuberculata","embryo","72-h","EC50","embryo development","5200 µg/L","Echinoderm","Echinodermata","Echinoidea","Seawater","18 oC","Chronic","8.1 +/-1 pH unit","34 +/-2 PSU","Doyle, C.J., Pablo, F., Lim, R.P., Hyne, R.V., 2003. Assessment of metal toxicity in sediment pore water from Lake Macquarie, Australia. Archives of Environmental Contamination and Toxicology 44, 343-350.\n","4"]
["MEW_nonplant","4-2",65,0.69148936170212771,"The highest possible grade for this datum is acceptable.","Heliocidaris tuberculata","embryo","72-h","NOEC","embryo development","1250 µg/L","Echinoderm","Echinodermata","Echinoidea","Seawater","18 oC","Chronic","8.1 +/-1 pH unit","34 +/-2 PSU","Doyle, C.J., Pablo, F., Lim, R.P., Hyne, R.V., 2003. Assessment of metal toxicity in sediment pore water from Lake Macquarie, Australia. Archives of Environmental Contamination and Toxicology 44, 343-350.\n","4"]
["MEW_nonplant","4-3",70,0.74468085106382975,"The highest possible grade for this datum is acceptable.","Heliocidaris tuberculata","Sperm","1-h","EC50","fertilisation",">40,000 µg/L","Echinoderm","Echinodermata","Echinoidea","Seawater","18 oC","Chronic","8.1 +/-1 pH unit","34 +/-2 PSU","Doyle, C.J., Pablo, F., Lim, R.P., Hyne, R.V., 2003. Assessment of metal toxicity in sediment pore water from Lake Macquarie, Australia. Archives of Environmental Contamination and Toxicology 44, 343-350.\n","4"]
["MEW_nonplant","4-4",65,0.69148936170212771,"The highest possible grade for this datum is acceptable.","Heliocidaris tuberculata","Sperm","1-h","NOEC","fertilisation",">40,000 µg/L","Echinoderm","Echinodermata","Echinoidea","Seawater","18 oC","Chronic","8.1 +/-1 pH unit","34 +/-2 PSU","Doyle, C.J., Pablo, F., Lim, R.P., Hyne, R.V., 2003. Assessment of metal toxicity in sediment pore water from Lake Macquarie, Australia. Archives of Environmental Contamination and Toxicology 44, 343-350.\n","4"]
["MEW_nonplant","5-1",60,0.63829787234042556,"The highest possible grade for this datum is acceptable.","Mya arenaria","Adult","48-h","NOEC","Mortality","300,000 µg/L","Mollusc","Mollusca","Bivalvia","Seawater","22 oC","Acute",7.95,"30 ppt","Eisler, R. (1977). Acute toxicities of selected heavy metals to the soft-shell clam Mya arenaria.  Bulletin of Environmental Contamination and Toxicology 17, 137-145.","5","Failed QA Q7 regarding test acceptability criteria and citing standard methods"]
["MEW_nonplant","5-2",60,0.63829787234042556,"The highest possible grade for this datum is acceptable.","Mya arenaria","Adult","48-h","LC50","Mortality",">300,000 µg/L","Mollusc","Mollusca","Bivalvia","Seawater","22 oC","Acute",7.95,"30 ppt","Eisler, R. (1977). Acute toxicities of selected heavy metals to the soft-shell clam Mya arenaria.  Bulletin of Environmental Contamination and Toxicology 17, 137-145.","5","Failed QA Q7 regarding test acceptability criteria and citing standard methods"]
["MEW_nonplant","5-3",60,0.63829787234042556,"The highest possible grade for this datum is acceptable.","Mya arenaria","Adult","48-h","LC100","Mortality",">300,000 µg/L","Mollusc","Mollusca","Bivalvia","Seawater","22 oC","Acute",7.95,"30 ppt","Eisler, R. (1977). Acute toxicities of selected heavy metals to the soft-shell clam Mya arenaria.  Bulletin of Environmental Contamination and Toxicology 17, 137-145.","5","Failed QA Q7 regarding test acceptability criteria and citing standard methods"]
["MEW_nonplant","5-4",60,0.63829787234042556,"The highest possible grade for this datum is acceptable.","Mya arenaria","Adult","96-h","NOEC","Mortality","300,000 µg/L","Mollusc","Mollusca","Bivalvia","Seawater","22 oC","Acute",7.95,"30 ppt","Eisler, R. (1977). Acute toxicities of selected heavy metals to the soft-shell clam Mya arenaria.  Bulletin of Environmental Contamination and Toxicology 17, 137-145.","5","Failed QA Q7 regarding test acceptability criteria and citing standard methods"]
["MEW_nonplant","5-5",60,0.63829787234042556,"The highest possible grade for this datum is acceptable.","Mya arenaria","Adult","96-h","LC50","Mortality",">300,000 µg/L","Mollusc","Mollusca","Bivalvia","Seawater","22 oC","Acute",7.95,"30 ppt","Eisler, R. (1977). Acute toxicities of selected heavy metals to the soft-shell clam Mya arenaria.  Bulletin of Environmental Contamination and Toxicology 17, 137-145.","5","Failed QA Q7 regarding test acceptability criteria and citing standard methods"]
["MEW_nonplant","5-6",60,0.63829787234042556,"The highest possible grade for this datum is acceptable.","Mya arenaria","Adult","96-h","LC100","Mortality",">300,000 µg/L","Mollusc","Mollusca","Bivalvia","Seawater","22 oC","Acute",7.95,"30 ppt","Eisler, R. (1977). Acute toxicities of selected heavy metals to the soft-shell clam Mya arenaria.  Bulletin of Environmental Contamination and Toxicology 17, 137-145.","5","Failed QA Q7 regarding test acceptability criteria and citing standard methods"]
["MEW_nonplant","5-7",60,0.63829787234042556,"The highest possible grade for this datum is acceptable.","Mya arenaria","Adult","168-h","NOEC","Mortality","30,000 µg/L","Mollusc","Mollusca","Bivalvia","Seawater","22 oC","Acute",7.95,"30 ppt","Eisler, R. (1977). Acute toxicities of selected heavy metals to the soft-shell clam Mya arenaria.  Bulletin of Environmental Contamination and Toxicology 17, 137-145.","5","Failed QA Q7 regarding test acceptability criteria and citing standard methods"]
["MEW_nonplant","5-8",60,0.63829787234042556,"The highest possible grade for this datum is acceptable.","Mya arenaria","Adult","168-h","LC50","Mortality","300,000 µg/L","Mollusc","Mollusca","Bivalvia","Seawater","22 oC","Acute",7.95,"30 ppt","Eisler, R. (1977). Acute toxicities of selected heavy metals to the soft-shell clam Mya arenaria.  Bulletin of Environmental Contamination and Toxicology 17, 137-145.","5","Failed QA Q7 regarding test acceptability criteria and citing standard methods"]
["MEW_nonplant","5-9",60,0.63829787234042556,"The highest possible grade for this datum is acceptable.","Mya arenaria","Adult","168-h","LC100","Mortality",">300,000 µg/L","Mollusc","Mollusca","Bivalvia","Seawater","22 oC","Acute",7.95,"30 ppt","Eisler, R. (1977). Acute toxicities of selected heavy metals to the soft-shell clam Mya arenaria.  Bulletin of Environmental Contamination and Toxicology 17, 137-145.","5","Failed QA Q7 regarding test acceptability criteria and citing standard methods"]
["MEW_nonplant","6-1",78,0.82978723404255317,"The highest possible grade for this datum is acceptable.","Artemia","Nauplii","24-h","LC50","Mortality","75,000 µg/L","Crustacean","Arthropoda","Branchiopoda","Filtered seawater","28 oC","Acute","7.5-8.4","32.9-33.5","Gajbhiye, S.N. and Hirota, R. (1990). Toxicity of heavy metals to brine shrimp Artemia. Journal of the Indian Fisheries Association 20, 43-50.",6,"Tropical species"]
["MEW_nonplant","6-2",78,0.82978723404255317,"The highest possible grade for this datum is acceptable.","Artemia","Nauplii","48-h","LC50","Mortality","51,800 µg/L","Crustacean","Arthropoda","Branchiopoda","Filtered seawater","28 oC","Acute","7.5-8.4","32.9-33.5","Gajbhiye, S.N. and Hirota, R. (1990). Toxicity of heavy metals to brine shrimp Artemia. Journal of the Indian Fisheries Association 20, 43-50.",6]
["MEW_plant","7-1",64,0.70329670329670335,"The highest possible grade for this datum is acceptable.","Nitzschia closterium","Log phase","96-h","EC50","Growth rate","53,800 µg/L","Microalga","Ochrophyta","Bacillariophyceae","Instant ocean with phosphate, nitrate, silicate, citrate, NCTC-135 tissue culture","15.5 +/- 0.5 oC","Chronic","6.7-6.9","ND","Rosko, J.J. and Rachlin, J.W. (1975). The effect of copper, zinc, cobalt and manganese on the growth of the marine diatom Nitzschia closterium. Bulletin of the Torrey Botanical Club 102, 100-106.","7","Contains citrate and tissue culture media as chelators. Failed QA Q7 regarding test acceptability criteria and citing standard methods"]
["MEW_plant","7-2",64,0.70329670329670335,"The highest possible grade for this datum is acceptable.","Nitzschia closterium","Log phase","96-h","EC50","Growth rate","25,700 µg/L","Microalga","Ochrophyta","Bacillariophyceae","Instant Ocean with phosphate, nitrate, silicate","15.5 +/- 0.5 oC","Chronic","8.0-8.1","ND","Rosko, J.J. and Rachlin, J.W. (1975). The effect of copper, zinc, cobalt and manganese on the growth of the marine diatom Nitzschia closterium. Bulletin of the Torrey Botanical Club 102, 100-106.","7","DOES NOT contain citrate and tissue culture media as chelators. Failed QA Q7 regarding test acceptability criteria and citing standard methods"]
["MEW_nonplant","8-1",79,0.84042553191489366,"","Mytilus edulis","embryo","48-h","EC50","embryo development","30,000 µg/L","Mollusc","Mollusca","Bivalvia","Seawater","19 oC","Chronic",8.4,"26 PSU","Morgan, J.D., Mitchell, D.G. and Chapman, P.M. (1986). Individual and combined toxicity of manganese and molybdenum to mussel, Mytilus edulis, larvae. Bulletin of Environmental Contamination and Toxicology 37, 303-307.","8"]
["MEW_plant","9-1",66,0.72527472527472525,"The highest possible grade for this datum is acceptable.","Asterionella  japonica ","Log phase","72-h","EC50","Growth rate","4,851 µg/L","Microalga","Ochrophyta","Bacillariophyceae","F/2 without Cu, Zn, EDTA","23 +/- 1 oC","Chronic","ND","ND","Fisher, N.S. and Jones, G.J. (1981). Heavy metals and marine phytoplankton: Correlation of toxicity and sulfhydryl-binding. Journal of Phycology 17, 108-111.","9","Failed QA Q7 regarding test acceptability criteria and citing standard methods"]
["MEW_nonplant","10-1",76,0.80851063829787229,"The highest possible grade for this datum is acceptable.","Heliocidaris tuberculata","Fertilised egg","1-h","EC50","fertilisation","680,500 µg/L","Echinoderm","Echinodermata","Echinoidea","Filtered seawater","20 +/- 1 oC","Chronic","8.0-8.2","33.9-35.2 PSU","Ecotox Services Australia, 2008. Toxicity assessment of manganese to a suite of marine species. Test Report TR0366/1. July 2008.","10"]
["MEW_nonplant","10-2",76,0.80851063829787229,"The highest possible grade for this datum is acceptable.","Heliocidaris tuberculata","Fertilised egg","1-h","NOEC","fertilisation","500,000 µg/L","Echinoderm","Echinodermata","Echinoidea","Filtered seawater","20 +/- 1 oC","Chronic","8.0-8.2","33.9-35.2 PSU","Ecotox Services Australia, 2008. Toxicity assessment of manganese to a suite of marine species. Test Report TR0366/1. July 2008.","10"]
["MEW_nonplant","10-3",76,0.80851063829787229,"The highest possible grade for this datum is acceptable.","Heliocidaris tuberculata","Fertilised egg","1-h","LOEC","fertilisation","100,000 µg/L","Echinoderm","Echinodermata","Echinoidea","Filtered seawater","20 +/- 1 oC","Chronic","8.0-8.2","33.9-35.2 PSU","Ecotox Services Australia, 2008. Toxicity assessment of manganese to a suite of marine species. Test Report TR0366/1. July 2008.","10"]
["MEW_nonplant","10-4",76,0.80851063829787229,"The highest possible grade for this datum is acceptable.","Heliocidaris tuberculata","embryo","72-h","EC50","embryo development","6,200 µg/L","Echinoderm","Echinodermata","Echinoidea","Filtered seawater","20 +/- 1 oC","Chronic","7.9-8.0","35.5-35.9","Ecotox Services Australia, 2008. Toxicity assessment of manganese to a suite of marine species. Test Report TR0366/1. July 2008.","10"]
["MEW_nonplant","10-5",76,0.80851063829787229,"The highest possible grade for this datum is acceptable.","Heliocidaris tuberculata","embryo","72-h","NOEC","embryo development","2,500 µg/L","Echinoderm","Echinodermata","Echinoidea","Filtered seawater","20 +/- 1 oC","Chronic","7.9-8.0","35.5-35.9","Ecotox Services Australia, 2008. Toxicity assessment of manganese to a suite of marine species. Test Report TR0366/1. July 2008.","10"]
["MEW_nonplant","10-6",76,0.80851063829787229,"The highest possible grade for this datum is acceptable.","Heliocidaris tuberculata","embryo","72-h","LOEC","embryo development","5,000 µg/L","Echinoderm","Echinodermata","Echinoidea","Filtered seawater","20 +/- 1 oC","Chronic","7.9-8.0","35.5-35.9","Ecotox Services Australia, 2008. Toxicity assessment of manganese to a suite of marine species. Test Report TR0366/1. July 2008.","10"]
["MEW_nonplant","10-7",76,0.80851063829787229,"The highest possible grade for this datum is acceptable.","Saccostrea commercialis","embryo","48-h","EC50","embryo development","9,600 µg/L","Mollusc","Mollusca","Bivalvia","Filtered seawater","25.5 oC","Chronic","7.9-8.0","35.5-35.9","Ecotox Services Australia, 2008. Toxicity assessment of manganese to a suite of marine species. Test Report TR0366/1. July 2008.","10"]
["MEW_nonplant","10-8",76,0.80851063829787229,"The highest possible grade for this datum is acceptable.","Saccostrea commercialis","embryo","48-h","NOEC","embryo development","5,000 µg/L","Mollusc","Mollusca","Bivalvia","Filtered seawater","25.5 oC","Chronic","7.9-8.0","35.5-35.9","Ecotox Services Australia, 2008. Toxicity assessment of manganese to a suite of marine species. Test Report TR0366/1. July 2008.","10"]
["MEW_nonplant","10-9",76,0.80851063829787229,"The highest possible grade for this datum is acceptable.","Saccostrea commercialis","embryo","48-h","LOEC","embryo development","10,000 µg/L","Mollusc","Mollusca","Bivalvia","Filtered seawater","25.5 oC","Chronic","7.9-8.0","35.5-35.9","Ecotox Services Australia, 2008. Toxicity assessment of manganese to a suite of marine species. Test Report TR0366/1. July 2008.","10"]
["MEW_nonplant","10-10",76,0.80851063829787229,"The highest possible grade for this datum is acceptable.","Penaeus monodon","juvenile","96-h","LC50","Mortality","84,900 µg/L","Crustacean","Arthropoda","Malacostraca","Filtered seawater","25.5 oC","Acute","7.9-8.0","35.2-35.5 PSU","Ecotox Services Australia, 2008. Toxicity assessment of manganese to a suite of marine species. Test Report TR0366/1. July 2008.","10"]
["MEW_nonplant","10-11",76,0.80851063829787229,"The highest possible grade for this datum is acceptable.","Penaeus monodon","juvenile","96-h","NOEC","Mortality","50,000 µg/L","Crustacean","Arthropoda","Malacostraca","Filtered seawater","25.5 oC","Acute","7.9-8.0","35.2-35.5 PSU","Ecotox Services Australia, 2008. Toxicity assessment of manganese to a suite of marine species. Test Report TR0366/1. July 2008.","10"]
["MEW_nonplant","10-12",76,0.80851063829787229,"The highest possible grade for this datum is acceptable.","Penaeus monodon","juvenile","96-h","LOEC","Mortality","100,000 µg/L","Crustacean","Arthropoda","Malacostraca","Filtered seawater","25.5 oC","Acute","7.9-8.0","35.2-35.5 PSU","Ecotox Services Australia, 2008. Toxicity assessment of manganese to a suite of marine species. Test Report TR0366/1. July 2008.","10"]
["MEW_nonplant","10-13",78,0.82978723404255317,"","Lates calcarifer","larval","96-h","EC50","Imbalance",">1,000,000 µg/L","Fish ","Chordata","Actinopteri","Filtered seawater","25°C","Acute","8.0-8.3","35.6-35.7 PSU","Ecotox Services Australia, 2008. Toxicity assessment of manganese to a suite of marine species. Test Report TR0366/1. July 2008.","10"]
["MEW_nonplant","10-14",78,0.82978723404255317,"","Lates calcarifer","larval","96-h","NOEC","Imbalance","1,000,000 µg/L","Fish ","Chordata","Actinopteri","Filtered seawater","25°C","Acute","8.0-8.3","35.6-35.7 PSU","Ecotox Services Australia, 2008. Toxicity assessment of manganese to a suite of marine species. Test Report TR0366/1. July 2008.","10"]
["MEW_nonplant","10-15",78,0.82978723404255317,"","Lates calcarifer","larval","96-h","LOEC","Imbalance",">1,000,000 µg/L","Fish ","Chordata","Actinopteri","Filtered seawater","25°C","Acute","8.0-8.3","35.6-35.7 PSU","Ecotox Services Australia, 2008. Toxicity assessment of manganese to a suite of marine species. Test Report TR0366/1. July 2008.","10"]
["MEW_plant","10-16",73,0.80219780219780223,"The highest possible grade for this datum is acceptable.","Isochrysis affinis galbana","Log phase","72-h","IC50","Growth rate","389,700 µg/L","Microalga","Haptophyta","Prymnesiophyceae","Filtered seawater","25°C","Chronic","8.00-8.20","33.9-35.2 PSU","Ecotox Services Australia, 2008. Toxicity assessment of manganese to a suite of marine species. Test Report TR0366/1. July 2008.","10"]
["MEW_plant","10-17",73,0.80219780219780223,"The highest possible grade for this datum is acceptable.","Isochrysis affinis galbana","Log phase","72-h","IC10","Growth rate","159,740 µg/L","Microalga","Haptophyta","Prymnesiophyceae","Filtered seawater","25°C","Chronic","8.00-8.20","33.9-35.2 PSU","Ecotox Services Australia, 2008. Toxicity assessment of manganese to a suite of marine species. Test Report TR0366/1. July 2008.","10"]
["MEW_plant","10-18",73,0.80219780219780223,"The highest possible grade for this datum is acceptable.","Isochrysis affinis galbana","Log phase","72-h","NOEC","Growth rate","125,000 µg/L","Microalga","Haptophyta","Prymnesiophyceae","Filtered seawater","25°C","Chronic","8.00-8.20","33.9-35.2 PSU","Ecotox Services Australia, 2008. Toxicity assessment of manganese to a suite of marine species. Test Report TR0366/1. July 2008.","10"]
["MEW_plant","10-19",73,0.80219780219780223,"The highest possible grade for this datum is acceptable.","Isochrysis affinis galbana","Log phase","72-h","LOEC","Growth rate","250,000 µg/L","Microalga","Haptophyta","Prymnesiophyceae","Filtered seawater","25°C","Chronic","8.00-8.20","33.9-35.2 PSU","Ecotox Services Australia, 2008. Toxicity assessment of manganese to a suite of marine species. Test Report TR0366/1. July 2008.","10"]
["MEW_nonplant","11-1",72,0.76595744680851063,"The highest possible grade for this datum is acceptable.","Litopenaeous vannamei","post larvae PL12","48-h","LC50","Mortality","178,000 µg/L","Crustacean","Arthropoda","Malacostraca","Filtered seawater","26.8-27.6 oC","Acute","8.0-8.1","34 ppt","Frías-Espericueta, M. G.; Voltolina, D.; Osuna-López, J. I. Acute toxicity of copper, zinc, iron, and manganese and of the mixtures copper–zinc and iron–manganese to whiteleg shrimp Litopenaeus vannamei postlarvae. Bull. Environ. Contam. Toxicol. 2003, 71, 68–74.","11"]
["MEW_nonplant","11-2",72,0.76595744680851063,"The highest possible grade for this datum is acceptable.","Litopenaeous vannamei","post larvae PL12","96-h","LC50","Mortality","130,000 µg/L","Crustacean","Arthropoda","Malacostraca","Filtered seawater","26.8-27.6 oC","Acute","8.0-8.1","34 ppt","Frías-Espericueta, M. G.; Voltolina, D.; Osuna-López, J. I. Acute toxicity of copper, zinc, iron, and manganese and of the mixtures copper–zinc and iron–manganese to whiteleg shrimp Litopenaeus vannamei postlarvae. Bull. Environ. Contam. Toxicol. 2003, 71, 68–74.","11"]
["MEW_nonplant","12-1",82,0.87234042553191493,"","Lates calcarifer","juvenile","96-h","EC50","Imbalance","582,700 µg/L","Fish ","Chordata","Actinopteri","Filtered seawater","25 +/- 2 oC","Acute","8.1 +/- 0.2","35 +/- 2 PSU","Anastasi, A., 2014. Ecological Risk Assessment of Manganese in the Subtropical Estuarine Harbour of Port Curtis, School of Medical and Applied Sciences. CQUniversity Australia.","12","PhD thesis - not published but consent was given by author to be made publicly available"]
["MEW_nonplant","12-2",82,0.87234042553191493,"","Lates calcarifer","juvenile","96-h","EC10","Imbalance","438,300 µg/L","Fish ","Chordata","Actinopteri","Filtered seawater","25 +/- 2 oC","Acute","8.1 +/- 0.2","35 +/- 2 PSU","Anastasi, A., 2014. Ecological Risk Assessment of Manganese in the Subtropical Estuarine Harbour of Port Curtis, School of Medical and Applied Sciences. CQUniversity Australia.","12","PhD thesis - not published but consent was given by author to be made publicly available"]
["MEW_nonplant","12-3",82,0.87234042553191493,"","Lates calcarifer","juvenile","96-h","EC10","Imbalance","504,700 µg/L","Fish ","Chordata","Actinopteri","Filtered seawater","25 +/- 2 oC","Acute","8.1 +/- 0.2","35 +/- 2 PSU","Anastasi, A., 2014. Ecological Risk Assessment of Manganese in the Subtropical Estuarine Harbour of Port Curtis, School of Medical and Applied Sciences. CQUniversity Australia.","12","PhD thesis - not published but consent was given by author to be made publicly available"]
["MEW_nonplant","12-4",82,0.87234042553191493,"","Lates calcarifer","juvenile","96-h","EC50","Imbalance","846,900 µg/L","Fish ","Chordata","Actinopteri","Filtered seawater","25 +/- 2 oC","Acute","8.1 +/- 0.2","35 +/- 2 PSU","Anastasi, A., 2014. Ecological Risk Assessment of Manganese in the Subtropical Estuarine Harbour of Port Curtis, School of Medical and Applied Sciences. CQUniversity Australia.","12","PhD thesis - not published but consent was given by author to be made publicly available"]
["MEW_nonplant","12-5",77,0.81914893617021278,"","Cassiopea sp.","juvenile","96-h","EC10","Mortality","53,000 µg/L","Jellyfish","Cnidaria","Syphozoa","Filtered seawater","25 +/- 2 oC","Acute","8.1 +/- 0.2","35 +/- 2 PSU","Anastasi, A., 2014. Ecological Risk Assessment of Manganese in the Subtropical Estuarine Harbour of Port Curtis, School of Medical and Applied Sciences. CQUniversity Australia.","12","PhD thesis - not published but consent was given by author to be made publicly available"]
["MEW_nonplant","12-6",77,0.81914893617021278,"","Cassiopea sp.","juvenile","96-h","EC50","Mortality","89,700 µg/L","Jellyfish","Cnidaria","Syphozoa","Filtered seawater","25 +/- 2 oC","Acute","8.1 +/- 0.2","35 +/- 2 PSU","Anastasi, A., 2014. Ecological Risk Assessment of Manganese in the Subtropical Estuarine Harbour of Port Curtis, School of Medical and Applied Sciences. CQUniversity Australia.","12","PhD thesis - not published but consent was given by author to be made publicly available"]
["MEW_nonplant","12-7",77,0.81914893617021278,"","Cassiopea sp.","juvenile","240-h","EC10","Mortality","46,200 µg/L","Jellyfish","Cnidaria","Syphozoa","Filtered seawater","25 +/- 2 oC","Acute","8.1 +/- 0.2","35 +/- 2 PSU","Anastasi, A., 2014. Ecological Risk Assessment of Manganese in the Subtropical Estuarine Harbour of Port Curtis, School of Medical and Applied Sciences. CQUniversity Australia.","12","PhD thesis - not published but consent was given by author to be made publicly available. Classified as being chronic in thesis but because it is a juvenile and not larval stage, it doesn't meet the >=14-d criteria to be chronic.  Sensitivity is not that different from 96-h exposure suggesting it is more likely to be acute. Cites Templeman and Kingsford (2010) for method - I've added this reference to the folder - herein Cassiopea is described as \"short-lived\" benthic upside-down jellyfish - suitable as biomonitor - does not mention toxicity testing methodology"]
["MEW_nonplant","12-8",77,0.81914893617021278,"","Cassiopea sp.","juvenile","240-h","EC50","Mortality","61,900 µg/L","Jellyfish","Cnidaria","Syphozoa","Filtered seawater","25 +/- 2 oC","Acute","8.1 +/- 0.2","35 +/- 2 PSU","Anastasi, A., 2014. Ecological Risk Assessment of Manganese in the Subtropical Estuarine Harbour of Port Curtis, School of Medical and Applied Sciences. CQUniversity Australia.","12","PhD thesis - not published but consent was given by author to be made publicly available. Classified as being chronic in thesis but because it is a juvenile and not larval stage, it doesn't meet the >=14-d criteria to be chronic.  Sensitivity is not that different from 96-h exposure suggesting it is more likely to be acute. Cites Templeman and Kingsford (2010) for method - I've added this reference to the folder - herein Cassiopea is described as \"short-lived\" benthic upside-down jellyfish - suitable as biomonitor - does not mention toxicity testing methodology"]
["MEW_nonplant","12-9",77,0.81914893617021278,"","Penaeus monodon","Post larval PL15","96-h","LC10","Mortality","32,900 µg/L","Crustacean","Arthropoda","Malacostraca","Filtered seawater","25 +/- 2 oC","Acute","8.1 +/- 0.2","35 +/- 2 PSU","Anastasi, A., 2014. Ecological Risk Assessment of Manganese in the Subtropical Estuarine Harbour of Port Curtis, School of Medical and Applied Sciences. CQUniversity Australia.","12","PhD thesis - not published but consent was given by author to be made publicly available"]
["MEW_nonplant","12-10",77,0.81914893617021278,"","Penaeus monodon","Post larval PL15","96-h","LC50","Mortality","60,400 µg/L","Crustacean","Arthropoda","Malacostraca","Filtered seawater","25 +/- 2 oC","Acute","8.1 +/- 0.2","35 +/- 2 PSU","Anastasi, A., 2014. Ecological Risk Assessment of Manganese in the Subtropical Estuarine Harbour of Port Curtis, School of Medical and Applied Sciences. CQUniversity Australia.","12","PhD thesis - not published but consent was given by author to be made publicly available"]
["MEW_nonplant","12-11",77,0.81914893617021278,"","Diopatra aciculata","juvenile","240-h","LC10","Mortality","70,500 µg/L","Annelid","Annelida","Polychaeta","Filtered seawater","25 +/- 2 oC","Acute","8.1 +/- 0.2","35 +/- 2 PSU","Anastasi, A., 2014. Ecological Risk Assessment of Manganese in the Subtropical Estuarine Harbour of Port Curtis, School of Medical and Applied Sciences. CQUniversity Australia.","12","PhD thesis - not published but consent was given by author to be made publicly available"]
["MEW_nonplant","12-12",77,0.81914893617021278,"","Diopatra aciculata","juvenile","240-h","LC50","Mortality","165,300 µg/L","Annelid","Annelida","Polychaeta","Filtered seawater","25 +/- 2 oC","Acute","8.1 +/- 0.2","35 +/- 2 PSU","Anastasi, A., 2014. Ecological Risk Assessment of Manganese in the Subtropical Estuarine Harbour of Port Curtis, School of Medical and Applied Sciences. CQUniversity Australia.","12","PhD thesis -not published but consent was given by author to be made publicly available. Polychaete test was water only but worms had their own tubes made of sand and debris that they lived in"]
["MEW_nonplant","12-13",77,0.81914893617021278,"","Aiptasia pulchella","juvenile","96-h","EC10","Mortality","224,800 µg/L","Anemone","Cnidaria","Anthozoa","Filtered seawater","25 +/- 2 oC","Acute","8.1 +/- 0.2","35 +/- 2 PSU","Anastasi, A., 2014. Ecological Risk Assessment of Manganese in the Subtropical Estuarine Harbour of Port Curtis, School of Medical and Applied Sciences. CQUniversity Australia.","12","PhD thesis - not published but consent was given by author to be made publicly available. Polychaete test was water only but worms had their own tubes made of sand and debris that they lived in"]
["MEW_nonplant","12-14",77,0.81914893617021278,"","Aiptasia pulchella","juvenile","96-h","EC50","Mortality","354,300 µg/L","Anemone","Cnidaria","Anthozoa","Filtered seawater","25 +/- 2 oC","Acute","8.1 +/- 0.2","35 +/- 2 PSU","Anastasi, A., 2014. Ecological Risk Assessment of Manganese in the Subtropical Estuarine Harbour of Port Curtis, School of Medical and Applied Sciences. CQUniversity Australia.","12","PhD thesis - not published but consent was given by author to be made publicly available"]
["MEW_plant","12-15",76,0.8351648351648352,"","Nitzschia closterium","N.A.","72-h","EC10","Cell Yield","23,300 µg/L","Diatom","Ochrophyta","Bacillariophyceae","Filtered seawater with F2 added (10 µL to 10 mL)","25 +/- 2oC","Chronic","8.1 +/-0.2","35+/- 2 PSU","Anastasi, A., 2014. Ecological Risk Assessment of Manganese in the Subtropical Estuarine Harbour of Port Curtis, School of Medical and Applied Sciences. CQUniversity Australia.","12","PhD thesis - not published but consent was given by author to be made publicly available"]
["MEW_plant","12-16",76,0.8351648351648352,"","Nitzschia closterium","N.A.","72-h","EC50","Cell Yield","54,500 µg/L","Diatom","Ochrophyta","Bacillariophyceae","Filtered seawater with F2 added (10 µL to 10 mL)","25 +/- 2oC","Chronic","8.1 +/-0.2","35+/- 2 PSU","Anastasi, A., 2014. Ecological Risk Assessment of Manganese in the Subtropical Estuarine Harbour of Port Curtis, School of Medical and Applied Sciences. CQUniversity Australia.","12","PhD thesis - not published but consent was given by author to be made publicly available"]
["MEW_nonplant","12-17",72,0.76595744680851063,"","Brachyura sp.","larval","48-h","LC10","Mortality","1,100 µg/L","Crustacean","Arthropoda","Malacostraca","Filtered seawater","25 +/- 2 oC","Acute","8.1 +/- 0.2","35 +/- 2 PSU","Anastasi, A., 2014. Ecological Risk Assessment of Manganese in the Subtropical Estuarine Harbour of Port Curtis, School of Medical and Applied Sciences. CQUniversity Australia.","12","PhD thesis - not published but consent was given by author to be made publicly available"]
["MEW_nonplant","12-18",72,0.76595744680851063,"","Brachyura sp.","larval","48-h","LC50","Mortality","5,600 µg/L","Crustacean","Arthropoda","Malacostraca","Filtered seawater","25 +/- 2 oC","Acute","8.1 +/- 0.2","35 +/- 2 PSU","Anastasi, A., 2014. Ecological Risk Assessment of Manganese in the Subtropical Estuarine Harbour of Port Curtis, School of Medical and Applied Sciences. CQUniversity Australia.","12","PhD thesis - not published but consent was given by author to be made publicly available"]
["MEW_nonplant","12-19",72,0.76595744680851063,"","Oncaea media","Adult","48-h","LC10","Mortality","600 µg/L","Crustacean","Arthropoda","Copepoda","Filtered seawater","25 +/- 2 oC","Acute","8.1 +/- 0.2","35 +/- 2 PSU","Anastasi, A., 2014. Ecological Risk Assessment of Manganese in the Subtropical Estuarine Harbour of Port Curtis, School of Medical and Applied Sciences. CQUniversity Australia.","12","PhD thesis - not published but consent was given by author to be made publicly available"]
["MEW_nonplant","12-20",72,0.76595744680851063,"","Oncaea media","Adult","48-h","LC50","Mortality","7,700 µg/L","Crustacean","Arthropoda","Copepoda","Filtered seawater","25 +/- 2 oC","Acute","8.1 +/- 0.2","35 +/- 2 PSU","Anastasi, A., 2014. Ecological Risk Assessment of Manganese in the Subtropical Estuarine Harbour of Port Curtis, School of Medical and Applied Sciences. CQUniversity Australia.","12","PhD thesis - not published but consent was given by author to be made publicly available"]
["MEW_nonplant","13-1",70,0.76923076923076927,"The highest possible grade for this datum is acceptable.","Ulva pertusa","Mature thallus","96-h","EC10","Sporulation","1,355 µg/L","Macroalgae","Chlorophyta","Ulvophyceae","Synthetic seawater","15°C","Acute",8.1999999999999993,"35 PSU","Han, Y.S., Kumar, A.S., Han, T., 2009. Comparison of metal toxicity bioassays based on inhibition of sporulation and spore release inUlva pertusa. Toxicology and Environmental Health Sciences 1, 24-31.","13","Assigned as acute because it is the mature thallus that is exposed and examined, not the gamete produced therefore it needs to be exposed for >= 7 d"]
["MEW_plant","13-2",70,0.76923076923076927,"The highest possible grade for this datum is acceptable.","Ulva pertusa","Mature thallus","96-h","EC10","Sporulation","1,377 µg/L","Macroalgae","Chlorophyta","Ulvophyceae","Synthetic seawater","15°C","Acute",8.1999999999999993,"35 PSU","Han, Y.S., Kumar, A.S., Han, T., 2009. Comparison of metal toxicity bioassays based on inhibition of sporulation and spore release inUlva pertusa. Toxicology and Environmental Health Sciences 1, 24-31.","13","Assigned as acute because it is the mature thallus that is exposed and examined, not the gamete produced therefore it needs to be exposed for >= 7 d"]
["MEW_plant","13-3",70,0.76923076923076927,"The highest possible grade for this datum is acceptable.","Ulva pertusa","Mature thallus","96-h","EC50","Sporulation","2,565 µg/L","Macroalgae","Chlorophyta","Ulvophyceae","Synthetic seawater","15°C","Acute",8.1999999999999993,"35 PSU","Han, Y.S., Kumar, A.S., Han, T., 2009. Comparison of metal toxicity bioassays based on inhibition of sporulation and spore release inUlva pertusa. Toxicology and Environmental Health Sciences 1, 24-31.","13","Assigned as acute because it is the mature thallus that is exposed and examined, not the gamete produced therefore it needs to be exposed for >= 7 d"]
["MEW_plant","13-4",70,0.76923076923076927,"The highest possible grade for this datum is acceptable.","Ulva pertusa","Mature thallus","96-h","EC50","Sporulation","2,714 µg/L","Macroalgae","Chlorophyta","Ulvophyceae","Synthetic seawater","15°C","Acute",8.1999999999999993,"35 PSU","Han, Y.S., Kumar, A.S., Han, T., 2009. Comparison of metal toxicity bioassays based on inhibition of sporulation and spore release inUlva pertusa. Toxicology and Environmental Health Sciences 1, 24-31.","13","Assigned as acute because it is the mature thallus that is exposed and examined, not the gamete produced therefore it needs to be exposed for >= 7 d"]
["MEW_plant","13-5",70,0.76923076923076927,"The highest possible grade for this datum is acceptable.","Ulva pertusa","Mature thallus","96-h","EC10","Spore Release","699 µg/L","Macroalgae","Chlorophyta","Ulvophyceae","Synthetic seawater","15°C","Acute",8.1999999999999993,"35 PSU","Han, Y.S., Kumar, A.S., Han, T., 2009. Comparison of metal toxicity bioassays based on inhibition of sporulation and spore release inUlva pertusa. Toxicology and Environmental Health Sciences 1, 24-31.","13","Assigned as acute because it is the mature thallus that is exposed and examined, not the gamete produced therefore it needs to be exposed for >= 7 d"]
["MEW_plant","13-6",70,0.76923076923076927,"The highest possible grade for this datum is acceptable.","Ulva pertusa","Mature thallus","96-h","EC50","Spore Release","1,430 µg/L","Macroalgae","Chlorophyta","Ulvophyceae","Synthetic seawater","15°C","Acute",8.1999999999999993,"35 PSU","Han, Y.S., Kumar, A.S., Han, T., 2009. Comparison of metal toxicity bioassays based on inhibition of sporulation and spore release inUlva pertusa. Toxicology and Environmental Health Sciences 1, 24-31.","13","Assigned as acute because it is the mature thallus that is exposed and examined, not the gamete produced therefore it needs to be exposed for >= 7 d"]
["MEW_plant","14-1",66,0.72527472527472525,"","Chaetoceros calcitrans","Log phase","96-h","IC50","Cell Yield","18,600 µg/L","Diatom","Ochrophyta","Bacillariophyceae","Synthetic seawater","28 +/- 1 oC","Chronic","8.0 +/-0.5","30 +/- 2 g/L","Ismail, M., Phang, S.M., Tong, S.L., Brown, M.T., 2002. A modified toxicity testing method using tropical marine microalgae. Environmental Monitoring and Assessment 75, 145-154.","14","tested in multiwell plate"]
["MEW_plant","14-2",66,0.72527472527472525,"","Chaetoceros calcitrans","Log phase","96-h","IC50","Cell Yield","19,200 µg/L","Diatom","Ochrophyta","Bacillariophyceae","Synthetic seawater","28 +/- 1 oC","Chronic","8.0 +/-0.5","30 +/- 2 g/L","Ismail, M., Phang, S.M., Tong, S.L., Brown, M.T., 2002. A modified toxicity testing method using tropical marine microalgae. Environmental Monitoring and Assessment 75, 145-154.","14","tested in flask"]
["MEW_plant","14-3",66,0.72527472527472525,"","Isochrysis galbana Parke UMACC 141","Log phase","96-h","IC50","Cell Yield","5,500 - 9,100 µg/L","Microalga","Haptophyta","Prymnesiophyceae","Synthetic seawater","28 +/- 1 oC","Chronic","8.0 +/-0.5","30 +/- 2 g/L","Ismail, M., Phang, S.M., Tong, S.L., Brown, M.T., 2002. A modified toxicity testing method using tropical marine microalgae. Environmental Monitoring and Assessment 75, 145-154.","14","Range from 2 tests. Tested in multiwell plate"]
["MEW_plant","14-4",66,0.72527472527472525,"","Isochrysis galbana Parke UMACC 141","Log phase","96-h","IC50","Cell Yield","6,900 µg/L","Microalga","Haptophyta","Prymnesiophyceae","Synthetic seawater","28 +/- 1 oC","Chronic","8.0 +/-0.5","30 +/- 2 g/L","Ismail, M., Phang, S.M., Tong, S.L., Brown, M.T., 2002. A modified toxicity testing method using tropical marine microalgae. Environmental Monitoring and Assessment 75, 145-154.","14","tested in flask"]
["MEW_plant","14-5",66,0.72527472527472525,"","Tetraselmis tetrathele","Log phase","96-h","IC50","Cell Yield","17,800-22,000 µg/L","Microalga","Chlorophyta","Prasinophyceae","Synthetic seawater","28 +/- 1 oC","Chronic","8.0 +/-0.5","30 +/- 2 g/L","Ismail, M., Phang, S.M., Tong, S.L., Brown, M.T., 2002. A modified toxicity testing method using tropical marine microalgae. Environmental Monitoring and Assessment 75, 145-154.","14","Range from 2 tests. Tested in multiwell plate"]
["MEW_plant","14-6",66,0.72527472527472525,"","Tetraselmis tetrathele","Log phase","96-h","IC50","Cell Yield","20,800 µg/L","Microalga","Chlorophyta","Prasinophyceae","Synthetic seawater","28 +/- 1 oC","Chronic","8.0 +/-0.5","30 +/- 2 g/L","Ismail, M., Phang, S.M., Tong, S.L., Brown, M.T., 2002. A modified toxicity testing method using tropical marine microalgae. Environmental Monitoring and Assessment 75, 145-154.","14","tested in flask"]
["MEW_plant","14-7",66,0.72527472527472525,"","Tetraselmis sp.","Log phase","96-h","IC50","Cell Yield","19,100 µg/L","Microalga","Chlorophyta","Prasinophyceae","Synthetic seawater","28 +/- 1 oC","Chronic","8.0 +/-0.5","30 +/- 2 g/L","Ismail, M., Phang, S.M., Tong, S.L., Brown, M.T., 2002. A modified toxicity testing method using tropical marine microalgae. Environmental Monitoring and Assessment 75, 145-154.","14","tested in multiwell plate"]
["MEW_plant","14-8",66,0.72527472527472525,"","Tetraselmis sp.","Log phase","96-h","IC50","Cell Yield","23,600 µg/L","Microalga","Chlorophyta","Prasinophyceae","Synthetic seawater","28 +/- 1 oC","Chronic","8.0 +/-0.5","30 +/- 2 g/L","Ismail, M., Phang, S.M., Tong, S.L., Brown, M.T., 2002. A modified toxicity testing method using tropical marine microalgae. Environmental Monitoring and Assessment 75, 145-154.","14","tested in flask"]
["MEW_plant","15-1",66,0.72527472527472525,"","Nitzschia closterium","N.A.","72-h","EC50","Growth rate","87,000 µg/L","Diatom","Ochrophyta","Bacillariophyceae","Filtered seawater","ND","Chronic","ND","ND","Levy, V., Smith, R., Stauber, J. and Binet, M. (2004). Manganese discharge from the Myuna Colliery.  Hydrobiology Report CC/0401-Myuna-Mn, 100 pp","15"]
["MEW_plant","15-2",66,0.72527472527472525,"","Nitzschia closterium","N.A.","72-h","NOEC","Growth rate","18,000 µg/L","Diatom","Ochrophyta","Bacillariophyceae","Filtered seawater","ND","Chronic","ND","ND","Levy, V., Smith, R., Stauber, J. and Binet, M. (2004). Manganese discharge from the Myuna Colliery.  Hydrobiology Report CC/0401-Myuna-Mn, 100 pp","15"]
["MEW_nonplant","15-3",71,0.75531914893617025,"","Macquaria novemaculeata","larval","96-h","EC50","Imbalance","97,500 µg/L","Fish ","Chordata","Actinopteri","Filtered seawater","19.4 - 20.2 oC","Acute","8.12-8.26","34.0 - 34.6 PSU","Levy, V., Smith, R., Stauber, J. and Binet, M. (2004). Manganese discharge from the Myuna Colliery.  Hydrobiology Report CC/0401-Myuna-Mn, 100 pp","15"]
["MEW_nonplant","15-4",67,0.71276595744680848,"","Macquaria novemaculeata","larval","96-h","NOEC","Imbalance","49,000 µg/L","Fish ","Chordata","Actinopteri","Filtered seawater","19.4 - 20.2 oC","Acute","8.12-8.26","34.0 - 34.6 PSU","Levy, V., Smith, R., Stauber, J. and Binet, M. (2004). Manganese discharge from the Myuna Colliery.  Hydrobiology Report CC/0401-Myuna-Mn, 100 pp","15","Do not use this value as there was no statistically significant difference between the control and treatments. See Appendix I of the report"]
["MEW_nonplant","15-5",73,0.77659574468085102,"","Penaeus monodon","Post larval PL15","96-h","LC50","Mortality","26,100 µg/L","Crustacean","Arthropoda","Malacostraca","Filtered seawater","25°C","Acute",8,"32 PSU","Levy, V., Smith, R., Stauber, J. and Binet, M. (2004). Manganese discharge from the Myuna Colliery.  Hydrobiology Report CC/0401-Myuna-Mn, 100 pp","15"]
["MEW_nonplant","15-6",73,0.77659574468085102,"","Penaeus monodon","Post larval PL15","96-h","NOEC","Mortality","9,000 µg/L","Crustacean","Arthropoda","Malacostraca","Filtered seawater","25°C","Acute",8,"32 PSU","Levy, V., Smith, R., Stauber, J. and Binet, M. (2004). Manganese discharge from the Myuna Colliery.  Hydrobiology Report CC/0401-Myuna-Mn, 100 pp","15"]
["MEW_nonplant","15-7",68,0.72340425531914898,"","Heliocidaris tuberculata","embryo","72-h","EC50","embryo development","4,200 µg/L","Echinoderm","Echinodermata","Echinoidea","Filtered seawater","19 oC","Chronic",8,"32 PSU","Levy, V., Smith, R., Stauber, J. and Binet, M. (2004). Manganese discharge from the Myuna Colliery.  Hydrobiology Report CC/0401-Myuna-Mn, 100 pp","15"]
["MEW_nonplant","15-8",68,0.72340425531914898,"","Heliocidaris tuberculata","embryo","72-h","NOEC","embryo development","1,000 µg/L","Echinoderm","Echinodermata","Echinoidea","Filtered seawater","19 oC","Chronic",8,"32 PSU","Levy, V., Smith, R., Stauber, J. and Binet, M. (2004). Manganese discharge from the Myuna Colliery.  Hydrobiology Report CC/0401-Myuna-Mn, 100 pp","15"]
["MEW_nonplant","15-9",68,0.72340425531914898,"","Heliocidaris tuberculata","embryo","72-h","LC50","Mortality","14,300 µg/L","Echinoderm","Echinodermata","Echinoidea","Filtered seawater","19 oC","Acute",8,"32 PSU","Levy, V., Smith, R., Stauber, J. and Binet, M. (2004). Manganese discharge from the Myuna Colliery.  Hydrobiology Report CC/0401-Myuna-Mn, 100 pp","15"]
["MEW_nonplant","15-10",68,0.72340425531914898,"","Heliocidaris tuberculata","embryo","72-h","NOEC","Mortality","3,100 µg/L","Echinoderm","Echinodermata","Echinoidea","Filtered seawater","19 oC","Acute",8,"32 PSU","Levy, V., Smith, R., Stauber, J. and Binet, M. (2004). Manganese discharge from the Myuna Colliery.  Hydrobiology Report CC/0401-Myuna-Mn, 100 pp","15"]
["MEW_nonplant","15-11",73,0.77659574468085102,"","Saccostrea commercialis","embryo","60-h","EC50","embryo development","2,700 µg/L","Bivalve","Mollusca","Bivalvia","Filtered seawater","24.5 oC","Chronic",8,"32 PSU","Levy, V., Smith, R., Stauber, J. and Binet, M. (2004). Manganese discharge from the Myuna Colliery.  Hydrobiology Report CC/0401-Myuna-Mn, 100 pp","15"]
["MEW_nonplant","15-12",73,0.77659574468085102,"","Saccostrea commercialis","embryo","60-h","NOEC","embryo development","1,000 µg/L","Bivalve","Mollusca","Bivalvia","Filtered seawater","24.5 oC","Chronic",8,"32 PSU","Levy, V., Smith, R., Stauber, J. and Binet, M. (2004). Manganese discharge from the Myuna Colliery.  Hydrobiology Report CC/0401-Myuna-Mn, 100 pp","15"]
["MEW_nonplant","15-13",73,0.77659574468085102,"","Saccostrea commercialis","embryo","60-h","LC50","Mortality","10,800 µg/L","Bivalve","Mollusca","Bivalvia","Filtered seawater","24.5 oC","Acute",8,"32 PSU","Levy, V., Smith, R., Stauber, J. and Binet, M. (2004). Manganese discharge from the Myuna Colliery.  Hydrobiology Report CC/0401-Myuna-Mn, 100 pp","15"]
["MEW_nonplant","15-14",73,0.77659574468085102,"","Saccostrea commercialis","embryo","60-h","NOEC","Mortality","3,100 µg/L","Bivalve","Mollusca","Bivalvia","Filtered seawater","24.5 oC","Acute",8,"32 PSU","Levy, V., Smith, R., Stauber, J. and Binet, M. (2004). Manganese discharge from the Myuna Colliery.  Hydrobiology Report CC/0401-Myuna-Mn, 100 pp","15"]
["MEW_nonplant","16-1",62,0.65957446808510634,"","Stylophora pistillata","Adult","48-h","LC50","Mortality","1,500 µg/L","Coral","Cnidaria","Anthozoa","Filtered seawater","23 +/-1 oC","Acute","ND","ND","Stauber, J.L., Jones, R.J., Binet, M.T., King, C.K., 2002. The effect of nickel processing waste liquor on corals and their symbiotic dinoflagellates. CSIRO Energy Technology Investigation Report No. ET/IR474R, 34 pp.","16","Failed QA Q7 regarding test acceptability criteria and citing standard methods"]
["MEW_nonplant","16-2",66,0.7021276595744681,"","Stylophora pistillata","Adult","48-h","NOEC","Mortality","1,100 µg/L","Coral","Cnidaria","Anthozoa","Filtered seawater","23 +/-1 oC","Acute","ND","ND","Stauber, J.L., Jones, R.J., Binet, M.T., King, C.K., 2002. The effect of nickel processing waste liquor on corals and their symbiotic dinoflagellates. CSIRO Energy Technology Investigation Report No. ET/IR474R, 34 pp.","16","Failed QA Q7 regarding test acceptability criteria and citing standard methods"]
["MEW_nonplant","16-3",66,0.7021276595744681,"","Stylophora pistillata","Adult","48-h","EC50","Tissue sloughing","860 µg/L","Coral","Cnidaria","Anthozoa","Filtered seawater","23 +/-1 oC","Acute","ND","ND","Stauber, J.L., Jones, R.J., Binet, M.T., King, C.K., 2002. The effect of nickel processing waste liquor on corals and their symbiotic dinoflagellates. CSIRO Energy Technology Investigation Report No. ET/IR474R, 34 pp.","16","Failed QA Q7 regarding test acceptability criteria and citing standard methods"]
["MEW_nonplant","16-4",61,0.64893617021276595,"","Stylophora pistillata","Adult","48-h","NOEC","Tissue sloughing","510 µg/L","Coral","Cnidaria","Anthozoa","Filtered seawater","23 +/-1 oC","Acute","ND","ND","Stauber, J.L., Jones, R.J., Binet, M.T., King, C.K., 2002. The effect of nickel processing waste liquor on corals and their symbiotic dinoflagellates. CSIRO Energy Technology Investigation Report No. ET/IR474R, 34 pp.","16","Failed QA Q7 regarding test acceptability criteria and citing standard methods"]
["MEW_nonplant","16-5",67,0.73,"The highest possible grade for this datum is acceptable.","Isolated dinoflagellates from coral Heliofungia actiniformis","ND","6-h","NOEC","Quantum Yield",">200,000 µg/L","Dinoflagellate","Dinoflagellata","ND","Filtered Seawater","24oC","Acute","ND","ND","Stauber, J.L., Jones, R.J., Binet, M.T., King, C.K., 2002. The effect of nickel processing waste liquor on corals and their symbiotic dinoflagellates. CSIRO Energy Technology Investigation Report No. ET/IR474R, 34 pp.","16","Failed QA Q7 regarding test acceptability criteria and citing standard methods"]
["MEW_nonplant","16-6",75,0.7978723404255319,"","symbiotic dinoflagellate of coral Stylophora pistillata","ND","48-h","EC50","Quantum Yield",">1,000 µg/L","Dinoflagellate","Dinoflagellata","ND","Filtered Seawater","24-28 oC","Acute","ND","ND","Stauber, J.L., Jones, R.J., Binet, M.T., King, C.K., 2002. The effect of nickel processing waste liquor on corals and their symbiotic dinoflagellates. CSIRO Energy Technology Investigation Report No. ET/IR474R, 34 pp.","16","Failed QA Q7 regarding test acceptability criteria and citing standard methods"]
["MEW_nonplant","16-7",65,0.69148936170212771,"","symbiotic dinoflagellate of coral Stylophora pistillata","ND","48-h","NOEC","Zooxanthellae density","1,000 µg/L","Dinoflagellate","Dinoflagellata","ND","Filtered Seawater","24-28 oC","Acute","ND","ND","Stauber, J.L., Jones, R.J., Binet, M.T., King, C.K., 2002. The effect of nickel processing waste liquor on corals and their symbiotic dinoflagellates. CSIRO Energy Technology Investigation Report No. ET/IR474R, 34 pp.","16","Failed QA Q7 regarding test acceptability criteria and citing standard methods"]
["MEW_nonplant","16-8",70,0.74468085106382975,"","symbiotic dinoflagellate of coral Stylophora pistillata","ND","48-h","EC50","Zooxanthellae density",">1,000 µg/L","Dinoflagellate","Dinoflagellata","ND","Filtered Seawater","24-28 oC","Acute","ND","ND","Stauber, J.L., Jones, R.J., Binet, M.T., King, C.K., 2002. The effect of nickel processing waste liquor on corals and their symbiotic dinoflagellates. CSIRO Energy Technology Investigation Report No. ET/IR474R, 34 pp.","16","Failed QA Q7 regarding test acceptability criteria and citing standard methods"]
["MEW_nonplant","16-9",65,0.69148936170212771,"","symbiotic dinoflagellate of coral Stylophora pistillata","ND","48-h","NOEC","Quantum Yield","1,000 µg/L","Dinoflagellate","Dinoflagellata","ND","Filtered Seawater","24-28 oC","Acute","ND","ND","Stauber, J.L., Jones, R.J., Binet, M.T., King, C.K., 2002. The effect of nickel processing waste liquor on corals and their symbiotic dinoflagellates. CSIRO Energy Technology Investigation Report No. ET/IR474R, 34 pp.","16","Failed QA Q7 regarding test acceptability criteria and citing standard methods"]
["MEW_nonplant","17-1",75,0.7978723404255319,"The highest possible grade for this datum is acceptable.","Lates calcarifer","Fry - 11mm ","96-h","LC50","Mortality","220,000 µg/L","Fish ","Chordata","Actinopteri","Brackish Water","28+/- 2 oC","Acute","8.5 +/- 0.2","26+/-1 PSU","Krishnani, K. K.; Azad, I. S.; Kailasam, M.; Thirunavukkarasu, A. R.; Gupta, B. P.; Joseph, K. O.; Muralidhar, M.; Abraham, M. Acute toxicity of some heavy metals to Lates calcarifer fry with a note on its histopathological manifestations. J. Environ. Sci. Heal. Part A 2003, 38, 645–655.","17"]
["MEW_nonplant","17-2",71,0.75531914893617025,"The highest possible grade for this datum is acceptable.","Lates calcarifer","Fry - 11mm ","96-h","LC16","Mortality","137,500 µg/L","Fish ","Chordata","Actinopteri","Brackish Water","28+/- 2 oC","Acute","8.5 +/- 0.2","26+/-1 PSU","Krishnani, K. K.; Azad, I. S.; Kailasam, M.; Thirunavukkarasu, A. R.; Gupta, B. P.; Joseph, K. O.; Muralidhar, M.; Abraham, M. Acute toxicity of some heavy metals to Lates calcarifer fry with a note on its histopathological manifestations. J. Environ. Sci. Heal. Part A 2003, 38, 645–655.","17"]
["MEW_nonplant","17-3",71,0.75531914893617025,"The highest possible grade for this datum is acceptable.","Lates calcarifer","Fry - 11mm ","96-h","LC84","Mortality","310,000 µg/L","Fish ","Chordata","Actinopteri","Brackish Water","28+/- 2 oC","Acute","8.5 +/- 0.2","26+/-1 PSU","Krishnani, K. K.; Azad, I. S.; Kailasam, M.; Thirunavukkarasu, A. R.; Gupta, B. P.; Joseph, K. O.; Muralidhar, M.; Abraham, M. Acute toxicity of some heavy metals to Lates calcarifer fry with a note on its histopathological manifestations. J. Environ. Sci. Heal. Part A 2003, 38, 645–655.","17"]
["MEW_nonplant","17-4",67,0.71276595744680848,"The highest possible grade for this datum is acceptable.","Lates calcarifer","Fry - 11mm ","96-h","NOEC","Mortality","100,000 µg/L","Fish ","Chordata","Actinopteri","Brackish Water","28+/- 2 oC","Acute","8.5 +/- 0.2","26+/-1 PSU","Krishnani, K. K.; Azad, I. S.; Kailasam, M.; Thirunavukkarasu, A. R.; Gupta, B. P.; Joseph, K. O.; Muralidhar, M.; Abraham, M. Acute toxicity of some heavy metals to Lates calcarifer fry with a note on its histopathological manifestations. J. Environ. Sci. Heal. Part A 2003, 38, 645–655.","17"]
["MEW_nonplant","17-5",75,0.7978723404255319,"The highest possible grade for this datum is acceptable.","Lates calcarifer","Fry - 24mm","96-h","LC50","Mortality","250,000 µg/L","Fish ","Chordata","Actinopteri","Brackish Water","28+/- 2 oC","Acute","8.5 +/- 0.2","26+/-1 PSU","Krishnani, K. K.; Azad, I. S.; Kailasam, M.; Thirunavukkarasu, A. R.; Gupta, B. P.; Joseph, K. O.; Muralidhar, M.; Abraham, M. Acute toxicity of some heavy metals to Lates calcarifer fry with a note on its histopathological manifestations. J. Environ. Sci. Heal. Part A 2003, 38, 645–655.","17"]
["MEW_nonplant","17-6",71,0.75531914893617025,"The highest possible grade for this datum is acceptable.","Lates calcarifer","Fry - 24mm","96-h","LC16","Mortality","160,000 µg/L","Fish ","Chordata","Actinopteri","Brackish Water","28+/- 2 oC","Acute","8.5 +/- 0.2","26+/-1 PSU","Krishnani, K. K.; Azad, I. S.; Kailasam, M.; Thirunavukkarasu, A. R.; Gupta, B. P.; Joseph, K. O.; Muralidhar, M.; Abraham, M. Acute toxicity of some heavy metals to Lates calcarifer fry with a note on its histopathological manifestations. J. Environ. Sci. Heal. Part A 2003, 38, 645–655.","17"]
["MEW_nonplant","17-7",71,0.75531914893617025,"The highest possible grade for this datum is acceptable.","Lates calcarifer","Fry - 24mm","96-h","LC84","Mortality","345,000 µg/L","Fish ","Chordata","Actinopteri","Brackish Water","28+/- 2 oC","Acute","8.5 +/- 0.2","26+/-1 PSU","Krishnani, K. K.; Azad, I. S.; Kailasam, M.; Thirunavukkarasu, A. R.; Gupta, B. P.; Joseph, K. O.; Muralidhar, M.; Abraham, M. Acute toxicity of some heavy metals to Lates calcarifer fry with a note on its histopathological manifestations. J. Environ. Sci. Heal. Part A 2003, 38, 645–655.","17"]
["MEW_nonplant","17-8",67,0.71276595744680848,"The highest possible grade for this datum is acceptable.","Lates calcarifer","Fry - 24mm","96-h","NOEC","Mortality","100,000 µg/L","Fish ","Chordata","Actinopteri","Brackish Water","28+/- 2 oC","Acute","8.5 +/- 0.2","26+/-1 PSU","Krishnani, K. K.; Azad, I. S.; Kailasam, M.; Thirunavukkarasu, A. R.; Gupta, B. P.; Joseph, K. O.; Muralidhar, M.; Abraham, M. Acute toxicity of some heavy metals to Lates calcarifer fry with a note on its histopathological manifestations. J. Environ. Sci. Heal. Part A 2003, 38, 645–655.","17"]
["MEW_nonplant","18-1",64,0.68085106382978722,"The highest possible grade for this datum is acceptable.","Tilapia guineesis","juvenile","96-h","LC95","Mortality","920,220 µg/L","Fish ","Chordata","Actinopteri","ND","22-24.5 oC","Acute","ND","15 PSU","Oyewo, E.O., Don-Pedro, K.N., 2006. Acute toxicity and induced weight changes in laboratory tests with Mn and Cu against Tilapia guineensis (Dumeril) and Tympanotonus fuscatus (Linne). Journal of Environmental Biology 27, 327-334.","18","Do not use due to low salinity. Not considered to be marine unless salinity is between 25-36 ppt"]
["MEW_nonplant","18-2",64,0.68085106382978722,"The highest possible grade for this datum is acceptable.","Tilapia guineesis","juvenile","96-h","LC50","Mortality","231,390 µg/L","Fish ","Chordata","Actinopteri","ND","22-24.5 oC","Acute","ND","15 PSU","Oyewo, E.O., Don-Pedro, K.N., 2006. Acute toxicity and induced weight changes in laboratory tests with Mn and Cu against Tilapia guineensis (Dumeril) and Tympanotonus fuscatus (Linne). Journal of Environmental Biology 27, 327-334.","18","Do not use due to low salinity. Not considered to be marine unless salinity is between 25-36 ppt"]
["MEW_nonplant","18-3",64,0.68085106382978722,"The highest possible grade for this datum is acceptable.","Tilapia guineesis","juvenile","96-h","LC5","Mortality","58,190 µg/L","Fish ","Chordata","Actinopteri","ND","22-24.5 oC","Acute","ND","15 PSU","Oyewo, E.O., Don-Pedro, K.N., 2006. Acute toxicity and induced weight changes in laboratory tests with Mn and Cu against Tilapia guineensis (Dumeril) and Tympanotonus fuscatus (Linne). Journal of Environmental Biology 27, 327-334.","18","Do not use due to low salinity. Not considered to be marine unless salinity is between 25-36 ppt"]
["MEW_nonplant","18-4",64,0.68085106382978722,"The highest possible grade for this datum is acceptable.","Tilapia guineesis","juvenile","672-h","NOEC","growth","2,300 µg/L","Fish ","Chordata","Actinopteri","ND","22-24.5 oC","Chronic","ND","15 PSU","Oyewo, E.O., Don-Pedro, K.N., 2006. Acute toxicity and induced weight changes in laboratory tests with Mn and Cu against Tilapia guineensis (Dumeril) and Tympanotonus fuscatus (Linne). Journal of Environmental Biology 27, 327-334.","18","Do not use due to low salinity. Not considered to be marine unless salinity is between 25-36 ppt"]
["MEW_nonplant","18-5",64,0.68085106382978722,"The highest possible grade for this datum is acceptable.","Tympanotonus fuscatus","ND","96-h","LC95","Mortality","24,659,000 µg/L","Mollusc","Mollusca","Gastropoda","ND","22-24.5 oC","Acute","ND","15 PSU","Oyewo, E.O., Don-Pedro, K.N., 2006. Acute toxicity and induced weight changes in laboratory tests with Mn and Cu against Tilapia guineensis (Dumeril) and Tympanotonus fuscatus (Linne). Journal of Environmental Biology 27, 327-334.","18","Do not use due to low salinity. Not considered to be marine unless salinity is between 25-36 ppt"]
["MEW_nonplant","18-6",64,0.68085106382978722,"The highest possible grade for this datum is acceptable.","Tympanotonus fuscatus","ND","96-h","LC50","Mortality","8,409,000 µg/L","Mollusc","Mollusca","Gastropoda","ND","22-24.5 oC","Acute","ND","15 PSU","Oyewo, E.O., Don-Pedro, K.N., 2006. Acute toxicity and induced weight changes in laboratory tests with Mn and Cu against Tilapia guineensis (Dumeril) and Tympanotonus fuscatus (Linne). Journal of Environmental Biology 27, 327-334.","18","Do not use due to low salinity. Not considered to be marine unless salinity is between 25-36 ppt"]
["MEW_nonplant","18-7",64,0.68085106382978722,"The highest possible grade for this datum is acceptable.","Tympanotonus fuscatus","ND","96-h","LC5","Mortality","2,868,000 µg/L","Mollusc","Mollusca","Gastropoda","ND","22-24.5 oC","Acute","ND","15 PSU","Oyewo, E.O., Don-Pedro, K.N., 2006. Acute toxicity and induced weight changes in laboratory tests with Mn and Cu against Tilapia guineensis (Dumeril) and Tympanotonus fuscatus (Linne). Journal of Environmental Biology 27, 327-334.","18","Do not use due to low salinity. Not considered to be marine unless salinity is between 25-36 ppt"]
["MEW_nonplant","18-8",64,0.68085106382978722,"The highest possible grade for this datum is acceptable.","Tympanotonus fuscatus","ND","672-h","NOEC","growth","8,409 µg/L","Mollusc","Mollusca","Gastropoda","ND","22-24.5 oC","Chronic","ND","15 PSU","Oyewo, E.O., Don-Pedro, K.N., 2006. Acute toxicity and induced weight changes in laboratory tests with Mn and Cu against Tilapia guineensis (Dumeril) and Tympanotonus fuscatus (Linne). Journal of Environmental Biology 27, 327-334.","18","Non-monotonic relationship between decline in weight gain and Mn concentration. "]
["MEW_nonplant","19-1",63,0.67021276595744683,"The highest possible grade for this datum is acceptable.","Paracentrotus lividus","embryo","48-h","EC50","embryo development","8,850 µg/L","Echinoderm","Echinodermata","Echinoidea","Filtered seawater","18 oC","Chronic","ND","ND","Pinsino, A., Matranga, V., Trinchella, F., Roccheri, M.C., 2010. Sea urchin embryos as an in vivo model for the assessment of manganese toxicity: Developmental and stress response effects. Ecotoxicology 19, 555-562.","19","Failed QA Q7 regarding test acceptability criteria and citing standard methods"]
["MEW_nonplant","19-2",63,0.67021276595744683,"The highest possible grade for this datum is acceptable.","Paracentrotus lividus","embryo","48-h","NOEC","embryo development","1,000 µg/L","Echinoderm","Echinodermata","Echinoidea","Filtered seawater","18 oC","Chronic","ND","ND","Pinsino, A., Matranga, V., Trinchella, F., Roccheri, M.C., 2010. Sea urchin embryos as an in vivo model for the assessment of manganese toxicity: Developmental and stress response effects. Ecotoxicology 19, 555-562.","19","Failed QA Q7 regarding test acceptability criteria and citing standard methods"]
["MEW_nonplant","20-1",35,0.37234042553191488,"The highest possible grade for this datum is acceptable.","Anthocidaris crassispina","embryo","48-h","NOEC","embryo development","870 µg/L","Echinoderm","Echinodermata","Echinoidea","Seawater","26-28 oC","Chronic","ND","ND","Kobayashi, N., Okamura, H., 2005. Effects of heavy metals on sea urchin embryo development. Part 2. Interactive toxic effects of heavy metals in synthetic mine effluents. Chemosphere 61, 1198-1203.","20","Failed QA Q7 regarding test acceptability criteria and citing standard methods"]
["MEW_nonplant","21-1",46,0.48936170212765956,"The highest possible grade for this datum is acceptable.","Artemia salina ","Cysts","48-h","ND","Hatching success","ND","Crustacean","Arthropoda","Branchiopoda","Filtered seawater","30+/- 2 oC","Acute","7.2-8.3","31+/- 3 PSU","Liu, P.C., Chen, J.C., 1987. Effects of heavy metals on the hatching rates of brine shrimp artemia salina cysts. Journal of the world aquaculture society 18.","21","Failed QA Q7 regarding test acceptability criteria and citing standard methods"]
["MEW_nonplant","22-1",40,0.42553191489361702,"The highest possible grade for this datum is acceptable.","Crassostrea gigas","larval","480-h","ND","larval settlement","ND","Mollusc","Mollusca","Bivalvia","Seawater","ND","Chronic","ND","ND","Watling, H.R., 1983. Comparative study of the effects of metals on the settlement of Crassostrea gigas. Bulletin of Environmental Contamination and Toxicology 31, 344-351.","22","Failed QA Q7 regarding test acceptability criteria and citing standard methods"]
["MEW_nonplant","22-2",40,0.42553191489361702,"The highest possible grade for this datum is acceptable.","Crassostrea gigas","spat","336-h","ND","spat growth","ND","Mollusc","Mollusca","Bivalvia","Seawater","ND","Chronic","ND","ND","Watling, H.R., 1983. Comparative study of the effects of metals on the settlement of Crassostrea gigas. Bulletin of Environmental Contamination and Toxicology 31, 344-351.","22","Failed QA Q7 regarding test acceptability criteria and citing standard methods"]
["MEW_nonplant","23-1",40,0.42553191489361702,"The highest possible grade for this datum is acceptable.","Perna perna","Adult","40 min","EC50","filtration rate","> 40,000 µg/L","Mollusc","Mollusca","Bivalvia","ND","ND","Acute","ND","ND","Watling, H.R., Watling, R.J., 1982. Comparative effects of metals on the filtering rate of the brown mussel (Perna perna). Bulletin of Environmental Contamination and Toxicology 29, 651-657.","23","Failed QA Q7 regarding test acceptability criteria and citing standard methods"]
["MEW_nonplant","24-1",43,0.45744680851063829,"The highest possible grade for this datum is acceptable.","Cerastoderma edule","Adult","4-h","NOEC","filtration rate",">10,000 µg/L","Mollusc","Mollusca","Bivalvia","Seawater","ND","Acute","ND","ND","Naylor, G.P.L., 1987. The responses of cockles to heavy metal pollution and their use in the study of metal to metal uptake interactions. PhD Thesis, Manchester University, UK.","24.1","Failed QA Q7 regarding test acceptability criteria and citing standard methods"]
["MEW_plant","25-1",52,0.5714285714285714,"The highest possible grade for this datum is acceptable.","Chlorella stimatophora","ND","432-h","EC50","Algal cell volume","50,000 µg/L","Microalga","Chlorophyta","Trebouxiophyceae","Artificial seawater with SAAM nutrients including EDTA","ND","Chronic","ND","28 PSU","Christensen, E.R., Scherfig, J., Dixon, P.S., 1979. Effects of manganese, copper and lead on Selenastrum capricornutum and Chlorella stigmatophora. Water Research 13, 79-92.","25","Note that this value appears to have been read directly from Figure 4 of the paper and the data doesn't match that in Table 4 where EC50 looked to be >64 mg/L. Media included EDTA"]
["MEW_plant","26-1",15,0.16483516483516483,"The highest possible grade for this datum is acceptable.","Nitzschia closterium","ND","N.A.","EC50","Growth rate",">500 µg/L","Microalga","Ochrophyta","Bacillariophyceae","Filtered seawater","ND","N.A.","ND","ND","Florence, T.M., Stauber, J.L., Ahsanullah, M., 1994. Toxicity of nickel ores to marine organisms. Science of the Total Environment, 148, 139-155.","26","This value appears in Table 4 and comes from another reference ( Florence TM & Stauber JL 1991. The toxicity of heavy metals to aquatic organisms., Proceedings of IIR Conference on environmental monitoring, Sydney, Australia, p. 9.) which is a conference abstract that does not contain method details. Failed QA Q7 regarding test acceptability criteria and citing standard methods"]
["MEW_nonplant","27-1",63,0.67021276595744683,"The highest possible grade for this datum is acceptable.","Cancer anthonyi","embryo","168-h","ND","Embryo mortality","27% mortality at 10 µg Mn/L","Crustacean","Arthropoda","Malacostraca","Filtered seawater","20 oC","Chronic",7.8,"34 ppt","Macdonald, J.M., Shields, J.D., Zimmer-Faust, R.K., 1988. Acute toxicities of eleven metals to early life-history stages of the yellow crab Cancer anthonyi. Marine Biology 98, 201-207.","27","Note that concentration response was non-monotonic. That the concentration series was a 10x dilution series. Toxicity values are based on nominal Mn and dilution series is a factor of 10 fold diliution from 1000 to 0.01 mg/L. Warne et al. (2018) Table 2 recommends excluding data with dilution sercies =>10"]
["MEW_nonplant","27-2",63,0.67021276595744683,"The highest possible grade for this datum is acceptable.","Cancer anthonyi","embryo","168-h","ND","Hatching success","38% hatch success at 10 µg Mn/L","Crustacean","Arthropoda","Malacostraca","Filtered seawater","20 oC","Chronic",7.8,"34 ppt","Macdonald, J.M., Shields, J.D., Zimmer-Faust, R.K., 1988. Acute toxicities of eleven metals to early life-history stages of the yellow crab Cancer anthonyi. Marine Biology 98, 201-207.","27","Failed QA Q7 regarding test acceptability criteria and citing standard methods. Toxicity values are based on nominal Mn  and dilution series is a factor of 10 fold diliution from 1000 to 0.01 mg/L. Warne et al. (2018) Table 2 recommends excluding data with dilution sercies =>10"]
["MEW_nonplant","28-1",30,0.31914893617021278,"The highest possible grade for this datum is acceptable.","Arabacia punctulata","sperm","12 minutes","NOEC","Motility","137 µg/L","Echinoderm","Echinodermata","Echinoidea","Filtered seawater","22-23 oC","Acute","ND","ND","Young, L.G., Nelson, L., 1974. The effects of heavy metal ions on the motility of sea urchin spermatozoa. BIOL.BULL. 147, 236-246.","28","Failed QA Q7 regarding test acceptability criteria and citing standard methods"]
["MEW_nonplant","29-1",89,0.9455319148936,"","Aiptasia pulchella","Adult ~1mm","9-d","NOEC","Tentacle retraction","55,000 µg/L (highest test concentration)","Anemone","Cnidaria","Anthozoa","Unfiltered seawater, Ballina NSW","26 oC","Acute","7.9-8.4","51-61 mS/cm","Summer K, Reichelt-Brushett A and Howe P (2019) Toxicity of manganese to various life stages of selected marine cnidarian species. Ecotoxicology and Environmental Safety 167, 83-94.","29"]
["MEW_nonplant","29-2",89,0.9455319148936,"","Aiptasia pulchella","Adult ~1mm","9-d","NOEC","Mortality","55,000 µg/L (highest test concentration)","Anemone","Cnidaria","Anthozoa","Unfiltered seawater, Ballina NSW","26 oC","Acute","7.9-8.4","51-61 mS/cm","Summer K, Reichelt-Brushett A and Howe P (2019) Toxicity of manganese to various life stages of selected marine cnidarian species. Ecotoxicology and Environmental Safety 167, 83-94.","29"]
["MEW_nonplant","29-3",89,0.9455319148936,"","Aiptasia pulchella","Adult ~5mm","12-d","NOEC","Mortality","54,000 µg/L (highest test concentration)","Anemone","Cnidaria","Anthozoa","Unfiltered seawater, Ballina NSW","26 oC","Acute","7.9-8.4","51-61 mS/cm","Summer K, Reichelt-Brushett A and Howe P (2019) Toxicity of manganese to various life stages of selected marine cnidarian species. Ecotoxicology and Environmental Safety 167, 83-94.","29"]
["MEW_nonplant","29-4",89,0.9455319148936,"","Aiptasia pulchella","Adult ~5mm","96-h","NOEC","Mortality","54,000 µg/L (highest test concentration)","Anemone","Cnidaria","Anthozoa","Unfiltered seawater, Ballina NSW","26 oC","Acute","7.9-8.4","51-61 mS/cm","Summer K, Reichelt-Brushett A and Howe P (2019) Toxicity of manganese to various life stages of selected marine cnidarian species. Ecotoxicology and Environmental Safety 167, 83-94.","29"]
["MEW_nonplant","29-5",89,0.9455319148936,"","Aiptasia pulchella","Adult ~5mm","96-h","NOEC","Tentacle retraction","54,000 µg/L (highest test concentration)","Anemone","Cnidaria","Anthozoa","Unfiltered seawater, Ballina NSW","26 oC","Acute","7.9-8.4","51-61 mS/cm","Summer K, Reichelt-Brushett A and Howe P (2019) Toxicity of manganese to various life stages of selected marine cnidarian species. Ecotoxicology and Environmental Safety 167, 83-94.","29"]
["MEW_nonplant","29-6",89,0.9455319148936,"","Aiptasia pulchella","Adult ~5mm","12-d","NOEC","Tentacle retraction","54,000 µg/L (highest test concentration)","Anemone","Cnidaria","Anthozoa","Unfiltered seawater, Ballina NSW","26 oC","Acute","7.9-8.4","51-61 mS/cm","Summer K, Reichelt-Brushett A and Howe P (2019) Toxicity of manganese to various life stages of selected marine cnidarian species. Ecotoxicology and Environmental Safety 167, 83-94.","29"]
["MEW_nonplant","29-7",92,0.97872340400000002,"","Aiptasia pulchella","Adult ~5mm","12-d","NOEC","Asexual reproduction","54,000 µg/L (highest test concentration)","Anemone","Cnidaria","Anthozoa","Unfiltered seawater, Ballina NSW","26 oC","Acute","7.9-8.4","51-61 mS/cm","Summer K, Reichelt-Brushett A and Howe P (2019) Toxicity of manganese to various life stages of selected marine cnidarian species. Ecotoxicology and Environmental Safety 167, 83-94.","29"]
["MEW_nonplant","29-8",89,0.9455319148936,"EC10 unreliable (see 95% CL) and test result could not be replicated)","Acropora spathulata","gametes","5.5-h","EC10","fertilisation","15,000 µg/L ","Coral","Cnidaria","Anthozoa","unfiltered seawater, Heron Island, QLD","23.9 +/- 0.14 oC (see supplemental)","Chronic","8.3 +/- 0.07 (see supplemental)","53.5 +/- 0.17 mS/cm (see supplemental)","Summer K, Reichelt-Brushett A and Howe P (2019) Toxicity of manganese to various life stages of selected marine cnidarian species. Ecotoxicology and Environmental Safety 167, 83-94.","29","This result could not be replicated in repeat experiment, therefore may not be appropriate to use."]
["MEW_nonplant","29-9",89,0.9455319148936,"","Acropora spathulata","gametes","5.5-h","EC50","fertilisation","237,000 µg/L ","Coral","Cnidaria","Anthozoa","unfiltered seawater, Heron Island, QLD","23.9 +/- 0.14 oC (see supplemental)","Chronic","8.3 +/- 0.07 (see supplemental)","53.5 +/- 0.17 mS/cm (see supplemental)","Summer K, Reichelt-Brushett A and Howe P (2019) Toxicity of manganese to various life stages of selected marine cnidarian species. Ecotoxicology and Environmental Safety 167, 83-94.","29","This result could not be replicated in repeat experiment, therefore may not be appropriate to use."]
["MEW_nonplant","29-10",89,0.9455319148936,"","Acropora spathulata","gametes","5.5-h","NOEC","fertilisation","72,000 µg/L ","Coral","Cnidaria","Anthozoa","unfiltered seawater, Heron Island, QLD","23.9 +/- 0.14 oC (see supplemental)","Chronic","8.3 +/- 0.07 (see supplemental)","53.5 +/- 0.17 mS/cm (see supplemental)","Summer K, Reichelt-Brushett A and Howe P (2019) Toxicity of manganese to various life stages of selected marine cnidarian species. Ecotoxicology and Environmental Safety 167, 83-94.","29","This result could not be replicated in repeat experiment, therefore may not be appropriate to use."]
["MEW_nonplant","29-11",89,0.9455319148936,"","Acropora spathulata","gametes","5.5-h","LOEC","fertilisation","108,000 µg/L ","Coral","Cnidaria","Anthozoa","unfiltered seawater, Heron Island, QLD","23.9 +/- 0.14 oC (see supplemental)","Chronic","8.3 +/- 0.07 (see supplemental)","53.5 +/- 0.17 mS/cm (see supplemental)","Summer K, Reichelt-Brushett A and Howe P (2019) Toxicity of manganese to various life stages of selected marine cnidarian species. Ecotoxicology and Environmental Safety 167, 83-94.","29","This result could not be replicated in repeat experiment, therefore may not be appropriate to use."]
["MEW_nonplant"," 29-12",89,0.9455319148936,"","Platygyra daedalea","gametes","5.5-h","EC10","fertilisation","43,000 µg/L ","Coral","Cnidaria","Anthozoa","unfiltered seawater, Heron Island, QLD","23.9 +/- 0.14 oC (see supplemental)","Chronic","8.3 +/- 0.07 (see supplemental)","53.5 +/- 0.17 mS/cm (see supplemental)","Summer K, Reichelt-Brushett A and Howe P (2019) Toxicity of manganese to various life stages of selected marine cnidarian species. Ecotoxicology and Environmental Safety 167, 83-94.","29","This result could not be replicated in repeat experiment, therefore may not be appropriate to use."]
["MEW_nonplant","29-13",89,0.9455319148936,"","Platygyra daedalea","gametes","5.5-h","EC50","fertilisation","164,000 µg/L ","Coral","Cnidaria","Anthozoa","unfiltered seawater, Heron Island, QLD","23.9 +/- 0.14 oC (see supplemental)","Chronic","8.3 +/- 0.07 (see supplemental)","53.5 +/- 0.17 mS/cm (see supplemental)","Summer K, Reichelt-Brushett A and Howe P (2019) Toxicity of manganese to various life stages of selected marine cnidarian species. Ecotoxicology and Environmental Safety 167, 83-94.","29","This result could not be replicated in repeat experiment, therefore may not be appropriate to use."]
["MEW_nonplant","29-14",89,0.9455319148936,"","Platygyra daedalea","gametes","5.5-h","NOEC","fertilisation","54,000 µg/L ","Coral","Cnidaria","Anthozoa","unfiltered seawater, Heron Island, QLD","23.9 +/- 0.14 oC (see supplemental)","Chronic","8.3 +/- 0.07 (see supplemental)","53.5 +/- 0.17 mS/cm (see supplemental)","Summer K, Reichelt-Brushett A and Howe P (2019) Toxicity of manganese to various life stages of selected marine cnidarian species. Ecotoxicology and Environmental Safety 167, 83-94.","29","This result could not be replicated in repeat experiment, therefore may not be appropriate to use."]
["MEW_nonplant","29-15",89,0.9455319148936,"","Platygyra daedalea","gametes","5.5-h","LOEC","fertilisation","71,000 µg/L ","Coral","Cnidaria","Anthozoa","unfiltered seawater, Heron Island, QLD","23.9 +/- 0.14 oC (see supplemental)","Chronic","8.3 +/- 0.07 (see supplemental)","53.5 +/- 0.17 mS/cm (see supplemental)","Summer K, Reichelt-Brushett A and Howe P (2019) Toxicity of manganese to various life stages of selected marine cnidarian species. Ecotoxicology and Environmental Safety 167, 83-94.","29","This result could not be replicated in repeat experiment, therefore may not be appropriate to use."]
["MEW_nonplant","29-16",92,0.97872340400000002,"","Acropora spathulata","larval","24-h","LC10","Mortality","4,000 µg/L ","Coral","Cnidaria","Anthozoa","unfiltered seawater, Heron Island, QLD","23.9 +/- 0.14 oC (see supplemental)","Acute","8.3 +/- 0.07 (see supplemental)","53.5 +/- 0.17 mS/cm (see supplemental)","Summer K, Reichelt-Brushett A and Howe P (2019) Toxicity of manganese to various life stages of selected marine cnidarian species. Ecotoxicology and Environmental Safety 167, 83-94.","29","This result is an extrapolation below the lowest test concentration"]
["MEW_nonplant","29-17",92,0.97872340400000002,"","Acropora spathulata","larval","24-h","LC50","Mortality","28,000 µg/L ","Coral","Cnidaria","Anthozoa","unfiltered seawater, Heron Island, QLD","23.9 +/- 0.14 oC (see supplemental)","Acute","8.3 +/- 0.07 (see supplemental)","53.5 +/- 0.17 mS/cm (see supplemental)","Summer K, Reichelt-Brushett A and Howe P (2019) Toxicity of manganese to various life stages of selected marine cnidarian species. Ecotoxicology and Environmental Safety 167, 83-94.","29"]
["MEW_nonplant","29-18",92,0.97872340400000002,"","Acropora spathulata","larval","24-h","NOEC","Mortality","17,000 µg/L ","Coral","Cnidaria","Anthozoa","unfiltered seawater, Heron Island, QLD","23.9 +/- 0.14 oC (see supplemental)","Acute","8.3 +/- 0.07 (see supplemental)","53.5 +/- 0.17 mS/cm (see supplemental)","Summer K, Reichelt-Brushett A and Howe P (2019) Toxicity of manganese to various life stages of selected marine cnidarian species. Ecotoxicology and Environmental Safety 167, 83-94.","29"]
["MEW_nonplant","29-19",92,0.97872340400000002,"","Acropora spathulata","larval","24-h","LOEC","Mortality","36,000 µg/L ","Coral","Cnidaria","Anthozoa","unfiltered seawater, Heron Island, QLD","23.9 +/- 0.14 oC (see supplemental)","Acute","8.3 +/- 0.07 (see supplemental)","53.5 +/- 0.17 mS/cm (see supplemental)","Summer K, Reichelt-Brushett A and Howe P (2019) Toxicity of manganese to various life stages of selected marine cnidarian species. Ecotoxicology and Environmental Safety 167, 83-94.","29"]
["MEW_nonplant","29-20",92,0.97872340400000002,"","Acropora spathulata","larval","72-h","LC50","Mortality","7,000 µg/L ","Coral","Cnidaria","Anthozoa","unfiltered seawater, Heron Island, QLD","23.9 +/- 0.14 oC (see supplemental)","Acute","8.3 +/- 0.07 (see supplemental)","53.5 +/- 0.17 mS/cm (see supplemental)","Summer K, Reichelt-Brushett A and Howe P (2019) Toxicity of manganese to various life stages of selected marine cnidarian species. Ecotoxicology and Environmental Safety 167, 83-94.","29","This result is an extrapolation below the lowest test concentration"]
["MEW_nonplant","29-21",92,0.97872340400000002,"","Acropora spathulata","larval","72-h","LOEC","Mortality","17,000 µg/L ","Coral","Cnidaria","Anthozoa","unfiltered seawater, Heron Island, QLD","23.9 +/- 0.14 oC (see supplemental)","Acute","8.3 +/- 0.07 (see supplemental)","53.5 +/- 0.17 mS/cm (see supplemental)","Summer K, Reichelt-Brushett A and Howe P (2019) Toxicity of manganese to various life stages of selected marine cnidarian species. Ecotoxicology and Environmental Safety 167, 83-94.","29"]
["MEW_nonplant","29-22",71,0.75531914893617025,"","Acropora spathulata","Adult","48-h","EC10","Tissue sloughing","50 µg/L ","Coral","Cnidaria","Anthozoa","unfiltered seawater, Heron Island, QLD","23.9 +/- 0.14 oC (see supplemental)","Acute","8.3 +/- 0.07 (see supplemental)","53.5 +/- 0.17 mS/cm (see supplemental)","Summer K, Reichelt-Brushett A and Howe P (2019) Toxicity of manganese to various life stages of selected marine cnidarian species. Ecotoxicology and Environmental Safety 167, 83-94.","29","Pilot test with 3 replicates of one individual per treatment in a static-renewal system. Use of nominal not measured Mn. Conc-reponse data not given in main document"]
["MEW_nonplant","29-23",71,0.75531914893617025,"","Acropora spathulata","Adult","48-h","EC50","Tissue sloughing","700 µg/L ","Coral","Cnidaria","Anthozoa","unfiltered seawater, Heron Island, QLD","23.9 +/- 0.14 oC (see supplemental)","Acute","8.3 +/- 0.07 (see supplemental)","53.5 +/- 0.17 mS/cm (see supplemental)","Summer K, Reichelt-Brushett A and Howe P (2019) Toxicity of manganese to various life stages of selected marine cnidarian species. Ecotoxicology and Environmental Safety 167, 83-94.","29","Pilot test with 3 replicates of one individual per treatment in a static-renewal system. Use of nominal not measured Mn. Conc-reponse data not given in main document"]
["MEW_nonplant","29-24",71,0.75531914893617025,"","Acropora spathulata","Adult","48-h","LC10","Mortality","1,800 µg/L ","Coral","Cnidaria","Anthozoa","unfiltered seawater, Heron Island, QLD","23.9 +/- 0.14 oC (see supplemental)","Acute","8.3 +/- 0.07 (see supplemental)","53.5 +/- 0.17 mS/cm (see supplemental)","Summer K, Reichelt-Brushett A and Howe P (2019) Toxicity of manganese to various life stages of selected marine cnidarian species. Ecotoxicology and Environmental Safety 167, 83-94.","29","Pilot test with 3 replicates of one individual per treatment in a static-renewal system. Use of nominal not measured Mn. Conc-reponse data not given in main document"]
["MEW_nonplant","29-25",71,0.75531914893617025,"","Acropora spathulata","Adult","48-h","LC50","Mortality","2,700 µg/L ","Coral","Cnidaria","Anthozoa","unfiltered seawater, Heron Island, QLD","23.9 +/- 0.14 oC (see supplemental)","Acute","8.3 +/- 0.07 (see supplemental)","53.5 +/- 0.17 mS/cm (see supplemental)","Summer K, Reichelt-Brushett A and Howe P (2019) Toxicity of manganese to various life stages of selected marine cnidarian species. Ecotoxicology and Environmental Safety 167, 83-94.","29","Pilot test with 3 replicates of one individual per treatment in a static-renewal system. Use of nominal not measured Mn. Conc-reponse data not given in main document"]
["MEW_nonplant","30-1",90,0.95744680851063835,"","Acropora muricata","Adult","48-h","EC50","Tissue sloughing","933 µg/L","Coral","Cnidaria","Anthozoa","Filtered seawater","27 oC","Acute",8.14,"36 PSU","Binet, M., Reichelt-Brushett, A., McKnight, K., Golding, L., Humphrey, C., Stauber, J., 2022 (draft). Adult corals are uniquely more sensitive to manganese than coral early-life stages.\n","30","Replicate test 1 using measured Mn"]
["MEW_nonplant","30-2",90,0.95744680851063835,"","Acropora muricata","Adult","48-h","EC50","Tissue sloughing","728 µg/L","Coral","Cnidaria","Anthozoa","Filtered seawater","27 oC","Acute",8.14,"36 PSU","Binet, M., Reichelt-Brushett, A., McKnight, K., Golding, L., Humphrey, C., Stauber, J., 2022 (draft). Adult corals are uniquely more sensitive to manganese than coral early-life stages.\n","30","Replicate test 2 using measured Mn"]
["MEW_nonplant","31-1",67,0.71276595744680848,"The highest possible grade for this datum is acceptable.","Exaiptasia pallida","Adult","24-d","LOEC","Tentacle retraction","460 µg/L","Anemone","Cnidaria","Anthozoa","Unfiltered seawater, Ballina NSW","23.6 oC","Chronic",8.02,"52.7 mS/cm","Iyagbaye, L., Reichelt-Brushett, A., Benkendorff, K., 2022. Manganese uptake and partitioning between the tissue of the anemone host Exaiptasia pallida and Symbiodinium spp., including assessment of stress and recovery. Chemosphere 295. https://doi.org/10.1016/j.chemosphere.2022.133895.","31","There were only 4 Mn concentrations used and there was no concentration response as it was not designed as a toxicity test but rather a bioaccumulation test. Note that total Cu and Zn in the unfiltered seawater were above PC95 levels. Tentacle retraction recovered but not to control levels after 6 d in clean seawater"]
["MEW_nonplant","31-2",71,0.75531914893617025,"The highest possible grade for this datum is acceptable.","Exaiptasia pallida","Adult","48-h","LC10","Mortality","118,200 µg/L","Anemone","Cnidaria","Anthozoa","Unfiltered seawater, Ballina NSW","23.6 oC","Acute",8.02,"52.7 mS/cm","Iyagbaye, L., Reichelt-Brushett, A., Benkendorff, K., 2022. Manganese uptake and partitioning between the tissue of the anemone host Exaiptasia pallida and Symbiodinium spp., including assessment of stress and recovery. Chemosphere 295. https://doi.org/10.1016/j.chemosphere.2022.133895.","31","This value is from a range finder and uses nominal Mn"]
["MEW_nonplant","31-3",71,0.75531914893617025,"The highest possible grade for this datum is acceptable.","Exaiptasia pallida","Adult","48-h","LC50","Mortality","141,000 µg/L","Anemone","Cnidaria","Anthozoa","Unfiltered seawater, Ballina NSW","23.6 oC","Acute",8.02,"52.7 mS/cm","Iyagbaye, L., Reichelt-Brushett, A., Benkendorff, K., 2022. Manganese uptake and partitioning between the tissue of the anemone host Exaiptasia pallida and Symbiodinium spp., including assessment of stress and recovery. Chemosphere 295. https://doi.org/10.1016/j.chemosphere.2022.133895.","31","This value is from a range finder and uses nominal Mn"]
["MEW_nonplant","31-4",71,0.75531914893617025,"The highest possible grade for this datum is acceptable.","Exaiptasia pallida","Adult","72-h","LC10","Mortality","102,800 µg/L","Anemone","Cnidaria","Anthozoa","Unfiltered seawater, Ballina NSW","23.6 oC","Acute",8.02,"52.7 mS/cm","Iyagbaye, L., Reichelt-Brushett, A., Benkendorff, K., 2022. Manganese uptake and partitioning between the tissue of the anemone host Exaiptasia pallida and Symbiodinium spp., including assessment of stress and recovery. Chemosphere 295. https://doi.org/10.1016/j.chemosphere.2022.133895.","31","This value is from a range finder and uses nominal Mn"]
["MEW_nonplant","31-5",71,0.75531914893617025,"The highest possible grade for this datum is acceptable.","Exaiptasia pallida","Adult","72-h","LC50","Mortality","122,700 µg/L","Anemone","Cnidaria","Anthozoa","Unfiltered seawater, Ballina NSW","23.6 oC","Acute",8.02,"52.7 mS/cm","Iyagbaye, L., Reichelt-Brushett, A., Benkendorff, K., 2022. Manganese uptake and partitioning between the tissue of the anemone host Exaiptasia pallida and Symbiodinium spp., including assessment of stress and recovery. Chemosphere 295. https://doi.org/10.1016/j.chemosphere.2022.133895.","31","This value is from a range finder and uses nominal Mn"]
["MEW_nonplant","31-6",71,0.75531914893617025,"The highest possible grade for this datum is acceptable.","Exaiptasia pallida","Adult","96-h","LC10","Mortality","75,800 µg/L","Anemone","Cnidaria","Anthozoa","Unfiltered seawater, Ballina NSW","23.6 oC","Acute",8.02,"52.7 mS/cm","Iyagbaye, L., Reichelt-Brushett, A., Benkendorff, K., 2022. Manganese uptake and partitioning between the tissue of the anemone host Exaiptasia pallida and Symbiodinium spp., including assessment of stress and recovery. Chemosphere 295. https://doi.org/10.1016/j.chemosphere.2022.133895.","31","This value is from a range finder and uses nominal Mn"]
["MEW_nonplant","31-7",71,0.75531914893617025,"The highest possible grade for this datum is acceptable.","Exaiptasia pallida","Adult","96-h","LC50","Mortality","118,100 µg/L","Anemone","Cnidaria","Anthozoa","Unfiltered seawater, Ballina NSW","23.6 oC","Acute",8.02,"52.7 mS/cm","Iyagbaye, L., Reichelt-Brushett, A., Benkendorff, K., 2022. Manganese uptake and partitioning between the tissue of the anemone host Exaiptasia pallida and Symbiodinium spp., including assessment of stress and recovery. Chemosphere 295. https://doi.org/10.1016/j.chemosphere.2022.133895.","31","This value is from a range finder and uses nominal Mn"]
["MEW_nonplant","31-8",71,0.75531914893617025,"The highest possible grade for this datum is acceptable.","Exaiptasia pallida","Adult","5-d","LC10","Mortality","71,700 µg/L","Anemone","Cnidaria","Anthozoa","Unfiltered seawater, Ballina NSW","23.6 oC","Acute",8.02,"52.7 mS/cm","Iyagbaye, L., Reichelt-Brushett, A., Benkendorff, K., 2022. Manganese uptake and partitioning between the tissue of the anemone host Exaiptasia pallida and Symbiodinium spp., including assessment of stress and recovery. Chemosphere 295. https://doi.org/10.1016/j.chemosphere.2022.133895.","31","This value is from a range finder and uses nominal Mn"]
["MEW_nonplant","31-9",71,0.75531914893617025,"The highest possible grade for this datum is acceptable.","Exaiptasia pallida","Adult","5-d","LC50","Mortality","114,400 µg/L","Anemone","Cnidaria","Anthozoa","Unfiltered seawater, Ballina NSW","23.6 oC","Acute",8.02,"52.7 mS/cm","Iyagbaye, L., Reichelt-Brushett, A., Benkendorff, K., 2022. Manganese uptake and partitioning between the tissue of the anemone host Exaiptasia pallida and Symbiodinium spp., including assessment of stress and recovery. Chemosphere 295. https://doi.org/10.1016/j.chemosphere.2022.133895.","31","This value is from a range finder and uses nominal Mn"]
["MEW_nonplant","31-10",71,0.75531914893617025,"The highest possible grade for this datum is acceptable.","Exaiptasia pallida","Adult","14-d","LC10","Mortality","41,800 µg/L","Anemone","Cnidaria","Anthozoa","Unfiltered seawater, Ballina NSW","23.6 oC","Chronic",8.02,"52.7 mS/cm","Iyagbaye, L., Reichelt-Brushett, A., Benkendorff, K., 2022. Manganese uptake and partitioning between the tissue of the anemone host Exaiptasia pallida and Symbiodinium spp., including assessment of stress and recovery. Chemosphere 295. https://doi.org/10.1016/j.chemosphere.2022.133895.","31","This value is from a range finder and uses nominal Mn"]
["MEW_nonplant","31-11",71,0.75531914893617025,"The highest possible grade for this datum is acceptable.","Exaiptasia pallida","Adult","14-d","LC50","Mortality","102,900 µg/L","Anemone","Cnidaria","Anthozoa","Unfiltered seawater, Ballina NSW","23.6 oC","Chronic",8.02,"52.7 mS/cm","Iyagbaye, L., Reichelt-Brushett, A., Benkendorff, K., 2022. Manganese uptake and partitioning between the tissue of the anemone host Exaiptasia pallida and Symbiodinium spp., including assessment of stress and recovery. Chemosphere 295. https://doi.org/10.1016/j.chemosphere.2022.133895.","31","This value is from a range finder and uses nominal Mn"]
["MEW_nonplant","32-1",86,0.95699999999999996,"","Magallana gigas","Embryo","48-h","EC50","embryo development","2700 µg/L","Mollusc","Mollusca","Bivalvia","Seawater","21 oC","Chronic",7.85,"30 psu","Markich, S.J., 2021. Comparative embryo/larval sensitivity of Australian marine bivalves to ten metals: A disjunct between physiology and phylogeny. Science of The Total Environment 789, 147988. https://doi.org/https://doi.org/10.1016/j.scitotenv.2021.147988.","32"]
["MEW_nonplant","32-2",82,0.91500000000000004,"","Anadara trapezia","Embryo","48-h","EC50","embryo development","4290 µg/L","Mollusc","Mollusca","Bivalvia","0.2 µm filtered natural seawater","21 oC","Chronic",7.85,"30 psu","Markich, S.J., 2021. Comparative embryo/larval sensitivity of Australian marine bivalves to ten metals: A disjunct between physiology and phylogeny. Science of The Total Environment 789, 147988. https://doi.org/https://doi.org/10.1016/j.scitotenv.2021.147988.","32"]
["MEW_nonplant","32-3",82,0.91500000000000004,"","Barnea australasiae","Embryo","48-h","EC50","embryo development","7030 µg/L","Mollusc","Mollusca","Bivalvia","0.2 µm filtered natural seawater","21 oC","Chronic",7.85,"30 psu","Markich, S.J., 2021. Comparative embryo/larval sensitivity of Australian marine bivalves to ten metals: A disjunct between physiology and phylogeny. Science of The Total Environment 789, 147988. https://doi.org/https://doi.org/10.1016/j.scitotenv.2021.147988.","32"]
["MEW_nonplant","32-4",82,0.91500000000000004,"","Fulvia tenuicostata","Embryo","48-h","EC50","embryo development","5620 µg/L","Mollusc","Mollusca","Bivalvia","0.2 µm filtered natural seawater","21 oC","Chronic",7.85,"30 psu","Markich, S.J., 2021. Comparative embryo/larval sensitivity of Australian marine bivalves to ten metals: A disjunct between physiology and phylogeny. Science of The Total Environment 789, 147988. https://doi.org/https://doi.org/10.1016/j.scitotenv.2021.147988.","32"]
["MEW_nonplant","32-5",82,0.91500000000000004,"","Hiatula alba","Embryo","48-h","EC50","embryo development","6080 µg/L","Mollusc","Mollusca","Bivalvia","0.2 µm filtered natural seawater","21 oC","Chronic",7.85,"30 psu","Markich, S.J., 2021. Comparative embryo/larval sensitivity of Australian marine bivalves to ten metals: A disjunct between physiology and phylogeny. Science of The Total Environment 789, 147988. https://doi.org/https://doi.org/10.1016/j.scitotenv.2021.147988.","32"]
["MEW_nonplant","32-6",82,0.91500000000000004,"","Irus crenatus","Embryo","48-h","EC50","embryo development","9780 µg/L","Mollusc","Mollusca","Bivalvia","0.2 µm filtered natural seawater","21 oC","Chronic",7.85,"30 psu","Markich, S.J., 2021. Comparative embryo/larval sensitivity of Australian marine bivalves to ten metals: A disjunct between physiology and phylogeny. Science of The Total Environment 789, 147988. https://doi.org/https://doi.org/10.1016/j.scitotenv.2021.147988.","32"]
["MEW_nonplant","32-7",82,0.91500000000000004,"","Saccostrea glomerata","Embryo","48-h","EC50","embryo development","2810 µg/L","Mollusc","Mollusca","Bivalvia","0.2 µm filtered natural seawater","21 oC","Chronic",7.85,"30 psu","Markich, S.J., 2021. Comparative embryo/larval sensitivity of Australian marine bivalves to ten metals: A disjunct between physiology and phylogeny. Science of The Total Environment 789, 147988. https://doi.org/https://doi.org/10.1016/j.scitotenv.2021.147988.","32"]
["MEW_nonplant","32-8",82,0.91500000000000004,"","Scaeochlamys livida","Embryo","48-h","EC50","embryo development","3790 µg/L","Mollusc","Mollusca","Bivalvia","0.2 µm filtered natural seawater","21 oC","Chronic",7.85,"30 psu","Markich, S.J., 2021. Comparative embryo/larval sensitivity of Australian marine bivalves to ten metals: A disjunct between physiology and phylogeny. Science of The Total Environment 789, 147988. https://doi.org/https://doi.org/10.1016/j.scitotenv.2021.147988.","32"]
["MEW_nonplant","32-9",82,0.91500000000000004,"","Spisula trigonella","Embryo","48-h","EC50","embryo development","8750 µg/L","Mollusc","Mollusca","Bivalvia","0.2 µm filtered natural seawater","21 oC","Chronic",7.85,"30 psu","Markich, S.J., 2021. Comparative embryo/larval sensitivity of Australian marine bivalves to ten metals: A disjunct between physiology and phylogeny. Science of The Total Environment 789, 147988. https://doi.org/https://doi.org/10.1016/j.scitotenv.2021.147988.","32"]
["MEW_nonplant","32-10",82,0.91500000000000004,"","Xenostrobus securis","Embryo","48-h","EC50","embryo development","3090 µg/L","Mollusc","Mollusca","Bivalvia","0.2 µm filtered natural seawater","21 oC","Chronic",7.85,"30 psu","Markich, S.J., 2021. Comparative embryo/larval sensitivity of Australian marine bivalves to ten metals: A disjunct between physiology and phylogeny. Science of The Total Environment 789, 147988. https://doi.org/https://doi.org/10.1016/j.scitotenv.2021.147988.","32"]
["MEW_nonplant","32-11",86,0.91489361702127658,"","Magallana gigas","Embryo","48-h","NEC","embryo development","650 µg/L","Mollusc","Mollusca","Bivalvia","0.2 µm filtered natural seawater","21 oC","Chronic",7.85,"30 psu","Markich, S.J., 2021. Comparative embryo/larval sensitivity of Australian marine bivalves to ten metals: A disjunct between physiology and phylogeny. Science of The Total Environment 789, 147988. https://doi.org/https://doi.org/10.1016/j.scitotenv.2021.147988.","32"]
["MEW_nonplant","32-12",82,0.87234042553191493,"","Saccostrea glomerata","Embryo","48-h","NEC","embryo development","654 µg/L","Mollusc","Mollusca","Bivalvia","0.2 µm filtered natural seawater","21 oC","Chronic",7.85,"30 psu","Markich, S.J., 2021. Comparative embryo/larval sensitivity of Australian marine bivalves to ten metals: A disjunct between physiology and phylogeny. Science of The Total Environment 789, 147988. https://doi.org/https://doi.org/10.1016/j.scitotenv.2021.147988.","32"]
["MEW_nonplant","32-13",82,0.87234042553191493,"","Xenostrobus securis","Embryo","48-h","NEC","embryo development","755 µg/L","Mollusc","Mollusca","Bivalvia","0.2 µm filtered natural seawater","21 oC","Chronic",7.85,"30 psu","Markich, S.J., 2021. Comparative embryo/larval sensitivity of Australian marine bivalves to ten metals: A disjunct between physiology and phylogeny. Science of The Total Environment 789, 147988. https://doi.org/https://doi.org/10.1016/j.scitotenv.2021.147988.","32"]
["MEW_nonplant","32-14",82,0.87234042553191493,"","Scaeochlamys livida","Embryo","48-h","NEC","embryo development","959 µg/L","Mollusc","Mollusca","Bivalvia","0.2 µm filtered natural seawater","21 oC","Chronic",7.85,"30 psu","Markich, S.J., 2021. Comparative embryo/larval sensitivity of Australian marine bivalves to ten metals: A disjunct between physiology and phylogeny. Science of The Total Environment 789, 147988. https://doi.org/https://doi.org/10.1016/j.scitotenv.2021.147988.","32"]
["MEW_nonplant","32-15",82,0.87234042553191493,"","Anadara trapezia","Embryo","48-h","NEC","embryo development","1040 µg/L","Mollusc","Mollusca","Bivalvia","0.2 µm filtered natural seawater","21 oC","Chronic",7.85,"30 psu","Markich, S.J., 2021. Comparative embryo/larval sensitivity of Australian marine bivalves to ten metals: A disjunct between physiology and phylogeny. Science of The Total Environment 789, 147988. https://doi.org/https://doi.org/10.1016/j.scitotenv.2021.147988.","32"]
["MEW_nonplant","32-16",82,0.87234042553191493,"","Fulvia tenuicostata","Embryo","48-h","NEC","embryo development","1460 µg/L","Mollusc","Mollusca","Bivalvia","0.2 µm filtered natural seawater","21 oC","Chronic",7.85,"30 psu","Markich, S.J., 2021. Comparative embryo/larval sensitivity of Australian marine bivalves to ten metals: A disjunct between physiology and phylogeny. Science of The Total Environment 789, 147988. https://doi.org/https://doi.org/10.1016/j.scitotenv.2021.147988.","32"]
["MEW_nonplant","32-17",82,0.87234042553191493,"","Hiatula alba","Embryo","48-h","NEC","embryo development","1520 µg/L","Mollusc","Mollusca","Bivalvia","0.2 µm filtered natural seawater","21 oC","Chronic",7.85,"30 psu","Markich, S.J., 2021. Comparative embryo/larval sensitivity of Australian marine bivalves to ten metals: A disjunct between physiology and phylogeny. Science of The Total Environment 789, 147988. https://doi.org/https://doi.org/10.1016/j.scitotenv.2021.147988.","32"]
["MEW_nonplant","32-18",82,0.87234042553191493,"","Barnea australasiae","Embryo","48-h","NEC","embryo development","1780 µg/L","Mollusc","Mollusca","Bivalvia","0.2 µm filtered natural seawater","21 oC","Chronic",7.85,"30 psu","Markich, S.J., 2021. Comparative embryo/larval sensitivity of Australian marine bivalves to ten metals: A disjunct between physiology and phylogeny. Science of The Total Environment 789, 147988. https://doi.org/https://doi.org/10.1016/j.scitotenv.2021.147988.","32"]
["MEW_nonplant","32-19",82,0.87234042553191493,"","Spisula trigonella","Embryo","48-h","NEC","embryo development","2090 µg/L","Mollusc","Mollusca","Bivalvia","0.2 µm filtered natural seawater","21 oC","Chronic",7.85,"30 psu","Markich, S.J., 2021. Comparative embryo/larval sensitivity of Australian marine bivalves to ten metals: A disjunct between physiology and phylogeny. Science of The Total Environment 789, 147988. https://doi.org/https://doi.org/10.1016/j.scitotenv.2021.147988.","32"]
["MEW_nonplant","32-20",82,0.87234042553191493,"","Irus crenatus","Embryo","48-h","NEC","embryo development","2410 µg/L","Mollusc","Mollusca","Bivalvia","0.2 µm filtered natural seawater","21 oC","Chronic",7.85,"30 psu","Markich, S.J., 2021. Comparative embryo/larval sensitivity of Australian marine bivalves to ten metals: A disjunct between physiology and phylogeny. Science of The Total Environment 789, 147988. https://doi.org/https://doi.org/10.1016/j.scitotenv.2021.147988.","32"]
["MEW_nonplant","33-1",55,0.58510638297872342,"","Epinephelus sp. (hybrid)","juvenile","96-h","LC50","Mortality","12,220 µg/L","Fish ","Chordata","Actinopteri","Seawater","25-27 oC","Acute","7.6-7.8","19-20 ppt","Wang, X., Gao, X.Q., Wang, X.Y., Fang, Y.Y., Xu, L., Zhao, K.F., Huang, B., Liu, B.L., 2022. Bioaccumulation of manganese and its effects on oxidative stress and immune response in juvenile groupers (Epinephelus moara ♀ × E. lanceolatus ♂). Chemosphere 297. https://doi.org/10.1016/j.chemosphere.2022.134235.","33"]
["MEW_nonplant","34-1",78,0.82978723404255317,"","Exaiptasia pallida","Adult","12-d","NOEC","Tentacle retraction","9,210 µg/L","Anemone","Cnidaria","Anthozoa","Unfiltered seawater, Ballina NSW","22.58-22.86 oC","Acute","8.1-8.28","54.3-55.9 mS/cm","Iyagbaye, L., Reichelt-Brushett, A., Benkendorff, K., 2022. Ni accumulation and effects on a representative Cnidaria - Exaiptasia pallida during single element exposure and in combination with Mn. Environmental Pollution 313, 120110. https://doi.org/https://doi.org/10.1016/j.envpol.2022.120110.","34"]
["MEW_nonplant","35-1",90,0.95744680851063835,"","Acropora millepora","Adult","48-h","EC50","Tissue sloughing","2,560 µg/L","Coral","Cnidaria","Anthozoa","Filtered Seawater","27oC","Acute",8.1,"35-36 psu","Golding, L.A., Binet, M.T., Adams, M.S., Hochen, J., Humphrey, C.A., Price, G.A.V., Reichelt-Brushett, A.J., Salmon, M., Stauber, J.L., 2022 draft. Acute and chronic toxicity of manganese to tropical adult coral (Acropora millepora) and deriving marine manganese guideline values.","35"]
["MEW_nonplant","35-2",90,0.95744680851063801,"","Acropora millepora","Adult","14-d","NOEC","Tissue sloughing","1,090 µg/L","Coral","Cnidaria","Anthozoa","Filtered Seawater","27oC","Chronic",8.1,"35 psu","Golding, L.A., Binet, M.T., Adams, M.S., Hochen, J., Humphrey, C.A., Price, G.A.V., Reichelt-Brushett, A.J., Salmon, M., Stauber, J.L., 2022 draft. Acute and chronic toxicity of manganese to tropical adult coral (Acropora millepora) and deriving marine manganese guideline values.","35"]

{"sheet":"Instruction","index":3,"n_rows":21,"n_cols":10,"rows_kept":21,"cut":false,"hidden":false,"merged":[[27,6,27,16],[14,6,14,7],[5,4,5,7]]}
[]
[]
[null,"Click here to see \"All Result\" -->","All Result"]
[]
[]
[null,null,null,null,"Freshwater "]
[]
[null,"Tabs contain questionaries -->           ","Freshwater/metal/nonplant",null,"Freshwater/non-metal/non-plant ",null,null,"Freshwater/metal/plant",null,"Freshwater/non-metal/plant"]
[]
[]
[]
[null,"Tabs contain score of paper and short answers to questions -->","Freshwater/metal/nonplant Worksheet",null,"Freshwater/non-metal/non-plant Worksheet",null,null,"Freshwater/metal/plant Worksheet",null,"Freshwater/non-metal/plant/ Worksheet"]
[]
[]
[null,null,"Marine ",null,null,null,"Terrestrial",null,null,"Sediment "]
[]
[null,"Tab contain questionaries -->","Marine or estuarine/non-plant",null,"Marine or estuarine/Plant",null,null,"Terrestrial Data QA",null,"Sediment Data QA"]
[]
[]
[]
[null,"Tab Contains all scores of paper --> ","Marine or estuarine/non-Plant Worksheet",null,"Marine or estuarine/Plant_Worksheet",null,null,"Terrestrial Quality",null,"Sediment Quality"]

{"sheet":"Sheet1","index":4,"n_rows":70,"n_cols":29,"rows_kept":70,"cut":false,"hidden":true,"merged":[]}
[]
[{"$f":"#REF!","v":{"$error":"#REF!"}},{"$f":"#REF!","v":{"$error":"#REF!"}},{"$f":"#REF!","v":{"$error":"#REF!"}},{"$f":"#REF!","v":{"$error":"#REF!"}},{"$f":"#REF!","v":{"$error":"#REF!"}},{"$f":"#REF!","v":{"$error":"#REF!"}},{"$f":"#REF!","v":{"$error":"#REF!"}},{"$f":"#REF!","v":{"$error":"#REF!"}},{"$f":"#REF!","v":{"$error":"#REF!"}},{"$f":"#REF!","v":{"$error":"#REF!"}},{"$f":"#REF!","v":{"$error":"#REF!"}},{"$f":"#REF!","v":{"$error":"#REF!"}},{"$f":"#REF!","v":{"$error":"#REF!"}},{"$f":"#REF!","v":{"$error":"#REF!"}},{"$f":"#REF!","v":{"$error":"#REF!"}},{"$f":"#REF!","v":{"$error":"#REF!"}},{"$f":"#REF!","v":{"$error":"#REF!"}},{"$f":"#REF!","v":{"$error":"#REF!"}},{"$f":"#REF!","v":{"$error":"#REF!"}},{"$f":"#REF!","v":{"$error":"#REF!"}},{"$f":"#REF!","v":{"$error":"#REF!"}},{"$f":"#REF!","v":{"$error":"#REF!"}},{"$f":"#REF!","v":{"$error":"#REF!"}},{"$f":"#REF!","v":{"$error":"#REF!"}},{"$f":"#REF!","v":{"$error":"#REF!"}},{"$f":"#REF!","v":{"$error":"#REF!"}}]
[{"$f":"#REF!","v":{"$error":"#REF!"}},{"$f":"#REF!","v":{"$error":"#REF!"}},{"$f":"#REF!","v":{"$error":"#REF!"}},{"$f":"#REF!","v":{"$error":"#REF!"}}]
[{"$f":"#REF!","v":{"$error":"#REF!"}},{"$f":"#REF!","v":{"$error":"#REF!"}},{"$f":"#REF!","v":{"$error":"#REF!"}},{"$f":"#REF!","v":{"$error":"#REF!"}},{"$f":"#REF!","v":{"$error":"#REF!"}},{"$f":"#REF!","v":{"$error":"#REF!"}},{"$f":"#REF!","v":{"$error":"#REF!"}},{"$f":"#REF!","v":{"$error":"#REF!"}},{"$f":"#REF!","v":{"$error":"#REF!"}},{"$f":"#REF!","v":{"$error":"#REF!"}},{"$f":"#REF!","v":{"$error":"#REF!"}},{"$f":"#REF!","v":{"$error":"#REF!"}},{"$f":"#REF!","v":{"$error":"#REF!"}},{"$f":"#REF!","v":{"$error":"#REF!"}},{"$f":"#REF!","v":{"$error":"#REF!"}},{"$f":"#REF!","v":{"$error":"#REF!"}},{"$f":"#REF!","v":{"$error":"#REF!"}},{"$f":"#REF!","v":{"$error":"#REF!"}},{"$f":"#REF!","v":{"$error":"#REF!"}},{"$f":"#REF!","v":{"$error":"#REF!"}},{"$f":"#REF!","v":{"$error":"#REF!"}},{"$f":"#REF!","v":{"$error":"#REF!"}},{"$f":"#REF!","v":{"$error":"#REF!"}},{"$f":"#REF!","v":{"$error":"#REF!"}},{"$f":"#REF!","v":{"$error":"#REF!"}},{"$f":"#REF!","v":{"$error":"#REF!"}}]
["Answers",{"$f":"IF(#REF!=0,\"\",#REF!)","v":{"$error":"#REF!"}},{"$f":"IF(#REF!=0,\"\",#REF!)","v":{"$error":"#REF!"}},{"$f":"IF(#REF!=0,\"\",#REF!)","v":{"$error":"#REF!"}},{"$f":"IF(#REF!=0,\"\",#REF!)","v":{"$error":"#REF!"}},{"$f":"IF(#REF!=0,\"\",#REF!)","v":{"$error":"#REF!"}},{"$f":"IF(#REF!=0,\"\",#REF!)","v":{"$error":"#REF!"}},{"$f":"IF(#REF!=0,\"\",#REF!)","v":{"$error":"#REF!"}},{"$f":"IF(#REF!=0,\"\",#REF!)","v":{"$error":"#REF!"}},{"$f":"IF(#REF!=0,\"\",#REF!)","v":{"$error":"#REF!"}},{"$f":"IF(#REF!=0,\"\",#REF!)","v":{"$error":"#REF!"}},{"$f":"IF(#REF!=0,\"\",#REF!)","v":{"$error":"#REF!"}},{"$f":"IF(#REF!=0,\"\",#REF!)","v":{"$error":"#REF!"}},{"$f":"IF(#REF!=0,\"\",#REF!)","v":{"$error":"#REF!"}},{"$f":"IF(#REF!=0,\"\",#REF!)","v":{"$error":"#REF!"}},{"$f":"IF(#REF!=0,\"\",#REF!)","v":{"$error":"#REF!"}},{"$f":"IF(#REF!=0,\"\",#REF!)","v":{"$error":"#REF!"}},{"$f":"IF(#REF!=0,\"\",#REF!)","v":{"$error":"#REF!"}},{"$f":"IF(#REF!=0,\"\",#REF!)","v":{"$error":"#REF!"}},{"$f":"IF(#REF!=0,\"\",#REF!)","v":{"$error":"#REF!"}},{"$f":"IF(#REF!=0,\"\",#REF!)","v":{"$error":"#REF!"}},{"$f":"IF(#REF!=0,\"\",#REF!)","v":{"$error":"#REF!"}},{"$f":"IF(#REF!=0,\"\",#REF!)","v":{"$error":"#REF!"}},{"$f":"IF(#REF!=0,\"\",#REF!)","v":{"$error":"#REF!"}}]
[{"$f":"#REF!","v":{"$error":"#REF!"}},{"$f":"#REF!","v":{"$error":"#REF!"}},{"$f":"#REF!","v":{"$error":"#REF!"}},{"$f":"#REF!","v":{"$error":"#REF!"}},{"$f":"#REF!","v":{"$error":"#REF!"}},{"$f":"#REF!","v":{"$error":"#REF!"}},{"$f":"#REF!","v":{"$error":"#REF!"}},{"$f":"#REF!","v":{"$error":"#REF!"}}]
[{"$f":"#REF!","v":{"$error":"#REF!"}},{"$f":"#REF!","v":{"$error":"#REF!"}},{"$f":"#REF!","v":{"$error":"#REF!"}},{"$f":"#REF!","v":{"$error":"#REF!"}},{"$f":"#REF!","v":{"$error":"#REF!"}},{"$f":"IF(#REF!=0,\"\",#REF!)","v":{"$error":"#REF!"}},{"$f":"IF(#REF!=0,\"\",#REF!)","v":{"$error":"#REF!"}},{"$f":"IF(#REF!=0,\"\",#REF!)","v":{"$error":"#REF!"}}]
[]
[]
[]
[{"$f":"#REF!","v":{"$error":"#REF!"}},{"$f":"#REF!","v":{"$error":"#REF!"}},{"$f":"#REF!","v":{"$error":"#REF!"}},{"$f":"#REF!","v":{"$error":"#REF!"}},{"$f":"#REF!","v":{"$error":"#REF!"}},{"$f":"#REF!","v":{"$error":"#REF!"}},{"$f":"#REF!","v":{"$error":"#REF!"}},{"$f":"#REF!","v":{"$error":"#REF!"}},{"$f":"#REF!","v":{"$error":"#REF!"}},{"$f":"#REF!","v":{"$error":"#REF!"}},{"$f":"#REF!","v":{"$error":"#REF!"}},{"$f":"#REF!","v":{"$error":"#REF!"}},{"$f":"#REF!","v":{"$error":"#REF!"}},{"$f":"#REF!","v":{"$error":"#REF!"}},{"$f":"#REF!","v":{"$error":"#REF!"}},{"$f":"#REF!","v":{"$error":"#REF!"}},{"$f":"#REF!","v":{"$error":"#REF!"}},{"$f":"#REF!","v":{"$error":"#REF!"}},{"$f":"#REF!","v":{"$error":"#REF!"}},{"$f":"#REF!","v":{"$error":"#REF!"}},{"$f":"#REF!","v":{"$error":"#REF!"}},{"$f":"#REF!","v":{"$error":"#REF!"}},{"$f":"#REF!","v":{"$error":"#REF!"}},{"$f":"#REF!","v":{"$error":"#REF!"}},{"$f":"#REF!","v":{"$error":"#REF!"}},{"$f":"#REF!","v":{"$error":"#REF!"}},{"$f":"#REF!","v":{"$error":"#REF!"}}]
[{"$f":"#REF!","v":{"$error":"#REF!"}},{"$f":"#REF!","v":{"$error":"#REF!"}},{"$f":"#REF!","v":{"$error":"#REF!"}},{"$f":"#REF!","v":{"$error":"#REF!"}}]
[{"$f":"#REF!","v":{"$error":"#REF!"}},{"$f":"#REF!","v":{"$error":"#REF!"}},{"$f":"#REF!","v":{"$error":"#REF!"}},{"$f":"#REF!","v":{"$error":"#REF!"}},{"$f":"#REF!","v":{"$error":"#REF!"}},{"$f":"#REF!","v":{"$error":"#REF!"}},{"$f":"#REF!","v":{"$error":"#REF!"}},{"$f":"#REF!","v":{"$error":"#REF!"}},{"$f":"#REF!","v":{"$error":"#REF!"}},{"$f":"#REF!","v":{"$error":"#REF!"}},{"$f":"#REF!","v":{"$error":"#REF!"}},{"$f":"#REF!","v":{"$error":"#REF!"}},{"$f":"#REF!","v":{"$error":"#REF!"}},{"$f":"#REF!","v":{"$error":"#REF!"}},{"$f":"#REF!","v":{"$error":"#REF!"}},{"$f":"#REF!","v":{"$error":"#REF!"}},{"$f":"#REF!","v":{"$error":"#REF!"}},{"$f":"#REF!","v":{"$error":"#REF!"}},{"$f":"#REF!","v":{"$error":"#REF!"}},{"$f":"#REF!","v":{"$error":"#REF!"}},{"$f":"#REF!","v":{"$error":"#REF!"}},{"$f":"#REF!","v":{"$error":"#REF!"}},{"$f":"#REF!","v":{"$error":"#REF!"}},{"$f":"#REF!","v":{"$error":"#REF!"}},{"$f":"#REF!","v":{"$error":"#REF!"}},{"$f":"#REF!","v":{"$error":"#REF!"}},{"$f":"#REF!","v":{"$error":"#REF!"}}]
[{"$f":"#REF!","v":{"$error":"#REF!"}},{"$f":"IF(#REF!=0,\"\",#REF!)","v":{"$error":"#REF!"}},{"$f":"IF(#REF!=0,\"\",#REF!)","v":{"$error":"#REF!"}},{"$f":"IF(#REF!=0,\"\",#REF!)","v":{"$error":"#REF!"}},{"$f":"IF(#REF!=0,\"\",#REF!)","v":{"$error":"#REF!"}},null,{"$f":"IF(#REF!=0,\"\",#REF!)","v":{"$error":"#REF!"}},{"$f":"IF(#REF!=0,\"\",#REF!)","v":{"$error":"#REF!"}},{"$f":"IF(#REF!=0,\"\",#REF!)","v":{"$error":"#REF!"}},{"$f":"IF(#REF!=0,\"\",#REF!)","v":{"$error":"#REF!"}},{"$f":"IF(#REF!=0,\"\",#REF!)","v":{"$error":"#REF!"}},{"$f":"IF(#REF!=0,\"\",#REF!)","v":{"$error":"#REF!"}},{"$f":"IF(#REF!=0,\"\",#REF!)","v":{"$error":"#REF!"}},{"$f":"IF(#REF!=0,\"\",#REF!)","v":{"$error":"#REF!"}},{"$f":"IF(#REF!=0,\"\",#REF!)","v":{"$error":"#REF!"}},{"$f":"IF(#REF!=0,\"\",#REF!)","v":{"$error":"#REF!"}},{"$f":"IF(#REF!=0,\"\",#REF!)","v":{"$error":"#REF!"}},{"$f":"IF(#REF!=0,\"\",#REF!)","v":{"$error":"#REF!"}},{"$f":"IF(#REF!=0,\"\",#REF!)","v":{"$error":"#REF!"}},{"$f":"IF(#REF!=0,\"\",#REF!)","v":{"$error":"#REF!"}},{"$f":"IF(#REF!=0,\"\",#REF!)","v":{"$error":"#REF!"}},{"$f":"IF(#REF!=0,\"\",#REF!)","v":{"$error":"#REF!"}},{"$f":"IF(#REF!=0,\"\",#REF!)","v":{"$error":"#REF!"}},{"$f":"IF(#REF!=0,\"\",#REF!)","v":{"$error":"#REF!"}},{"$f":"IF(#REF!=0,\"\",#REF!)","v":{"$error":"#REF!"}}]
[{"$f":"#REF!","v":{"$error":"#REF!"}},{"$f":"#REF!","v":{"$error":"#REF!"}},{"$f":"#REF!","v":{"$error":"#REF!"}},{"$f":"#REF!","v":{"$error":"#REF!"}},{"$f":"#REF!","v":{"$error":"#REF!"}},{"$f":"#REF!","v":{"$error":"#REF!"}},{"$f":"#REF!","v":{"$error":"#REF!"}},{"$f":"#REF!","v":{"$error":"#REF!"}}]
[{"$f":"#REF!","v":{"$error":"#REF!"}},{"$f":"#REF!","v":{"$error":"#REF!"}},{"$f":"#REF!","v":{"$error":"#REF!"}},{"$f":"#REF!","v":{"$error":"#REF!"}},{"$f":"#REF!","v":{"$error":"#REF!"}},{"$f":"IF(#REF!=0,\"\",#REF!)","v":{"$error":"#REF!"}},{"$f":"IF(#REF!=0,\"\",#REF!)","v":{"$error":"#REF!"}},{"$f":"IF(#REF!=0,\"\",#REF!)","v":{"$error":"#REF!"}}]
[]
[]
[]
[{"$f":"'Terrestrial Data QA'!B11","v":"No."},{"$f":"'Terrestrial Data QA'!B13","v":1},{"$f":"'Terrestrial Data QA'!B16","v":2},{"$f":"'Terrestrial Data QA'!B19","v":3},{"$f":"'Terrestrial Data QA'!B21","v":4},{"$f":"'Terrestrial Data QA'!B23","v":5},{"$f":"'Terrestrial Data QA'!B26","v":6},{"$f":"'Terrestrial Data QA'!B29","v":7},{"$f":"'Terrestrial Data QA'!B32","v":8},{"$f":"'Terrestrial Data QA'!B35","v":9},{"$f":"'Terrestrial Data QA'!B39","v":10},{"$f":"'Terrestrial Data QA'!B42","v":11},{"$f":"'Terrestrial Data QA'!B45","v":12},{"$f":"'Terrestrial Data QA'!B48","v":13},{"$f":"'Terrestrial Data QA'!B50","v":14},{"$f":"'Terrestrial Data QA'!B55","v":15.1},{"$f":"'Terrestrial Data QA'!B59","v":15.2},{"$f":"'Terrestrial Data QA'!B63","v":15.3},{"$f":"'Terrestrial Data QA'!B67","v":15.4},{"$f":"'Terrestrial Data QA'!B71","v":16},{"$f":"'Terrestrial Data QA'!B74","v":17},{"$f":"'Terrestrial Data QA'!B78","v":18},{"$f":"'Terrestrial Data QA'!B82","v":19},{"$f":"'Terrestrial Data QA'!B85","v":20},{"$f":"'Terrestrial Data QA'!C90","v":"Total Score"},{"$f":"'Terrestrial Data QA'!C92","v":"Quality Score"}]
[{"$f":"'Terrestrial Data QA'!C2","v":"Category"},{"$f":"'Terrestrial Data QA'!E2","v":"Terrestrial Quality"},{"$f":"'Terrestrial Data QA'!C3","v":"Paper and data unique identifier(eg. 1-1,10-150)"},{"$f":"'Terrestrial Data QA'!E3","v":0}]
[{"$f":"'Terrestrial Data QA'!G11","v":"Scores"},{"$f":"'Terrestrial Data QA'!G12","v":0},{"$f":"'Terrestrial Data QA'!G15","v":0},{"$f":"'Terrestrial Data QA'!G18","v":0},{"$f":"'Terrestrial Data QA'!G21","v":0},{"$f":"'Terrestrial Data QA'!G23","v":0},{"$f":"'Terrestrial Data QA'!G26","v":0},{"$f":"'Terrestrial Data QA'!G29","v":0},{"$f":"'Terrestrial Data QA'!G32","v":0},{"$f":"'Terrestrial Data QA'!G35","v":0},{"$f":"'Terrestrial Data QA'!G38","v":0},{"$f":"'Terrestrial Data QA'!G41","v":0},{"$f":"'Terrestrial Data QA'!G44","v":0},{"$f":"'Terrestrial Data QA'!G47","v":0},{"$f":"'Terrestrial Data QA'!G50","v":0},{"$f":"'Terrestrial Data QA'!G54","v":0},{"$f":"'Terrestrial Data QA'!G58","v":0},{"$f":"'Terrestrial Data QA'!G62","v":0},{"$f":"'Terrestrial Data QA'!G66","v":0},{"$f":"'Terrestrial Data QA'!G70","v":0},{"$f":"'Terrestrial Data QA'!G73","v":0},{"$f":"'Terrestrial Data QA'!G77","v":0},{"$f":"'Terrestrial Data QA'!G81","v":0},{"$f":"'Terrestrial Data QA'!G84","v":0},{"$f":"'Terrestrial Data QA'!G90","v":""},{"$f":"'Terrestrial Data QA'!G92","v":{"$error":"#N/A"}}]
[{"$f":"'Terrestrial Data QA'!H11","v":"Answers"},{"$f":"IF('Terrestrial Data QA'!H12=0,\"\",'Terrestrial Data QA'!H12)","v":""},{"$f":"IF('Terrestrial Data QA'!H15=0,\"\",'Terrestrial Data QA'!H15)","v":""},{"$f":"IF('Terrestrial Data QA'!H18=0,\"\",'Terrestrial Data QA'!H18)","v":""},{"$f":"IF('Terrestrial Data QA'!H21=0,\"\",'Terrestrial Data QA'!H21)","v":""},{"$f":"IF('Terrestrial Data QA'!H23=0,\"\",'Terrestrial Data QA'!H23)","v":""},{"$f":"IF('Terrestrial Data QA'!H26=0,\"\",'Terrestrial Data QA'!H26)","v":""},{"$f":"IF('Terrestrial Data QA'!H29=0,\"\",'Terrestrial Data QA'!H29)","v":""},{"$f":"IF('Terrestrial Data QA'!H32=0,\"\",'Terrestrial Data QA'!H32)","v":""},{"$f":"IF('Terrestrial Data QA'!H35=0,\"\",'Terrestrial Data QA'!H35)","v":""},{"$f":"IF('Terrestrial Data QA'!H38=0,\"\",'Terrestrial Data QA'!H38)","v":""},{"$f":"IF('Terrestrial Data QA'!H41=0,\"\",'Terrestrial Data QA'!H41)","v":""},{"$f":"IF('Terrestrial Data QA'!H44=0,\"\",'Terrestrial Data QA'!H44)","v":""},{"$f":"IF('Terrestrial Data QA'!H47=0,\"\",'Terrestrial Data QA'!H47)","v":""},{"$f":"IF('Terrestrial Data QA'!H50=0,\"\",'Terrestrial Data QA'!H50)","v":""},{"$f":"IF('Terrestrial Data QA'!H54=0,\"\",'Terrestrial Data QA'!H54)","v":""},{"$f":"IF('Terrestrial Data QA'!H58=0,\"\",'Terrestrial Data QA'!H58)","v":""},{"$f":"IF('Terrestrial Data QA'!H62=0,\"\",'Terrestrial Data QA'!H62)","v":""},{"$f":"IF('Terrestrial Data QA'!H66=0,\"\",'Terrestrial Data QA'!H66)","v":""},{"$f":"IF('Terrestrial Data QA'!H70=0,\"\",'Terrestrial Data QA'!H70)","v":""},{"$f":"IF('Terrestrial Data QA'!H73=0,\"\",'Terrestrial Data QA'!H73)","v":""},{"$f":"IF('Terrestrial Data QA'!H77=0,\"\",'Terrestrial Data QA'!H77)","v":""},{"$f":"IF('Terrestrial Data QA'!H81=0,\"\",'Terrestrial Data QA'!H81)","v":""},{"$f":"IF('Terrestrial Data QA'!H84=0,\"\",'Terrestrial Data QA'!H84)","v":""}]
[{"$f":"'Terrestrial Data QA'!G3","v":"Species (Scientific name)"},{"$f":"'Terrestrial Data QA'!G4","v":"Lifestage"},{"$f":"'Terrestrial Data QA'!G5","v":"Exposure duration"},{"$f":"'Terrestrial Data QA'!G6","v":"Measure of toxicity"},{"$f":"'Terrestrial Data QA'!G7","v":"Toxicity endpoint"},{"$f":"'Terrestrial Data QA'!G8","v":"Toxicity value"},{"$f":"'Terrestrial Data QA'!C4","v":"Citation"},{"$f":"'Terrestrial Data QA'!G2","v":"Citation No."}]
[{"$f":"'Terrestrial Data QA'!M3","v":""},{"$f":"'Terrestrial Data QA'!P3","v":""},{"$f":"'Terrestrial Data QA'!S3","v":""},{"$f":"'Terrestrial Data QA'!V3","v":""},{"$f":"'Terrestrial Data QA'!Y3","v":""},{"$f":"IF('Terrestrial Data QA'!H8=0,\"\",'Terrestrial Data QA'!H8)","v":""},{"$f":"IF('Terrestrial Data QA'!E4=0,\"\",'Terrestrial Data QA'!E4)","v":""},{"$f":"IF('Terrestrial Data QA'!H2=0,\"\",'Terrestrial Data QA'!H2)","v":""}]
[]
[]
[]
[{"$f":"'Sediment Data QA'!B11","v":"No."},{"$f":"'Sediment Data QA'!B13","v":1},{"$f":"'Sediment Data QA'!B16","v":2},{"$f":"'Sediment Data QA'!B19","v":3},{"$f":"'Sediment Data QA'!B21","v":4},{"$f":"'Sediment Data QA'!B23","v":5},{"$f":"'Sediment Data QA'!B26","v":6},{"$f":"'Sediment Data QA'!B29","v":7},{"$f":"'Sediment Data QA'!B32","v":8},{"$f":"'Sediment Data QA'!B35","v":9},{"$f":"'Sediment Data QA'!B39","v":10},{"$f":"'Sediment Data QA'!B42","v":11},{"$f":"'Sediment Data QA'!B45","v":12},{"$f":"'Sediment Data QA'!B48","v":13},{"$f":"'Sediment Data QA'!B51","v":14},{"$f":"'Sediment Data QA'!B53","v":15},{"$f":"'Sediment Data QA'!B58","v":16.100000000000001},{"$f":"'Sediment Data QA'!B62","v":16.2},{"$f":"'Sediment Data QA'!B66","v":16.3},{"$f":"'Sediment Data QA'!B70","v":16.399999999999999},{"$f":"'Sediment Data QA'!B74","v":16.5},{"$f":"'Sediment Data QA'!B78","v":16.600000000000001},{"$f":"'Sediment Data QA'!B82","v":17},{"$f":"'Sediment Data QA'!B85","v":18},{"$f":"'Sediment Data QA'!B88","v":19},{"$f":"'Sediment Data QA'!B90","v":20},{"$f":"'Sediment Data QA'!B92","v":21},{"$f":"'Sediment Data QA'!C95","v":"Total score"},{"$f":"'Sediment Data QA'!C97","v":"Quality Score"}]
[{"$f":"'Sediment Data QA'!C2","v":"Category"},{"$f":"'Sediment Data QA'!E2","v":"Sediment "},{"$f":"'Sediment Data QA'!C3","v":"Paper and data unique identifier(eg. 1-1,10-150)"},{"$f":"'Sediment Data QA'!E3","v":0}]
[{"$f":"'Sediment Data QA'!G11","v":"Scores"},{"$f":"'Sediment Data QA'!G12","v":0},{"$f":"'Sediment Data QA'!G15","v":0},{"$f":"'Sediment Data QA'!G18","v":0},{"$f":"'Sediment Data QA'!G21","v":0},{"$f":"'Sediment Data QA'!G23","v":0},{"$f":"'Sediment Data QA'!G26","v":0},{"$f":"'Sediment Data QA'!G29","v":0},{"$f":"'Sediment Data QA'!G32","v":0},{"$f":"'Sediment Data QA'!G35","v":0},{"$f":"'Sediment Data QA'!G38","v":0},{"$f":"'Sediment Data QA'!G41","v":0},{"$f":"'Sediment Data QA'!G44","v":0},{"$f":"'Sediment Data QA'!G47","v":0},{"$f":"'Sediment Data QA'!G50","v":0},{"$f":"'Sediment Data QA'!G53","v":0},{"$f":"'Sediment Data QA'!G57","v":0},{"$f":"'Sediment Data QA'!G61","v":0},{"$f":"'Sediment Data QA'!G65","v":0},{"$f":"'Sediment Data QA'!G69","v":0},{"$f":"'Sediment Data QA'!G73","v":0},{"$f":"'Sediment Data QA'!G77","v":0},{"$f":"'Sediment Data QA'!G81","v":0},{"$f":"'Sediment Data QA'!G84","v":0},{"$f":"'Sediment Data QA'!G88","v":0},{"$f":"'Sediment Data QA'!G90","v":0},{"$f":"'Sediment Data QA'!G92","v":0},{"$f":"'Sediment Data QA'!G95","v":""},{"$f":"'Sediment Data QA'!G97","v":{"$error":"#N/A"}}]
[{"$f":"'Sediment Data QA'!H11","v":"Answers"},{"$f":"IF('Sediment Data QA'!H12=\"\",\"\",'Sediment Data QA'!H12)","v":""},{"$f":"IF('Sediment Data QA'!H15=\"\",\"\",'Sediment Data QA'!H15)","v":""},{"$f":"IF('Sediment Data QA'!H18=\"\",\"\",'Sediment Data QA'!H18)","v":""},{"$f":"IF('Sediment Data QA'!H21=\"\",\"\",'Sediment Data QA'!H21)","v":""},{"$f":"IF('Sediment Data QA'!H23=\"\",\"\",'Sediment Data QA'!H23)","v":""},{"$f":"IF('Sediment Data QA'!H26=\"\",\"\",'Sediment Data QA'!H26)","v":""},{"$f":"IF('Sediment Data QA'!H29=\"\",\"\",'Sediment Data QA'!H29)","v":""},{"$f":"IF('Sediment Data QA'!H32=\"\",\"\",'Sediment Data QA'!H32)","v":""},{"$f":"IF('Sediment Data QA'!H35=\"\",\"\",'Sediment Data QA'!H35)","v":""},{"$f":"IF('Sediment Data QA'!H38=\"\",\"\",'Sediment Data QA'!H38)","v":""},{"$f":"IF('Sediment Data QA'!H41=\"\",\"\",'Sediment Data QA'!H41)","v":""},{"$f":"IF('Sediment Data QA'!H44=\"\",\"\",'Sediment Data QA'!H44)","v":""},{"$f":"IF('Sediment Data QA'!H47=\"\",\"\",'Sediment Data QA'!H47)","v":""},{"$f":"IF('Sediment Data QA'!H50=\"\",\"\",'Sediment Data QA'!H50)","v":""},{"$f":"IF('Sediment Data QA'!H53=\"\",\"\",'Sediment Data QA'!H53)","v":""},{"$f":"IF('Sediment Data QA'!H57=\"\",\"\",'Sediment Data QA'!H57)","v":""},{"$f":"IF('Sediment Data QA'!H61=\"\",\"\",'Sediment Data QA'!H61)","v":""},{"$f":"IF('Sediment Data QA'!H65=\"\",\"\",'Sediment Data QA'!H65)","v":""},{"$f":"IF('Sediment Data QA'!H69=\"\",\"\",'Sediment Data QA'!H69)","v":""},{"$f":"IF('Sediment Data QA'!H73=\"\",\"\",'Sediment Data QA'!H73)","v":""},{"$f":"IF('Sediment Data QA'!H77=\"\",\"\",'Sediment Data QA'!H77)","v":""},{"$f":"IF('Sediment Data QA'!H81=\"\",\"\",'Sediment Data QA'!H81)","v":""},{"$f":"IF('Sediment Data QA'!H84=\"\",\"\",'Sediment Data QA'!H84)","v":""},{"$f":"IF('Sediment Data QA'!H88=\"\",\"\",'Sediment Data QA'!H88)","v":""},{"$f":"IF('Sediment Data QA'!H90=\"\",\"\",'Sediment Data QA'!H90)","v":""},{"$f":"IF('Sediment Data QA'!H92=\"\",\"\",'Sediment Data QA'!H92)","v":""}]
[{"$f":"'Sediment Data QA'!G3","v":"Species (Scientific name)"},{"$f":"'Sediment Data QA'!G4","v":"Lifestage"},{"$f":"'Sediment Data QA'!G5","v":"Exposure duration"},{"$f":"'Sediment Data QA'!G6","v":"Measure of toxicity"},{"$f":"'Sediment Data QA'!G7","v":"Toxicity endpoint"},{"$f":"'Sediment Data QA'!G8","v":"Toxicity value"},{"$f":"'Sediment Data QA'!C4","v":"Citation"},{"$f":"'Sediment Data QA'!G2","v":"Citation No."}]
[{"$f":"'Sediment Data QA'!M3","v":""},{"$f":"'Sediment Data QA'!P3","v":""},{"$f":"'Sediment Data QA'!S3","v":""},{"$f":"'Sediment Data QA'!V3","v":""},{"$f":"'Sediment Data QA'!Y3","v":""},{"$f":"IF('Sediment Data QA'!H8=\"\",\"\",'Sediment Data QA'!H8)","v":""},{"$f":"IF('Sediment Data QA'!E4=\"\",\"\",'Sediment Data QA'!E4)","v":""},{"$f":"IF('Sediment Data QA'!H2=\"\",\"\",'Sediment Data QA'!H2)","v":0}]
[{"$f":"'FW nonmetal plant'!B11","v":"No."},{"$f":"'FW nonmetal plant'!B13","v":1},{"$f":"'FW nonmetal plant'!B16","v":2},{"$f":"'FW nonmetal plant'!B19","v":3},{"$f":"'FW nonmetal plant'!B21","v":4},{"$f":"'FW nonmetal plant'!B23","v":5},{"$f":"'FW nonmetal plant'!B26","v":6},{"$f":"'FW nonmetal plant'!B29","v":7},{"$f":"'FW nonmetal plant'!B32","v":8},{"$f":"'FW nonmetal plant'!B35","v":9},{"$f":"'FW nonmetal plant'!B39","v":10},{"$f":"'FW nonmetal plant'!B42","v":11},{"$f":"'FW nonmetal plant'!B45","v":12},{"$f":"'FW nonmetal plant'!B48","v":13},{"$f":"'FW nonmetal plant'!B51","v":14},{"$f":"'FW nonmetal plant'!B53","v":15},{"$f":"'FW nonmetal plant'!B58","v":16.100000000000001},{"$f":"'FW nonmetal plant'!B62","v":17},{"$f":"'FW nonmetal plant'!B65","v":18},{"$f":"'FW nonmetal plant'!C70","v":"Total score"},{"$f":"'FW nonmetal plant'!C72","v":"Quality Score"}]
[{"$f":"'FW nonmetal plant'!C2","v":"Category"},{"$f":"'FW nonmetal plant'!E2","v":"Freshwater/non-metal/plant"},{"$f":"'FW nonmetal plant'!C3","v":"Paper and data unique identifier(eg. 1-1,10-150)"},{"$f":"'FW nonmetal plant'!E3","v":0}]
[{"$f":"'FW nonmetal plant'!G11","v":"Scores"},{"$f":"'FW nonmetal plant'!G12","v":0},{"$f":"'FW nonmetal plant'!G15","v":0},{"$f":"'FW nonmetal plant'!G18","v":0},{"$f":"'FW nonmetal plant'!G21","v":0},{"$f":"'FW nonmetal plant'!G23","v":0},{"$f":"'FW nonmetal plant'!G26","v":0},{"$f":"'FW nonmetal plant'!G29","v":0},{"$f":"'FW nonmetal plant'!G32","v":0},{"$f":"'FW nonmetal plant'!G35","v":0},{"$f":"'FW nonmetal plant'!G38","v":0},{"$f":"'FW nonmetal plant'!G41","v":0},{"$f":"'FW nonmetal plant'!G44","v":0},{"$f":"'FW nonmetal plant'!G47","v":0},{"$f":"'FW nonmetal plant'!G50","v":0},{"$f":"'FW nonmetal plant'!G53","v":0},{"$f":"'FW nonmetal plant'!G57","v":0},{"$f":"'FW nonmetal plant'!G61","v":0},{"$f":"'FW nonmetal plant'!G64","v":0},{"$f":"'FW nonmetal plant'!G70","v":""},{"$f":"'FW nonmetal plant'!G72","v":{"$error":"#N/A"}},{"$f":"'FW nonmetal plant'!H72","v":""}]
[{"$f":"'FW nonmetal plant'!H11","v":"Answers"},{"$f":"IF('FW nonmetal plant'!H12=\"\",\"\",'FW nonmetal plant'!H12)","v":""},{"$f":"IF('FW nonmetal plant'!H15=\"\",\"\",'FW nonmetal plant'!H15)","v":""},{"$f":"IF('FW nonmetal plant'!H18=\"\",\"\",'FW nonmetal plant'!H18)","v":""},{"$f":"IF('FW nonmetal plant'!H21=\"\",\"\",'FW nonmetal plant'!H21)","v":""},{"$f":"IF('FW nonmetal plant'!H23=\"\",\"\",'FW nonmetal plant'!H23)","v":""},{"$f":"IF('FW nonmetal plant'!H26=\"\",\"\",'FW nonmetal plant'!H26)","v":""},{"$f":"IF('FW nonmetal plant'!H29=\"\",\"\",'FW nonmetal plant'!H29)","v":""},{"$f":"IF('FW nonmetal plant'!H32=\"\",\"\",'FW nonmetal plant'!H32)","v":""},{"$f":"IF('FW nonmetal plant'!H35=\"\",\"\",'FW nonmetal plant'!H35)","v":""},{"$f":"IF('FW nonmetal plant'!H38=\"\",\"\",'FW nonmetal plant'!H38)","v":""},{"$f":"IF('FW nonmetal plant'!H41=\"\",\"\",'FW nonmetal plant'!H41)","v":""},{"$f":"IF('FW nonmetal plant'!H44=\"\",\"\",'FW nonmetal plant'!H44)","v":""},{"$f":"IF('FW nonmetal plant'!H47=\"\",\"\",'FW nonmetal plant'!H47)","v":""},{"$f":"IF('FW nonmetal plant'!H53=\"\",\"\",'FW nonmetal plant'!H53)","v":""},{"$f":"IF('FW nonmetal plant'!H53=\"\",\"\",'FW nonmetal plant'!H53)","v":""},{"$f":"IF('FW nonmetal plant'!H57=\"\",\"\",'FW nonmetal plant'!H57)","v":""},{"$f":"IF('FW nonmetal plant'!H61=\"\",\"\",'FW nonmetal plant'!H61)","v":""},{"$f":"IF('FW nonmetal plant'!H64=\"\",\"\",'FW nonmetal plant'!H64)","v":""}]
[{"$f":"'FW nonmetal plant'!G3","v":"Species (Scientific name)"},{"$f":"'FW nonmetal plant'!G4","v":"Lifestage"},{"$f":"'FW nonmetal plant'!G5","v":"Exposure duration"},{"$f":"'FW nonmetal plant'!G6","v":"Measure of toxicity"},{"$f":"'FW nonmetal plant'!G7","v":"Toxicity endpoint"},{"$f":"'FW nonmetal plant'!G8","v":"Toxicity value"},{"$f":"'FW nonmetal plant'!J2","v":"Taxonomic group"},{"$f":"'FW nonmetal plant'!J3","v":"Phylum"},{"$f":"'FW nonmetal plant'!J4","v":"Class"},{"$f":"'FW nonmetal plant'!J5","v":"Media"},{"$f":"'FW nonmetal plant'!J6","v":"Temperature "},{"$f":"'FW nonmetal plant'!J7","v":"Acute Or Chronic "},{"$f":"'FW nonmetal plant'!J8","v":"PH"},{"$f":"'FW nonmetal plant'!J9","v":"Salinity/Conductivity"},{"$f":"'FW nonmetal plant'!C4","v":"Citation"},{"$f":"'FW nonmetal plant'!G2","v":"Citation No."}]
[{"$f":"'FW nonmetal plant'!Q3","v":""},{"$f":"'FW nonmetal plant'!T3","v":""},{"$f":"'FW nonmetal plant'!W3","v":""},{"$f":"'FW nonmetal plant'!Z3","v":""},{"$f":"'FW nonmetal plant'!AC3","v":""},{"$f":"IF('FW nonmetal plant'!H8=\"\",\"\",'FW nonmetal plant'!H8)","v":""},{"$f":"'FW nonmetal plant'!AF3","v":""},{"$f":"'FW nonmetal plant'!AI3","v":""},{"$f":"'FW nonmetal plant'!AO3","v":""},{"$f":"'FW nonmetal plant'!AR3","v":""},{"$f":"'FW nonmetal plant'!AR3","v":""},{"$f":"'FW nonmetal plant'!AU3","v":""},{"$f":"'FW nonmetal plant'!AX3","v":""},{"$f":"'FW nonmetal plant'!BA3","v":"N.A."},{"$f":"IF('FW nonmetal plant'!E4=\"\",\"\",'FW nonmetal plant'!E4)","v":""},{"$f":"IF('FW nonmetal plant'!H2=\"\",\"\",'FW nonmetal plant'!H2)","v":0}]
[{"$f":"'FW metal plant'!B11","v":"No."},{"$f":"'FW metal plant'!B13","v":1},{"$f":"'FW metal plant'!B16","v":2},{"$f":"'FW metal plant'!B19","v":3},{"$f":"'FW metal plant'!B21","v":4},{"$f":"'FW metal plant'!B23","v":5},{"$f":"'FW metal plant'!B26","v":6},{"$f":"'FW metal plant'!B29","v":7},{"$f":"'FW metal plant'!B32","v":8},{"$f":"'FW metal plant'!B35","v":9},{"$f":"'FW metal plant'!B39","v":10},{"$f":"'FW metal plant'!B42","v":11},{"$f":"'FW metal plant'!B45","v":12},{"$f":"'FW metal plant'!B48","v":13},{"$f":"'FW metal plant'!B51","v":14},{"$f":"'FW metal plant'!B53","v":15},{"$f":"'FW metal plant'!B58","v":16.100000000000001},{"$f":"'FW metal plant'!B61","v":16.2},{"$f":"'FW metal plant'!B64","v":16.3},{"$f":"'FW metal plant'!B67","v":16.399999999999999},{"$f":"'FW metal plant'!B70","v":17},{"$f":"'FW metal plant'!B73","v":18},{"$f":"'FW metal plant'!C78","v":"Total score"},{"$f":"'FW metal plant'!C80","v":"Quality Score"}]
[{"$f":"'FW metal plant'!C2","v":"Category"},{"$f":"'FW metal plant'!E2","v":"Freshwater/metal/plant"},{"$f":"'FW metal plant'!C3","v":"Paper and data unique identifier(eg. 1-1,10-150)"},{"$f":"'FW metal plant'!E3","v":0}]
[{"$f":"'FW metal plant'!G11","v":"Scores"},{"$f":"'FW metal plant'!G12","v":0},{"$f":"'FW metal plant'!G15","v":0},{"$f":"'FW metal plant'!G18","v":0},{"$f":"'FW metal plant'!G21","v":0},{"$f":"'FW metal plant'!G23","v":0},{"$f":"'FW metal plant'!G26","v":0},{"$f":"'FW metal plant'!G29","v":0},{"$f":"'FW metal plant'!G32","v":0},{"$f":"'FW metal plant'!G35","v":0},{"$f":"'FW metal plant'!G38","v":0},{"$f":"'FW metal plant'!G41","v":0},{"$f":"'FW metal plant'!G44","v":0},{"$f":"'FW metal plant'!G47","v":0},{"$f":"'FW metal plant'!G50","v":0},{"$f":"'FW metal plant'!G53","v":0},{"$f":"'FW metal plant'!G57","v":0},{"$f":"'FW metal plant'!G60","v":0},{"$f":"'FW metal plant'!G63","v":0},{"$f":"'FW metal plant'!G66","v":0},{"$f":"'FW metal plant'!G69","v":0},{"$f":"'FW metal plant'!G72","v":0},{"$f":"'FW metal plant'!G78","v":""},{"$f":"'FW metal plant'!G80","v":{"$error":"#N/A"}},{"$f":"'FW metal plant'!H80","v":""}]
[{"$f":"'FW metal plant'!H11","v":"Answers"},{"$f":"IF('FW metal plant'!H12=\"\",\"\",'FW metal plant'!H12)","v":""},{"$f":"IF('FW metal plant'!H15=\"\",\"\",'FW metal plant'!H15)","v":""},{"$f":"IF('FW metal plant'!H18=\"\",\"\",'FW metal plant'!H18)","v":""},{"$f":"IF('FW metal plant'!H21=\"\",\"\",'FW metal plant'!H21)","v":""},{"$f":"IF('FW metal plant'!H23=\"\",\"\",'FW metal plant'!H23)","v":""},{"$f":"IF('FW metal plant'!H26=\"\",\"\",'FW metal plant'!H26)","v":""},{"$f":"IF('FW metal plant'!H29=\"\",\"\",'FW metal plant'!H29)","v":""},{"$f":"IF('FW metal plant'!H32=\"\",\"\",'FW metal plant'!H32)","v":""},{"$f":"IF('FW metal plant'!H35=\"\",\"\",'FW metal plant'!H35)","v":""},{"$f":"IF('FW metal plant'!H38=\"\",\"\",'FW metal plant'!H38)","v":""},{"$f":"IF('FW metal plant'!H41=\"\",\"\",'FW metal plant'!H41)","v":""},{"$f":"IF('FW metal plant'!H44=\"\",\"\",'FW metal plant'!H44)","v":""},{"$f":"IF('FW metal plant'!H47=\"\",\"\",'FW metal plant'!H47)","v":""},{"$f":"IF('FW metal plant'!H50=\"\",\"\",'FW metal plant'!H50)","v":""},{"$f":"IF('FW metal plant'!H53=\"\",\"\",'FW metal plant'!H53)","v":""},{"$f":"IF('FW metal plant'!H57=\"\",\"\",'FW metal plant'!H57)","v":""},{"$f":"IF('FW metal plant'!H60=\"\",\"\",'FW metal plant'!H60)","v":""},{"$f":"IF('FW metal plant'!H63=\"\",\"\",'FW metal plant'!H63)","v":""},{"$f":"IF('FW metal plant'!H66=\"\",\"\",'FW metal plant'!H66)","v":""},{"$f":"IF('FW metal plant'!H69=\"\",\"\",'FW metal plant'!H69)","v":""},{"$f":"IF('FW metal plant'!H72=\"\",\"\",'FW metal plant'!H72)","v":""}]
[{"$f":"'FW metal plant'!G3","v":"Species (Scientific name)"},{"$f":"'FW metal plant'!G4","v":"Lifestage"},{"$f":"'FW metal plant'!G5","v":"Exposure duration"},{"$f":"'FW metal plant'!G6","v":"Measure of toxicity"},{"$f":"'FW metal plant'!G7","v":"Toxicity endpoint"},{"$f":"'FW metal plant'!G8","v":"Toxicity value"},{"$f":"'FW metal plant'!J2","v":"Taxonomic group"},{"$f":"'FW metal plant'!J3","v":"Phylum"},{"$f":"'FW metal plant'!J4","v":"Class"},{"$f":"'FW metal plant'!J5","v":"Media"},{"$f":"'FW metal plant'!J6","v":"Temperature "},{"$f":"'FW metal plant'!J7","v":"Acute Or Chronic "},{"$f":"'FW metal plant'!J8","v":"PH"},{"$f":"'FW metal plant'!J9","v":"Salinity/Conductivity"},{"$f":"'FW metal plant'!C4","v":"Citation"},{"$f":"'FW metal plant'!G2","v":"Citation No."}]
[{"$f":"'FW metal plant'!Q3","v":""},{"$f":"'FW metal plant'!T3","v":""},{"$f":"'FW metal plant'!W3","v":""},{"$f":"'FW metal plant'!Z3","v":""},{"$f":"'FW metal plant'!AC3","v":""},{"$f":"IF('FW metal plant'!H8=\"\",\"\",'FW metal plant'!H8)","v":""},{"$f":"'FW metal plant'!AF3","v":""},{"$f":"'FW metal plant'!AI3","v":""},{"$f":"'FW metal plant'!AL3","v":""},{"$f":"'FW metal plant'!AO3","v":""},{"$f":"'FW metal plant'!AR3","v":""},{"$f":"'FW metal plant'!AU3","v":""},{"$f":"'FW metal plant'!AX3","v":""},{"$f":"'FW metal plant'!BA3","v":"N.A."},{"$f":"IF('FW metal plant'!E4=\"\",\"\",'FW metal plant'!E4)","v":""},{"$f":"IF('FW metal plant'!H2=\"\",\"\",'FW metal plant'!H2)","v":0}]
[{"$f":"'FW nonmetal nonplant'!B11","v":"No."},{"$f":"'FW nonmetal nonplant'!B13","v":1},{"$f":"'FW nonmetal nonplant'!B16","v":2},{"$f":"'FW nonmetal nonplant'!B19","v":3},{"$f":"'FW nonmetal nonplant'!B21","v":4},{"$f":"'FW nonmetal nonplant'!B23","v":5},{"$f":"'FW nonmetal nonplant'!B26","v":6},{"$f":"'FW nonmetal nonplant'!B29","v":7},{"$f":"'FW nonmetal nonplant'!B32","v":8},{"$f":"'FW nonmetal nonplant'!B35","v":9},{"$f":"'FW nonmetal nonplant'!B39","v":10},{"$f":"'FW nonmetal nonplant'!B42","v":11},{"$f":"'FW nonmetal nonplant'!B45","v":12},{"$f":"'FW nonmetal nonplant'!B48","v":13},{"$f":"'FW nonmetal nonplant'!B51","v":14},{"$f":"'FW nonmetal nonplant'!B53","v":15},{"$f":"'FW nonmetal nonplant'!B58","v":16.100000000000001},{"$f":"'FW nonmetal nonplant'!B61","v":16.2},{"$f":"'FW nonmetal nonplant'!B64","v":17},{"$f":"'FW nonmetal nonplant'!B67","v":18},{"$f":"'FW nonmetal nonplant'!C72","v":"Total score"},{"$f":"'FW nonmetal nonplant'!C74","v":"Quality Score"}]
[{"$f":"'FW nonmetal nonplant'!C2","v":"Category"},{"$f":"'FW nonmetal nonplant'!E2","v":"Freshwater/non-metal/non- plant"},{"$f":"'FW nonmetal nonplant'!C3","v":"Paper and data unique identifier(eg. 1-1,10-150)"},{"$f":"'FW nonmetal nonplant'!E3","v":0}]
[{"$f":"'FW nonmetal nonplant'!G11","v":"Scores"},{"$f":"'FW nonmetal nonplant'!G12","v":0},{"$f":"'FW nonmetal nonplant'!G15","v":0},{"$f":"'FW nonmetal nonplant'!G18","v":0},{"$f":"'FW nonmetal nonplant'!G21","v":0},{"$f":"'FW nonmetal nonplant'!G23","v":0},{"$f":"'FW nonmetal nonplant'!G26","v":0},{"$f":"'FW nonmetal nonplant'!G29","v":0},{"$f":"'FW nonmetal nonplant'!G32","v":0},{"$f":"'FW nonmetal nonplant'!G35","v":0},{"$f":"'FW nonmetal nonplant'!G38","v":0},{"$f":"'FW nonmetal nonplant'!G41","v":0},{"$f":"'FW nonmetal nonplant'!G44","v":0},{"$f":"'FW nonmetal nonplant'!G47","v":0},{"$f":"'FW nonmetal nonplant'!G50","v":0},{"$f":"'FW nonmetal nonplant'!G53","v":0},{"$f":"'FW nonmetal nonplant'!G57","v":0},{"$f":"'FW nonmetal nonplant'!G60","v":0},{"$f":"'FW nonmetal nonplant'!G63","v":0},{"$f":"'FW nonmetal nonplant'!G66","v":0},{"$f":"'FW nonmetal nonplant'!G72","v":""},{"$f":"'FW nonmetal nonplant'!G74","v":{"$error":"#N/A"}},null,{"$f":"'FW nonmetal nonplant'!H74","v":""}]
[{"$f":"'FW nonmetal nonplant'!H11","v":"Answers"},{"$f":"IF('FW nonmetal nonplant'!H12=\"\",\"\",'FW nonmetal nonplant'!H12)","v":""},{"$f":"IF('FW nonmetal nonplant'!H15=\"\",\"\",'FW nonmetal nonplant'!H15)","v":""},{"$f":"IF('FW nonmetal nonplant'!H18=\"\",\"\",'FW nonmetal nonplant'!H18)","v":""},{"$f":"IF('FW nonmetal nonplant'!H21=\"\",\"\",'FW nonmetal nonplant'!H21)","v":""},{"$f":"IF('FW nonmetal nonplant'!H23=\"\",\"\",'FW nonmetal nonplant'!H23)","v":""},{"$f":"IF('FW nonmetal nonplant'!H26=\"\",\"\",'FW nonmetal nonplant'!H26)","v":""},{"$f":"IF('FW nonmetal nonplant'!H29=\"\",\"\",'FW nonmetal nonplant'!H29)","v":""},{"$f":"IF('FW nonmetal nonplant'!H32=\"\",\"\",'FW nonmetal nonplant'!H32)","v":""},{"$f":"IF('FW nonmetal nonplant'!H35=\"\",\"\",'FW nonmetal nonplant'!H35)","v":""},{"$f":"IF('FW nonmetal nonplant'!H38=\"\",\"\",'FW nonmetal nonplant'!H38)","v":""},{"$f":"IF('FW nonmetal nonplant'!H41=\"\",\"\",'FW nonmetal nonplant'!H41)","v":""},{"$f":"IF('FW nonmetal nonplant'!H44=\"\",\"\",'FW nonmetal nonplant'!H44)","v":""},{"$f":"IF('FW nonmetal nonplant'!H47=\"\",\"\",'FW nonmetal nonplant'!H47)","v":""},{"$f":"IF('FW nonmetal nonplant'!H50=\"\",\"\",'FW nonmetal nonplant'!H50)","v":""},{"$f":"IF('FW nonmetal nonplant'!H53=\"\",\"\",'FW nonmetal nonplant'!H53)","v":""},{"$f":"IF('FW nonmetal nonplant'!H57=\"\",\"\",'FW nonmetal nonplant'!H57)","v":""},{"$f":"IF('FW nonmetal nonplant'!H60=\"\",\"\",'FW nonmetal nonplant'!H60)","v":""},{"$f":"IF('FW nonmetal nonplant'!H63=\"\",\"\",'FW nonmetal nonplant'!H63)","v":""},{"$f":"IF('FW nonmetal nonplant'!H66=\"\",\"\",'FW nonmetal nonplant'!H66)","v":""}]
[{"$f":"'FW nonmetal nonplant'!G3","v":"Species (Scientific name)"},{"$f":"'FW nonmetal nonplant'!G4","v":"Lifestage"},{"$f":"'FW nonmetal nonplant'!G5","v":"Exposure duration"},{"$f":"'FW nonmetal nonplant'!G6","v":"Measure of toxicity"},{"$f":"'FW nonmetal nonplant'!G7","v":"Toxicity endpoint"},{"$f":"'FW nonmetal nonplant'!G8","v":"Toxicity value"},{"$f":"'FW nonmetal nonplant'!J2","v":"Taxonomic group"},{"$f":"'FW nonmetal nonplant'!J3","v":"Phylum"},{"$f":"'FW nonmetal nonplant'!J4","v":"Class"},{"$f":"'FW nonmetal nonplant'!J5","v":"Media"},{"$f":"'FW nonmetal nonplant'!J6","v":"Temperature "},{"$f":"'FW nonmetal nonplant'!J7","v":"Acute Or Chronic "},{"$f":"'FW nonmetal nonplant'!J8","v":"PH"},{"$f":"'FW nonmetal nonplant'!J9","v":"Salinity/Conductivity"},{"$f":"'FW nonmetal nonplant'!C4","v":"Citation"},{"$f":"'FW nonmetal nonplant'!G2","v":"Citation No."}]
[{"$f":"'FW nonmetal nonplant'!Q3","v":""},{"$f":"'FW nonmetal nonplant'!T3","v":""},{"$f":"'FW nonmetal nonplant'!W3","v":""},{"$f":"'FW nonmetal nonplant'!Z3","v":""},{"$f":"'FW nonmetal nonplant'!AC3","v":""},{"$f":"IF('FW nonmetal nonplant'!H8=\"\",\"\",'FW nonmetal nonplant'!H8)","v":""},{"$f":"'FW nonmetal nonplant'!AF3","v":""},{"$f":"'FW nonmetal nonplant'!AI3","v":""},{"$f":"'FW nonmetal nonplant'!AL3","v":""},{"$f":"'FW nonmetal nonplant'!AO3","v":""},{"$f":"'FW nonmetal nonplant'!AR3","v":""},{"$f":"'FW nonmetal nonplant'!AU3","v":""},{"$f":"'FW nonmetal nonplant'!AX3","v":""},{"$f":"'FW nonmetal nonplant'!BA3","v":"N.A."},{"$f":"IF('FW nonmetal nonplant'!E4=\"\",\"\",'FW nonmetal nonplant'!E4)","v":""},{"$f":"IF('FW nonmetal nonplant'!H2=\"\",\"\",'FW nonmetal nonplant'!H2)","v":0}]
[{"$f":"'FW metal nonplant'!B11","v":"No."},{"$f":"'FW metal nonplant'!B13","v":1},{"$f":"'FW metal nonplant'!B16","v":2},{"$f":"'FW metal nonplant'!B19","v":3},{"$f":"'FW metal nonplant'!B21","v":4},{"$f":"'FW metal nonplant'!B23","v":5},{"$f":"'FW metal nonplant'!B26","v":6},{"$f":"'FW metal nonplant'!B29","v":7},{"$f":"'FW metal nonplant'!B32","v":8},{"$f":"'FW metal nonplant'!B35","v":9},{"$f":"'FW metal nonplant'!B39","v":10},{"$f":"'FW metal nonplant'!B42","v":11},{"$f":"'FW metal nonplant'!B45","v":12},{"$f":"'FW metal nonplant'!B48","v":13},{"$f":"'FW metal nonplant'!B51","v":14},{"$f":"'FW metal nonplant'!B53","v":15},{"$f":"'FW metal nonplant'!B58","v":16.100000000000001},{"$f":"'FW metal nonplant'!B61","v":16.2},{"$f":"'FW metal nonplant'!B64","v":16.3},{"$f":"'FW metal nonplant'!B67","v":16.399999999999999},{"$f":"'FW metal nonplant'!B70","v":16.5},{"$f":"'FW metal nonplant'!B73","v":17},{"$f":"'FW metal nonplant'!B76","v":18},{"$f":"'FW metal nonplant'!C81","v":"Total score"},{"$f":"'FW metal nonplant'!C83","v":"Quality Score"}]
[{"$f":"'FW metal nonplant'!C2","v":"Category"},{"$f":"'FW metal nonplant'!E2","v":"Freshwater/metal/non- plant"},{"$f":"'FW metal nonplant'!C3","v":"Paper and data unique identifier(eg. 1-1,10-150)"},{"$f":"'FW metal nonplant'!E3","v":0}]
[{"$f":"'FW metal nonplant'!G11","v":"Scores"},{"$f":"'FW metal nonplant'!G12","v":0},{"$f":"'FW metal nonplant'!G15","v":0},{"$f":"'FW metal nonplant'!G18","v":0},{"$f":"'FW metal nonplant'!G21","v":0},{"$f":"'FW metal nonplant'!G23","v":0},{"$f":"'FW metal nonplant'!G26","v":0},{"$f":"'FW metal nonplant'!G29","v":0},{"$f":"'FW metal nonplant'!G32","v":0},{"$f":"'FW metal nonplant'!G35","v":0},{"$f":"'FW metal nonplant'!G38","v":0},{"$f":"'FW metal nonplant'!G41","v":0},{"$f":"'FW metal nonplant'!G44","v":0},{"$f":"'FW metal nonplant'!G47","v":0},{"$f":"'FW metal nonplant'!G50","v":0},{"$f":"'FW metal nonplant'!G53","v":0},{"$f":"'FW metal nonplant'!G57","v":0},{"$f":"'FW metal nonplant'!G60","v":0},{"$f":"'FW metal nonplant'!G63","v":0},{"$f":"'FW metal nonplant'!G66","v":0},{"$f":"'FW metal nonplant'!G69","v":0},{"$f":"'FW metal nonplant'!G72","v":0},{"$f":"'FW metal nonplant'!G75","v":0},{"$f":"'FW metal nonplant'!G81","v":""},{"$f":"'FW metal nonplant'!G83","v":{"$error":"#N/A"}},{"$f":"'FW metal nonplant'!H83","v":""}]
[{"$f":"'FW metal nonplant'!H11","v":"Answers"},{"$f":"IF('FW metal nonplant'!H12=\"\",\"\",'FW metal nonplant'!H12)","v":""},{"$f":"IF('FW metal nonplant'!H15=\"\",\"\",'FW metal nonplant'!H15)","v":""},{"$f":"IF('FW metal nonplant'!H18=\"\",\"\",'FW metal nonplant'!H18)","v":""},{"$f":"IF('FW metal nonplant'!H21=\"\",\"\",'FW metal nonplant'!H21)","v":""},{"$f":"IF('FW metal nonplant'!H23=\"\",\"\",'FW metal nonplant'!H23)","v":""},{"$f":"IF('FW metal nonplant'!H26=\"\",\"\",'FW metal nonplant'!H26)","v":""},{"$f":"IF('FW metal nonplant'!H29=\"\",\"\",'FW metal nonplant'!H29)","v":""},{"$f":"IF('FW metal nonplant'!H32=\"\",\"\",'FW metal nonplant'!H32)","v":""},{"$f":"IF('FW metal nonplant'!H35=\"\",\"\",'FW metal nonplant'!H35)","v":""},{"$f":"IF('FW metal nonplant'!H38=\"\",\"\",'FW metal nonplant'!H38)","v":""},{"$f":"IF('FW metal nonplant'!H41=\"\",\"\",'FW metal nonplant'!H41)","v":""},{"$f":"IF('FW metal nonplant'!H44=\"\",\"\",'FW metal nonplant'!H44)","v":""},{"$f":"IF('FW metal nonplant'!H47=\"\",\"\",'FW metal nonplant'!H47)","v":""},{"$f":"IF('FW metal nonplant'!H50=\"\",\"\",'FW metal nonplant'!H50)","v":""},{"$f":"IF('FW metal nonplant'!H53=\"\",\"\",'FW metal nonplant'!H53)","v":""},{"$f":"IF('FW metal nonplant'!H57=\"\",\"\",'FW metal nonplant'!H57)","v":""},{"$f":"IF('FW metal nonplant'!H60=\"\",\"\",'FW metal nonplant'!H60)","v":""},{"$f":"IF('FW metal nonplant'!H63=\"\",\"\",'FW metal nonplant'!H63)","v":""},{"$f":"IF('FW metal nonplant'!H66=\"\",\"\",'FW metal nonplant'!H66)","v":""},{"$f":"IF('FW metal nonplant'!H69=\"\",\"\",'FW metal nonplant'!H69)","v":""},{"$f":"IF('FW metal nonplant'!H72=\"\",\"\",'FW metal nonplant'!H72)","v":""},{"$f":"IF('FW metal nonplant'!H75=\"\",\"\",'FW metal nonplant'!H75)","v":""}]
[{"$f":"'FW metal nonplant'!G3","v":"Species (Scientific name)"},{"$f":"'FW metal nonplant'!G4","v":"Lifestage"},{"$f":"'FW metal nonplant'!G5","v":"Exposure duration"},{"$f":"'FW metal nonplant'!G6","v":"Measure of toxicity"},{"$f":"'FW metal nonplant'!G7","v":"Toxicity endpoint"},{"$f":"'FW metal nonplant'!G8","v":"Toxicity value"},{"$f":"'FW metal nonplant'!J2","v":"Taxonomic group"},{"$f":"'FW metal nonplant'!J3","v":"Phylum"},{"$f":"'FW metal nonplant'!J4","v":"Class"},{"$f":"'FW metal nonplant'!J5","v":"Media"},{"$f":"'FW metal nonplant'!J6","v":"Temperature "},{"$f":"'FW metal nonplant'!J7","v":"Acute Or Chronic "},{"$f":"'FW metal nonplant'!J8","v":"PH"},{"$f":"'FW metal nonplant'!J9","v":"Salinity/Conductivity"},{"$f":"'FW metal nonplant'!C4","v":"Citation"},{"$f":"'FW metal nonplant'!G2","v":"Citation No."}]
[{"$f":"'FW metal nonplant'!Q3","v":""},{"$f":"'FW metal nonplant'!T3","v":""},{"$f":"'FW metal nonplant'!W3","v":""},{"$f":"'FW metal nonplant'!Z3","v":""},{"$f":"'FW metal nonplant'!AC3","v":""},{"$f":"IF('FW metal nonplant'!H8=\"\",\"\",'FW metal nonplant'!H8)","v":""},{"$f":"'FW metal nonplant'!AF3","v":""},{"$f":"'FW metal nonplant'!AI3","v":""},{"$f":"'FW metal nonplant'!AL3","v":""},{"$f":"'FW metal nonplant'!AO3","v":""},{"$f":"'FW metal nonplant'!AR3","v":""},{"$f":"'FW metal nonplant'!AU3","v":""},{"$f":"'FW metal nonplant'!AX3","v":""},{"$f":"'FW metal nonplant'!BA3","v":"N.A."},{"$f":"IF('FW metal nonplant'!E4=\"\",\"\",'FW metal nonplant'!E4)","v":""},{"$f":"IF('FW metal nonplant'!H2=\"\",\"\",'FW metal nonplant'!H2)","v":0}]
[{"$f":"'MEW nonplant'!B11","v":"No."},{"$f":"'MEW nonplant'!B13","v":1},{"$f":"'MEW nonplant'!B16","v":2},{"$f":"'MEW nonplant'!B19","v":3},{"$f":"'MEW nonplant'!B21","v":4},{"$f":"'MEW nonplant'!B23","v":5},{"$f":"'MEW nonplant'!B26","v":6},{"$f":"'MEW nonplant'!B29","v":7},{"$f":"'MEW nonplant'!B32","v":8},{"$f":"'MEW nonplant'!B35","v":9},{"$f":"'MEW nonplant'!B39","v":10},{"$f":"'MEW nonplant'!B42","v":11},{"$f":"'MEW nonplant'!B45","v":12},{"$f":"'MEW nonplant'!B48","v":13},{"$f":"'MEW nonplant'!B51","v":14},{"$f":"'MEW nonplant'!B53","v":15},{"$f":"'MEW nonplant'!B58","v":16.100000000000001},{"$f":"'MEW nonplant'!B61","v":16.2},{"$f":"'MEW nonplant'!B64","v":16.3},{"$f":"'MEW nonplant'!B67","v":17},{"$f":"'MEW nonplant'!B70","v":18},{"$f":"'MEW nonplant'!C75","v":"Total score"},{"$f":"'MEW nonplant'!C77","v":"Quality Score"}]
[{"$f":"'MEW nonplant'!C2","v":"Category"},{"$f":"'MEW nonplant'!E2","v":"MEW_nonplant"},{"$f":"'MEW nonplant'!C3","v":"Paper and data unique identifier(eg. 1-1,10-150)"},{"$f":"'MEW nonplant'!E3","v":"35-2"}]
[{"$f":"'MEW nonplant'!G11","v":"Scores"},{"$f":"'MEW nonplant'!G12","v":10},{"$f":"'MEW nonplant'!G15","v":10},{"$f":"'MEW nonplant'!G18","v":5},{"$f":"'MEW nonplant'!G21","v":5},{"$f":"'MEW nonplant'!G23","v":5},{"$f":"'MEW nonplant'!G26","v":5},{"$f":"'MEW nonplant'!G29","v":5},{"$f":"'MEW nonplant'!G32","v":5},{"$f":"'MEW nonplant'!G35","v":5},{"$f":"'MEW nonplant'!G38","v":4},{"$f":"'MEW nonplant'!G41","v":4},{"$f":"'MEW nonplant'!G44","v":0},{"$f":"'MEW nonplant'!G47","v":4},{"$f":"'MEW nonplant'!G50","v":4},{"$f":"'MEW nonplant'!G53","v":4},{"$f":"'MEW nonplant'!G57","v":3},{"$f":"'MEW nonplant'!G60","v":3},{"$f":"'MEW nonplant'!G63","v":3},{"$f":"'MEW nonplant'!G66","v":3},{"$f":"'MEW nonplant'!G69","v":3},{"$f":"'MEW nonplant'!G75","v":90},{"$f":"'MEW nonplant'!G77","v":0.95744680851063835},{"$f":"'MEW nonplant'!H77","v":""}]
[{"$f":"'MEW nonplant'!H11","v":"Answers"},{"$f":"IF('MEW nonplant'!H12=\"\",\"\",'MEW nonplant'!H12)","v":"14 d"},{"$f":"IF('MEW nonplant'!H15=\"\",\"\",'MEW nonplant'!H15)","v":"Tissue sloughing"},{"$f":"IF('MEW nonplant'!H18=\"\",\"\",'MEW nonplant'!H18)","v":"NOEC"},{"$f":"IF('MEW nonplant'!H21=\"\",\"\",'MEW nonplant'!H21)","v":"50% effect"},{"$f":"IF('MEW nonplant'!H23=\"\",\"\",'MEW nonplant'!H23)","v":""},{"$f":"IF('MEW nonplant'!H26=\"\",\"\",'MEW nonplant'!H26)","v":"duplicates"},{"$f":"IF('MEW nonplant'!H29=\"\",\"\",'MEW nonplant'!H29)","v":">=90% coral health and survival"},{"$f":"IF('MEW nonplant'!H32=\"\",\"\",'MEW nonplant'!H32)","v":"adults 7-9 cm fragments"},{"$f":"IF('MEW nonplant'!H35=\"\",\"\",'MEW nonplant'!H35)","v":"filtered seawater"},{"$f":"IF('MEW nonplant'!H38=\"\",\"\",'MEW nonplant'!H38)","v":"flow through"},{"$f":"IF('MEW nonplant'!H41=\"\",\"\",'MEW nonplant'!H41)","v":"Measured multiple times over the exposure period"},{"$f":"IF('MEW nonplant'!H44=\"\",\"\",'MEW nonplant'!H44)","v":"No historical database for this species"},{"$f":"IF('MEW nonplant'!H47=\"\",\"\",'MEW nonplant'!H47)","v":"concentration-response was shown not to exist in the conentration range used"},{"$f":"IF('MEW nonplant'!H50=\"\",\"\",'MEW nonplant'!H50)","v":"No statistics was required"},{"$f":"IF('MEW nonplant'!H53=\"\",\"\",'MEW nonplant'!H53)","v":"<0.05 probability"},{"$f":"IF('MEW nonplant'!H57=\"\",\"\",'MEW nonplant'!H57)","v":"53 mS/cm"},{"$f":"IF('MEW nonplant'!H60=\"\",\"\",'MEW nonplant'!H60)","v":"100% saturation"},{"$f":"IF('MEW nonplant'!H63=\"\",\"\",'MEW nonplant'!H63)","v":8.1},{"$f":"IF('MEW nonplant'!H66=\"\",\"\",'MEW nonplant'!H66)","v":"27oC"},{"$f":"IF('MEW nonplant'!H69=\"\",\"\",'MEW nonplant'!H69)","v":"analytical grade chemicals used and seawater diluent anlaysed for trace metal contamination"}]
[{"$f":"'MEW nonplant'!G3","v":"Species (Scientific name)"},{"$f":"'MEW nonplant'!G4","v":"Lifestage"},{"$f":"'MEW nonplant'!G5","v":"Exposure duration"},{"$f":"'MEW nonplant'!G6","v":"Measure of toxicity"},{"$f":"'MEW nonplant'!G7","v":"Toxicity endpoint"},{"$f":"'MEW nonplant'!G8","v":"Toxicity value"},{"$f":"'MEW nonplant'!J2","v":"Taxonomic group"},{"$f":"'MEW nonplant'!J3","v":"Phylum"},{"$f":"'MEW nonplant'!J4","v":"Class"},{"$f":"'MEW nonplant'!J5","v":"Media"},{"$f":"'MEW nonplant'!J6","v":"Temperature "},{"$f":"'MEW nonplant'!J7","v":"Acute Or Chronic "},{"$f":"'MEW nonplant'!J8","v":"PH"},{"$f":"'MEW nonplant'!J9","v":"Salinity/Conductivity"},{"$f":"'MEW nonplant'!C4","v":"Citation"},{"$f":"'MEW nonplant'!G2","v":"Citation No."}]
[{"$f":"'MEW nonplant'!Q3","v":"Acropora millepora"},{"$f":"'MEW nonplant'!T3","v":"Adult"},{"$f":"'MEW nonplant'!W3","v":"14-d"},{"$f":"'MEW nonplant'!Z3","v":"NOEC"},{"$f":"'MEW nonplant'!AC3","v":"Tissue sloughing"},{"$f":"IF('MEW nonplant'!H8=\"\",\"\",'MEW nonplant'!H8)","v":"1,000 µg/L"},{"$f":"'MEW nonplant'!AF3","v":"Coral"},{"$f":"'MEW nonplant'!AI3","v":"Cnidaria"},{"$f":"'MEW nonplant'!AL3","v":"Anthozoa"},{"$f":"'MEW nonplant'!AO3","v":"Filtered Seawater"},{"$f":"'MEW nonplant'!AR3","v":"27oC"},{"$f":"'MEW nonplant'!AU3","v":"Chronic"},{"$f":"'MEW nonplant'!AX3","v":8.1},{"$f":"'MEW nonplant'!BA3","v":"53 mS/cm"},{"$f":"IF('MEW nonplant'!E4=\"\", \"\",'MEW nonplant'!E4)","v":"Golding, L.A., Binet, M.T., Adams, M.S., Hochen, J., Humphrey, C.A., Price, G.A.V., Reichelt-Brushett, A.J., Salmon, M., Stauber, J.L., 2022 draft. Acute and chronic toxicity of manganese to tropical adult coral (Acropora millepora) and deriving marine manganese guideline values."},{"$f":"IF('MEW nonplant'!H2=\"\", \"\",'MEW nonplant'!H2)","v":"35"}]
[{"$f":"'MEW plant'!B11","v":"No."},{"$f":"'MEW plant'!B13","v":1},{"$f":"'MEW plant'!B16","v":2},{"$f":"'MEW plant'!B19","v":3},{"$f":"'MEW plant'!B21","v":4},{"$f":"'MEW plant'!B23","v":5},{"$f":"'MEW plant'!B26","v":6},{"$f":"'MEW plant'!B29","v":7},{"$f":"'MEW plant'!B32","v":8},{"$f":"'MEW plant'!B35","v":9},{"$f":"'MEW plant'!B39","v":10},{"$f":"'MEW plant'!B42","v":11},{"$f":"'MEW plant'!B45","v":12},{"$f":"'MEW plant'!B48","v":13},{"$f":"'MEW plant'!B51","v":14},{"$f":"'MEW plant'!B53","v":15},{"$f":"'MEW plant'!B57","v":16.100000000000001},{"$f":"'MEW plant'!B61","v":16.2},{"$f":"'MEW plant'!B64","v":17},{"$f":"'MEW plant'!B67","v":18},{"$f":"'MEW plant'!C72","v":"Total score"},{"$f":"'MEW plant'!C74","v":"Quality Score"}]
[{"$f":"'MEW plant'!C2","v":"Category"},{"$f":"'MEW plant'!E2","v":"MEW_plant"},{"$f":"'MEW plant'!C3","v":"Paper and data unique identifier(eg. 1-1,10-150)"},{"$f":"'MEW plant'!E3","v":"26-1"}]
[{"$f":"'MEW plant'!G11","v":"Scores"},{"$f":"'MEW plant'!G12","v":0},{"$f":"'MEW plant'!G15","v":5},{"$f":"'MEW plant'!G18","v":5},{"$f":"'MEW plant'!G21","v":5},{"$f":"'MEW plant'!G23","v":0},{"$f":"'MEW plant'!G26","v":0},{"$f":"'MEW plant'!G29","v":0},{"$f":"'MEW plant'!G32","v":0},{"$f":"'MEW plant'!G35","v":0},{"$f":"'MEW plant'!G38","v":0},{"$f":"'MEW plant'!G41","v":0},{"$f":"'MEW plant'!G44","v":0},{"$f":"'MEW plant'!G47","v":0},{"$f":"'MEW plant'!G50","v":0},{"$f":"'MEW plant'!G53","v":0},{"$f":"'MEW plant'!G57","v":0},{"$f":"'MEW plant'!G61","v":0},{"$f":"'MEW plant'!G64","v":0},{"$f":"'MEW plant'!G67","v":0},{"$f":"'MEW plant'!G72","v":15},{"$f":"'MEW plant'!G74","v":0.16483516483516483},{"$f":"'MEW plant'!H74","v":"The highest possible grade for this datum is acceptable."}]
[{"$f":"'MEW plant'!H11","v":"Answers"},{"$f":"IF('MEW plant'!H12=\"\",\"\",'MEW plant'!H12)","v":""},{"$f":"IF('MEW plant'!H15=\"\",\"\",'MEW plant'!H15)","v":"50% reduction in algal cell division rate"},{"$f":"IF('MEW plant'!H18=\"\",\"\",'MEW plant'!H18)","v":"EC50"},{"$f":"IF('MEW plant'!H21=\"\",\"\",'MEW plant'!H21)","v":"50% reduction in algal cell division rate"},{"$f":"IF('MEW plant'!H23=\"\",\"\",'MEW plant'!H23)","v":""},{"$f":"IF('MEW plant'!H26=\"\",\"\",'MEW plant'!H26)","v":""},{"$f":"IF('MEW plant'!H29=\"\",\"\",'MEW plant'!H29)","v":""},{"$f":"IF('MEW plant'!H32=\"\",\"\",'MEW plant'!H32)","v":""},{"$f":"IF('MEW plant'!H35=\"\",\"\",'MEW plant'!H35)","v":""},{"$f":"IF('MEW plant'!H38=\"\",\"\",'MEW plant'!H38)","v":""},{"$f":"IF('MEW plant'!H41=\"\",\"\",'MEW plant'!H41)","v":""},{"$f":"IF('MEW plant'!H44=\"\",\"\",'MEW plant'!H44)","v":""},{"$f":"IF('MEW plant'!H47=\"\",\"\",'MEW plant'!H47)","v":""},{"$f":"IF('MEW plant'!H50=\"\",\"\",'MEW plant'!H50)","v":""},{"$f":"IF('MEW plant'!H53=\"\",\"\",'MEW plant'!H53)","v":""},{"$f":"IF('MEW plant'!H57=\"\",\"\",'MEW plant'!H57)","v":""},{"$f":"IF('MEW plant'!H60=\"\",\"\",'MEW plant'!H60)","v":""},{"$f":"IF('MEW plant'!H63=\"\",\"\",'MEW plant'!H63)","v":""},{"$f":"IF('MEW plant'!H66=\"\",\"\",'MEW plant'!H66)","v":""}]
[{"$f":"'MEW plant'!G3","v":"Species (Scientific name)"},{"$f":"'MEW plant'!G4","v":"Lifestage"},{"$f":"'MEW plant'!G5","v":"Exposure duration"},{"$f":"'MEW plant'!G6","v":"Measure of toxicity"},{"$f":"'MEW plant'!G7","v":"Toxicity endpoint"},{"$f":"'MEW plant'!G8","v":"Toxicity value"},{"$f":"'MEW plant'!J2","v":"Taxonomic group"},{"$f":"'MEW plant'!J3","v":"Phylum"},{"$f":"'MEW plant'!J4","v":"Class"},{"$f":"'MEW plant'!J5","v":"Media"},{"$f":"'MEW plant'!J6","v":"Temperature "},{"$f":"'MEW plant'!J7","v":"Acute Or Chronic "},{"$f":"'MEW plant'!J8","v":"PH"},{"$f":"'MEW plant'!J9","v":"Salinity/Conductivity"},{"$f":"'MEW plant'!C4","v":"Citation"},{"$f":"'MEW plant'!G2","v":"Citation No."}]
[{"$f":"'MEW plant'!Q3","v":"Nitzschia closterium"},{"$f":"'MEW plant'!T3","v":"ND"},{"$f":"'MEW plant'!W3","v":"N.A."},{"$f":"'MEW plant'!Z3","v":"EC50"},{"$f":"'MEW plant'!AC3","v":"Growth rate"},{"$f":"IF('MEW plant'!H8=\"\",\"\",'MEW plant'!H8)","v":">500 µg/L"},{"$f":"'MEW plant'!AF3","v":"Microalga"},{"$f":"'MEW plant'!AI3","v":"Ochrophyta"},{"$f":"'MEW plant'!AL3","v":"Bacillariophyceae"},{"$f":"'MEW plant'!AO3","v":"Filtered seawater"},{"$f":"'MEW plant'!AR3","v":"ND"},{"$f":"'MEW plant'!AU3","v":"N.A."},{"$f":"'MEW plant'!AX3","v":"ND"},{"$f":"'MEW plant'!BA3","v":"ND"},{"$f":"IF('MEW plant'!E4=\"\",\"\",'MEW plant'!E4)","v":"Florence, T.M., Stauber, J.L., Ahsanullah, M., 1994. Toxicity of nickel ores to marine organisms. Science of the Total Environment, The 148, 139-155."},{"$f":"IF('MEW plant'!H2=\"\",\"\",'MEW plant'!H2)","v":"26"}]

{"sheet":"MEW nonplant","index":5,"n_rows":84,"n_cols":53,"rows_kept":84,"cut":false,"hidden":false,"merged":[[3,4,7,4],[9,2,9,4],[11,2,13,2],[11,7,13,7],[14,2,16,2],[14,7,16,7],[17,2,19,2],[17,7,19,7],[20,2,21,2],[20,7,21,7],[22,2,24,2],[22,7,24,7],[25,2,27,2],[25,7,27,7],[28,2,30,2],[28,7,30,7],[31,2,33,2],[31,7,33,7],[34,2,36,2],[34,7,36,7],[37,2,39,2],[37,7,39,7],[40,2,42,2],[40,7,42,7],[43,2,45,2],[43,7,45,7],[46,2,48,2],[46,7,48,7],[49,2,51,2],[49,7,51,7],[68,2,71,2],[68,7,71,7],[56,7,58,7],[65,7,67,7],[52,2,54,2],[52,7,54,7],[59,7,61,7],[65,2,67,2],[62,2,64,2],[62,7,64,7]]}
[null,1,"Fill in the blank cells below, based on information provided in the paper being assessed. You can either pick an option from the dropdown list or add the appropriate detail using the 'Add to list' button. ",null,null,{"$f":"IF(BA3=\"\",0,1)","v":1},null,null,null,null,null,null,null,null,"* All the text in RED are used for drop down list ,make changes with caution."]
[null,null,"Category",{"$f":"IF(AF3=\"\",0,1)","v":1},"MEW_nonplant",{"$f":"IF(E3=\"\",0,1)","v":1},"Citation No.",{"$f":"IF(ISERROR(FIND(\"-\",E3)),E3,LEFT(E3,FIND(\"-\",E3)-1))","v":"35"},null,"Taxonomic group",null,null,null,null,"Species",null,null,"Lifestage",null,null,"Exposure duration",null,null,"Measure of toxicity",null,null,"Toxicity endpoint",null,null,"Taxonomic group",null,null,"Phylum",null,null,"Class",null,null,"Media",null,null,"Temperature ",null,null,"Acute Or Chronic",null,null,"PH",null,null,"Salinity/Comdictivity"]
[null,null,"Paper and data unique identifier(eg. 1-1,10-150)",{"$f":"IF(AI3=\"\",0,1)","v":1},"35-2",{"$f":"IF(E4=\"\",0,1)","v":1},"Species (Scientific name)",null,null,"Phylum",null,null,null,null,"Acropora spathulata",51,{"$f":"IF(P3=0,\"\",INDEX(O3:O105,P3))","v":"Acropora millepora"},"1 month",4,{"$f":"IF(S3=0,\"\",INDEX(R3:R105,S3))","v":"Adult"},"11 hour",26,{"$f":"IF(V3=0,\"\",INDEX(U3:U105,V3))","v":"14-d"},"EC10",14,{"$f":"IF(Y3=0,\"\",INDEX(X3:X105,Y3))","v":"NOEC"},"Asexual reproduction",17,{"$f":"IF(AB3=0,\"\",INDEX(AA3:AA105,AB3))","v":"Tissue sloughing"},"Anemone",4,{"$f":"IF(AE3=0,\"\",INDEX(AD3:AD105,AE3))","v":"Coral"},"Annelida",6,{"$f":"IF(AH3=0,\"\",INDEX(AG3:AG105,AH3))","v":"Cnidaria"},"Actinopteri",2,{"$f":"IF(AK3=0,\"\",INDEX(AJ3:AJ105,AK3))","v":"Anthozoa"},"Brackish Water",4,{"$f":"IF(AN3=0,\"\",INDEX(AM3:AM105,AN3))","v":"Filtered Seawater"},"15°C",33,{"$f":"IF(AQ3=0,\"\",INDEX(AP3:AP105,AQ3))","v":"27oC"},"Acute",2,{"$f":"IF(AT3=0,\"\",INDEX(AS3:AS105,AT3))","v":"Chronic"},7.8,30,{"$f":"IF(AW3=0,\"\",INDEX(AV3:AV105,AW3))","v":8.1},"15 PSU",30,{"$f":"IF(AZ3=0,\"\",INDEX(AY3:AY105,AZ3))","v":"53 mS/cm"}]
[null,null,"Citation",{"$f":"IF(AL3=\"\",0,1)","v":1},"Golding, L.A., Binet, M.T., Adams, M.S., Hochen, J., Humphrey, C.A., Price, G.A.V., Reichelt-Brushett, A.J., Salmon, M., Stauber, J.L., 2022 draft. Acute and chronic toxicity of manganese to tropical adult coral (Acropora millepora) and deriving marine manganese guideline values.",{"$f":"IF(H8=\"\",0,1)","v":1},"Lifestage",null,null,"Class",null,null,null,null,"Aedes albopictus",null,null,"1 year old",null,null,"12 minutes",null,null,"EC50",null,null,"embryo development",null,null,"Annelid",null,null,"Arthropoda",null,null,"Anthozoa",null,null,"Brackish Water",null,null,"18 oC",null,null,"Chronic",null,null,7.95,null,null,"150 uS/cm"]
[null,null,null,{"$f":"IF(AO3=\"\",0,1)","v":1},null,{"$f":"IF(AX3=\"\",0,1)","v":1},"Exposure duration",null,null,"Media",null,null,null,null,"Aiptasia pulchella",null,null,"65+/-4 mm",null,null,"12-d",null,null,"LC0",null,null,"Embryo mortality",null,null,"Cnidaria",null,null,"Chlorophyta",null,null,"Anthozoa",null,null,"Filtered seawater",null,null,"19 oC",null,null,"N.A.",null,null,8,null,null,"25 PSU"]
[null,null,null,{"$f":"IF(AR3=\"\",0,1)","v":1},null,{"$f":"IF(Q3=\"\",0,1)","v":1},"Measure of toxicity",null,null,"Temperature ",null,null,null,null,"Anthocidaris crassispina",null,null,"Adult",null,null,"13 days",null,null,"LC10",null,null,"fertilisation",null,null,"Coral",null,null,"Chordata",null,null,"Bacillariophyceae",null,null,"Filtered Seawater",null,null,"19.4 - 20.2 oC",null,null,null,null,null,8,null,null,"26 PSU"]
[null,null,null,{"$f":"IF(AU3=\"\",0,1)","v":1},null,{"$f":"IF(T3=\"\",0,1)","v":1},"Toxicity endpoint",null,null,"Acute Or Chronic ",null,null,null,null,"Arabacia punctulata",null,null,"Adult ~1mm",null,null,"168-h",null,null,"LC100",null,null,"filtration rate",null,null,"Crustacean",null,null,"Chordate",null,null,"Bivalvia",null,null,"Freshwater",null,null,"20 +/- 1 oC",null,null,null,null,null,8.4,null,null,"26+/-1 PSU"]
[null,null,null,null,null,{"$f":"IF(W3=\"\",0,1)","v":1},"Toxicity value","1,000 µg/L",null,"PH",null,null,null,null,"Artemia",null,null,"Adult ~5mm",null,null,"1-h",null,null,"LC16",null,null,"growth",null,null,"Dinoflagellate",null,null,"Cnidaria",null,null,"Branchiopoda",null,null,"Marinewater",null,null,"20 oC",null,null,null,null,null,"7.0-8.5",null,null,"30 ppt"]
[null,2,"Select the appropriate answer option to each question. Comments can be added to the cells in column H.",null,null,{"$f":"IF(Z3=\"\",0,1)","v":1},null,null,null,"Salinity/Conductivity",null,null,null,null,"Artemia salina ",null,null,"Cysts",null,null,"240-h",null,null,"LC5",null,null,"Hatching success",null,null,"Echinoderm",null,null,"Dinoflagellata",null,null,"Chlorophyceae",null,null,"N.A.",null,null,"22 oC",null,null,null,null,null,"7.2-8.3",null,null,"310+/- 3 PSU"]
[null,"*","If the selected answer option does not work try clicking on any other cell first and then click back on the answer option again.",null,null,{"$f":"IF(AC3=\"\",0,1)","v":1},null,null,null,null,null,null,null,null,"Australian Bass",null,null,"embryo",null,null,"24-h",null,null,"LC50",null,null,"Imbalance",null,null,"Fish ",null,null,"Echinodermata",null,null,"Coepoda",null,null,"ND",null,null,"22-23 oC",null,null,null,null,null,"7.5-8.4",null,null,"32 PSU"]
[null,"No.","Question","Marks Awarded","Answer Options","Option References","Scores","Answers",null,null,null,null,null,null,"Brachyura sp.",null,null,"embryo",null,null,"336-h",null,null,"LC84",null,null,"larval settlement",null,null,"Microalga",null,null,"Mollusca",null,null,"Copepoda",null,null,"ND",null,null,"22-24.5 oC",null,null,null,null,null,"7.9-8.0",null,null,"32.9-33.5"]
[null,null,"Was the duration of the exposure stated (e.g. 48 or 96 h)?",10,null,1,{"$f":"IF(F15=0,0,INDEX($D12:$D13,F12,1))","v":10},"14 d",null,null,null,null,null,null,"Cancer anthonyi",null,null,"Fertilised egg",null,null,"40 min",null,null,"LC95",null,null,"Mortality",null,null,"Mollusc",null,null,"N.A.",null,null,"Echinoidea",null,null,"Seawater",null,null,"23 +/-1 oC",null,null,null,null,null,"7.9-8.4",null,null,"33.9-35.2 PSU"]
[null,1,null,0,null,null,null,null,null,null,null,null,null,null,"Cassiopea sp.",null,null,"Fry - 11mm ",null,null,"480-h",null,null,"LOEC",null,null,"Motility",null,null,"N.A.",null,null,"Ochrophyta",null,null,"Gastropoda",null,null,"SiO2 Stosch-modified Schreiber Medium",null,null,"23.9 +/- 0.14 oC (see supplemental)",null,null,null,null,null,"8.0-8.1",null,null,"34 +/-2 PSU"]
[null,null,null,null,null,null,null,null,null,null,null,null,null,null,"Cassopea sp.",null,null,"Fry - 24mm",null,null,"48-h",null,null,"N.A.",null,null,"N.A.",null,null,null,null,null,"Tracheophyta",null,null,"Malacostraca",null,null,"Synthetic seawater",null,null,"24.5 oC",null,null,null,null,null,"8.0-8.2",null,null,"34 ppt"]
[null,null,"Was the biological endpoint (e.g., immobilization or population growth) stated and defined (10 marks)? Award 5 marks if the biological endpoint is only stated.",10,null,1,{"$f":"IF(F15=0,0,INDEX($D15:$D17,F15,1))","v":10},"Tissue sloughing",null,null,null,null,null,null,"Cerastoderma edule",null,null,"gametes",null,null,"4-h",null,null,"ND",null,null,"Quantum Yield",null,null,null,null,null,null,null,null,"N.A.",null,null,"Unfiltered seawater, Ballina NSW",null,null,"24-28 oC",null,null,null,null,null,"8.0-8.3",null,null,"34.0 - 34.6 PSU"]
[null,2,null,5,null,null,null,null,null,null,null,null,null,null,"Crassostrea gigas",null,null,"juvenile",null,null,"5.5-h",null,null,"NOEC",null,null,"Reproduction",null,null,null,null,null,null,null,null,"ND",null,null,"unfiltered seawater, Heron Island, QLD",null,null,"24oC",null,null,null,null,null,"8.1 +/- 0.2",null,null,"35 +/- 2 PSU"]
[null,null,null,0,null,null,null,null,null,null,null,null,null,null,"Crassostrea virginica",null,null,"larval",null,null,"5-d",null,null,"NEC",null,null,"spat growth",null,null,null,null,null,null,null,null,"Polychaeta",null,null,"0.2 µm filtered natural seawater",null,null,"25 +/- 2 oC",null,null,null,null,null,"8.1 +/-1 pH unit",null,null,"35.2-35.5 PSU"]
[null,null,"Was the biological effect stated (e.g. LC or NOEC)?",5,null,1,{"$f":"IF(F18=0,0,INDEX($D18:$D19,F18,1))","v":5},"NOEC",null,null,null,null,null,null,"Diopatra aciculata",null,null,"N.A.",null,null,"60-h",null,null,null,null,null,"Tentacle retraction",null,null,null,null,null,null,null,null,"Syphozoa",null,null,null,null,null,"25.5 oC",null,null,null,null,null,"8.12-8.26",null,null,"35.5-35.9"]
[null,3,null,0,null,null,null,null,null,null,null,null,null,null,"Ditylum brightwellii ",null,null,"Nauplii",null,null,"672-h",null,null,null,null,null,"Tissue sloughing",null,null,null,null,null,null,null,null,"Actinopteri",null,null,null,null,null,"25°C",null,null,null,null,null,"8.2 +/- 0.21",null,null,"35.6-35.7 PSU"]
[null,null,null,null,null,null,null,null,null,null,null,null,null,null,"Heliocidaris tuberculata",null,null,"ND",null,null,"6-h",null,null,null,null,null,"Zooxanthellae density",null,null,null,null,null,null,null,null,null,null,null,null,null,null,"26 oC",null,null,null,null,null,"8.3 +/- 0.07 (see supplemental)",null,null,"51-61 mS/cm"]
[null,4,"Was the biological effect quantified (e.g. 50% effect, 25% effect)? \nNote: The effect for NOEC and LOEC data must be quantified.",5,null,1,{"$f":"IF(F21=0,0,INDEX($D21:$D22,F21,1))","v":5},"50% effect",null,null,null,null,null,null,"Isolated dinoflagellates from coral Heliofungia actiniformis",null,null,"post larvae PL12",null,null,"72-h",null,null,null,null,null,"Tentacle retraction",null,null,null,null,null,null,null,null,null,null,null,null,null,null,"26.8-27.6 oC",null,null,null,null,null,"8.5 +/- 0.2",null,null,"52.7 +/-0.53 mS/cm"]
[null,null,null,0,null,null,null,null,null,null,null,null,null,null,"Lates calcarifer",null,null,"Post larval PL15",null,null,"96-h",null,null,null,null,null,null,null,null,null,null,null,null,null,null,null,null,null,null,null,null,"26-28 oC",null,null,null,null,null,"N.A.",null,null,"53.5 +/- 0.17 mS/cm (see supplemental)"]
[null,5,"Were appropriate controls (e.g. a no-toxicant control and/or solvent control) used?",5,null,1,{"$f":"IF(F23=0,0,INDEX($D23:$D24,F23,1))","v":5},null,null,null,null,null,null,null,"Litopenaeous vannamei",null,null,"spat",null,null,"9-d",null,null,null,null,null,null,null,null,null,null,null,null,null,null,null,null,null,null,null,null,"28 oC",null,null,null,null,null,"ND",null,null,"7 PSU"]
[null,null,null,0,null,null,null,null,null,null,null,null,null,null,"Macquaria novemaculeata",null,null,"sperm",null,null,"N.A.",null,null,null,null,null,null,null,null,null,null,null,null,null,null,null,null,null,null,null,null,"28+/- 2 oC",null,null,null,null,null,"PH11",null,null,"N.A."]
[null,null,null,null,null,null,null,null,null,null,null,null,null,null,"Mya arenaria",null,null,"Embryo",null,null,"ND",null,null,null,null,null,null,null,null,null,null,null,null,null,null,null,null,null,null,null,null,"30+/- 2 oC",null,null,null,null,null,"PH7.0",null,null,"ND"]
[null,6,"Was each control and contaminant concentration at least duplicated?",5,null,1,{"$f":"IF(F26=0,0,INDEX($D26:$D27,F26,1))","v":5},"duplicates",null,null,null,null,null,null,"Mytlis edulis",null,null,null,null,null,"24-d",null,null,null,null,null,null,null,null,null,null,null,null,null,null,null,null,null,null,null,null,"N.A.",null,null,null,null,null,8.14,null,null,"36 PSU"]
[null,null,null,0,null,null,null,null,null,null,null,null,null,null,"N.A.",null,null,null,null,null,"14-d",null,null,null,null,null,null,null,null,null,null,null,null,null,null,null,null,null,null,null,null,"ND",null,null,null,null,null,8.02,null,null,"52.7 mS/cm"]
[null,null,null,null,null,null,null,null,null,null,null,null,null,null,"Nitocra spinipes",null,null,null,null,null,"14-d",null,null,null,null,null,null,null,null,null,null,null,null,null,null,null,null,null,null,null,null,"27 oC",null,null,null,null,null,7.85,null,null,"30 psu"]
[null,7,"Were test acceptability criteria stated (e.g. mortality in controls must not exceed a certain percentage) (5 marks)?\nOR Were test acceptability criteria inferred (e.g. test method used [USEPA, OECD, ASTM etc.]) (award 2 marks). \nNote: Data that fail the acceptability criteria are automatically deemed to be of unacceptable quality and must not be used. ",5,null,1,{"$f":"IF(F29=0,0,INDEX($D29:$D31,F29,1))","v":5},">=90% coral health and survival",null,null,null,null,null,null,"Nitzschia closterium",null,null,null,null,null,null,null,null,null,null,null,null,null,null,null,null,null,null,null,null,null,null,null,null,null,null,23.6,null,null,null,null,null,"7.6-7.8",null,null,"19-20 ppt"]
[null,null,null,2,null,null,null,null,null,null,null,null,null,null,"Oncaea media",null,null,null,null,null,null,null,null,null,null,null,null,null,null,null,null,null,null,null,null,null,null,null,null,null,null,"23.6 oC",null,null,null,null,null,"8.04-8.3",null,null,"54.3-55.9 mS/cm"]
[null,null,null,0,null,null,null,null,null,null,null,null,null,null,"Paracentrotus lividus",null,null,null,null,null,null,null,null,null,null,null,null,null,null,null,null,null,null,null,null,null,null,null,null,null,null,"21 oC",null,null,null,null,null,"8.1-8.28",null,null,"53-54 mS/cm"]
[null,8,"Were the characteristics of the test organism (e.g. length, mass, age) stated?",5,null,1,{"$f":"IF(F32=0,0,INDEX($D32:$D34,F32,1))","v":5},"adults 7-9 cm fragments",null,null,null,null,null,null,"Penaeus monodon",null,null,null,null,null,null,null,null,null,null,null,null,null,null,null,null,null,null,null,null,null,null,null,null,null,null,"25-27 oC",null,null,null,null,null,8.1,null,null,"53 mS/cm"]
[null,null,null,0,null,null,null,null,null,null,null,null,null,null,"Perna perna",null,null,null,null,null,null,null,null,null,null,null,null,null,null,null,null,null,null,null,null,null,null,null,null,null,null,"22.5 - 23.0 oC"]
[null,null,null,null,null,null,null,null,null,null,null,null,null,null,"Platygyra daedalea",null,null,null,null,null,null,null,null,null,null,null,null,null,null,null,null,null,null,null,null,null,null,null,null,null,null,"22.58-22.86 oC"]
[null,9,"Was the type of test media used stated?",5,null,1,{"$f":"IF(F35=0,0,INDEX($D35:$D37,F35,1))","v":5},"filtered seawater",null,null,null,null,null,null,"Saccostrea commercialis",null,null,null,null,null,null,null,null,null,null,null,null,null,null,null,null,null,null,null,null,null,null,null,null,null,null,"27oC"]
[null,null,null,0,null,null,null,null,null,null,null,null,null,null,"Stylophora pistillata"]
[null,null,null,null,null,null,null,null,null,null,null,null,null,null,"symbiotic dinoflagellate of coral Stylophora pistillata"]
[null,null,"Was the type of exposure (e.g. static, flow through) stated? ",4,null,1,{"$f":"IF(F38=0,0,INDEX($D38:$D40,F38,1))","v":4},"flow through",null,null,null,null,null,null,"Tilapia guineesis"]
[null,10,null,0,null,null,null,null,null,null,null,null,null,null,"Tympanotonus fuscatus"]
[null,null,null,null,null,null,null,null,null,null,null,null,null,null,"Acropora muricata"]
[null,null,"Were the contaminant concentrations measured at the beginning and end of the exposure (4 marks)? Award 2 marks if they were measured only once during the test.\nNote: If the concentrations were not measured then automatically the data cannot be high quality. ",4,null,1,{"$f":"IF(F41=0,0,INDEX($D41:$D43,F41,1))","v":4},"Measured multiple times over the exposure period",null,null,null,null,null,null,"Exaiptasia pallida"]
[null,11,null,2,null,null,null,null,null,null,null,null,null,null,"Magallana gigas"]
[null,null,null,0,null,null,null,null,null,null,null,null,null,null,"Anadara trapezia"]
[null,null,"Were parallel reference toxicant toxicity tests conducted?",4,null,2,{"$f":"IF(F44=0,0,INDEX($D44:$D46,F44,1))","v":0},"No historical database for this species",null,null,null,null,null,null,"Barnea australasiae"]
[null,12,null,0,null,null,null,null,null,null,null,null,null,null,"Fulvia tenuicostata"]
[null,null,null,null,null,null,null,null,null,null,null,null,null,null,"Hiatula alba"]
[null,null,"Was there a concentration–response relationship either observable or stated?",4,null,1,{"$f":"IF(F47=0,0,INDEX($D47:$D49,F47,1))","v":4},"concentration-response was shown not to exist in the conentration range used",null,null,null,null,null,null,"Irus crenatus"]
[null,13,null,0,null,null,null,null,null,null,null,null,null,null,"Saccostrea glomerata"]
[null,null,null,null,null,null,null,null,null,null,null,null,null,null,"Scaeochlamys livida"]
[null,null,"Was an appropriate statistical method or model used to determine the toxicity?\nNote: They should be accepted by a recognised national or international regulatory body (e.g. USEPA, OECD, ASTM). ",4,null,1,{"$f":"IF(F50=0,0,INDEX($D50:$D52,F50,1))","v":4},"No statistics was required",null,null,null,null,null,null,"Spisula trigonella"]
[null,14,null,0,null,null,null,null,null,null,null,null,null,null,"Xenostrobus securis"]
[null,null,null,null,null,null,null,null,null,null,null,null,null,null,"Epinephelus sp. (hybrid)"]
[null,15,"For LC/EC/BEC data was an estimate of variability provided? \nOR \nFor NO EC/LOEC data was the significance level 0.05 or less?  \n\n",4,null,1,{"$f":"IF(F53=0,0,INDEX($D53:$D55,F53,1))","v":4},"<0.05 probability",null,null,null,null,null,null,"Acropora millepora"]
[null,null,null,0]
[]
[null,16,"Were the following parameters measured and stated? (3 marks if measured and stated, 1 mark if just measured)."]
[null,null,null,3,null,1,{"$f":"IF(F57=0,0,INDEX($D57:$D59,F57,1))","v":3},"53 mS/cm"]
[null,16.100000000000001,"Conductivity/Salinity",1]
[null,null,null,0]
[null,null,null,3,null,1,{"$f":"IF(F60=0,0,INDEX($D60:$D62,F60,1))","v":3},"100% saturation"]
[null,16.2,"Dissolved Oxygen",1]
[null,null,null,0]
[null,null,"pH",3,null,1,{"$f":"IF(F63=0,0,INDEX(D63:D65,F63,1))","v":3},8.1]
[null,16.3,null,1]
[null,null,null,0]
[null,null,"Was the temperature measured and stated (3 marks)? Award 1 mark if the temperature was measured but not stated or if only the temperature settings of the room or chamber are stated.\n\n",3,null,1,{"$f":"IF(F66=0,0,INDEX(D66:D68,F66,1))","v":3},"27oC"]
[null,17,null,1]
[null,null,null,0]
[null,null,"Were test solutions, blanks and/or controls tested for contamination OR were analytical reagent grade chemicals used or the highest possible purity chemicals used for the experiment? (3 marks).",3,null,1,{"$f":"IF(F69=0,0,INDEX($D69:$D70,F69,1))","v":3},"analytical grade chemicals used and seawater diluent anlaysed for trace metal contamination"]
[null,18,null,0]
[]
[null,null,null,null,null,null,null,null,{"$f":"(COUNTIF(F12:F70,\"=0\"))+COUNTIF(F1:F10,\"=0\")+COUNTIF(D2:D7,\"=0\")","v":0}]
[]
[]
[null,null,"Total score",null,null,null,{"$f":"IF(SUM(G12:G69)=0,\"\",SUM(G12:G69))","v":90}]
[null,null,"Total Max. possible score for the various types of data and contaminants ",null,{"$f":"D12+D15+D18+D21+D23+D26+D29+D32+D35+D38+D41+D44+D47+D50+D53+D57+D60+D66+D69+D63","v":94}]
[null,null,"Quality Score",null,{"$f":"\"= [Total score / Total possible score] * 100 = \"","v":"= [Total score / Total possible score] * 100 = "},null,{"$f":"IF(ISERROR(G75/E76),#N/A,G75/E76)","v":0.95744680851063835},{"$f":"IF(F41=3,\"The highest possible grade for this datum is acceptable.\",\"\")","v":""}]
[]
[null,null,"H = high quality                           Quality score ≥ 80%"]
[null,null,"A = acceptable quality         > 50% Quality score < 80%  "]
[null,null,"U = unacceptable quality              Quality score ≤ 50%"]
[]
[3,null,"Click the 'Save & Update' button to save and export the answers to the 'All results' worksheet. "]
[null,null,"Select the 'Reset Answers' button if you wish to clear all answers."]

{"sheet":"MEW nonplant_WS","index":6,"n_rows":500,"n_cols":24,"rows_kept":500,"cut":false,"hidden":false,"merged":[]}
[]
["Question No.",1,2,3,4,5,6,7,8,9,10,11,12,13,14,15,16.100000000000001,16.2,16.3,17,18,"Total Score","Quality Score"]
["Short Questions","Duration of the exposure ","Biological endpoint","Biological effect stated or not","Biological effect quantified or not","Appropriate controls","Control & contaminant concentration","Test acceptability criteria","Characteristics of the test organism"," Type of test media","Type of exposure","Contaminant concentrations","Parallel reference toxicant toxicity tests","Concentration–response relationship","Determine the toxicity","NOEC/LOEC or LC/EC/BEC","Conductivity/Salinity","Dissolved Oxygen","PH","Temperature","Grade or purity"]
["Marks Awarded ","10 or 0","10,5 or 0","5 or 0 ","5 or 0 ","5 or 0 ","5 or 0 ","5 or 0 ","5 or 0 ","5 or 0 ","4 or 0","4 or 2 or 0","4 or 2","4 or 2","4 or 2","4 or 2","3 or 1 or 0","3 or 1 or 0","3 or 1 or 0","3 or 0","3 or 0 "]
["Max. Possible Score",10,10,5,5,5,5,5,5,5,4,4,4,4,4,4,3,3,3,3,3,{"$f":"SUM(B5:U5)","v":94}]
["Category","MEW_nonplant","Paper and data unique identifier(eg. 1-1,10-150)","1-1"]
["Scores",10,10,5,5,0,0,0,5,5,0,0,0,0,4,4,1,0,1,1,3,54,0.57446799999999998,"The highest possible grade for this datum is acceptable."]
["Answers","96-h","mortality - copepod did not move when observed under microscope","LC","50% effect","None mentioned","No replication mentioned ","","Adult (0.7-0.8 mm)","Brackish water filtered through 30 um","Implied it was static but not stated","Not stated","","","Litchfield and Wilcoxon (1949)","95 % CL 52,000-94,000 ug/L","7 PSU","","pH 8.0","Water bath used to maintain temperature at 20 +/- 0.5 oC","Reagent grade chemicals used.  MnCl2"]
["Category","MEW_nonplant","Paper and data unique identifier(eg. 1-1,10-150)","3-1"]
["Scores",10,10,5,5,5,5,0,5,5,4,0,0,0,0,4,1,0,1,1,0,61,0.64893617021276595,"The highest possible grade for this datum is acceptable."]
["Answers","48-h","embryo development to straight hinged larvae","stated as LC 50 but in reality it is an EC50",0.5,"","duplicates","","1-h fertilised embryo","Synthetic seawater","static non-renewal","","","","Used graphical linear interpolation","The range in the mean LC50 was provided as 14,000 - 19,000 µg/L. ","25 PSU","","7.0-8.5","26 oC","Technical grade. MnCl2.4H2O"]
["Category","MEW_nonplant","Paper and data unique identifier(eg. 1-1,10-150)","4-1"]
["Scores",10,10,5,5,5,5,5,5,5,0,0,4,0,4,0,1,1,1,1,3,70,0.74468085106382975,"The highest possible grade for this datum is acceptable."]
["Answers","72-h","Normal development as a pluteus","EC50","50% effect","","quadruplicate",">70% normal development in the controls and EC50 of Cu reference test within 8.3 +/- 2 µg Cu/L","fertilised eggs","natural seawater (Freshwater Beach, NSW) 0.45 µm filtered","Assumed static non-renewal","Stated than nominal concentrations used for the metal exposures","Cu reference test","","Trimmed Spearman Karber","","Stated it was within the normal range","Stated it was within the normal range","Stated it was within the normal range","Temperature was stated","Reagent grade salts used - either chloride or sulfate form"]
["Category","MEW_nonplant","Paper and data unique identifier(eg. 1-1,10-150)","4-2"]
["Scores",10,10,5,0,5,5,5,5,5,0,0,4,0,4,0,1,1,1,1,3,65,0.69148936170212771,"The highest possible grade for this datum is acceptable."]
["Answers","72-h","Normal development as a pluteus","NOEC","","","quadruplicate",">70% normal development in the controls and EC50 of Cu reference test within 8.3 +/- 2 µg Cu/L","fertilised eggs","natural seawater (Freshwater Beach, NSW) 0.45 µm filtered","Assumed static non-renewal","Stated than nominal concentrations used for the metal exposures","Cu reference test","","Dunnett's multiple comparison (parametric) or Steel's man to one rank test (non-parametric) Trimmed Spearman Karber for EC50 and 95% CL","","Stated it was within the normal range","Stated it was within the normal range","Stated it was within the normal range","Temperature was stated","Reagent grade salts used"]
["Category","MEW_nonplant","Paper and data unique identifier(eg. 1-1,10-150)","4-3"]
["Scores",10,10,5,5,5,5,5,5,5,0,0,4,0,4,0,1,1,1,1,3,70,0.74468085106382975,"The highest possible grade for this datum is acceptable."]
["Answers","1-h","Presence of fertlisation membrane","EC50",0.5,"","quadruplicate",">70% normal development in the controls and EC50 of Cu reference test within 8.3 +/- 2 µg Cu/L","fertilised eggs","natural seawater (Freshwater Beach, NSW) 0.45 µm filtered","Assumed static non-renewal","Stated than nominal concentrations used for the metal exposures","Cu reference test","","Dunnett's multiple comparison (parametric) or Steel's man to one rank test (non-parametric) Trimmed Spearman Karber for EC50 and 95% CL","","Stated it was within the normal range","Stated it was within the normal range","Stated it was within the normal range","Temperature was stated","Reagent grade salts used"]
["Category","MEW_nonplant","Paper and data unique identifier(eg. 1-1,10-150)","4-4"]
["Scores",10,10,5,0,5,5,5,5,5,0,0,4,0,4,0,1,1,1,1,3,65,0.69148936170212771,"The highest possible grade for this datum is acceptable."]
["Answers","1-h","Presence of fertlisation membrane","NOEC","Effect not quantified","","quadruplicate",">70% normal development in the controls and EC50 of Cu reference test within 8.3 +/- 2 µg Cu/L","fertilised eggs","natural seawater (Freshwater Beach, NSW) 0.45 µm filtered","Assumed static non-renewal","Stated than nominal concentrations used for the metal exposures","Cu reference test","","Dunnett's multiple comparison (parametric) or Steel's man to one rank test (non-parametric) Trimmed Spearman Karber for EC50 and 95% CL","","Stated it was within the normal range","Stated it was within the normal range","Stated it was within the normal range","Temperature was stated","Reagent grade salts used"]
["Category","MEW_nonplant","Paper and data unique identifier(eg. 1-1,10-150)","5-1"]
["Scores",10,5,5,5,5,5,0,5,5,4,0,0,0,4,0,1,1,1,1,3,60,0.63829787234042556,"The highest possible grade for this datum is acceptable."]
["Answers","48-h","Dead","LC",0,"","10 reps","","Adult  length=45 mm (range=38-49 mm) and weight = 5.4 g (range=3.6-6.0 g) ","unfiltered natural seawater though other experiments were conducted with synthetic seawater and got the same results (not included in this publication)","static (non-renewal)","Only measured in the stock solutions and found to be 2% of nominal","","","graphical interpolation citing APHA, 1971","","30 PSU",">4 mg/L DO","7.95+/-0.1 units","22.0+/- 5 oC","analytical grade of MnCl2.4 H2O"]
["Category","MEW_nonplant","Paper and data unique identifier(eg. 1-1,10-150)","5-2"]
["Scores",10,5,5,5,5,5,0,5,5,4,0,0,0,4,0,1,1,1,1,3,60,0.63829787234042556,"The highest possible grade for this datum is acceptable."]
["Answers","48-h","Dead","LC","50% effect","","10 reps","","Adult  length=45 mm (range=38-49 mm) and weight = 5.4 g (range=3.6-6.0 g) ","unfiltered natural seawater though other experiments were conducted with synthetic seawater and got the same results (not included in this publication)","static (non-renewal)","Only measured in the stock solutions and found to be 2% of nominal","","","graphical interpolation citing APHA, 1971","","30 PSU",">4 mg/L DO","7.95+/-0.1 units","22.0+/- 5 oC","analytical grade of MnCl2.4 H2O"]
["Category","MEW_nonplant","Paper and data unique identifier(eg. 1-1,10-150)","5-3"]
["Scores",10,5,5,5,5,5,0,5,5,4,0,0,0,4,0,1,1,1,1,3,60,0.63829787234042556,"The highest possible grade for this datum is acceptable."]
["Answers","48-h","Dead","LC","100% effect","","10 reps","","Adult  length=45 mm (range=38-49 mm) and weight = 5.4 g (range=3.6-6.0 g) ","unfiltered natural seawater though other experiments were conducted with synthetic seawater and got the same results (not included in this publication)","static (non-renewal)","Only measured in the stock solutions and found to be 2% of nominal","","","graphical interpolation citing APHA, 1971","","30 PSU",">4 mg/L DO","7.95+/-0.1 units","22.0+/- 5 oC","analytical grade of MnCl2.4 H2O"]
["Category","MEW_nonplant","Paper and data unique identifier(eg. 1-1,10-150)","5-4"]
["Scores",10,5,5,5,5,5,0,5,5,4,0,0,0,4,0,1,1,1,1,3,60,0.63829787234042556,"The highest possible grade for this datum is acceptable."]
["Answers","96-h","Dead","LC","0% effect","","10 reps","","Adult  length=45 mm (range=38-49 mm) and weight = 5.4 g (range=3.6-6.0 g) ","unfiltered natural seawater though other experiments were conducted with synthetic seawater and got the same results (not included in this publication)","static (non-renewal)","Only measured in the stock solutions and found to be 2% of nominal","","","graphical interpolation citing APHA, 1971","","30 PSU",">4 mg/L DO","7.95+/-0.1 units","22.0+/- 5 oC","analytical grade of MnCl2.4 H2O"]
["Category","MEW_nonplant","Paper and data unique identifier(eg. 1-1,10-150)","5-5"]
["Scores",10,5,5,5,5,5,0,5,5,4,0,0,0,4,0,1,1,1,1,3,60,0.63829787234042556,"The highest possible grade for this datum is acceptable."]
["Answers","96-h","Dead","LC","50% effect","","10 reps","","Adult  length=45 mm (range=38-49 mm) and weight = 5.4 g (range=3.6-6.0 g) ","unfiltered natural seawater though other experiments were conducted with synthetic seawater and got the same results (not included in this publication)","static (non-renewal)","Only measured in the stock solutions and found to be 2% of nominal","","","graphical interpolation citing APHA, 1971","","30 PSU",">4 mg/L DO","7.95+/-0.1 units","22.0+/- 5 oC","analytical grade of MnCl2.4 H2O"]
["Category","MEW_nonplant","Paper and data unique identifier(eg. 1-1,10-150)","5-6"]
["Scores",10,5,5,5,5,5,0,5,5,4,0,0,0,4,0,1,1,1,1,3,60,0.63829787234042556,"The highest possible grade for this datum is acceptable."]
["Answers","96-h","Dead","LC","100% effect","","10 reps","","Adult  length=45 mm (range=38-49 mm) and weight = 5.4 g (range=3.6-6.0 g) ","unfiltered natural seawater though other experiments were conducted with synthetic seawater and got the same results (not included in this publication)","static (non-renewal)","Only measured in the stock solutions and found to be 2% of nominal","","","graphical interpolation citing APHA, 1971","","30 PSU",">4 mg/L DO","7.95+/-0.1 units","22.0+/- 5 oC","analytical grade of MnCl2.4 H2O"]
["Category","MEW_nonplant","Paper and data unique identifier(eg. 1-1,10-150)","5-7"]
["Scores",10,5,5,5,5,5,0,5,5,4,0,0,0,4,0,1,1,1,1,3,60,0.63829787234042556,"The highest possible grade for this datum is acceptable."]
["Answers","168-h","Dead","LC","0% effect","","10 reps","","Adult  length=45 mm (range=38-49 mm) and weight = 5.4 g (range=3.6-6.0 g) ","unfiltered natural seawater though other experiments were conducted with synthetic seawater and got the same results (not included in this publication)","static (non-renewal)","Only measured in the stock solutions and found to be 2% of nominal","","","graphical interpolation citing APHA, 1971","","30 PSU",">4 mg/L DO","7.95+/-0.1 units","22.0+/- 5 oC","analytical grade of MnCl2.4 H2O"]
["Category","MEW_nonplant","Paper and data unique identifier(eg. 1-1,10-150)","5-8"]
["Scores",10,5,5,5,5,5,0,5,5,4,0,0,0,4,0,1,1,1,1,3,60,0.63829787234042556,"The highest possible grade for this datum is acceptable."]
["Answers","168-h","Dead","LC","50% effect","","10 reps","","Adult  length=45 mm (range=38-49 mm) and weight = 5.4 g (range=3.6-6.0 g) ","unfiltered natural seawater though other experiments were conducted with synthetic seawater and got the same results (not included in this publication)","static (non-renewal)","Only measured in the stock solutions and found to be 2% of nominal","","","graphical interpolation citing APHA, 1971","","30 PSU",">4 mg/L DO","7.95+/-0.1 units","22.0+/- 5 oC","analytical grade of MnCl2.4 H2O"]
["Category","MEW_nonplant","Paper and data unique identifier(eg. 1-1,10-150)","5-9"]
["Scores",10,5,5,5,5,5,0,5,5,4,0,0,0,4,0,1,1,1,1,3,60,0.63829787234042556,"The highest possible grade for this datum is acceptable."]
["Answers","168-h","Dead","LC","100% effect","","10 reps","","Adult  length=45 mm (range=38-49 mm) and weight = 5.4 g (range=3.6-6.0 g) ","unfiltered natural seawater though other experiments were conducted with synthetic seawater and got the same results (not included in this publication)","static (non-renewal)","Only measured in the stock solutions and found to be 2% of nominal","","","graphical interpolation citing APHA, 1971","","30 PSU",">4 mg/L DO","7.95+/-0.1 units","22.0+/- 5 oC","analytical grade of MnCl2.4 H2O"]
["Category","MEW_nonplant","Paper and data unique identifier(eg. 1-1,10-150)","6-1"]
["Scores",10,10,5,5,5,5,2,5,5,4,0,0,4,4,4,3,3,3,1,0,78,0.82978723404255317,"The highest possible grade for this datum is acceptable."]
["Answers","24-h","Mortality, dead when nauplius failed to respond to mechanical stimulation","LC","50 % effect","","triplicate","Cited APHA 1971; FAO, 1977","naupli stage","Filtered seawater (pore size not stated)","static (non-renewal)","","","","Probit analysis","SD=23 µg/L","32.94-33.53 PSU","4.66-5.10 mg/L","7.5-8.4","28+/-1 oC","No chemical grade stated. MnCl2"]
["Category","MEW_nonplant","Paper and data unique identifier(eg. 1-1,10-150)","6-2"]
["Scores",10,10,5,5,5,5,2,5,5,4,0,0,4,4,4,3,3,3,1,0,78,0.82978723404255317,"The highest possible grade for this datum is acceptable."]
["Answers","48-h","Mortality, dead when nauplius failed to respond to mechanical stimulation","LC","50 % effect","","triplicate","Cited APHA 1971; FAO, 1977","naupli stage","Filtered seawater (pore size not stated)","static (non-renewal)","","","","Probit analysis","SD=15 µg/L","32.94-33.53 PSU","4.66-5.10 mg/L","7.5-8.4","28+/-1 oC","No chemical grade stated. MnCl2"]
["Category","MEW_nonplant","Paper and data unique identifier(eg. 1-1,10-150)","8-1"]
["Scores",10,10,5,5,5,5,5,5,5,0,2,4,0,4,4,3,3,3,1,0,79,0.84042553191489366,""]
["Answers","48-h","Development to D-shaped prodissoconch I larvae","EC","50 % effect","","duplicate","Acceptability was 10% abnormality in controls (ASTM, 1984)"," 2 h old embryos","seawater","","Using graphite furnace AA","","Table 1","Probit analysis and graphical analysis (APHA,1980)","20,000-46,000 µg/L 95% CL","26 PSU",">70% saturation","8.4 +\\-0.2","19 +/- 1 oC","No chemical grade given. MnSO4"]
["Category","MEW_nonplant","Paper and data unique identifier(eg. 1-1,10-150)","10-1"]
["Scores",10,5,5,5,5,5,5,0,5,0,0,4,4,4,4,3,3,3,3,3,76,0.80851063829787229,"The highest possible grade for this datum is acceptable."]
["Answers","1-h","fertilisation success","EC","50% effect","","quadruplicate","> 70% control fertilisation, 20 +/-1 oC temperature, Cu reference toxicity test EC50 between 24.8-66.6 µg Cu/L","","filtered seawater in physchem data sheets","","measured in stocks","Cu reference test criterion was met","","Spearman Karber trim value 9.8%","654,100 - 708,000 µg/L 95% CL","34.6 - 35.00","104.5 - 118.3 % DO","8.00 - 8.20",21,"Analytical Grade MnCl2.4H2O"]
["Category","MEW_nonplant","Paper and data unique identifier(eg. 1-1,10-150)","10-2"]
["Scores",10,5,5,5,5,5,5,0,5,0,0,4,4,4,4,3,3,3,3,3,76,0.80851063829787229,"The highest possible grade for this datum is acceptable."]
["Answers","1-h","fertilisation success","NOEC","84% fertilised","","quadruplicate","> 70% control fertilisation, 20 +/-1 oC temperature, Cu reference toxicity test EC50 between 24.8-66.6 µg Cu/L","","filtered seawater in physchem data sheets","","measured in stocks","Cu reference test criterion was met","","Steel's Many-one Rank test in Toxcalc","one tailed, 0.05 ","34.6 - 35.00","104.5 - 118.3 % DO","8.00 - 8.20","21 oC","Analytical Grade MnCl2.4H2O"]
["Category","MEW_nonplant","Paper and data unique identifier(eg. 1-1,10-150)","10-3"]
["Scores",10,5,5,5,5,5,5,0,5,0,0,4,4,4,4,3,3,3,3,3,76,0.80851063829787229,"The highest possible grade for this datum is acceptable."]
["Answers","1-h","fertilisation success","LOEC","10% fertilised","","quadruplicate","> 70% control fertilisation, 20 +/-1 oC temperature, Cu reference toxicity test EC50 between 24.8-66.6 µg Cu/L","","filtered seawater in physchem data sheets","","measured in stocks","Cu reference test criterion was met","","Steel's Many-one Rank test in Toxcalc","one tailed, 0.05 ","34.6 - 35.00","104.5 - 118.3 % DO","8.00 - 8.20","21 oC","Analytical Grade MnCl2.4H2O"]
["Category","MEW_nonplant","Paper and data unique identifier(eg. 1-1,10-150)","10-4"]
["Scores",10,5,5,5,5,5,5,0,5,0,0,4,4,4,4,3,3,3,3,3,76,0.80851063829787229,"The highest possible grade for this datum is acceptable."]
["Answers","72-h","Alive/Normal larvae","EC50","50 % normal development","","quadruplicate","> 70% control fertilisation, 20 +/-1 oC temperature, Cu reference toxicity test EC50 between 6.5-13.5 µg Cu/L","","filtered seawater in physchem data sheets","","measured in stocks","Cu reference test criterion was met","","Spearman Karber Trim for EC50 and Dunnett's Test for NOEC,LOEC in Toxcalc","6000-6500 µg/L 95% CL","35.5-35.9","101.2-105.9 % saturation","7.9-8.0","21 oC","Analytical Grade MnCl2.4H2O"]
["Category","MEW_nonplant","Paper and data unique identifier(eg. 1-1,10-150)","10-5"]
["Scores",10,5,5,5,5,5,5,0,5,0,0,4,4,4,4,3,3,3,3,3,76,0.80851063829787229,"The highest possible grade for this datum is acceptable."]
["Answers","72-h","Alive/Normal larvae","NOEC","99 % normal development","","quadruplicate","> 70% control fertilisation, 20 +/-1 oC temperature, Cu reference toxicity test EC50 between 6.5-13.5 µg Cu/L","","filtered seawater in physchem data sheets","","measured in stocks","Cu reference test criterion was met","","Spearman Karber Trim for EC50 and Dunnett's test for NOEC,LOEC in Toxcalc","one tailed, 0.05%","35.5-35.9","101.2-105.9 % saturation","7.9-8.0","21 oC","Analytical Grade MnCl2.4H2O"]
["Category","MEW_nonplant","Paper and data unique identifier(eg. 1-1,10-150)","10-6"]
["Scores",10,5,5,5,5,5,5,0,5,0,0,4,4,4,4,3,3,3,3,3,76,0.80851063829787229,"The highest possible grade for this datum is acceptable."]
["Answers","72-h","Alive/Normal larvae","LOEC","69 % normal development","","quadruplicate","> 70% control fertilisation, 20 +/-1 oC temperature, Cu reference toxicity test EC50 between 6.5-13.5 µg Cu/L","","filtered seawater in physchem data sheets","","measured in stocks","Cu reference test criterion was met","","Spearman Karber Trim for EC50 and Dunnett's test for NOEC,LOEC in Toxcalc","one tailed, 0.05%","35.5-35.9","101.2-105.9 % saturation","7.9-8.0","21 oC","Analytical Grade MnCl2.4H2O"]
["Category","MEW_nonplant","Paper and data unique identifier(eg. 1-1,10-150)","10-7"]
["Scores",10,5,5,5,5,5,5,0,5,0,0,4,4,4,4,3,3,3,3,3,76,0.80851063829787229,"The highest possible grade for this datum is acceptable."]
["Answers","48-h","Alive/Normal larvae","EC","50 % normal development","","quadruplicate","> 70% control fertilisation, 25 +/-1 oC temperature, Cu reference toxicity test EC50 between 16.5-28.9 µg Cu/L","","filtered seawater in physchem data sheets","","measured in stocks","Cu reference test criterion was met","","Spearman Karber Trim for EC50 and Dunnett's test for NOEC,LOEC in Toxcalc","9,000-10,000 µg/L 95% CL","35.5-35.9","101.2-105.9 % saturation","7.9-8.0","25.5 oC","Analytical Grade MnCl2.4H2O"]
["Category","MEW_nonplant","Paper and data unique identifier(eg. 1-1,10-150)","10-8"]
["Scores",10,5,5,5,5,5,5,0,5,0,0,4,4,4,4,3,3,3,3,3,76,0.80851063829787229,"The highest possible grade for this datum is acceptable."]
["Answers","48-h","Alive/Normal larvae","NOEC",">100 % normal development","","quadruplicate","> 70% control fertilisation, 25 +/-1 oC temperature, Cu reference toxicity test EC50 between 16.5-28.9 µg Cu/L","","filtered seawater in physchem data sheets","","measured in stocks","Cu reference test criterion was met","","Spearman Karber Trim for EC50 and Dunnett's test for NOEC,LOEC in Toxcalc","one tail, 0.05 probablity","35.5-35.9","101.2-105.9 % saturation","7.9-8.0","25.5 oC","Analytical Grade MnCl2.4H2O"]
["Category","MEW_nonplant","Paper and data unique identifier(eg. 1-1,10-150)","10-9"]
["Scores",10,5,5,5,5,5,5,0,5,0,0,4,4,4,4,3,3,3,3,3,76,0.80851063829787229,"The highest possible grade for this datum is acceptable."]
["Answers","48-h","Alive/Normal larvae","LOEC","46 % normal development","","quadruplicate","> 70% control fertilisation, 25 +/-1 oC temperature, Cu reference toxicity test EC50 between 16.5-28.9 µg Cu/L","","filtered seawater in physchem data sheets","","measured in stocks","Cu reference test criterion was met","","Spearman Karber Trim for EC50 and Dunnett's test for NOEC,LOEC in Toxcalc","one tail, 0.05 probablity","35.5-35.9","101.2-105.9 % saturation","7.9-8.0","25.5 oC","Analytical Grade MnCl2.4H2O"]
["Category","MEW_nonplant","Paper and data unique identifier(eg. 1-1,10-150)","10-10"]
["Scores",10,5,5,5,5,5,5,0,5,0,0,4,4,4,4,3,3,3,3,3,76,0.80851063829787229,"The highest possible grade for this datum is acceptable."]
["Answers","96-h","survival","LC50","50% survival","","quadruplicate",">= 90% control survival,  25 +/-1 oC temperature, SDS reference toxicity test EC50 between 4.4-33.0 mg SDS/L","","filtered seawater in physchem data sheets","","measured in stocks","SDS reference test criterion was met","","Spearman Karber Trim for EC50 and Steel's Many-One Rank test for NOEC, LOEC in Toxcalc","71,000-101,300 µg/L 95% CL","35.2-35.5","105.9-116.4 % saturation","7.9-8.0","26 oC","Analytical Grade MnCl2.4H2O"]
["Category","MEW_nonplant","Paper and data unique identifier(eg. 1-1,10-150)","10-11"]
["Scores",10,5,5,5,5,5,5,0,5,0,0,4,4,4,4,3,3,3,3,3,76,0.80851063829787229,"The highest possible grade for this datum is acceptable."]
["Answers","96-h","survival","NOEC","90% survival","","quadruplicate",">= 90% control survival,  25 +/-1 oC temperature, SDS reference toxicity test EC50 between 4.4-33.0 mg SDS/L","","filtered seawater in physchem data sheets","","measured in stocks","SDS reference test criterion was met","","Spearman Karber Trim for EC50 and Steel's Many-One Rank test for NOEC, LOEC in Toxcalc","one-tailed, 0.05 % probability","35.2-35.5","105.9-116.4 % saturation","7.9-8.0","26 oC","Analytical Grade MnCl2.4H2O"]
["Category","MEW_nonplant","Paper and data unique identifier(eg. 1-1,10-150)","10-12"]
["Scores",10,5,5,5,5,5,5,0,5,0,0,4,4,4,4,3,3,3,3,3,76,0.80851063829787229,"The highest possible grade for this datum is acceptable."]
["Answers","96-h","survival","LOEC","37% survival","","quadruplicate",">= 90% control survival,  25 +/-1 oC temperature, SDS reference toxicity test EC50 between 4.4-33.0 mg SDS/L","","filtered seawater in physchem data sheets","","measured in stocks","SDS reference test criterion was met","","Spearman Karber Trim for EC50 and Steel's Many-One Rank test for NOEC, LOEC in Toxcalc","one-tailed, 0.05 % probability","35.2-35.5","105.9-116.4 % saturation","7.9-8.0","26 oC","Analytical Grade MnCl2.4H2O"]
["Category","MEW_nonplant","Paper and data unique identifier(eg. 1-1,10-150)","10-13"]
["Scores",10,5,5,5,5,5,5,0,5,0,2,4,4,4,4,3,3,3,3,3,78,0.82978723404255317,""]
["Answers","96-h","imbalance","EC50","50 % imbalance","","quadruplicate",">= 90% control survival,  25 +/-1 oC temperature, Cu reference toxicity test EC50 between 0.96-1.32 mg Cu/L","","filtered seawater in physchem data sheets","","dissolved Mn was 99-103% of nominal Mn","Cu reference test criterion was met","","Spearman Karber Trim for EC50 and Steel's Many-One Rank test for NOEC, LOEC in Toxcalc","12.11% CV at the highest test concentration","35.6-35.7","101.9-109.4 % Saturation DO","8.0-8.3","25 oC","Analytical Grade MnCl2.4H2O"]
["Category","MEW_nonplant","Paper and data unique identifier(eg. 1-1,10-150)","10-14"]
["Scores",10,5,5,5,5,5,5,0,5,0,2,4,4,4,4,3,3,3,3,3,78,0.82978723404255317,""]
["Answers","96-h","imbalance","NOEC","55 % imbalance","","quadruplicate",">= 90% control survival,  25 +/-1 oC temperature, Cu reference toxicity test EC50 between 0.96-1.32 mg Cu/L","","filtered seawater in physchem data sheets","","dissolved Mn was 99-103% of nominal Mn","Cu reference test criterion was met","","Spearman Karber Trim for EC50 and Steel's Many-One Rank test for NOEC, LOEC in Toxcalc","one tail, 0.05% probability","35.6-35.7","101.9-109.4 % Saturation DO","8.0-8.3","25 oC","Analytical Grade MnCl2.4H2O"]
["Category","MEW_nonplant","Paper and data unique identifier(eg. 1-1,10-150)","10-15"]
["Scores",10,5,5,5,5,5,5,0,5,0,2,4,4,4,4,3,3,3,3,3,78,0.82978723404255317,""]
["Answers","96-h","imbalance","LOEC","55 % imbalance","","quadruplicate",">= 90% control survival,  25 +/-1 oC temperature, Cu reference toxicity test EC50 between 0.96-1.32 mg Cu/L","","filtered seawater in physchem data sheets","","dissolved Mn was 99-103% of nominal Mn","Cu reference test criterion was met","","Spearman Karber Trim for EC50 and Steel's Many-One Rank test for NOEC, LOEC in Toxcalc","one tail, 0.05% probability","35.6-35.7","101.9-109.4 % Saturation DO","8.0-8.3","25 oC","Analytical Grade MnCl2.4H2O"]
["Category","MEW_nonplant","Paper and data unique identifier(eg. 1-1,10-150)","11-1"]
["Scores",10,10,5,5,5,5,2,5,5,4,0,0,0,4,0,3,3,3,3,0,72,0.76595744680851063,"The highest possible grade for this datum is acceptable."]
["Answers","48-h","mortality defined as absence of response to a gentle mechanical stimulus ","LC","50% mortality","","triplicate","refers to APHA-AWWA-WPCF (1992)","postlarvae PL12 1.2+/-0.2 cm","Filtered seawater pumped through sand and gravel bed, 1-10 µm cartridge and activated charcoal","static renewal","stated that nominal was used","","","probit analysis","95% CL calculated and shown on plot of LC50s but not given in the table","34 PSU","5.05-5.69 mg/L DO","8.0-8.1","26.8-27.6 oC","GR grade of MnCl2.4H2O"]
["Category","MEW_nonplant","Paper and data unique identifier(eg. 1-1,10-150)","11-2"]
["Scores",10,10,5,5,5,5,2,5,5,4,0,0,0,4,0,3,3,3,3,0,72,0.76595744680851063,"The highest possible grade for this datum is acceptable."]
["Answers","96-h","mortality defined as absence of response to a gentle mechanical stimulus ","LC","50% mortality","","triplicate","refers to APHA-AWWA-WPCF (1992)","postlarvae PL12 1.2+/-0.2 cm","Filtered seawater pumped through sand and gravel bed, 1-10 µm cartridge and activated charcoal","static renewal","stated that nominal was used","","","probit analysis","95% CL calculated and shown on plot of LC50s but not given in the table","34 PSU","5.05-5.69 mg/L DO","8.0-8.1","26.8-27.6 oC","GR grade of MnCl2.4H2O"]
["Category","MEW_nonplant","Paper and data unique identifier(eg. 1-1,10-150)","12-1"]
["Scores",10,10,5,5,5,5,5,5,5,4,4,0,4,4,4,1,1,1,1,3,82,0.87234042553191493,""]
["Answers","96-h","prolonged (>1h) increased gill ventilation, erratic swimming","EC50","50% imbalance","","triplicate reps ","control survival >80%","30 mm long fry; pre juvenile; approx. 30-d post hatch","filtered (<5 µm) seawater","Static","beginning and end","","","CETIS v1.8 software (Tidepool scientific)","548,000-620,000 µg/L 95% CL","35 +/- 2 PSU","80-100 % saturation","8.1+/- 0.2","25 +/- 2 oC","Controls were analysed by ICP-OES"]
["Category","MEW_nonplant","Paper and data unique identifier(eg. 1-1,10-150)","12-2"]
["Scores",10,10,5,5,5,5,5,5,5,4,4,0,4,4,4,1,1,1,1,3,82,0.87234042553191493,""]
["Answers","96-h","prolonged (>1h) increased gill ventilation, erratic swimming","EC10","10% imbalance","","triplicate reps ","control survival >80%","30 mm long fry; pre juvenile; approx. 30-d post hatch","filtered (<5 µm) seawater","Static","beginning and end","","","CETIS v1.8 software (Tidepool scientific)","402,000 - 462,400  µg/L 95% CL","35 +/- 2 PSU","80-100 % saturation","8.1+/- 0.2","25 +/- 2 oC","Controls were analysed by ICP-OES"]
["Category","MEW_nonplant","Paper and data unique identifier(eg. 1-1,10-150)","12-3"]
["Scores",10,10,5,5,5,5,5,5,5,4,4,0,4,4,4,1,1,1,1,3,82,0.87234042553191493,""]
["Answers","96-h","prolonged (>1h) increased gill ventilation, erratic swimming","EC10","10% imbalance","","triplicate reps ","control survival >80%","20 mm long fry; pre juvenile; approx. 20-d post hatch","filtered (<5 µm) seawater","Static","beginning and end","","","CETIS v1.8 software (Tidepool scientific)","527,000-715,000 µg/L 95% CL","35 +/- 2 PSU","80-100 % saturation","8.1+/- 0.2","25 +/- 2 oC","Controls were analysed by ICP-OES"]
["Category","MEW_nonplant","Paper and data unique identifier(eg. 1-1,10-150)","12-4"]
["Scores",10,10,5,5,5,5,5,5,5,4,4,0,4,4,4,1,1,1,1,3,82,0.87234042553191493,""]
["Answers","96-h","prolonged (>1h) increased gill ventilation, erratic swimming","EC50","50% imbalance","","triplicate reps ","control survival >80%","20 mm long fry; pre juvenile; approx. 20-d post hatch","filtered (<5 µm) seawater","Static","beginning and end","","","CETIS v1.8 software (Tidepool scientific)","527,000-715,000 µg/L 95% CL","35 +/- 2 PSU","80-100 % saturation","8.1+/- 0.2","25 +/- 2 oC","Controls were analysed by ICP-OES"]
["Category","MEW_nonplant","Paper and data unique identifier(eg. 1-1,10-150)","12-5"]
["Scores",10,5,5,5,5,5,5,5,5,4,4,0,4,4,4,1,1,1,1,3,77,0.81914893617021278,""]
["Answers","96-h","Mortality not defined","EC10","10% survival","","triplicate reps ","control survival >80%","5 mm long juveniles ephyra","filtered (<5 µm) seawater","Static","beginning and end","","","CETIS v1.8 software (Tidepool scientific)","47,200 - 58,600 µg/L 95% CL","35 +/- 2 PSU","80-100 % saturation","8.1+/- 0.2","25 +/- 2 oC","Controls were analysed by ICP-OES"]
["Category","MEW_nonplant","Paper and data unique identifier(eg. 1-1,10-150)","12-6"]
["Scores",10,5,5,5,5,5,5,5,5,4,4,0,4,4,4,1,1,1,1,3,77,0.81914893617021278,""]
["Answers","96-h","Mortality not defined","EC50","50% survival","","triplicate reps ","control survival >80%","5 mm long juveniles ephyra","filtered (<5 µm) seawater","Static","beginning and end","","","CETIS v1.8 software (Tidepool scientific)","73,600 - 98,600 µg/L 95% CL","35 +/- 2 PSU","80-100 % saturation","8.1+/- 0.2","25 +/- 2 oC","Controls were analysed by ICP-OES"]
["Category","MEW_nonplant","Paper and data unique identifier(eg. 1-1,10-150)","12-7"]
["Scores",10,5,5,5,5,5,5,5,5,4,4,0,4,4,4,1,1,1,1,3,77,0.81914893617021278,""]
["Answers","240-h","Mortality not defined","EC10","10% survival","","triplicate reps ","control survival >80%","5 mm long juveniles ephyra","filtered (<5 µm) seawater","Static-renewal","beginning and end","","","CETIS v1.8 software (Tidepool scientific)","21,400 - 48,400 µg/L 95% CL","35 +/- 2 PSU","80-100 % saturation","8.1+/- 0.2","25 +/- 2 oC","Controls were analysed by ICP-OES"]
["Category","MEW_nonplant","Paper and data unique identifier(eg. 1-1,10-150)","12-8"]
["Scores",10,5,5,5,5,5,5,5,5,4,4,0,4,4,4,1,1,1,1,3,77,0.81914893617021278,""]
["Answers","240-h","Mortality not defined","EC50","50% survival","","triplicate reps ","control survival >80%","5 mm long juveniles ephyra","filtered (<5 µm) seawater","Static-renewal","beginning and end","","","CETIS v1.8 software (Tidepool scientific)","57,700 - 63,500 µg/L 95% CL","35 +/- 2 PSU","80-100 % saturation","8.1+/- 0.2","25 +/- 2 oC","Controls were analysed by ICP-OES"]
["Category","MEW_nonplant","Paper and data unique identifier(eg. 1-1,10-150)","12-9"]
["Scores",10,5,5,5,5,5,5,5,5,4,4,0,4,4,4,1,1,1,1,3,77,0.81914893617021278,""]
["Answers","96-h","Mortality not defined","LC","10% survival","","triplicate reps ","control survival >80%","15 days post larval (PL15)","filtered (<5 µm) seawater","Static","beginning and end","","","CETIS v1.8 software (Tidepool scientific)","12,200 - 36,300 µg/L 95% CL","35 +/- 2 PSU","80-100 % saturation","8.1+/- 0.2","25 +/- 2 oC","Controls were analysed by ICP-OES"]
["Category","MEW_nonplant","Paper and data unique identifier(eg. 1-1,10-150)","12-10"]
["Scores",10,5,5,5,5,5,5,5,5,4,4,0,4,4,4,1,1,1,1,3,77,0.81914893617021278,""]
["Answers","96-h","Mortality not defined","LC","50% survival","","triplicate reps ","control survival >80%","15 days post larval (PL15)","filtered (<5 µm) seawater","Static","beginning and end","","","CETIS v1.8 software (Tidepool scientific)","24,200 - 106,700 µg/L 95% CL","35 +/- 2 PSU","80-100 % saturation","8.1+/- 0.2","25 +/- 2 oC","Controls were analysed by ICP-OES"]
["Category","MEW_nonplant","Paper and data unique identifier(eg. 1-1,10-150)","12-11"]
["Scores",10,5,5,5,5,5,5,5,5,4,4,0,4,4,4,1,1,1,1,3,77,0.81914893617021278,""]
["Answers","240-h","Mortality not defined","LC","10% survival","","triplicate reps ","control survival >80%","20 mm juvenile","filtered (<5 µm) seawater","Static renewal 96-h","beginning and end","","","CETIS v1.8 software (Tidepool scientific)","8,900 - 98,800 µg/L 95% CL","35 +/- 2 PSU","80-100 % saturation","8.1+/- 0.2","25 +/- 2 oC","Controls were analysed by ICP-OES"]
["Category","MEW_nonplant","Paper and data unique identifier(eg. 1-1,10-150)","12-12"]
["Scores",10,5,5,5,5,5,5,5,5,4,4,0,4,4,4,1,1,1,1,3,77,0.81914893617021278,""]
["Answers","240-h","Mortality not defined","LC","50% survival","","triplicate reps ","control survival >80%","20 mm juvenile","filtered (<5 µm) seawater","Static renewal 96-h","beginning and end","","","CETIS v1.8 software (Tidepool scientific)","134,100 - 669,500 µg/L 95% CL","35 +/- 2 PSU","80-100 % saturation","8.1+/- 0.2","25 +/- 2 oC","Controls were analysed by ICP-OES"]
["Category","MEW_nonplant","Paper and data unique identifier(eg. 1-1,10-150)","12-13"]
["Scores",10,5,5,5,5,5,5,5,5,4,4,0,4,4,4,1,1,1,1,3,77,0.81914893617021278,""]
["Answers","96-h","Mortality not defined","EC","10% survival","","triplicate reps ","control survival >80%","1-2 mm pedal disc juvenile","filtered (<5 µm) seawater","Static","beginning and end","","","CETIS v1.8 software (Tidepool scientific)","202,200 - 239,700 µg/L 95% CL","35 +/- 2 PSU","80-100 % saturation","8.1+/- 0.2","25 +/- 2 oC","Controls were analysed by ICP-OES"]
["Category","MEW_nonplant","Paper and data unique identifier(eg. 1-1,10-150)","12-14"]
["Scores",10,5,5,5,5,5,5,5,5,4,4,0,4,4,4,1,1,1,1,3,77,0.81914893617021278,""]
["Answers","96-h","Mortality not defined","EC","50% survival","","triplicate reps ","control survival >80%","1-2 mm pedal disc juvenile","filtered (<5 µm) seawater","Static","beginning and end","","","CETIS v1.8 software (Tidepool scientific)","317,200 - 393,100 µg/L 95% CL","35 +/- 2 PSU","80-100 % saturation","8.1+/- 0.2","25 +/- 2 oC","Controls were analysed by ICP-OES"]
["Category","MEW_nonplant","Paper and data unique identifier(eg. 1-1,10-150)","12-17"]
["Scores",10,5,5,5,5,5,5,0,5,4,4,0,4,4,4,1,1,1,1,3,72,0.76595744680851063,""]
["Answers","72-h","Mortality not defined","LC","10% survival","","quadruplicate reps ","control survival >80%","","filtered (<5 µm) seawater","Static","beginning and end","","","CETIS v1.8 software (Tidepool scientific)","0-4,300 µg/L 95% CL","35 +/- 2 PSU","80-100 % saturation","8.1+/- 0.2","25 +/- 2 oC","Controls were analysed by ICP-OES"]
["Category","MEW_nonplant","Paper and data unique identifier(eg. 1-1,10-150)","12-18"]
["Scores",10,5,5,5,5,5,5,0,5,4,4,0,4,4,4,1,1,1,1,3,72,0.76595744680851063,""]
["Answers","72-h","Mortality not defined","LC","50% survival","","quadruplicate reps ","control survival >80%","","filtered (<5 µm) seawater","Static","beginning and end","","","CETIS v1.8 software (Tidepool scientific)","40-14,100 µg/L 95% CL","35 +/- 2 PSU","80-100 % saturation","8.1+/- 0.2","25 +/- 2 oC","Controls were analysed by ICP-OES"]
["Category","MEW_nonplant","Paper and data unique identifier(eg. 1-1,10-150)","12-19"]
["Scores",10,5,5,5,5,5,5,0,5,4,4,0,4,4,4,1,1,1,1,3,72,0.76595744680851063,""]
["Answers","48-h","Mortality not defined","LC","10% survival","","quadruplicate reps ","control survival >80%","","filtered (<5 µm) seawater","Static","beginning and end","","","CETIS v1.8 software (Tidepool scientific)","0-2,000 µg/L 95% CL","35 +/- 2 PSU","80-100 % saturation","8.1+/- 0.2","25 +/- 2 oC","Controls were analysed by ICP-OES"]
["Category","MEW_nonplant","Paper and data unique identifier(eg. 1-1,10-150)","12-20"]
["Scores",10,5,5,5,5,5,5,0,5,4,4,0,4,4,4,1,1,1,1,3,72,0.76595744680851063,""]
["Answers","48-h","Mortality not defined","LC","50% survival","","quadruplicate reps ","control survival >80%","","filtered (<5 µm) seawater","Static","beginning and end","","","CETIS v1.8 software (Tidepool scientific)","2,300-17,300 µg/L 95% CL","35 +/- 2 PSU","80-100 % saturation","8.1+/- 0.2","25 +/- 2 oC","Controls were analysed by ICP-OES"]
["Category","MEW_nonplant","Paper and data unique identifier(eg. 1-1,10-150)","15-3"]
["Scores",10,5,5,5,5,5,2,5,5,0,4,0,4,4,0,3,3,3,3,0,71,0.75531914893617025,""]
["Answers","96-h","Imbalance","EC","50 % larval imbalance","","quadruplicate replicates","OECD (1987)","2 day old larvae","Filtered seawater (particle size<50 µm) and UV sterilized","","Measured twice but T0h data used to calculate Mn in top concentration and then nominal for other dilutions that were prepare from the top concentration","","","ANOVA and post-hoc Dunn's multiple comparison","","34.0-34.6 PSU","96.7 - 104.2 % saturation","8.12 - 8.26 ","19.4 - 20.2 oC",""]
["Category","MEW_nonplant","Paper and data unique identifier(eg. 1-1,10-150)","15-4"]
["Scores",10,5,5,5,5,5,2,5,5,0,4,0,4,0,0,3,3,3,3,0,67,0.71276595744680848,""]
["Answers","96-h","Imbalance","NOEC","25 % larval imbalance","","quadruplicate replicates","OECD (1987)","2 day old larvae","Filtered seawater (particle size<50 µm) and UV sterilized","","Measured twice but T0h data used to calculate Mn in top concentration and then nominal for other dilutions that were prepare from the top concentration","","","ANOVA and post-hoc Dunn's multiple comparison - but they found no statistically significant difference between treatments and controls","","34.0-34.6 PSU","96.7 - 104.2 % saturation","8.12 - 8.26 ","19.4 - 20.2 oC",""]
["Category","MEW_nonplant","Paper and data unique identifier(eg. 1-1,10-150)","15-5"]
["Scores",10,5,5,5,5,0,5,5,5,0,4,4,4,4,4,1,0,1,3,3,73,0.77659574468085102,""]
["Answers","96-h","survival","LC50","50 % survival","","Not stated",">=90% survival in control, within temperature and reference test limits. Based on USEPA (1994, 1996)","PL15 stage","Filtered seawater (particle size<50 µm) and UV sterilized","","Measured twice but T0h data used to calculate Mn in top concentration and then nominal for other dilutions that were prepare from the top concentration","13.8 mg/L SDS","","Trimmed Spearman Karber in Toxcalc Version 5.0.23","15,100-45,200 µg/L 95% CL","32 PSU","96.7 - 104.2 % saturation",8,"24.5 oC","AR grade MnCl2"]
["Category","MEW_nonplant","Paper and data unique identifier(eg. 1-1,10-150)","15-6"]
["Scores",10,5,5,5,5,0,5,5,5,0,4,4,4,4,4,1,0,1,3,3,73,0.77659574468085102,""]
["Answers","96-h","survival","NOEC","85 % survival","","Not stated",">=90% survival in control, within temperature and reference test limits. Based on USEPA (1994, 1996)","PL15 stage","Filtered seawater (particle size<50 µm) and UV sterilized","","Measured twice but T0h data used to calculate Mn in top concentration and then nominal for other dilutions that were prepare from the top concentration","13.8 mg/L SDS","","Dunnett's Test one tail in Toxcalc Version 5.0.23","<0.05 one tail significance","32 PSU","96.7 - 104.2 % saturation",8,"24.5 oC","AR grade MnCl2"]
["Category","MEW_nonplant","Paper and data unique identifier(eg. 1-1,10-150)","15-7"]
["Scores",10,5,5,5,5,0,5,0,5,0,4,4,4,4,4,1,0,1,3,3,68,0.72340425531914898,""]
["Answers","72-h","normal larval development","EC50","50% normal larval development","","Not stated",">=70%  survival in control, >=70% normal larval development in the control,  within temperature and reference test limits. Based on APHA (1998) and Simon and Laginestra (1996)","","Filtered seawater (particle size<50 µm) and UV sterilized","","Measured twice but T0h data used to calculate Mn in top concentration and then nominal for other dilutions that were prepare from the top concentration","","","Trimmed Spearman Karber for EC50 and Dunnett's Test for NOEC in Toxcalc Version 5.0.23","4,000-4,400 µg/L 95% CL","32 PSU","",8,"19.0 oC","AR grade MnCl2"]
["Category","MEW_nonplant","Paper and data unique identifier(eg. 1-1,10-150)","15-8"]
["Scores",10,5,5,5,5,0,5,0,5,0,4,4,4,4,4,1,0,1,3,3,68,0.72340425531914898,""]
["Answers","72-h","normal larval development","NOEC","93% normal larval development","","Not stated",">=70%  survival in control, >=70% normal larval development in the control,  within temperature and reference test limits. Based on APHA (1998) and Simon and Laginestra (1996)","","Filtered seawater (particle size<50 µm) and UV sterilized","","Measured twice but T0h data used to calculate Mn in top concentration and then nominal for other dilutions that were prepare from the top concentration","","","Trimmed Spearman Karber for EC50 and Dunnett's Test for NOEC in Toxcalc Version 5.0.23","<0.05, one tail significance","32 PSU","",8,"19.0 oC","AR grade MnCl2"]
["Category","MEW_nonplant","Paper and data unique identifier(eg. 1-1,10-150)","15-9"]
["Scores",10,5,5,5,5,0,5,0,5,0,4,4,4,4,4,1,0,1,3,3,68,0.72340425531914898,""]
["Answers","72-h","survival","LC50","50% survival","","Not stated",">=70%  survival in control, >=70% normal larval development in the control,  within temperature and reference test limits. Based on APHA (1998) and Simon and Laginestra (1996)","","Filtered seawater (particle size<50 µm) and UV sterilized","","Measured twice but T0h data used to calculate Mn in top concentration and then nominal for other dilutions that were prepare from the top concentration","","","Trimmed Spearman Karber for LC50 and Dunnett's Test for NOEC in Toxcalc Version 5.0.23","13,800-18,800 µg/L 95% CL","32 PSU","",8,"19.0 oC","AR grade MnCl2"]
["Category","MEW_nonplant","Paper and data unique identifier(eg. 1-1,10-150)","15-10"]
["Scores",10,5,5,5,5,0,5,0,5,0,4,4,4,4,4,1,0,1,3,3,68,0.72340425531914898,""]
["Answers","72-h","survival","NOEC","86.6% survival","","Not stated",">=70%  survival in control, >=70% normal larval development in the control,  within temperature and reference test limits. Based on APHA (1998) and Simon and Laginestra (1996)","","Filtered seawater (particle size<50 µm) and UV sterilized","","Measured twice but T0h data used to calculate Mn in top concentration and then nominal for other dilutions that were prepare from the top concentration","","","Trimmed Spearman Karber for LC50 and Dunnett's Test for NOEC in Toxcalc Version 5.0.23","<0.05, 1 tail significance level","32 PSU","",8,"19.0 oC","AR grade MnCl2"]
["Category","MEW_nonplant","Paper and data unique identifier(eg. 1-1,10-150)","15-11"]
["Scores",10,10,5,5,5,0,5,0,5,0,4,4,4,4,4,1,0,1,3,3,73,0.77659574468085102,""]
["Answers","60-h","embryo larval development to D veliger","EC50","50% normal larval development","","Not stated",">=70%  survival in control, >=70% normal larval development in the control,  within temperature and reference test limits. Based on APHA (1998)","","Filtered seawater (particle size<50 µm) and UV sterilized","","Measured twice but T0h data used to calculate Mn in top concentration and then nominal for other dilutions that were prepare from the top concentration","","","Trimmed Spearman Karber for LC50 and Dunnett's Test for NOEC in Toxcalc Version 5.0.23","2,400-3,000 µg/L 95% CL","32 PSU","",8,"24.5 oC","AR grade MnCl2"]
["Category","MEW_nonplant","Paper and data unique identifier(eg. 1-1,10-150)","15-12"]
["Scores",10,10,5,5,5,0,5,0,5,0,4,4,4,4,4,1,0,1,3,3,73,0.77659574468085102,""]
["Answers","60-h","embryo larval development to D veliger","NOEC","83.4 % normal larval development","","Not stated",">=70%  survival in control, >=70% normal larval development in the control,  within temperature and reference test limits. Based on APHA (1998)","","Filtered seawater (particle size<50 µm) and UV sterilized","","Measured twice but T0h data used to calculate Mn in top concentration and then nominal for other dilutions that were prepare from the top concentration","","","Trimmed Spearman Karber for LC50 and Dunnett's Test for NOEC in Toxcalc Version 5.0.23","<0.05, one tail significance","32 PSU","",8,"24.5 oC","AR grade MnCl2"]
["Category","MEW_nonplant","Paper and data unique identifier(eg. 1-1,10-150)","15-13"]
["Scores",10,10,5,5,5,0,5,0,5,0,4,4,4,4,4,1,0,1,3,3,73,0.77659574468085102,""]
["Answers","60-h","Survival","LC50","50% survival","","Not stated",">=70%  survival in control, >=70% normal larval development in the control,  within temperature and reference test limits. Based on APHA (1998)","","Filtered seawater (particle size<50 µm) and UV sterilized","","Measured twice but T0h data used to calculate Mn in top concentration and then nominal for other dilutions that were prepare from the top concentration","","","Trimmed Spearman Karber for LC50 and Dunnett's Test for NOEC in Toxcalc Version 5.0.23","9,800-11,800 µg/L 95% CL","32 PSU","",8,"24.5 oC","AR grade MnCl2"]
["Category","MEW_nonplant","Paper and data unique identifier(eg. 1-1,10-150)","15-14"]
["Scores",10,10,5,5,5,0,5,0,5,0,4,4,4,4,4,1,0,1,3,3,73,0.77659574468085102,""]
["Answers","60-h","Survival","NOEC","86.2% survival","","Not stated",">=70%  survival in control, >=70% normal larval development in the control,  within temperature and reference test limits. Based on APHA (1998)","","Filtered seawater (particle size<50 µm) and UV sterilized","","Measured twice but T0h data used to calculate Mn in top concentration and then nominal for other dilutions that were prepare from the top concentration","","","Trimmed Spearman Karber for LC50 and Dunnett's Test for NOEC in Toxcalc Version 5.0.23","<0.05, one tail significance","32 PSU","",8,"24.5 oC","AR grade MnCl2"]
["Category","MEW_nonplant","Paper and data unique identifier(eg. 1-1,10-150)","3-2"]
["Scores",10,10,5,5,5,5,0,5,5,4,0,0,0,0,0,1,0,1,1,0,57,0.6063829787234043,"The highest possible grade for this datum is acceptable."]
["Answers","48-h","embryo development to straight hinged larvae","LC0 but translate to NOEC","0% effect on embryo development","","duplicates","","1-h fertilised embryo","Synthetic seawater","static non-renewal","","","","","","25 PSU","","7.0-8.5","26 oC","Technical grade. MnCl2.4H2O"]
["Category","MEW_nonplant","Paper and data unique identifier(eg. 1-1,10-150)","16-1"]
["Scores",10,5,5,5,5,5,0,5,5,4,2,4,4,0,0,0,0,0,3,0,62,0.65957446808510634,""]
["Answers","48-h","Survival","LC50","50% survival","","triplicate","","Adult (4-6 cm long)","Filtered seawater (1 µm filtered)","Static daily renewal","T0h measurement on filtered 0.45 µm","Copper reference tests","","Method not stated for effect concentrations but given as Dunnett's test for hypothesis testing for NOEC","","","","","24-28 oC","Manganese chloride"]
["Category","MEW_nonplant","Paper and data unique identifier(eg. 1-1,10-150)","16-2"]
["Scores",10,5,5,5,5,5,0,5,5,4,2,4,4,0,4,0,0,0,3,0,66,0.7021276595744681,""]
["Answers","48-h","Survival","NOEC","100% survival","","triplicate","","Adult (4-6 cm long)","Filtered seawater (1 µm filtered)","Static daily renewal","T0h measurement on filtered 0.45 µm","Copper reference tests","","Method not stated for effect concentrations but given as Dunnett's test for hypothesis testing for NOEC","<0.05 ","","","","24-28 oC","Manganese chloride"]
["Category","MEW_nonplant","Paper and data unique identifier(eg. 1-1,10-150)","16-3"]
["Scores",10,5,5,5,5,5,0,5,5,4,2,4,4,0,4,0,0,0,3,0,66,0.7021276595744681,""]
["Answers","48-h","Tissue sloughing","EC 50","50% of corals with tissue sloughing","","triplicate","","Adult (4-6 cm long)","Filtered seawater (1 µm filtered)","Static daily renewal","T0h measurement on filtered 0.45 µm","Copper reference tests","","Method not stated for effect concentrations but given as Dunnett's test for hypothesis testing for NOEC","700 - 1000 µg/L 95% CL","","","","24-28 oC","Manganese chloride"]
["Category","MEW_nonplant","Paper and data unique identifier(eg. 1-1,10-150)","16-4"]
["Scores",10,5,5,0,5,5,0,5,5,4,2,4,4,0,4,0,0,0,3,0,61,0.64893617021276595,""]
["Answers","48-h","Tissue sloughing","NOEC","","","triplicate","","Adult (4-6 cm long)","Filtered seawater (1 µm filtered)","Static daily renewal","T0h measurement on filtered 0.45 µm","Copper reference tests","","Method not stated for effect concentrations but given as Dunnett's test for hypothesis testing for NOEC","<0.05","","","","24-28 oC","Manganese chloride"]
["Category","MEW_nonplant","Paper and data unique identifier(eg. 1-1,10-150)","17-1"]
["Scores",10,10,5,5,5,0,2,5,5,4,0,0,4,4,4,3,3,3,3,0,75,0.7978723404255319,"The highest possible grade for this datum is acceptable."]
["Answers","96-h","Mortality - defined as no movement with mechanical prodding","LC50","50% mortality","","1 replicate","APHA (1989)","11 +/- 3 mm body length fry","Brackish water","Static renewal 24-h","","","","Probit","290,000-167,000 µg/L 95% CL","26 +/- 1 PSU","7.0 +/- 0.2 mg/L","8.5+/- 0.2","28+/-2oC","BDH MnCl2"]
["Category","MEW_nonplant","Paper and data unique identifier(eg. 1-1,10-150)","17-2"]
["Scores",10,10,5,5,5,0,2,5,5,4,0,0,4,4,0,3,3,3,3,0,71,0.75531914893617025,"The highest possible grade for this datum is acceptable."]
["Answers","96-h","Mortality - defined as no movement with mechanical prodding","LC16","16% mortality","","1 replicate","APHA (1989)","11 +/- 3 mm body length fry","Brackish water","Static renewal 24-h","","","","Probit","","26 +/- 1 PSU","7.0 +/- 0.2 mg/L","8.5+/- 0.2","28+/-2oC","BDH MnCl2"]
["Category","MEW_nonplant","Paper and data unique identifier(eg. 1-1,10-150)","17-3"]
["Scores",10,10,5,5,5,0,2,5,5,4,0,0,4,4,0,3,3,3,3,0,71,0.75531914893617025,"The highest possible grade for this datum is acceptable."]
["Answers","96-h","Mortality - defined as no movement with mechanical prodding","LC84","84% mortality","","1 replicate","APHA (1989)","11 +/- 3 mm body length fry","Brackish water","Static renewal 24-h","","","","Probit","","26 +/- 1 PSU","7.0 +/- 0.2 mg/L","8.5+/- 0.2","28+/-2oC","BDH MnCl2"]
["Category","MEW_nonplant","Paper and data unique identifier(eg. 1-1,10-150)","17-4"]
["Scores",10,10,5,5,5,0,2,5,5,4,0,0,4,0,0,3,3,3,3,0,67,0.71276595744680848,"The highest possible grade for this datum is acceptable."]
["Answers","96-h","Mortality - defined as no movement with mechanical prodding","NOEC","0% mortality","","1 replicate","APHA (1989)","11 +/- 3 mm body length fry","Brackish water","Static renewal 24-h","","","","No statistics used. Value was taken from text as the lowest concentration where there was 0% mortality","","26 +/- 1 PSU","7.0 +/- 0.2 mg/L","8.5+/- 0.2","28+/-2oC","BDH MnCl2"]
["Category","MEW_nonplant","Paper and data unique identifier(eg. 1-1,10-150)","17-5"]
["Scores",10,10,5,5,5,0,2,5,5,4,0,0,4,4,4,3,3,3,3,0,75,0.7978723404255319,"The highest possible grade for this datum is acceptable."]
["Answers","96-h","Mortality - defined as no movement with mechanical prodding","LC50","50% mortality","","1 replicate","APHA (1989)","11 +/- 3 mm body length fry","Brackish water","Static renewal 24-h","","","","Probit","322,000 - 194,000 µg/L 95% CL","26 +/- 1 PSU","7.0 +/- 0.2 mg/L","8.5+/- 0.2","28+/-2oC","BDH MnCl2"]
["Category","MEW_nonplant","Paper and data unique identifier(eg. 1-1,10-150)","17-6"]
["Scores",10,10,5,5,5,0,2,5,5,4,0,0,4,4,0,3,3,3,3,0,71,0.75531914893617025,"The highest possible grade for this datum is acceptable."]
["Answers","96-h","Mortality - defined as no movement with mechanical prodding","LC16","16% mortality","","1 replicate","APHA (1989)","11 +/- 3 mm body length fry","Brackish water","Static renewal 24-h","","","","Probit","","26 +/- 1 PSU","7.0 +/- 0.2 mg/L","8.5+/- 0.2","28+/-2oC","BDH MnCl2"]
["Category","MEW_nonplant","Paper and data unique identifier(eg. 1-1,10-150)","17-7"]
["Scores",10,10,5,5,5,0,2,5,5,4,0,0,4,4,0,3,3,3,3,0,71,0.75531914893617025,"The highest possible grade for this datum is acceptable."]
["Answers","96-h","Mortality - defined as no movement with mechanical prodding","LC84","84% mortality","","1 replicate","APHA (1989)","11 +/- 3 mm body length fry","Brackish water","Static renewal 24-h","","","","Probit","","26 +/- 1 PSU","7.0 +/- 0.2 mg/L","8.5+/- 0.2","28+/-2oC","BDH MnCl2"]
["Category","MEW_nonplant","Paper and data unique identifier(eg. 1-1,10-150)","17-8"]
["Scores",10,10,5,5,5,0,2,5,5,4,0,0,4,0,0,3,3,3,3,0,67,0.71276595744680848,"The highest possible grade for this datum is acceptable."]
["Answers","96-h","Mortality - defined as no movement with mechanical prodding","NOEC","0% mortality","","1 replicate","APHA (1989)","11 +/- 3 mm body length fry","Brackish water","Static renewal 24-h","","","","No statistics used. Value was taken from text as the lowest concentration where there was 0% mortality","","26 +/- 1 PSU","7.0 +/- 0.2 mg/L","8.5+/- 0.2","28+/-2oC","BDH MnCl2"]
["Category","MEW_nonplant","Paper and data unique identifier(eg. 1-1,10-150)","18-1"]
["Scores",10,10,5,5,5,5,2,5,0,4,0,0,0,4,4,1,0,0,1,3,64,0.68085106382978722,"The highest possible grade for this datum is acceptable."]
["Answers","96-h","Mortality - failure to respond to prodding","LC95","95% mortality","","Just stated that replication occurred","APHA (1990)","65 +/- 4 mm total length","","Static renewal every 24-h","","","","probit method by Finney (1971)","641,400 - 1,313,400 µg/L 95% CL","15 PSU","","","22-24.5 oC","Analytical regent, MnSO4"]
["Category","MEW_nonplant","Paper and data unique identifier(eg. 1-1,10-150)","18-2"]
["Scores",10,10,5,5,5,5,2,5,0,4,0,0,0,4,4,1,0,0,1,3,64,0.68085106382978722,"The highest possible grade for this datum is acceptable."]
["Answers","96-h","Mortality - failure to respond to prodding","LC50","50% mortality","","Just stated that replication occurred","APHA (1990)","65 +/- 4 mm total length","","Static renewal every 24-h","","","","probit method by Finney (1971)","185,140 - 289,010 µg/L 95% CL","15 PSU","","","22-24.5 oC","Analytical regent, MnSO4"]
["Category","MEW_nonplant","Paper and data unique identifier(eg. 1-1,10-150)","18-3"]
["Scores",10,10,5,5,5,5,2,5,0,4,0,0,0,4,4,1,0,0,1,3,64,0.68085106382978722,"The highest possible grade for this datum is acceptable."]
["Answers","96-h","Mortality - failure to respond to prodding","LC5","5% mortality","","Just stated that replication occurred","APHA (1990)","65 +/- 4 mm total length","","Static renewal every 24-h","","","","probit method by Finney (1971)","36,600 - 92,850 µg/L 95% CL","15 PSU","","","22-24.5 oC","Analytical regent, MnSO4"]
["Category","MEW_nonplant","Paper and data unique identifier(eg. 1-1,10-150)","18-4"]
["Scores",10,10,5,5,5,5,2,5,0,4,0,0,0,4,4,1,0,0,1,3,64,0.68085106382978722,"The highest possible grade for this datum is acceptable."]
["Answers","672-h or 28-d","Growth - wet weight of fish weekly","NOEC","3.5% weight increase","","Just stated that replication occurred","APHA (1990)","65 +/- 4 mm total length","","Static renewal every 24-h","","","","ANOVA","<0.05 level of signficance","15 PSU","","","22-24.5 oC","Analytical regent, MnSO4"]
["Category","MEW_nonplant","Paper and data unique identifier(eg. 1-1,10-150)","18-5"]
["Scores",10,10,5,5,5,5,2,5,0,4,0,0,0,4,4,1,0,0,1,3,64,0.68085106382978722,"The highest possible grade for this datum is acceptable."]
["Answers","96-h","Mortality","LC95","95% mortality ","","Just stated that replication occurred","APHA (1990)","65 +/- 4 mm total length","","Static renewal every 24-h","","","","Probit analysis","18,471,000 - 32,722,000 µg/L 95% CL","15 PSU","","","22-24.5 oC","Analytical regent, MnSO4"]
["Category","MEW_nonplant","Paper and data unique identifier(eg. 1-1,10-150)","18-6"]
["Scores",10,10,5,5,5,5,2,5,0,4,0,0,0,4,4,1,0,0,1,3,64,0.68085106382978722,"The highest possible grade for this datum is acceptable."]
["Answers","96-h","Mortality - failure to protrude foot","LC50","50% mortality ","","Just stated that replication occurred","APHA (1990)","43+/-4mm shell length","","Static renewal every 24-h","","","","Probit analysis","7,273,000-9,722,000 µg/L 95% CL","15 PSU","","","22-24.5 oC","Analytical regent, MnSO4"]
["Category","MEW_nonplant","Paper and data unique identifier(eg. 1-1,10-150)","18-7"]
["Scores",10,10,5,5,5,5,2,5,0,4,0,0,0,4,4,1,0,0,1,3,64,0.68085106382978722,"The highest possible grade for this datum is acceptable."]
["Answers","96-h","Mortality - failure to protrude foot","LC5","5% mortality ","","Just stated that replication occurred","APHA (1990)","43+/-4mm shell length","","Static renewal every 24-h","","","","Probit analysis","2,074,000-3,989,000 µg/L 95% CL","15 PSU","","","22-24.5 oC","Analytical regent, MnSO4"]
["Category","MEW_nonplant","Paper and data unique identifier(eg. 1-1,10-150)","18-8"]
["Scores",10,10,5,5,5,5,2,5,0,4,0,0,0,4,4,1,0,0,1,3,64,0.68085106382978722,"The highest possible grade for this datum is acceptable."]
["Answers","96-h","Growth - wet weight","NOEC","1.24 % weight increase ","","Just stated that replication occurred","APHA (1990)","43+/-4mm shell length","","Static renewal every 24-h","","","","ANOVA","<0.001 level of significance","15 PSU","","","22-24.5 oC","Analytical regent, MnSO4"]
["Category","MEW_nonplant","Paper and data unique identifier(eg. 1-1,10-150)","19-1"]
["Scores",10,10,5,5,5,5,0,5,5,0,0,0,4,4,4,0,0,0,1,0,63,0.67021276595744683,"The highest possible grade for this datum is acceptable."]
["Answers","48-h","embryo larval development to pluteus stage","EC","50% normal development","","triplicate","","","filtered seawater","","nominal","","","non-linear regression using Sigma Plot","","","","","18-19 oC","MnCl2 used"]
["Category","MEW_nonplant","Paper and data unique identifier(eg. 1-1,10-150)","19-2"]
["Scores",10,10,5,5,5,5,0,5,5,0,0,0,4,4,4,0,0,0,1,0,63,0.67021276595744683,"The highest possible grade for this datum is acceptable."]
["Answers","48-h","embryo larval development to pluteus stage","NOCEC","17% abnormal development","","triplicate","","","filtered seawater","","nominal","","","ANOVA","<0.05 significance level","","","","18-19 oC","MnCl2 used"]
["Category","MEW_nonplant","Paper and data unique identifier(eg. 1-1,10-150)","20-1"]
["Scores",10,0,5,5,5,0,0,0,5,0,0,0,4,0,0,0,0,0,1,0,35,0.37234042553191488,"The highest possible grade for this datum is acceptable."]
["Answers","48-h shown in table 3","Details given in a companion paper","NOEC","97.3 % normal development","","Details not given","","","seawater","","","","","No statistics mentioned in the methods","","","","","26-28 oC",""]
["Category","MEW_nonplant","Paper and data unique identifier(eg. 1-1,10-150)","21-1"]
["Scores",10,5,0,0,5,5,0,5,5,0,0,0,4,0,0,0,0,3,1,3,46,0.48936170212765956,"The highest possible grade for this datum is acceptable."]
["Answers","48-h","Hatching success","","","","triplicate","","Dehydrated cysts","filtered seawater - nutrients, trace metals measured","","","","","","","","","7.2-8.3","30 +/-2 oC","Seawater analysed for trace metals (had 6.2 µg/L Mn seawater). Tested Mn (II) as MnCl2.4H2O , (IV) as MnO2, (VII) as KMnO4"]
["Category","MEW_nonplant","Paper and data unique identifier(eg. 1-1,10-150)","22-1"]
["Scores",10,10,0,0,5,5,0,5,5,0,0,0,0,0,0,0,0,0,0,0,40,0.42553191489361702,"The highest possible grade for this datum is acceptable."]
["Answers","20 days","Settlement on black discs - daily counts made","","","","triplicate","","19-day old larvae","seawater","","","","","","","","","","",""]
["Category","MEW_nonplant","Paper and data unique identifier(eg. 1-1,10-150)","22-2"]
["Scores",10,10,0,0,5,5,0,5,5,0,0,0,0,0,0,0,0,0,0,0,40,0.42553191489361702,"The highest possible grade for this datum is acceptable."]
["Answers","14 days","growth of spat","","","","triplicate","","51-day old spat (3.7 mm mean length)","seawater","","","","","","","","","","",""]
["Category","MEW_nonplant","Paper and data unique identifier(eg. 1-1,10-150)","23-1"]
["Scores",10,5,5,5,5,5,0,5,0,0,0,0,0,0,0,0,0,0,0,0,40,0.42553191489361702,"The highest possible grade for this datum is acceptable."]
["Answers","40 min","filtration rate","EC50","50 % reduction in filtration rate","","5-10 times","","60-80 mm","","","","","","reading from the graph","","","","","","MnCl2 used"]
["Category","MEW_nonplant","Paper and data unique identifier(eg. 1-1,10-150)","24-1"]
["Scores",10,5,0,0,5,5,0,5,5,4,0,0,4,0,0,0,0,0,0,0,43,0.45744680851063829,"The highest possible grade for this datum is acceptable."]
["Answers","4-h","Filtration rate","","","","5 replicates","","20-30 mm shell length","seawater","static renewal every 24 h","","","","","","","","","","MnSO4 used"]
["Category","MEW_nonplant","Paper and data unique identifier(eg. 1-1,10-150)","27-1"]
["Scores",10,5,0,5,5,5,0,5,5,4,0,0,4,4,4,1,1,1,1,3,63,0.67021276595744683,"The highest possible grade for this datum is acceptable."]
["Answers","7-d or 168-h","Embryo mortality","","27% mortality at 10 µg/L Mn compared to 5.9% mortality in the controls","","5 replicates","","4 lobe embryo stage","filtered (0.45 µm) seawater","Static renewal every other day","","","Note that concentration response was not monotonic","ANOVA to test for significant differences between treatments","<0.05 level of significant difference from the control. Standardard deviation of +/-8.8%","34 PSU","6.5-8.0 mg/L",7.8,"20 oC","AnalR grade MnCl2 and seawater analysed for contaminants"]
["Category","MEW_nonplant","Paper and data unique identifier(eg. 1-1,10-150)","27-2"]
["Scores",10,5,0,5,5,5,0,5,5,4,0,0,4,4,4,1,1,1,1,3,63,0.67021276595744683,"The highest possible grade for this datum is acceptable."]
["Answers","7-d or 168-h","Embryo mortality","","38 % hatching success at 10 µg/L","","5 replicates","","4 lobe embryo stage","filtered (0.45 µm) seawater","Static renewal every other day","","","Note that concentration response was  monotonic","ANOVA to test for significant differences between treatments","<0.05 level of significant difference. Standard deviation was 9.7%","34 PSU","6.5-8.0 mg/L",7.8,"20 oC","AnalR grade MnCl2 and seawater analysed for contaminants"]
["Category","MEW_nonplant","Paper and data unique identifier(eg. 1-1,10-150)","28-1"]
["Scores",0,0,0,5,5,5,0,5,5,0,0,0,4,0,0,0,0,0,1,0,30,0.31914893617021278,"The highest possible grade for this datum is acceptable."]
["Answers","Not directly stated but calculated it based on the method of 3 x 4 minute centrifuges","","","no effect at 137 µg Mn/L","","duplicate","","5 minutes after added seawater to chilled sperm","filtered seawater","","","","","","","","","","",""]
["Category","MEW_nonplant","Paper and data unique identifier(eg. 1-1,10-150)","16-5"]
["Scores",10,10,5,5,5,5,0,5,5,0,2,4,4,4,4,0,0,0,1,0,69,0.73,"The highest possible grade for this datum is acceptable."]
["Answers","6-h","Effective quantum yield  of photosytem II in an illuminated sample using PAM","NOEC","5% reduction in quantum yield","","quadruplicate","","1x10^4 cells/mL","filtered seawater (0.45µm)","","Filtered (0.45 µm) metal sample taken on Day 0","","","Dunnett's Test","<0.05","","","","24 oC",""]
["Category","MEW_nonplant","Paper and data unique identifier(eg. 1-1,10-150)","16-6"]
["Scores",10,10,5,5,5,5,0,5,5,4,2,4,4,4,4,0,0,0,3,0,75,0.7978723404255319,""]
["Answers","48-h","Effective quantum yield  of photosytem II in an illuminated sample using PAM","EC50","50% reduction in quantum yield","","Triplicate","","1x10^4 cells/mL","filtered seawater (0.45µm)","Static-renewal 24-h","Filtered (0.45 µm) metal sample taken on Day 0","Copper reference test","","ANOVA","<0.05","","","","24-28 oC",""]
["Category","MEW_nonplant","Paper and data unique identifier(eg. 1-1,10-150)","16-7"]
["Scores",10,10,5,0,5,5,0,0,5,4,2,4,4,4,4,0,0,0,3,0,65,0.69148936170212771,""]
["Answers","48-h","Density measured on haemocytometer","NOEC","","","Triplicate","","","filtered seawater (0.45µm)","Static-renewal 24-h","Filtered (0.45 µm) metal sample taken on Day 0","Copper reference test","No significant differences between treatments","ANOVA","<0.05","","","","24-28 oC",""]
["Category","MEW_nonplant","Paper and data unique identifier(eg. 1-1,10-150)","16-8"]
["Scores",10,10,5,5,5,5,0,0,5,4,2,4,4,4,4,0,0,0,3,0,70,0.74468085106382975,""]
["Answers","48-h","Density measured on haemocytometer","EC50","50% reduced density","","Triplicate","","","filtered seawater (0.45µm)","Static-renewal 24-h","Filtered (0.45 µm) metal sample taken on Day 0","Copper reference test","No significant differences between treatments","ANOVA","<0.05","","","","24-28 oC",""]
["Category","MEW_nonplant","Paper and data unique identifier(eg. 1-1,10-150)","16-9"]
["Scores",10,10,5,0,5,5,0,0,5,4,2,4,4,4,4,0,0,0,3,0,65,0.69148936170212771,""]
["Answers","48-h","Quantum Yield","NOEC","","","Triplicate","","","filtered seawater (0.45µm)","Static-renewal 24-h","Filtered (0.45 µm) metal sample taken on Day 0","Copper reference test","No significant differences between treatments","ANOVA","<0.05","","","","24-28 oC",""]
["Category","MEW_nonplant","Paper and data unique identifier(eg. 1-1,10-150)","29-1"]
["Scores",10,10,5,5,5,5,2,5,5,4,4,4,4,4,4,3,3,3,1,3,89,0.9455319148936,""]
["Answers","9-d","Tentacle retraction Severe tentacle retraction\nwas recorded when tentacles were of equal or lesser length than the oral disc diameter","NOEC","No effect on tentacle retraction at any concentration tested","","6 replicates","Tentacle retraction referenced in Howe et al. 2014c","Adult with 1 mm pedal disc","unfiltered natural seawater from Ballina, NSW, Australia","static renewal","Fresh and old test solutions","Copper ref test results presented","Stated no effect on tentacle retraction","ANOVA p<0.05","p<0.05","51-61 mS/cm","DO>7.6 mg/L","7.9-8.4","26 +/- 1oC","Analytical grade Mn (>99% purity) MnCl2.4H2O"]
["Category","MEW_nonplant","Paper and data unique identifier(eg. 1-1,10-150)","29-2"]
["Scores",10,10,5,5,5,5,2,5,5,4,4,4,4,4,4,3,3,3,1,3,89,0.9455319148936,""]
["Answers","9-d","Mortality was denoted by retraction, lack of response to gentle stimulus and tissue necrosis","NOEC","No effect on mortality at any concentration tested","","6 replicates","No mortality recorded in any treatments. Method referenced Howe et al. 2014b and c in methods page 86","Adult with 1 mm pedal disc","unfiltered natural seawater from Ballina, NSW, Australia","static renewal","Fresh and old test solutions","Copper ref test results presented","Stated no effect on tentacle retraction","ANOVA p<0.05","p<0.05","51-61 mS/cm","DO>7.6 mg/L","7.9-8.4","26 +/- 1oC","Analytical grade Mn (>99% purity) MnCl2.4H2O"]
["Category","MEW_nonplant","Paper and data unique identifier(eg. 1-1,10-150)","29-3"]
["Scores",10,10,5,5,5,5,2,5,5,4,4,4,4,4,4,3,3,3,1,3,89,0.9455319148936,""]
["Answers","12-d","Mortality was denoted by retraction, lack of response to gentle stimulus and tissue necrosis","NOEC","No effect on mortality at any concentration tested","","6 replicates","No mortality recorded in any treatments. Method referenced Howe et al. 2014b and c in methods page 86","Adult with 5 mm pedal disc","unfiltered natural seawater from Ballina, NSW, Australia","static renewal","Fresh and old test solutions","Copper ref test results presented","Stated no effect on tentacle retraction","ANOVA p<0.05","p<0.05","51-61 mS/cm","DO>7.6 mg/L","7.9-8.4","26 +/- 1oC","Analytical grade Mn (>99% purity) MnCl2.4H2O"]
["Category","MEW_nonplant","Paper and data unique identifier(eg. 1-1,10-150)","29-4"]
["Scores",10,10,5,5,5,5,2,5,5,4,4,4,4,4,4,3,3,3,1,3,89,0.9455319148936,""]
["Answers","96-h","Mortality was denoted by retraction, lack of response to gentle stimulus and tissue necrosis","NOEC","No effect on mortality at any concentration tested","","6 replicates","No mortality recorded in any treatments. Method referenced Howe et al. 2014b and c in methods page 86","Adult with 5 mm pedal disc","unfiltered natural seawater from Ballina, NSW, Australia","static renewal","Fresh and old test solutions","Copper ref test results presented","Stated no effect on tentacle retraction","ANOVA p<0.05","p<0.05","51-61 mS/cm","DO>7.6 mg/L","7.9-8.4","26 +/- 1oC","Analytical grade Mn (>99% purity) MnCl2.4H2O"]
["Category","MEW_nonplant","Paper and data unique identifier(eg. 1-1,10-150)","29-5"]
["Scores",10,10,5,5,5,5,2,5,5,4,4,4,4,4,4,3,3,3,1,3,89,0.9455319148936,""]
["Answers","96-h","Severe tentacle retraction was recorded when tentacles were of equal or lesser length than the oral disc diameter","NOEC","No effect on tentacle at any concentration tested","","6 replicates","Method referenced Howe et al. 2014 c in methods page 86","Adult with 5 mm pedal disc","unfiltered natural seawater from Ballina, NSW, Australia","static renewal","Fresh and old test solutions","Copper ref test results presented","Stated no effect on tentacle retraction","ANOVA p<0.05","p<0.05","51-61 mS/cm","DO>7.6 mg/L","7.9-8.4","26 +/- 1oC","Analytical grade Mn (>99% purity) MnCl2.4H2O"]
["Category","MEW_nonplant","Paper and data unique identifier(eg. 1-1,10-150)","29-6"]
["Scores",10,10,5,5,5,5,2,5,5,4,4,4,4,4,4,3,3,3,1,3,89,0.9455319148936,""]
["Answers","12-d","Severe tentacle retraction was recorded when tentacles were of equal or lesser length than the oral disc diameter","NOEC","No effect on tentacle retraction at any concentration tested","","6 replicates","Method referenced Howe et al. 2014 c in methods page 86","Adult with 5 mm pedal disc","unfiltered natural seawater from Ballina, NSW, Australia","static renewal","Fresh and old test solutions","Copper ref test results presented","Stated no effect on tentacle retraction","ANOVA p<0.05","p<0.05","51-61 mS/cm","DO>7.6 mg/L","7.9-8.4","26 +/- 1oC","Analytical grade Mn (>99% purity) MnCl2.4H2O"]
["Category","MEW_nonplant","Paper and data unique identifier(eg. 1-1,10-150)","29-7"]
["Scores",10,10,5,5,5,5,5,5,5,4,4,4,4,4,4,3,3,3,1,3,92,0.97872340400000002,""]
["Answers","12-d","asexual reproduction in ~5mm anemones was measured at 7 d and 12 d by counting the number of lacerates (juvenile offspring) in each test container by stereomicroscope","NOEC","Produced 9 lacerates in 12 days - no significant difference from the controls and all offspring appeared healthy with no sign of developmental\ninhibition or deformation","","6 replicates","Control reproduciton rates were similar to Howe et al 2017 (5 lacerates after 12 d) and Trenfield  et al., (2017 (8-12 after 14 d)","Adult with 5 mm pedal disc","unfiltered natural seawater from Ballina, NSW, Australia","static renewal","Fresh and old test solutions","Copper ref test results presented","Stated no effect on tentacle retraction","ANOVA p<0.05","p<0.05","51-61 mS/cm","DO>7.6 mg/L","7.9-8.4","26 +/- 1oC","Analytical grade Mn (>99% purity) MnCl2.4H2O"]
["Category","MEW_nonplant","Paper and data unique identifier(eg. 1-1,10-150)","29-8"]
["Scores",10,10,5,5,5,5,2,5,5,4,2,4,4,4,4,3,3,3,3,3,89,0.9455319148936,""]
["Answers","5.5-h","The number of eggs that had undergone cleavage (fertilised) and those that showed no sign of cleavage (unfertilised) were recorded as percentages of the total number of eggs exposed in each replicate.","EC10","10% effect","","5 replicates","Test adapted from Reichelt-Brushett and Harrison (1999) and Reichelt-Brushett and Hudspith (2016) but no explicit acceptable control fertilisation is stated. However, the control fertilisation was greater than 85% for both species","sperm and eggs collected from 2 spawning events from colonies brought into the lab","unfiltered natural seawater from Heron Island, Queensland,Australia","static","Measured in freshly made test solutions (filtered and unfiltered)","Copper ref test results presented","See Figure 1B and 1C. Test results could not be replicated in the two tests conducted which makes the endpoint unreliable","Probit regression","0-38,000 µg/L 95% confidence limits","53.5 (+/- 0.17) mS/cm (see supplemental section)","7.3 (+/- 0.14) mg/L DO (see supplemental section)","8.3 (+/-0.07) (see supplemental section)","23.9 (+/- 0.14) oC (see supplemental section)","Analytical grade Mn (>99% purity) MnCl2.4H2O"]
["Category","MEW_nonplant","Paper and data unique identifier(eg. 1-1,10-150)","29-9"]
["Scores",10,10,5,5,5,5,2,5,5,4,2,4,4,4,4,3,3,3,3,3,89,0.9455319148936,""]
["Answers","5.5-h","The number of eggs that had undergone cleavage (fertilised) and those that showed no sign of cleavage (unfertilised) were recorded as percentages of the total number of eggs exposed in each replicate.","EC50","50% effect","","5 replicates","Test adapted from Reichelt-Brushett and Harrison (1999) and Reichelt-Brushett and Hudspith (2016) but no explicit acceptable control fertilisation is stated. However, the control fertilisation was greater than 85% for both species","sperm and eggs collected from 2 spawning events from colonies brought into the lab","unfiltered natural seawater from Heron Island, Queensland,Australia","static","Measured in freshly made test solutions (filtered and unfiltered)","Copper ref test results presented","See Figure 1B and 1C. Test results could not be replicated in the two tests conducted which makes the endpoint unreliable","Probit regression","199,000-304,000 µg/L 95% confidence limits","53.5 (+/- 0.17) mS/cm (see supplemental section)","7.3 (+/- 0.14) mg/L DO (see supplemental section)","8.3 (+/-0.07) (see supplemental section)","23.9 (+/- 0.14) oC (see supplemental section)","Analytical grade Mn (>99% purity) MnCl2.4H2O"]
["Category","MEW_nonplant","Paper and data unique identifier(eg. 1-1,10-150)","29-10"]
["Scores",10,10,5,5,5,5,2,5,5,4,2,4,4,4,4,3,3,3,3,3,89,0.9455319148936,""]
["Answers","5.5-h","The number of eggs that had undergone cleavage (fertilised) and those that showed no sign of cleavage (unfertilised) were recorded as percentages of the total number of eggs exposed in each replicate.","NOEC","83.6 % fertilisation NOEC (page 87)","","5 replicates","Test adapted from Reichelt-Brushett and Harrison (1999) and Reichelt-Brushett and Hudspith (2016) but no explicit acceptable control fertilisation is stated. However, the control fertilisation was greater than 85% for both species","sperm and eggs collected from 2 spawning events from colonies brought into the lab","unfiltered natural seawater from Heron Island, Queensland,Australia","static","Measured in freshly made test solutions (filtered and unfiltered)","Copper ref test results presented","See Figure 1B and 1C. Test results could not be replicated in the two tests conducted which makes the endpoint unreliable","ANOVA","p<0.05","53.5 (+/- 0.17) mS/cm (see supplemental section)","7.3 (+/- 0.14) mg/L DO (see supplemental section)","8.3 (+/-0.07) (see supplemental section)","23.9 (+/- 0.14) oC (see supplemental section)","Analytical grade Mn (>99% purity) MnCl2.4H2O"]
["Category","MEW_nonplant","Paper and data unique identifier(eg. 1-1,10-150)","29-11"]
["Scores",10,10,5,5,5,5,2,5,5,4,2,4,4,4,4,3,3,3,3,3,89,0.9455319148936,""]
["Answers","5.5-h","The number of eggs that had undergone cleavage (fertilised) and those that showed no sign of cleavage (unfertilised) were recorded as percentages of the total number of eggs exposed in each replicate.","LOEC","75.9 % fertilisation NOEC (page 87)","","5 replicates","Test adapted from Reichelt-Brushett and Harrison (1999) and Reichelt-Brushett and Hudspith (2016) but no explicit acceptable control fertilisation is stated. However, the control fertilisation was greater than 85% for both species","sperm and eggs collected from 2 spawning events from colonies brought into the lab","unfiltered natural seawater from Heron Island, Queensland,Australia","static","Measured in freshly made test solutions (filtered and unfiltered)","Copper ref test results presented","See Figure 1B and 1C. Test results could not be replicated in the two tests conducted which makes the endpoint unreliable","ANOVA","p<0.05","53.5 (+/- 0.17) mS/cm (see supplemental section)","7.3 (+/- 0.14) mg/L DO (see supplemental section)","8.3 (+/-0.07) (see supplemental section)","23.9 (+/- 0.14) oC (see supplemental section)","Analytical grade Mn (>99% purity) MnCl2.4H2O"]
["Category","MEW_nonplant","Paper and data unique identifier(eg. 1-1,10-150)","29-12"]
["Scores",10,10,5,5,5,5,2,5,5,4,2,4,4,4,4,3,3,3,3,3,89,0.9455319148936,""]
["Answers","5.5-h","The number of eggs that had undergone cleavage (fertilised) and those that showed no sign of cleavage (unfertilised) were recorded as percentages of the total number of eggs exposed in each replicate.","EC10",0.1,"","5 replicates","Test adapted from Reichelt-Brushett and Harrison (1999) and Reichelt-Brushett and Hudspith (2016) but no explicit acceptable control fertilisation is stated. However, the control fertilisation was greater than 85% for both species","sperm and eggs collected from 2 spawning events from colonies brought into the lab","unfiltered natural seawater from Heron Island, Queensland,Australia","static","Measured in freshly made test solutions (filtered and unfiltered)","Copper ref test results presented","See Figure 1B and 1C. Test results could not be replicated in the two tests conducted which makes the endpoint unreliable","Probit","33,000-58,000 µg/L 95% confidence limits","53.5 (+/- 0.17) mS/cm (see supplemental section)","7.3 (+/- 0.14) mg/L DO (see supplemental section)","8.3 (+/-0.07) (see supplemental section)","23.9 (+/- 0.14) oC (see supplemental section)","Analytical grade Mn (>99% purity) MnCl2.4H2O"]
["Category","MEW_nonplant","Paper and data unique identifier(eg. 1-1,10-150)","29-13"]
["Scores",10,10,5,5,5,5,2,5,5,4,2,4,4,4,4,3,3,3,3,3,89,0.9455319148936,""]
["Answers","5.5-h","The number of eggs that had undergone cleavage (fertilised) and those that showed no sign of cleavage (unfertilised) were recorded as percentages of the total number of eggs exposed in each replicate.","EC50","50% effect","","5 replicates","Test adapted from Reichelt-Brushett and Harrison (1999) and Reichelt-Brushett and Hudspith (2016) but no explicit acceptable control fertilisation is stated. However, the control fertilisation was greater than 85% for both species","sperm and eggs collected from 2 spawning events from colonies brought into the lab","unfiltered natural seawater from Heron Island, Queensland,Australia","static","Measured in freshly made test solutions (filtered and unfiltered)","Copper ref test results presented","See Figure 1B and 1C. Test results could not be replicated in the two tests conducted which makes the endpoint unreliable","Probit","125,000-249,000 µg/L 95% confidence limits","53.5 (+/- 0.17) mS/cm (see supplemental section)","7.3 (+/- 0.14) mg/L DO (see supplemental section)","8.3 (+/-0.07) (see supplemental section)","23.9 (+/- 0.14) oC (see supplemental section)","Analytical grade Mn (>99% purity) MnCl2.4H2O"]
["Category","MEW_nonplant","Paper and data unique identifier(eg. 1-1,10-150)","29-14"]
["Scores",10,10,5,5,5,5,2,5,5,4,2,4,4,4,4,3,3,3,3,3,89,0.9455319148936,""]
["Answers","5.5-h","The number of eggs that had undergone cleavage (fertilised) and those that showed no sign of cleavage (unfertilised) were recorded as percentages of the total number of eggs exposed in each replicate.","NOEC","fertilisation success was 88.0%","","5 replicates","Test adapted from Reichelt-Brushett and Harrison (1999) and Reichelt-Brushett and Hudspith (2016) but no explicit acceptable control fertilisation is stated. However, the control fertilisation was greater than 85% for both species","sperm and eggs collected from 2 spawning events from colonies brought into the lab","unfiltered natural seawater from Heron Island, Queensland,Australia","static","Measured in freshly made test solutions (filtered and unfiltered)","Copper ref test results presented","See Figure 1B and 1C. Test results could not be replicated in the two tests conducted which makes the endpoint unreliable","ANOVA","p<0.05","53.5 (+/- 0.17) mS/cm (see supplemental section)","7.3 (+/- 0.14) mg/L DO (see supplemental section)","8.3 (+/-0.07) (see supplemental section)","23.9 (+/- 0.14) oC (see supplemental section)","Analytical grade Mn (>99% purity) MnCl2.4H2O"]
["Category","MEW_nonplant","Paper and data unique identifier(eg. 1-1,10-150)","29-15"]
["Scores",10,10,5,5,5,5,2,5,5,4,2,4,4,4,4,3,3,3,3,3,89,0.9455319148936,""]
["Answers","5.5-h","The number of eggs that had undergone cleavage (fertilised) and those that showed no sign of cleavage (unfertilised) were recorded as percentages of the total number of eggs exposed in each replicate.","LOEC","fertilisation success was 75.9%","","5 replicates","Test adapted from Reichelt-Brushett and Harrison (1999) and Reichelt-Brushett and Hudspith (2016) but no explicit acceptable control fertilisation is stated. However, the control fertilisation was greater than 85% for both species","sperm and eggs collected from 2 spawning events from colonies brought into the lab","unfiltered natural seawater from Heron Island, Queensland,Australia","static","Measured in freshly made test solutions (filtered and unfiltered)","Copper ref test results presented","See Figure 1B and 1C. Test results could not be replicated in the two tests conducted which makes the endpoint unreliable","ANOVA","p<0.05","53.5 (+/- 0.17) mS/cm (see supplemental section)","7.3 (+/- 0.14) mg/L DO (see supplemental section)","8.3 (+/-0.07) (see supplemental section)","23.9 (+/- 0.14) oC (see supplemental section)","Analytical grade Mn (>99% purity) MnCl2.4H2O"]
["Category","MEW_nonplant","Paper and data unique identifier(eg. 1-1,10-150)","29-16"]
["Scores",10,10,5,5,5,5,5,5,5,4,2,4,4,4,4,3,3,3,3,3,92,0.97872340400000002,""]
["Answers","24-h","Larvae were classified as alive if motile and/or with an elongate shape and visibly intact ectodermal layer, or successfully metamorphosed. Indications of mortality included discolouration, lack of motility, rounded shape (usually with disintegration of the ectodermal layer), and ultimately, cell rupture.","LC10","10% effect","","5 replicates","Rates of control mortality were acceptable in the\ncontext of natural larvae survival dynamics (Graham et al., 2008);","Planula larvae 5-d post fertilisation","unfiltered natural seawater from Heron Island, Queensland,Australia","static","Measured in freshly made test solutions (filtered and unfiltered)","Copper ref test results presented","Figure 2A-C","Probit analysis","0-9,000 µg/L 95% confidence limits","53.5 (+/- 0.17) mS/cm (see supplemental section)","7.3 (+/- 0.14) mg/L DO (see supplemental section)","8.3 (+/-0.07) (see supplemental section)","23.9 (+/- 0.14) oC (see supplemental section)","Analytical grade Mn (>99% purity) MnCl2.4H2O"]
["Category","MEW_nonplant","Paper and data unique identifier(eg. 1-1,10-150)","29-17"]
["Scores",10,10,5,5,5,5,5,5,5,4,2,4,4,4,4,3,3,3,3,3,92,0.97872340425531912,""]
["Answers","24-h","Larvae were classified as alive if motile and/or with an elongate shape and visibly intact ectodermal layer, or successfully metamorphosed. Indications of mortality included discolouration, lack of motility, rounded shape (usually with disintegration of the ectodermal layer), and ultimately, cell rupture.","LC50","50% effect","","5 replicates","Rates of control mortality were acceptable in the\ncontext of natural larvae survival dynamics (Graham et al., 2008);","Planula larvae 5-d post fertilisation","unfiltered natural seawater from Heron Island, Queensland,Australia","static","Measured in freshly made test solutions (filtered and unfiltered)","Copper ref test results presented","Figure 2A-C","Probit analysis","24,000-33,000 µg/L 95% confidence limits","53.5 (+/- 0.17) mS/cm (see supplemental section)","7.3 (+/- 0.14) mg/L DO (see supplemental section)","8.3 (+/-0.07) (see supplemental section)","23.9 (+/- 0.14) oC (see supplemental section)","Analytical grade Mn (>99% purity) MnCl2.4H2O"]
["Category","MEW_nonplant","Paper and data unique identifier(eg. 1-1,10-150)","29-18"]
["Scores",10,10,5,5,5,5,5,5,5,4,2,4,4,4,4,3,3,3,3,3,92,0.97872340425531912,""]
["Answers","24-h","Larvae were classified as alive if motile and/or with an elongate shape and visibly intact ectodermal layer, or successfully metamorphosed. Indications of mortality included discolouration, lack of motility, rounded shape (usually with disintegration of the ectodermal layer), and ultimately, cell rupture.","NOEC","From figure 2B, survival was approx 79% at NOEC","","5 replicates","Rates of control mortality were acceptable in the\ncontext of natural larvae survival dynamics (Graham et al., 2008);","Planula larvae 5-d post fertilisation","unfiltered natural seawater from Heron Island, Queensland,Australia","static","Measured in freshly made test solutions (filtered and unfiltered)","Copper ref test results presented","Figure 2A-C","ANOVA","p<0..05","53.5 (+/- 0.17) mS/cm (see supplemental section)","7.3 (+/- 0.14) mg/L DO (see supplemental section)","8.3 (+/-0.07) (see supplemental section)","23.9 (+/- 0.14) oC (see supplemental section)","Analytical grade Mn (>99% purity) MnCl2.4H2O"]
["Category","MEW_nonplant","Paper and data unique identifier(eg. 1-1,10-150)","29-19"]
["Scores",10,10,5,5,5,5,5,5,5,4,2,4,4,4,4,3,3,3,3,3,92,0.97872340425531912,""]
["Answers","24-h","Larvae were classified as alive if motile and/or with an elongate shape and visibly intact ectodermal layer, or successfully metamorphosed. Indications of mortality included discolouration, lack of motility, rounded shape (usually with disintegration of the ectodermal layer), and ultimately, cell rupture.","LOEC","Surival was 25%","","5 replicates","Rates of control mortality were acceptable in the context of natural larvae survival dynamics (Graham et al., 2008);","Planula larvae 5-d post fertilisation","unfiltered natural seawater from Heron Island, Queensland,Australia","static","Measured in freshly made test solutions (filtered and unfiltered)","Copper ref test results presented","Figure 2A-C","ANOVA","p<0..05","53.5 (+/- 0.17) mS/cm (see supplemental section)","7.3 (+/- 0.14) mg/L DO (see supplemental section)","8.3 (+/-0.07) (see supplemental section)","23.9 (+/- 0.14) oC (see supplemental section)","Analytical grade Mn (>99% purity) MnCl2.4H2O"]
["Category","MEW_nonplant","Paper and data unique identifier(eg. 1-1,10-150)","29-20"]
["Scores",10,10,5,5,5,5,5,5,5,4,2,4,4,4,4,3,3,3,3,3,92,0.97872340425531912,""]
["Answers","72-h","Larvae were classified as alive if motile and/or with an elongate shape and visibly intact ectodermal layer, or successfully metamorphosed. Indications of mortality included discolouration, lack of motility, rounded shape (usually with disintegration of the ectodermal layer), and ultimately, cell rupture.","LC50","50% effect","","5 replicates","Rates of control mortality (survival >=70%) were acceptable in the\ncontext of natural larvae survival dynamics (Graham et al., 2008);","Planula larvae 5-d post fertilisation","unfiltered natural seawater from Heron Island, Queensland,Australia","static","Measured in freshly made test solutions (filtered and unfiltered)","Copper ref test results presented","Figure 2A-C","Probit","16,000-19,000 µg/L","53.5 (+/- 0.17) mS/cm (see supplemental section)","7.3 (+/- 0.14) mg/L DO (see supplemental section)","8.3 (+/-0.07) (see supplemental section)","23.9 (+/- 0.14) oC (see supplemental section)","Analytical grade Mn (>99% purity) MnCl2.4H2O"]
["Category","MEW_nonplant","Paper and data unique identifier(eg. 1-1,10-150)","29-21"]
["Scores",10,10,5,5,5,5,5,5,5,4,2,4,4,4,4,3,3,3,3,3,92,0.97872340425531912,""]
["Answers","72-h","Larvae were classified as alive if motile and/or with an elongate shape and visibly intact ectodermal layer, or successfully metamorphosed. Indications of mortality included discolouration, lack of motility, rounded shape (usually with disintegration of the ectodermal layer), and ultimately, cell rupture.","LOEC","survival was 10% at the LOEC","","5 replicates","Rates of control mortality (survival >=70%) were acceptable in the\ncontext of natural larvae survival dynamics (Graham et al., 2008);","Planula larvae 5-d post fertilisation","unfiltered natural seawater from Heron Island, Queensland,Australia","static","Measured in freshly made test solutions (filtered and unfiltered)","Copper ref test results presented","Figure 2A-C","ANOVA","p<0.05","53.5 (+/- 0.17) mS/cm (see supplemental section)","7.3 (+/- 0.14) mg/L DO (see supplemental section)","8.3 (+/-0.07) (see supplemental section)","23.9 (+/- 0.14) oC (see supplemental section)","Analytical grade Mn (>99% purity) MnCl2.4H2O"]
["Category","MEW_nonplant","Paper and data unique identifier(eg. 1-1,10-150)","29-22"]
["Scores",10,10,5,5,5,5,2,5,5,4,0,0,4,4,0,1,1,1,1,3,71,{"$f":"71/94","v":0.75531914893617025}]
["Answers","48-h","Tissue sloughing was recorded in cases of tissue separation from the skeleton (i.e. binary present/absent response).","EC10","10% effect","","3 replicates","","10 cm lengths of adult coral post-spawners","unfiltered natural seawater from Heron Island, Queensland,Australia","Static renewal every 24h","Nominal ","","Photos are provided. By 48 h, small flakes of coral tissue lacking obvious structure had separated from the white underlying skeleton (sloughing) (Fig. 3). The sloughing process was rapid and began with lifting of the cenosarc leaving polyps within calices, increasing in severity with concentration until tissue was completely separated from entire fragment surfaces at ≥5 mg/L","Probit","Not calculable","53.5 (+/- 0.17) mS/cm (see supplemental section) wasn't measured for adult but should be similar","7.3 (+/- 0.14) mg/L DO (see supplemental section) - not measured for adult but should be similar to larval tests","8.3 (+/-0.07) (see supplemental section) - not measured in adults but should be similar to larval tests","23.9 (+/- 0.14) oC (see supplemental section). Not measured in adults but should be similar to larval tests","Analytical grade Mn (>99% purity) MnCl2.4H2O"]
["Category","MEW_nonplant","Paper and data unique identifier(eg. 1-1,10-150)","29-23"]
["Scores",10,10,5,5,5,5,2,5,5,4,0,0,4,4,0,1,1,1,1,3,71,{"$f":"71/94","v":0.75531914893617025},""]
["Answers","48-h","Tissue sloughing was recorded in cases of tissue separation from the skeleton (i.e. binary present/absent response).","EC50","50% effect","","3 replicates","Stauber et al. (2002); cited in ANZECC and ARMCANZ,(2016)","10 cm lengths of adult coral post-spawners","unfiltered natural seawater from Heron Island, Queensland,Australia","Static renewal every 24h","Nominal ","","Photos are provided. By 48 h, small flakes of coral tissue lacking obvious structure had separated from the white underlying skeleton (sloughing) (Fig. 3). The sloughing process was rapid and began with lifting of the cenosarc leaving polyps within calices, increasing in severity with concentration until tissue was completely separated from entire fragment surfaces at ≥5 mg/L","Probit","Not calculable","53.5 (+/- 0.17) mS/cm (see supplemental section) wasn't measured for adult but should be similar","7.3 (+/- 0.14) mg/L DO (see supplemental section) - not measured for adult but should be similar to larval tests","8.3 (+/-0.07) (see supplemental section) - not measured in adults but should be similar to larval tests","23.9 (+/- 0.14) oC (see supplemental section). Not measured in adults but should be similar to larval tests","Analytical grade Mn (>99% purity) MnCl2.4H2O"]
["Category","MEW_nonplant","Paper and data unique identifier(eg. 1-1,10-150)","29-24"]
["Scores",10,10,5,5,5,5,2,5,5,4,0,0,4,4,0,1,1,1,1,3,71,{"$f":"71/94","v":0.75531914893617025},""]
["Answers","48-h","Mortality was semi-quantitatively determined when tissue sloughing was visually observed over approximately ≥50% of the fragment surface area.","LC10","10% effect","","3 replicates","Stauber et al. (2002); cited in ANZECC and ARMCANZ,(2016).  S3). Controls showed only slight indications of stress associated with test conditions (e.g.mucus production) with no cases of tissue sloughing or mortality","10 cm lengths of adult coral post-spawners","unfiltered natural seawater from Heron Island, Queensland,Australia","Static renewal every 24h","Nominal ","","Photos are provided. By 48 h, small flakes of coral tissue lacking obvious structure had separated from the white underlying skeleton (sloughing) (Fig. 3). The sloughing process was rapid and began with lifting of the cenosarc leaving polyps within calices, increasing in severity with concentration until tissue was completely separated from entire fragment surfaces at ≥5 mg/L","Probit","Not calculable","53.5 (+/- 0.17) mS/cm (see supplemental section) wasn't measured for adult but should be similar","7.3 (+/- 0.14) mg/L DO (see supplemental section) - not measured for adult but should be similar to larval tests","8.3 (+/-0.07) (see supplemental section) - not measured in adults but should be similar to larval tests","23.9 (+/- 0.14) oC (see supplemental section). Not measured in adults but should be similar to larval tests","Analytical grade Mn (>99% purity) MnCl2.4H2O"]
["Category","MEW_nonplant","Paper and data unique identifier(eg. 1-1,10-150)","29-25"]
["Scores",10,10,5,5,5,5,2,5,5,4,0,0,4,4,0,1,1,1,1,3,71,{"$f":"71/94","v":0.75531914893617025},""]
["Answers","48-h","Mortality was semi-quantitatively determined when tissue sloughing was visually observed over approximately ≥50% of the fragment surface area.","LC50","50% effect","","3 replicates","Stauber et al. (2002); cited in ANZECC and ARMCANZ,(2016).  S3). Controls showed only slight indications of stress associated with test conditions (e.g.mucus production) with no cases of tissue sloughing or mortality","10 cm lengths of adult coral post-spawners","unfiltered natural seawater from Heron Island, Queensland,Australia","Static renewal every 24h","Nominal ","","Photos are provided. By 48 h, small flakes of coral tissue lacking obvious structure had separated from the white underlying skeleton (sloughing) (Fig. 3). The sloughing process was rapid and began with lifting of the cenosarc leaving polyps within calices, increasing in severity with concentration until tissue was completely separated from entire fragment surfaces at ≥5 mg/L","Probit","Not calculable","53.5 (+/- 0.17) mS/cm (see supplemental section) wasn't measured for adult but should be similar","7.3 (+/- 0.14) mg/L DO (see supplemental section) - not measured for adult but should be similar to larval tests","8.3 (+/-0.07) (see supplemental section) - not measured in adults but should be similar to larval tests","23.9 (+/- 0.14) oC (see supplemental section). Not measured in adults but should be similar to larval tests","Analytical grade Mn (>99% purity) MnCl2.4H2O"]
["Category","MEW_nonplant","Paper and data unique identifier(eg. 1-1,10-150)","30-1"]
["Scores",10,10,5,5,5,5,5,5,5,4,4,0,4,4,4,3,3,3,3,3,90,0.95744680851063835,""]
["Answers","48-h","Coral health index based on tissue sloughing - scoring system and example photos provided","EC50",0.5,"","3 replicates and the experiment was duplicated",">= 90% healthy coral in the control","Adult coral fragments(5-10 cm length)","filtered natural seawater","flow-through","Measured and time average concentration used in effect concentations calculations","No reference toxicant database available for this species","figures and data provided","drc R package for effect concentration and Toxcalc for LOEC and NOEC","630-1100 µg/L 95% CL","36 PSU, 54 mS/cm","98% DO",8.14,"27 oC","Multiple metals measured in all control and treatment samples"]
["Category","MEW_nonplant","Paper and data unique identifier(eg. 1-1,10-150)","30-2"]
["Scores",10,10,5,5,5,5,5,5,5,4,4,0,4,4,4,3,3,3,3,3,90,0.95744680851063835,""]
["Answers","48-h","Coral health index based on tissue sloughing - scoring system and example photos provided","EC50",0.5,"","3 replicates and the experiment was duplicated",">= 90% healthy coral in the control","Adult coral fragments(5-10 cm length)","filtered natural seawater","flow-through","Measured and time average concentration used in effect concentations calculations","No reference toxicant database available for this species","figures and data provided","drc R package for effect concentration and Toxcalc for LOEC and NOEC","630-1100 µg/L 95% CL","36 PSU, 54 mS/cm","98% DO",8.14,"27 oC","Multiple metals measured in all control and treatment samples"]
["Category","MEW_nonplant","Paper and data unique identifier(eg. 1-1,10-150)","31-1"]
["Scores",10,10,0,0,5,5,0,5,5,4,4,0,0,4,0,3,3,3,3,3,67,0.71276595744680848,""]
["Answers","24-d","Tentacle length was measured and compared statistically with the control","No effect concentration for tentacle retraction was stated.","","","8 replicates per treatment in a single experiment","The focus of the paper was bioaccumulation rather than a standard toxicity test","Adults with pedal disc diameter of 1-3 mm","unfiltered natural seawater","static-renewal","Measured Mn in filtered (0.45 µm) and unfiltered water samples from dose and renewal test solutions","No reference toxicant database available for this species","significant retraction of tentacles at all Mn concentrations relative to the control","PERMANOVA in Primer was used to test for significant differences and then pair-wise posthoc analysis for differences between concentrations.","LOEC based on significant differences in concentration from the control","52.7 mS/cm","8.39 mg/L",8.02,"23.6 oC","Analytical grade MnCl2.4H2O was used. Note that background seawater had high Cu (3.9 ug/L) and Zn (21 ug/L) that are both above the ANZG (2018) PC95 GVs (CuPC95 = 1.3 ug/L), ZnPC95 = 8.0 ug/L)"]
["Category","MEW_nonplant","Paper and data unique identifier(eg. 1-1,10-150)","31-1"]
["Scores",10,10,0,0,5,5,0,5,5,4,4,0,0,4,0,3,3,3,3,3,67,0.71276595744680848,""]
["Answers","24-d","Tentacle length was measured and compared statistically with the control","No effect concentration for tentacle retraction was stated.","","","8 replicates per treatment in a single experiment","The focus of the paper was bioaccumulation rather than a standard toxicity test","Adults with pedal disc diameter of 1-3 mm","unfiltered natural seawater","static-renewal","Measured Mn in filtered (0.45 µm) and unfiltered water samples from dose and renewal test solutions","No reference toxicant database available for this species","significant retraction of tentacles at all Mn concentrations relative to the control","PERMANOVA in Primer was used to test for significant differences and then pair-wise posthoc analysis for differences between concentrations.","LOEC based on significant differences in concentration from the control","52.7 mS/cm","8.39 mg/L",8.02,"23.6 oC","Analytical grade MnCl2.4H2O was used. Note that background seawater had high Cu (3.9 ug/L) and Zn (21 ug/L) that are both above the ANZG (2018) PC95 GVs (CuPC95 = 1.3 ug/L), ZnPC95 = 8.0 ug/L)"]
["Category","MEW_nonplant","Paper and data unique identifier(eg. 1-1,10-150)","31-2"]
["Scores",10,0,5,5,5,5,0,5,5,4,0,0,4,4,4,3,3,3,3,3,71,0.75531914893617025,"The highest possible grade for this datum is acceptable."]
["Answers","48-h","Lethality in a range finder","LC10","10% effect","","13 replicates per treatment of a single animal","Range finder test","Adults with pedal disc diameter of 1-3 mm","unfiltered natural seawater","static-renewal","Nominal concentrations used","No reference toxicant database available for this species","Stated - no graph presented","Probit","95% CL","52.7 mS/cm","8.39 mg/L",8.02,"23.6 oC","Analytical grade MnCl2.4H2O was used. Note that background seawater had high Cu (3.9 ug/L) and Zn (21 ug/L) that are both above the ANZG (2018) PC95 GVs (CuPC95 = 1.3 ug/L), ZnPC95 = 8.0 ug/L)"]
["Category","MEW_nonplant","Paper and data unique identifier(eg. 1-1,10-150)","31-3"]
["Scores",10,0,5,5,5,5,0,5,5,4,0,0,4,4,4,3,3,3,3,3,71,0.75531914893617025,"The highest possible grade for this datum is acceptable."]
["Answers","48-h","Lethality in a range finder","LC50","50% effect","","13 replicates per treatment of a single animal","Range finder test","Adults with pedal disc diameter of 1-3 mm","unfiltered natural seawater","static-renewal","Nominal concentrations used","No reference toxicant database available for this species","Stated - no graph presented","Probit","95% CL","52.7 mS/cm","8.39 mg/L",8.02,"23.6 oC","Analytical grade MnCl2.4H2O was used. Note that background seawater had high Cu (3.9 ug/L) and Zn (21 ug/L) that are both above the ANZG (2018) PC95 GVs (CuPC95 = 1.3 ug/L), ZnPC95 = 8.0 ug/L)"]
["Category","MEW_nonplant","Paper and data unique identifier(eg. 1-1,10-150)","31-4"]
["Scores",10,0,5,5,5,5,0,5,5,4,0,0,4,4,4,3,3,3,3,3,71,0.75531914893617025,"The highest possible grade for this datum is acceptable."]
["Answers","72-h","Lethality in a range finder","LC10","10% effect","","13 replicates per treatment of a single animal","Range finder test","Adults with pedal disc diameter of 1-3 mm","unfiltered natural seawater","static-renewal","Nominal concentrations used","No reference toxicant database available for this species","Stated - no graph presented","Probit","95% CL","52.7 mS/cm","8.39 mg/L",8.02,"23.6 oC","Analytical grade MnCl2.4H2O was used. Note that background seawater had high Cu (3.9 ug/L) and Zn (21 ug/L) that are both above the ANZG (2018) PC95 GVs (CuPC95 = 1.3 ug/L), ZnPC95 = 8.0 ug/L)"]
["Category","MEW_nonplant","Paper and data unique identifier(eg. 1-1,10-150)","31-5"]
["Scores",10,0,5,5,5,5,0,5,5,4,0,0,4,4,4,3,3,3,3,3,71,0.75531914893617025,"The highest possible grade for this datum is acceptable."]
["Answers","72-h","Lethality in a range finder","LC50","50% effect","","13 replicates per treatment of a single animal","Range finder test","Adults with pedal disc diameter of 1-3 mm","unfiltered natural seawater","static-renewal","Nominal concentrations used","No reference toxicant database available for this species","Stated - no graph presented","Probit","95% CL","52.7 mS/cm","8.39 mg/L",8.02,"23.6 oC","Analytical grade MnCl2.4H2O was used. Note that background seawater had high Cu (3.9 ug/L) and Zn (21 ug/L) that are both above the ANZG (2018) PC95 GVs (CuPC95 = 1.3 ug/L), ZnPC95 = 8.0 ug/L)"]
["Category","MEW_nonplant","Paper and data unique identifier(eg. 1-1,10-150)","31-6"]
["Scores",10,0,5,5,5,5,0,5,5,4,0,0,4,4,4,3,3,3,3,3,71,0.75531914893617025,"The highest possible grade for this datum is acceptable."]
["Answers","96-h","Lethality in a range finder","LC10","10% effect","","13 replicates per treatment of a single animal","Range finder test","Adults with pedal disc diameter of 1-3 mm","unfiltered natural seawater","static-renewal","Nominal concentrations used","No reference toxicant database available for this species","Stated - no graph presented","Probit","95% CL","52.7 mS/cm","8.39 mg/L",8.02,"23.6 oC","Analytical grade MnCl2.4H2O was used. Note that background seawater had high Cu (3.9 ug/L) and Zn (21 ug/L) that are both above the ANZG (2018) PC95 GVs (CuPC95 = 1.3 ug/L), ZnPC95 = 8.0 ug/L)"]
["Category","MEW_nonplant","Paper and data unique identifier(eg. 1-1,10-150)","31-7"]
["Scores",10,0,5,5,5,5,0,5,5,4,0,0,4,4,4,3,3,3,3,3,71,0.75531914893617025,"The highest possible grade for this datum is acceptable."]
["Answers","96-h","Lethality in a range finder","LC50","50% effect","","13 replicates per treatment of a single animal","Range finder test","Adults with pedal disc diameter of 1-3 mm","unfiltered natural seawater","static-renewal","Nominal concentrations used","No reference toxicant database available for this species","Stated - no graph presented","Probit","95% CL","52.7 mS/cm","8.39 mg/L",8.02,"23.6 oC","Analytical grade MnCl2.4H2O was used. Note that background seawater had high Cu (3.9 ug/L) and Zn (21 ug/L) that are both above the ANZG (2018) PC95 GVs (CuPC95 = 1.3 ug/L), ZnPC95 = 8.0 ug/L)"]
["Category","MEW_nonplant","Paper and data unique identifier(eg. 1-1,10-150)","31-8"]
["Scores",10,0,5,5,5,5,0,5,5,4,0,0,4,4,4,3,3,3,3,3,71,0.75531914893617025,"The highest possible grade for this datum is acceptable."]
["Answers","5-d","Lethality in a range finder","LC10","10% effect","","13 replicates per treatment of a single animal","Range finder test","Adults with pedal disc diameter of 1-3 mm","unfiltered natural seawater","static-renewal","Nominal concentrations used","No reference toxicant database available for this species","Stated - no graph presented","Probit","95% CL","52.7 mS/cm","8.39 mg/L",8.02,"23.6 oC","Analytical grade MnCl2.4H2O was used. Note that background seawater had high Cu (3.9 ug/L) and Zn (21 ug/L) that are both above the ANZG (2018) PC95 GVs (CuPC95 = 1.3 ug/L), ZnPC95 = 8.0 ug/L)"]
["Category","MEW_nonplant","Paper and data unique identifier(eg. 1-1,10-150)","31-9"]
["Scores",10,0,5,5,5,5,0,5,5,4,0,0,4,4,4,3,3,3,3,3,71,0.75531914893617025,"The highest possible grade for this datum is acceptable."]
["Answers","5-d","Lethality in a range finder","LC50","50% effect","","13 replicates per treatment of a single animal","Range finder test","Adults with pedal disc diameter of 1-3 mm","unfiltered natural seawater","static-renewal","Nominal concentrations used","No reference toxicant database available for this species","Stated - no graph presented","Probit","95% CL","52.7 mS/cm","8.39 mg/L",8.02,"23.6 oC","Analytical grade MnCl2.4H2O was used. Note that background seawater had high Cu (3.9 ug/L) and Zn (21 ug/L) that are both above the ANZG (2018) PC95 GVs (CuPC95 = 1.3 ug/L), ZnPC95 = 8.0 ug/L)"]
["Category","MEW_nonplant","Paper and data unique identifier(eg. 1-1,10-150)","31-10"]
["Scores",10,0,5,5,5,5,0,5,5,4,0,0,4,4,4,3,3,3,3,3,71,0.75531914893617025,"The highest possible grade for this datum is acceptable."]
["Answers","14-d stated in method and 10-d stated in Table 3","Lethality in a range finder","LC10","10% effect","","13 replicates per treatment of a single animal","Range finder test","Adults with pedal disc diameter of 1-3 mm","unfiltered natural seawater","static-renewal","Nominal concentrations used","No reference toxicant database available for this species","Stated - no graph presented","Probit","95% CL","52.7 mS/cm","8.39 mg/L",8.02,"23.6 oC","Analytical grade MnCl2.4H2O was used. Note that background seawater had high Cu (3.9 ug/L) and Zn (21 ug/L) that are both above the ANZG (2018) PC95 GVs (CuPC95 = 1.3 ug/L), ZnPC95 = 8.0 ug/L)"]
["Category","MEW_nonplant","Paper and data unique identifier(eg. 1-1,10-150)","31-11"]
["Scores",10,0,5,5,5,5,0,5,5,4,0,0,4,4,4,3,3,3,3,3,71,0.75531914893617025,"The highest possible grade for this datum is acceptable."]
["Answers","14-d stated in method and 10-d stated in Table 3","Lethality in a range finder","LC50","50% effect","","13 replicates per treatment of a single animal","Range finder test","Adults with pedal disc diameter of 1-3 mm","unfiltered natural seawater","static-renewal","Nominal concentrations used","No reference toxicant database available for this species","Stated - no graph presented","Probit","95% CL","52.7 mS/cm","8.39 mg/L",8.02,"23.6 oC","Analytical grade MnCl2.4H2O was used. Note that background seawater had high Cu (3.9 ug/L) and Zn (21 ug/L) that are both above the ANZG (2018) PC95 GVs (CuPC95 = 1.3 ug/L), ZnPC95 = 8.0 ug/L)"]
["Category","MEW_nonplant","Paper and data unique identifier(eg. 1-1,10-150)","32-1"]
["Scores",10,10,5,5,5,5,5,5,5,4,4,4,0,4,4,3,3,3,3,3,90,0.95699999999999996,""]
["Answers","48 h","D-veliger development","EC","50% effect","","4 replicates","Control D-veliger development >=85%","embryo 1.5-2 h","0.2 um filtered natural seawater","static","Measured at the beginning and end","Cu reference test for this species","Available for Cu but no other metals","R drc package","84% confidence interval","30 psu","80-95 % saturation",7.85,"21 oC","Background seawater characterised and analytical grade chemicals used"]
["Category","MEW_nonplant","Paper and data unique identifier(eg. 1-1,10-150)","32-2"]
["Scores",10,10,5,5,5,5,5,5,5,4,4,0,0,4,4,3,3,3,3,3,86,0.91500000000000004,""]
["Answers","48 h","D-veliger development","EC","50% effect","","4 replicates","Control D-veliger development >=85%","embryo 1.5-2 h","0.2 um filtered natural seawater","static","Measured at the beginning and end","Cu reference for the oyster but not this species","Available for Cu but no other metals","R drc package","84% confidence interval","30 psu","80-95 % saturation",7.85,"21 oC","Background seawater characterised and analytical grade chemicals used"]
["Category","MEW_nonplant","Paper and data unique identifier(eg. 1-1,10-150)","32-3"]
["Scores",10,10,5,5,5,5,5,5,5,4,4,0,0,4,4,3,3,3,3,3,86,0.91500000000000004,""]
["Answers","48 h","D-veliger development","EC","50% effect","","4 replicates","Control D-veliger development >=85%","embryo 1.5-2 h","0.2 um filtered natural seawater","static","Measured at the beginning and end","Cu reference for the oyster but not this species","Available for Cu but no other metals","R drc package","84% confidence interval","30 psu","80-95 % saturation",7.85,"21 oC","Background seawater characterised and analytical grade chemicals used"]
["Category","MEW_nonplant","Paper and data unique identifier(eg. 1-1,10-150)","32-4"]
["Scores",10,10,5,5,5,5,5,5,5,4,4,0,0,4,4,3,3,3,3,3,86,0.91500000000000004,""]
["Answers","48 h","D-veliger development","EC","50% effect","","4 replicates","Control D-veliger development >=85%","embryo 1.5-2 h","0.2 um filtered natural seawater","static","Measured at the beginning and end","Cu reference for the oyster but not this species","Available for Cu but no other metals","R drc package","84% confidence interval","30 psu","80-95 % saturation",7.85,"21 oC","Background seawater characterised and analytical grade chemicals used"]
["Category","MEW_nonplant","Paper and data unique identifier(eg. 1-1,10-150)","32-5"]
["Scores",10,10,5,5,5,5,5,5,5,4,4,0,0,4,4,3,3,3,3,3,86,0.91500000000000004,""]
["Answers","48 h","D-veliger development","EC","50% effect","","4 replicates","Control D-veliger development >=85%","embryo 1.5-2 h","0.2 um filtered natural seawater","static","Measured at the beginning and end","Cu reference for the oyster but not this species","Available for Cu but no other metals","R drc package","84% confidence interval","30 psu","80-95 % saturation",7.85,"21 oC","Background seawater characterised and analytical grade chemicals used"]
["Category","MEW_nonplant","Paper and data unique identifier(eg. 1-1,10-150)","32-6"]
["Scores",10,10,5,5,5,5,5,5,5,4,4,0,0,4,4,3,3,3,3,3,86,0.91500000000000004,""]
["Answers","48 h","D-veliger development","EC","50% effect","","4 replicates","Control D-veliger development >=85%","embryo 1.5-2 h","0.2 um filtered natural seawater","static","Measured at the beginning and end","Cu reference for the oyster but not this species","Available for Cu but no other metals","R drc package","84% confidence interval","30 psu","80-95 % saturation",7.85,"21 oC","Background seawater characterised and analytical grade chemicals used"]
["Category","MEW_nonplant","Paper and data unique identifier(eg. 1-1,10-150)","32-7"]
["Scores",10,10,5,5,5,5,5,5,5,4,4,0,0,4,4,3,3,3,3,3,86,0.91500000000000004,""]
["Answers","48 h","D-veliger development","EC","50% effect","","4 replicates","Control D-veliger development >=85%","embryo 1.5-2 h","0.2 um filtered natural seawater","static","Measured at the beginning and end","Cu reference for the oyster but not this species","Available for Cu but no other metals","R drc package","84% confidence interval","30 psu","80-95 % saturation",7.85,"21 oC","Background seawater characterised and analytical grade chemicals used"]
["Category","MEW_nonplant","Paper and data unique identifier(eg. 1-1,10-150)","32-8"]
["Scores",10,10,5,5,5,5,5,5,5,4,4,0,0,4,4,3,3,3,3,3,86,0.91500000000000004,""]
["Answers","48 h","D-veliger development","EC","50% effect","","4 replicates","Control D-veliger development >=85%","embryo 1.5-2 h","0.2 um filtered natural seawater","static","Measured at the beginning and end","Cu reference for the oyster but not this species","Available for Cu but no other metals","R drc package","84% confidence interval","30 psu","80-95 % saturation",7.85,"21 oC","Background seawater characterised and analytical grade chemicals used"]
["Category","MEW_nonplant","Paper and data unique identifier(eg. 1-1,10-150)","32-9"]
["Scores",10,10,5,5,5,5,5,5,5,4,4,0,0,4,4,3,3,3,3,3,86,0.91500000000000004,""]
["Answers","48 h","D-veliger development","EC","50% effect","","4 replicates","Control D-veliger development >=85%","embryo 1.5-2 h","0.2 um filtered natural seawater","static","Measured at the beginning and end","Cu reference for the oyster but not this species","Available for Cu but no other metals","R drc package","84% confidence interval","30 psu","80-95 % saturation",7.85,"21 oC","Background seawater characterised and analytical grade chemicals used"]
["Category","MEW_nonplant","Paper and data unique identifier(eg. 1-1,10-150)","32-10"]
["Scores",10,10,5,5,5,5,5,5,5,4,4,0,0,4,4,3,3,3,3,3,86,0.91500000000000004,""]
["Answers","48 h","D-veliger development","EC","50% effect","","4 replicates","Control D-veliger development >=85%","embryo 1.5-2 h","0.2 um filtered natural seawater","static","Measured at the beginning and end","Cu reference for the oyster but not this species","Available for Cu but no other metals","R drc package","84% confidence interval","30 psu","80-95 % saturation",7.85,"21 oC","Background seawater characterised and analytical grade chemicals used"]
["Category","MEW_nonplant","Paper and data unique identifier(eg. 1-1,10-150)","32-11"]
["Scores",10,10,5,5,5,5,5,5,5,4,4,4,0,4,0,3,3,3,3,3,86,0.91489361702127658,""]
["Answers","48 h","D-veliger development","NEC","No effect","","4 replicates","Control D-veliger development >=85%","embryo 1.5-2 h","0.2 um filtered natural seawater","static","Measured at the beginning and end","Cu reference for the oyster M.gigas","Available for Cu but no other metals","R drc package","No estimate of variability for the NEC","30 psu","80-95 % saturation",7.85,"21 oC","Background seawater characterised and analytical grade chemicals used"]
["Category","MEW_nonplant","Paper and data unique identifier(eg. 1-1,10-150)","32-12"]
["Scores",10,10,5,5,5,5,5,5,5,4,4,0,0,4,0,3,3,3,3,3,82,0.87234042553191493,""]
["Answers","48 h","D-veliger development","NEC","No effect","","4 replicates","Control D-veliger development >=85%","embryo 1.5-2 h","0.2 um filtered natural seawater","static","Measured at the beginning and end","Cu reference for the oyster M.gigas but no other species","Available for Cu but no other metals","R drc package","No estimate of variability for the NEC","30 psu","80-95 % saturation",7.85,"21 oC","Background seawater characterised and analytical grade chemicals used"]
["Category","MEW_nonplant","Paper and data unique identifier(eg. 1-1,10-150)","32-13"]
["Scores",10,10,5,5,5,5,5,5,5,4,4,0,0,4,0,3,3,3,3,3,82,0.87234042553191493,""]
["Answers","48 h","D-veliger development","NEC","No effect","","4 replicates","Control D-veliger development >=85%","embryo 1.5-2 h","0.2 um filtered natural seawater","static","Measured at the beginning and end","Cu reference for the oyster M.gigas but no other species","Available for Cu but no other metals","R drc package","No estimate of variability for the NEC","30 psu","80-95 % saturation",7.85,"21 oC","Background seawater characterised and analytical grade chemicals used"]
["Category","MEW_nonplant","Paper and data unique identifier(eg. 1-1,10-150)","32-14"]
["Scores",10,10,5,5,5,5,5,5,5,4,4,0,0,4,0,3,3,3,3,3,82,0.87234042553191493,""]
["Answers","48 h","D-veliger development","NEC","No effect","","4 replicates","Control D-veliger development >=85%","embryo 1.5-2 h","0.2 um filtered natural seawater","static","Measured at the beginning and end","Cu reference for the oyster M.gigas but no other species","Available for Cu but no other metals","R drc package","No estimate of variability for the NEC","30 psu","80-95 % saturation",7.85,"21 oC","Background seawater characterised and analytical grade chemicals used"]
["Category","MEW_nonplant","Paper and data unique identifier(eg. 1-1,10-150)","32-15"]
["Scores",10,10,5,5,5,5,5,5,5,4,4,0,0,4,0,3,3,3,3,3,82,0.87234042553191493,""]
["Answers","48 h","D-veliger development","NEC","No effect","","4 replicates","Control D-veliger development >=85%","embryo 1.5-2 h","0.2 um filtered natural seawater","static","Measured at the beginning and end","Cu reference for the oyster M.gigas but no other species","Available for Cu but no other metals","R drc package","No estimate of variability for the NEC","30 psu","80-95 % saturation",7.85,"21 oC","Background seawater characterised and analytical grade chemicals used"]
["Category","MEW_nonplant","Paper and data unique identifier(eg. 1-1,10-150)","32-16"]
["Scores",10,10,5,5,5,5,5,5,5,4,4,0,0,4,0,3,3,3,3,3,82,0.87234042553191493,""]
["Answers","48 h","D-veliger development","NEC","No effect","","4 replicates","Control D-veliger development >=85%","embryo 1.5-2 h","0.2 um filtered natural seawater","static","Measured at the beginning and end","Cu reference for the oyster M.gigas but no other species","Available for Cu but no other metals","R drc package","No estimate of variability for the NEC","30 psu","80-95 % saturation",7.85,"21 oC","Background seawater characterised and analytical grade chemicals used"]
["Category","MEW_nonplant","Paper and data unique identifier(eg. 1-1,10-150)","32-17"]
["Scores",10,10,5,5,5,5,5,5,5,4,4,0,0,4,0,3,3,3,3,3,82,0.87234042553191493,""]
["Answers","48 h","D-veliger development","NEC","No effect","","4 replicates","Control D-veliger development >=85%","embryo 1.5-2 h","0.2 um filtered natural seawater","static","Measured at the beginning and end","Cu reference for the oyster M.gigas but no other species","Available for Cu but no other metals","R drc package","No estimate of variability for the NEC","30 psu","80-95 % saturation",7.85,"21 oC","Background seawater characterised and analytical grade chemicals used"]
["Category","MEW_nonplant","Paper and data unique identifier(eg. 1-1,10-150)","32-18"]
["Scores",10,10,5,5,5,5,5,5,5,4,4,0,0,4,0,3,3,3,3,3,82,0.87234042553191493,""]
["Answers","48 h","D-veliger development","NEC","No effect","","4 replicates","Control D-veliger development >=85%","embryo 1.5-2 h","0.2 um filtered natural seawater","static","Measured at the beginning and end","Cu reference for the oyster M.gigas but no other species","Available for Cu but no other metals","R drc package","No estimate of variability for the NEC","30 psu","80-95 % saturation",7.85,"21 oC","Background seawater characterised and analytical grade chemicals used"]
["Category","MEW_nonplant","Paper and data unique identifier(eg. 1-1,10-150)","32-19"]
["Scores",10,10,5,5,5,5,5,5,5,4,4,0,0,4,0,3,3,3,3,3,82,0.87234042553191493,""]
["Answers","48 h","D-veliger development","NEC","No effect","","4 replicates","Control D-veliger development >=85%","embryo 1.5-2 h","0.2 um filtered natural seawater","static","Measured at the beginning and end","Cu reference for the oyster M.gigas but no other species","Available for Cu but no other metals","R drc package","No estimate of variability for the NEC","30 psu","80-95 % saturation",7.85,"21 oC","Background seawater characterised and analytical grade chemicals used"]
["Category","MEW_nonplant","Paper and data unique identifier(eg. 1-1,10-150)","32-20"]
["Scores",10,10,5,5,5,5,5,5,5,4,4,0,0,4,0,3,3,3,3,3,82,0.87234042553191493,""]
["Answers","48 h","D-veliger development","NEC","No effect","","4 replicates","Control D-veliger development >=85%","embryo 1.5-2 h","0.2 um filtered natural seawater","static","Measured at the beginning and end","Cu reference for the oyster M.gigas but no other species","Available for Cu but no other metals","R drc package","No estimate of variability for the NEC","30 psu","80-95 % saturation",7.85,"21 oC","Background seawater characterised and analytical grade chemicals used"]
["Category","MEW_nonplant","Paper and data unique identifier(eg. 1-1,10-150)","33-1"]
["Scores",10,5,5,5,5,0,0,5,5,4,4,0,0,0,0,1,1,1,1,3,55,0.58510638297872342,""]
["Answers","96 h","lethality","LC","50% effect","","Not stated","No details given","juvenile, initial weight 0.44 g","seawater","static renewal - fresh Mn solution every day","Measured using the potassium periodate spec method","","","No method stated","","19-20 ppt","6.8-7.9 mg/L","7.6-7.8","25-27 oC","analytical grade chemicals used"]
["Category","MEW_nonplant","Paper and data unique identifier(eg. 1-1,10-150)","34-1"]
["Scores",10,10,0,5,5,5,2,5,5,4,4,0,0,4,4,3,3,3,3,3,78,0.82978723404255317,""]
["Answers","12 d with 6 d recovery","Tentacle retraction","There was only one concentration of Mn alone to compare with the control","No statistically significant difference between the Mn treatment and the control","","4 replicates","No details of acceptability given but several references cited as establishing tentacle retraction in anemones as a suitable sub-lethal endpoint","adult with pedal disc diameter of 3-5 mm","unfiltered seawater from Ballina, NSW","static renewal - 50% renewal every 3 days","Measured multiple times over the exposure period","","Only one concentration of Mn was used","Permanova and post-hoc pairwise comparisons","<0.05 probability","54.3-55.9 mS/cm","8.8-9.5 mg/L","8.1-8.28","22.58-22.86 oC","analytical grade chemicals used"]
["Category","MEW_nonplant","Paper and data unique identifier(eg. 1-1,10-150)","35-1"]
["Scores",10,10,5,5,5,5,5,5,5,4,4,0,4,4,4,3,3,3,3,3,90,0.95744680851063835,""]
["Answers","2 d","Tissue sloughing","EC50","50% effect","","3 replicates",">=90% coral health and survival","adults 7-9 cm fragments","filtered seawater","static renewal - 50% renewal daily","Measured multiple times over the exposure period","No historical database for this species","well defined concentration-response","R statistical package drc for EC50","<0.05 probability","53-54 mS/cm","100% saturation",8.1,"27oC","analytical grade chemicals used and seawater diluent anlaysed for trace metal contamination"]
["Category","MEW_nonplant","Paper and data unique identifier(eg. 1-1,10-150)","35-2"]
["Scores",10,10,5,5,5,5,5,5,5,4,4,0,4,4,4,3,3,3,3,3,90,0.95744680851063835,""]
["Answers","14 d","Tissue sloughing","NOEC","50% effect","","duplicates",">=90% coral health and survival","adults 7-9 cm fragments","filtered seawater","flow through","Measured multiple times over the exposure period","No historical database for this species","concentration-response was shown not to exist in the conentration range used","No statistics was required","<0.05 probability","53 mS/cm","100% saturation",8.1,"27oC","analytical grade chemicals used and seawater diluent anlaysed for trace metal contamination"]

{"sheet":"MEW plant","index":7,"n_rows":81,"n_cols":53,"rows_kept":81,"cut":false,"hidden":false,"merged":[[3,4,7,4],[9,2,9,4],[11,2,13,2],[11,7,13,7],[14,2,16,2],[14,7,16,7],[17,2,19,2],[17,7,19,7],[20,2,21,2],[20,7,21,7],[22,2,24,2],[22,7,24,7],[25,2,27,2],[25,7,27,7],[28,2,30,2],[28,7,30,7],[31,2,33,2],[31,7,33,7],[34,2,36,2],[34,7,36,7],[37,2,39,2],[37,7,39,7],[40,2,42,2],[40,7,42,7],[43,2,45,2],[43,7,45,7],[46,2,48,2],[46,7,48,7],[49,2,51,2],[49,7,51,7],[56,1,58,1],[56,2,58,2],[56,7,58,7],[65,2,68,2],[65,7,68,7],[52,2,54,2],[52,7,54,7],[59,7,61,7],[62,2,64,2],[62,7,64,7]]}
[null,1,"Fill in the blank cells below, based on information provided in the paper being assessed. You can either pick an option from the dropdown list or add the appropriate detail using the 'Add to list' button. ",null,null,{"$f":"IF(BA3=\"\",0,1)","v":1},null,null,null,null,null,null,null,null,"* All the text in RED are used for drop down list ,make changes with caution."]
[null,null,"Category",{"$f":"IF(AF3=\"\",0,1)","v":1},"MEW_plant",{"$f":"IF(E3=\"\",0,1)","v":1},"Citation No.",{"$f":"IF(ISERROR(FIND(\"-\",E3)),E3,LEFT(E3,FIND(\"-\",E3)-1))","v":"26"},null,"Taxonomic group",null,null,null,null,"Species",null,null,"Lifestage",null,null,"Exposure duration",null,null,"Measure of toxicity",null,null,"Toxicity endpoint",null,null,"Taxonomic group",null,null,"Phylum",null,null,"Class",null,null,"Media",null,null,"Temperature ",null,null,"Acute Or Chronic",null,null,"PH",null,null,"Salinity/Comdictivity"]
[null,null,"Paper and data unique identifier(eg. 1-1,10-150)",{"$f":"IF(AI3=\"\",0,1)","v":1},"26-1",{"$f":"IF(E4=\"\",0,1)","v":1},"Species (Scientific name)",null,null,"Phylum",null,null,null,null,"Aedes albopictus",10,{"$f":"IF(P3=0,\"\",INDEX(O3:O102,P3))","v":"Nitzschia closterium"},"1 month",7,{"$f":"IF(S3=0,\"\",INDEX(R3:R102,S3))","v":"ND"},"11 hour",9,{"$f":"IF(V3=0,\"\",INDEX(U3:U102,V3))","v":"N.A."},"EC10",2,{"$f":"IF(Y3=0,\"\",INDEX(X3:X102,Y3))","v":"EC50"},"Algal cell volume",5,{"$f":"IF(AB3=0,\"\",INDEX(AA3:AA102,AB3))","v":"Growth rate"},"Diatom",4,{"$f":"IF(AE3=0,\"\",INDEX(AD3:AD102,AE3))","v":"Microalga"},"Chlorophyta",5,{"$f":"IF(AH3=0,\"\",INDEX(AG3:AG102,AH3))","v":"Ochrophyta"},"Bacillariophyceae",1,{"$f":"IF(AK3=0,\"\",INDEX(AJ3:AJ102,AK3))","v":"Bacillariophyceae"},"Artificial seawater with SAAM nutrients including EDTA",3,{"$f":"IF(AN3=0,\"\",INDEX(AM3:AM102,AN3))","v":"Filtered seawater"},"15.5 +/- 0.5 oC",10,{"$f":"IF(AQ3=0,\"\",INDEX(AP3:AP102,AQ3))","v":"ND"},"Acute",3,{"$f":"IF(AT3=0,\"\",INDEX(AS3:AS102,AT3))","v":"N.A."},8,9,{"$f":"IF(AW3=0,\"\",INDEX(AV3:AV102,AW3))","v":"ND"},"150 uS/cm",9,{"$f":"IF(AZ3=0,\"\",INDEX(AY3:AY102,AZ3))","v":"ND"}]
[null,null,"Citation",{"$f":"IF(AL3=\"\",0,1)","v":1},"Florence, T.M., Stauber, J.L., Ahsanullah, M., 1994. Toxicity of nickel ores to marine organisms. Science of the Total Environment, The 148, 139-155.",{"$f":"IF(H8=\"\",0,1)","v":1},"Lifestage",null,null,"Class",null,null,null,null,"Asterionella  japonica ",null,null,"1 year old",null,null,"13 days",null,null,"EC50",null,null,"Cell Yield",null,null,"Fish ",null,null,"Haptophyta",null,null,"Branchiopoda",null,null,"F/2 without Cu, Zn, EDTA",null,null,"15°C",null,null,"Chronic",null,null,8.1999999999999993,null,null,"28 PSU"]
[null,null,null,{"$f":"IF(AO3=\"\",0,1)","v":1},null,{"$f":"IF(AX3=\"\",0,1)","v":1},"Exposure duration",null,null,"Media",null,null,null,null,"Australian Bass",null,null,"3-d old",null,null,"432-h",null,null,"IC10",null,null,"Fish ",null,null,"Macroalgae",null,null,"N.A.",null,null,"Chlorophyceae",null,null,"Filtered seawater",null,null,"23 +/- 1 oC",null,null,"N.A.",null,null,"6.7-6.9",null,null,"30 +/- 2 g/L"]
[null,null,null,{"$f":"IF(AR3=\"\",0,1)","v":1},null,{"$f":"IF(Q3=\"\",0,1)","v":1},"Measure of toxicity",null,null,"Temperature ",null,null,null,null,"Chaetoceros calcitrans",null,null,"Log phase",null,null,"48-h",null,null,"IC50",null,null,"Growth",null,null,"Microalga",null,null,"ND",null,null,"N.A.",null,null,"Filtered seawater with F2 added (10 µL to 10 mL)",null,null,"24 oC",null,null,null,null,null,"8.0 +/-0.5",null,null,"30 ppt"]
[null,null,null,{"$f":"IF(AU3=\"\",0,1)","v":1},null,{"$f":"IF(T3=\"\",0,1)","v":1},"Toxicity endpoint",null,null,"Acute Or Chronic ",null,null,null,null,"Chlorella stimatophora",null,null,"Mature thallus",null,null,"5-d",null,null,"LC50",null,null,"Growth rate",null,null,"N.A.",null,null,"Ochrophyta",null,null,"ND",null,null,"Freshwater",null,null,"24-28 oC",null,null,null,null,null,"8.00-8.20",null,null,"33.9-35.2 PSU"]
[null,null,null,null,null,{"$f":"IF(W3=\"\",0,1)","v":1},"Toxicity value",">500 µg/L",null,"PH",null,null,null,null,"Ditylum brightwellii",null,null,"N.A.",null,null,"6-h",null,null,"LOEC",null,null,"Microalga",null,null,null,null,null,"Tracheophyta",null,null,"Prasinophyceae",null,null,"Instant Ocean with phosphate, nitrate, silicate",null,null,"25 +/- 2oC",null,null,null,null,null,"8.0-8.1",null,null,"35 PSU"]
[null,2,"Select the appropriate answer option to each question. Comments can be added to the cells in column H.",null,null,{"$f":"IF(Z3=\"\",0,1)","v":1},null,null,null,"Salinity/Conductivity",null,null,null,null,"Isochrysis galbana",null,null,"ND",null,null,"72-h",null,null,"N.A.",null,null,"N.A.",null,null,null,null,null,null,null,null,"Prymnesiophyceae",null,null,"Instant ocean with phosphate, nitrate, silicate, citrate, NCTC-135 tissue culture",null,null,"25°C",null,null,null,null,null,"8.1 +/-0.2",null,null,"35+/- 2 PSU"]
[null,"*","If the selected answer option does not work try clicking on any other cell first and then click back on the answer option again.",null,null,{"$f":"IF(AC3=\"\",0,1)","v":1},null,null,null,null,null,null,null,null,"Isolated dinoflagellates from coral Heliofungia actiniformis",null,null,null,null,null,"96-h",null,null,"NOEC",null,null,"Quantum Yield",null,null,null,null,null,null,null,null,"Trebouxiophyceae",null,null,"Marinewater",null,null,"28 +/- 1 oC",null,null,null,null,null,"N.A.",null,null,"N.A."]
[null,"No.","Question","Marks Awarded","Answer Options","Option References","Scores","Answers",null,null,null,null,null,null,"N.A.",null,null,null,null,null,"N.A.",null,null,"Sporulation",null,null,"Spore Release",null,null,null,null,null,null,null,null,"Ulvophyceae",null,null,"N.A.",null,null,"N.A.",null,null,null,null,null,"ND",null,null,"ND"]
[null,null,"Was the duration of the exposure stated (e.g. 48 or 96 h)?",10,null,2,{"$f":"IF(F15=0,0,INDEX($D12:$D13,F12,1))","v":0},null,null,null,null,null,null,null,"Nitzschia closterium",null,null,null,null,null,null,null,null,null,null,null,"Sporulation",null,null,null,null,null,null,null,null,null,null,null,"SiO2 Stosch-modified Schreiber medium containing EDTA",null,null,"ND",null,null,null,null,null,"PH11"]
[null,1,null,0,null,null,null,null,null,null,null,null,null,null,"symbiotic dinoflagellate of coral Stylophora pistillata",null,null,null,null,null,null,null,null,null,null,null,"Zooxanthellae density",null,null,null,null,null,null,null,null,null,null,null,"Synthetic seawater",null,null,null,null,null,null,null,null,"PH7.0"]
[null,null,null,null,null,null,null,null,null,null,null,null,null,null,"Tetraselmis sp."]
[null,null,"Was the biological endpoint (e.g., immobilization or population growth) stated and defined (10 marks)? Award 5 marks if the biological endpoint is only stated.",10,null,2,{"$f":"IF(F15=0,0,INDEX($D15:$D17,F15,1))","v":5},"50% reduction in algal cell division rate",null,null,null,null,null,null,"Tetraselmis tetrahele"]
[null,2,null,5,null,null,null,null,null,null,null,null,null,null,"Tetraselmis tetrathele"]
[null,null,null,0,null,null,null,null,null,null,null,null,null,null,"Ulva pertusa"]
[null,null,"Was the biological effect stated (e.g. LC or NOEC)?",5,null,1,{"$f":"IF(F18=0,0,INDEX($D18:$D19,F18,1))","v":5},"EC50"]
[null,3,null,0]
[]
[null,4,"Was the biological effect quantified (e.g. 50% effect, 25% effect)? \nNote: The effect for NOEC and LOEC data must be quantified.",5,null,1,{"$f":"IF(F21=0,0,INDEX($D21:$D22,F21,1))","v":5},"50% reduction in algal cell division rate"]
[null,null,null,0]
[null,5,"Were appropriate controls (e.g. a no-toxicant control and/or solvent control) used?",5,null,2,{"$f":"IF(F23=0,0,INDEX($D23:$D24,F23,1))","v":0}]
[null,null,null,0]
[]
[null,6,"Was each control and contaminant concentration at least duplicated?",5,null,2,{"$f":"IF(F26=0,0,INDEX($D26:$D27,F26,1))","v":0}]
[null,null,null,0]
[]
[null,7,"Were test acceptability criteria stated (e.g. mortality in controls must not exceed a certain percentage) (5 marks)?\nOR Were test acceptability criteria inferred (e.g. test method used [USEPA, OECD, ASTM etc.]) (award 2 marks). \nNote: Data that fail the acceptability criteria are automatically deemed to be of unacceptable quality and must not be used. ",5,null,3,{"$f":"IF(F29=0,0,INDEX($D29:$D31,F29,1))","v":0}]
[null,null,null,2]
[null,null,null,0]
[null,8,"Were the characteristics of the test organism (e.g. length, mass, age) stated?",5,null,2,{"$f":"IF(F32=0,0,INDEX($D32:$D34,F32,1))","v":0}]
[null,null,null,0]
[]
[null,9,"Was the type of test media used stated?",5,null,2,{"$f":"IF(F35=0,0,INDEX($D35:$D37,F35,1))","v":0}]
[null,null,null,0]
[]
[null,null,"Was the type of exposure (e.g. static, flow through) stated? ",4,null,2,{"$f":"IF(F38=0,0,INDEX($D38:$D40,F38,1))","v":0}]
[null,10,null,0]
[]
[null,null,"Were the contaminant concentrations measured at the beginning and end of the exposure (4 marks)? Award 2 marks if they were measured only once during the test.\nNote: If the concentrations were not measured then automatically the data cannot be high quality. ",4,null,3,{"$f":"IF(F41=0,0,INDEX($D41:$D43,F41,1))","v":0}]
[null,11,null,2]
[null,null,null,0]
[null,null,"Were parallel reference toxicant toxicity tests conducted?",4,null,2,{"$f":"IF(F44=0,0,INDEX($D44:$D46,F44,1))","v":0}]
[null,12,null,0]
[]
[null,null,"Was there a concentration–response relationship either observable or stated?",4,null,2,{"$f":"IF(F47=0,0,INDEX($D47:$D49,F47,1))","v":0}]
[null,13,null,0]
[]
[null,null,"Was an appropriate statistical method or model used to determine the toxicity?\nNote: They should be accepted by a recognised national or international regulatory body (e.g. USEPA, OECD, ASTM). ",4,null,2,{"$f":"IF(F50=0,0,INDEX($D50:$D52,F50,1))","v":0}]
[null,14,null,0]
[]
[null,15,"For LC/EC/BEC data was an estimate of variability provided? \nOR \nFor NO EC/LOEC data was the significance level 0.05 or less?  \n\n",4,null,2,{"$f":"IF(F53=0,0,INDEX($D53:$D55,F53,1))","v":0}]
[null,null,null,0]
[]
[null,16,"Were the following parameters measured and stated? (3 marks if measured and stated, 1 mark if just measured)."]
[null,16.100000000000001,"Conductivity/Salinity",3,null,3,{"$f":"IF(F57=0,0,INDEX(D57:D59,F57,1))","v":0}]
[null,null,null,1]
[null,null,null,0]
[null,null,null,3,null,3,{"$f":"IF(F60=0,0,INDEX($D60:$D62,F60,1))","v":0}]
[null,16.2,"pH ",1]
[null,null,null,0]
[null,null,"Was the temperature measured and stated (3 marks)? Award 1 mark if the temperature was measured but not stated or if only the temperature settings of the room or chamber are stated.\n",3,null,3,{"$f":"IF(F63=0,0,INDEX($D63:$D65,F63,1))","v":0}]
[null,17,null,1]
[null,null,null,0]
[null,null,"Were test solutions, blanks and/or controls tested for contamination OR were analytical reagent grade chemicals used or the highest possible purity chemicals used for the experiment? (3 marks).",3,null,2,{"$f":"IF(F66=0,0,INDEX($D66:$D67,F66,1))","v":0}]
[null,18,null,0]
[]
[null,null,null,null,null,null,null,null,{"$f":"(COUNTIF(F12:F67,\"=0\"))+COUNTIF(F1:F10,\"=0\")+COUNTIF(D2:D7,\"=0\")","v":0}]
[]
[]
[null,null,"Total score",null,null,null,{"$f":"IF(SUM(G12:G66)=0,\"\",SUM(G12:G66))","v":15}]
[null,null,"Total Max. possible score for the various types of data and contaminants ",null,{"$f":"D12+D15+D18+D21+D23+D26+D29+D32+D35+D38+D41+D44+D47+D50+D53+D60+D63+D66+D57","v":91}]
[null,null,"Quality Score",null,{"$f":"\"= [Total score / Total possible score] * 100 = \"","v":"= [Total score / Total possible score] * 100 = "},null,{"$f":"IF(ISERROR(G72/E73),#N/A,G72/E73)","v":0.16483516483516483},{"$f":"IF(F41=3,\"The highest possible grade for this datum is acceptable.\",\"\")","v":"The highest possible grade for this datum is acceptable."}]
[]
[null,null,"H = high quality                           Quality score ≥ 80%    "]
[null,null,"A = acceptable quality         > 50% Quality score < 80%  "]
[null,null,"U = unacceptable quality              Quality score ≤ 50%"]
[]
[3,null,"Click the 'Save & Update' button to save and export the answers to the 'All results' worksheet. "]
[null,null,"Select the 'Reset Answers' button if you wish to clear all answers."]

{"sheet":"MEW plant_WS","index":8,"n_rows":89,"n_cols":23,"rows_kept":89,"cut":false,"hidden":false,"merged":[]}
[]
["Question No.",1,2,3,4,5,6,7,8,9,10,11,12,13,14,15,16.100000000000001,16.3,17,18,"Total Score","Quality Score","Comment "]
["Short Questions","Duration of the exposure ","Biological endpoint","Biological effect stated or not","Biological effect quantified or not","Appropriate controls","Control & contaminant concentration","Test acceptability criteria","Characteristics of the test organism"," Type of test media","Type of exposure","Contaminant concentrations","Parallel reference toxicant toxicity tests","Concentration–response relationship","Determine the toxicity","NOEC/LOEC or LC/EC/BEC","Conductivity/Salinity","PH","Temperature","Grade or purity"]
["Marks Awarded ","10 or 0","10,5 or 0","5 or 0 ","5 or 0 ","5 or 0 ","5 or 0 ","5 or 0 ","5 or 0 ","5 or 0 ","4 or 0","4 or 2 or 0","4 or 2","4 or 2","4 or 2","4 or 2","3 or 1 or 0","3 or 1 or 0","3 or 0","3 or 0 "]
["Max. Possible Score",10,10,5,5,5,5,5,5,5,4,4,4,4,4,4,3,3,3,3,{"$f":"SUM(B5:T5)","v":91}]
["Category","MEW_plant","Paper and data unique identifier(eg. 1-1,10-150)","2-1"]
["Scores",10,10,5,5,5,5,0,5,5,4,0,0,4,0,0,0,0,0,0,60,0.65934065934065933,"The highest possible grade for this datum is acceptable."]
["Answers","5-d","","EC50",0.5,"No stated but visible in figures","triplicate","","3-d old culture","SiO2 Stosch-modified Schreiber medium containing EDTA at the lowest concentration of 6.7x10^-7 M EDTA",null,"free metal ion modelled","","Figure 7","No statistical method stated but looked to involve interpolation from the conc-response figure","","","pH for medium stated as 8.0 but no indication that pH was measured in the test chambers","Stated that it was conducted in constant temperature room but temperature itself wasn't stated","Chemical grade not stated. MnCl2.4H2O"]
["Category","MEW_plant","Paper and data unique identifier(eg. 1-1,10-150)","7-1"]
["Scores",10,5,5,5,5,5,0,5,5,0,0,0,4,4,4,0,0,0,0,64,0.70329670329670335,"The highest possible grade for this datum is acceptable."]
["Answers","96-h","stated as growth","EC","50 % effect","not stated but inferred from concentrations of metal tested","experiments repeated 3 times","","logarithmic phase of growth for inoculum","Instant ocean with phosphate, nitrate, silicate, citrate, NCTC-135 tissue culture media added. This was with the chelators added. See other EC50 without chelators","","","","Figure 1 of probit v log nominal concentration","probit analysis (Finney 1964)","Standard Error = +/- 74.3 µg/L","","6.7-6.9","15.5 +/- 0.5 oC in growth chamber","ACS grade of MnSO4"]
["Category","MEW_plant","Paper and data unique identifier(eg. 1-1,10-150)","7-2"]
["Scores",10,5,5,5,5,5,0,5,5,0,0,0,4,4,4,0,0,0,0,64,0.70329670329670335,"The highest possible grade for this datum is acceptable."]
["Answers","96-h","stated as growth","EC","50 % effect","not stated but inferred from concentrations of metal tested","experiments repeated 3 times","","logarithmic phase of growth for inoculum","Instant ocean with phosphate, nitrate, silicate. This was without the chelators added. See other EC50 with chelators","","","","Figure 1 of probit v log nominal concentration","probit analysis (Finney 1964)","Standard Error = +/- 23.7 µg/L","","8.0-8.1","15.5 +/- 0.5 oC in growth chamber","ACS grade of MnSO4"]
["Category","MEW_plant","Paper and data unique identifier(eg. 1-1,10-150)","9-1"]
["Scores",10,10,5,5,5,5,0,5,5,0,0,0,4,4,4,0,0,0,0,66,0.72527472527472525,"The highest possible grade for this datum is acceptable."]
["Answers","72-h","growth rate inhibition","EC","50% effect","","duplicate","","growth in log phase at time of test initiation","Bass Strait seawater filtered (0.2 µm) with F/2 media nutrients added except for Cu, Zn, EDTA ","","","","","linear regression, least squares fit, no citation of source given","95% CL 3900-5933 µg/L","","","23 +/- 1oC","Analytical grade MnCl2"]
["Category","MEW_plant","Paper and data unique identifier(eg. 1-1,10-150)","10-16"]
["Scores",10,5,5,5,5,5,5,0,5,0,0,4,4,4,4,3,0,0,0,73,0.80219780219780223,"The highest possible grade for this datum is acceptable."]
["Answers","72-h","Cell yield","IC","50% yield inhibition","","quadruplicate",">= 30% mean cell density/0.1 µL, Test temperature 25 +/- 1oC, Cu reference IC50 must be between 24.3-79.2 µg Cu/L","","Filtered seawater, addition of nutrients not stated but based on the protocol used (Stauber et al. 1994), it is likely they were added","","","requirements of Cu reference test were met","","Linear interpolation for IC10 and IC50 or Dunnett's test for NOEC or LOEC","315,900 - 449,700 µg/L for 95% CL","104.5-118.3 PSU","8.00-8.20","25 oC","Analytical grade MnCl2.4H2O"]
["Category","MEW_plant","Paper and data unique identifier(eg. 1-1,10-150)","10-17"]
["Scores",10,5,5,5,5,5,5,0,5,0,0,4,4,4,4,3,0,0,0,73,0.80219780219780223,"The highest possible grade for this datum is acceptable."]
["Answers","72-h","Cell yield","IC","10% yield inhibition","","quadruplicate",">= 30% mean cell density/0.1 µL, Test temperature 25 +/- 1oC, Cu reference IC50 must be between 24.3-79.2 µg Cu/L","","Filtered seawater, addition of nutrients not stated but based on the protocol used (Stauber et al. 1994), it is likely they were added","","","requirements of Cu reference test were met","","Linear interpolation for IC10 and IC50 or Dunnett's test for NOEC or LOEC","122,600-187,170 µg/L for 95% CL","104.5-118.3 PSU","8.00-8.20","25 oC","Analytical grade MnCl2.4H2O"]
["Category","MEW_plant","Paper and data unique identifier(eg. 1-1,10-150)","10-18"]
["Scores",10,5,5,5,5,5,5,0,5,0,0,4,4,4,4,3,0,0,0,73,0.80219780219780223,"The highest possible grade for this datum is acceptable."]
["Answers","72-h","Cell yield","NOEC","98% inhibition of cell yield","","quadruplicate",">= 30% mean cell density/0.1 µL, Test temperature 25 +/- 1oC, Cu reference IC50 must be between 24.3-79.2 µg Cu/L","","Filtered seawater, addition of nutrients not stated but based on the protocol used (Stauber et al. 1994), it is likely they were added","","","requirements of Cu reference test were met","","Linear interpolation for IC10 and IC50 or Dunnett's test for NOEC or LOEC","one tailed, 0.05 % probability","104.5-118.3 PSU","8.00-8.20","25 oC","Analytical grade MnCl2.4H2O"]
["Category","MEW_plant","Paper and data unique identifier(eg. 1-1,10-150)","10-19"]
["Scores",10,5,5,5,5,5,5,0,5,0,0,4,4,4,4,3,0,0,0,73,0.80219780219780223,"The highest possible grade for this datum is acceptable."]
["Answers","72-h","Cell yield","LOEC","70% inhibition of cell yield","","quadruplicate",">= 30% mean cell density/0.1 µL, Test temperature 25 +/- 1oC, Cu reference IC50 must be between 24.3-79.2 µg Cu/L","","Filtered seawater, addition of nutrients not stated but based on the protocol used (Stauber et al. 1994), it is likely they were added","","","requirements of Cu reference test were met","","Linear interpolation for IC10 and IC50 or Dunnett's test for NOEC or LOEC","one tailed, 0.05 % probability","104.5-118.3 PSU","8.00-8.20","25 oC","Analytical grade MnCl2.4H2O"]
["Category","MEW_plant","Paper and data unique identifier(eg. 1-1,10-150)","12-15"]
["Scores",10,10,5,5,5,5,5,0,5,4,4,0,4,4,4,1,0,0,0,76,0.8351648351648352,""]
["Answers","72-h","Cell yield","EC","10 % inhibition of cell yield","","triplicate","minimum control cell yield of 16x","no mention of log growth phase algae being used but initial cell density was 3-6 x 10^3 cells/mL","filtered seawater (0.45 µm) that was autoclaved 10 µL of F2 media added to 10 mL of each test solution","static","","","","CETIS v1.8 software (Tidepool scientific)","0-28,300 µg/L 95% CL","Claimed it was measured but no results given just a general blanket statement that all QAQC requirements were met","Claimed it was measured but no results given just a general blanket statement that all QAQC requirements were met","Claimed it was measured but no results given just a general blanket statement that all QAQC requirements were met","Controls were analysed by ICP-OES"]
["Category","MEW_plant","Paper and data unique identifier(eg. 1-1,10-150)","12-16"]
["Scores",10,10,5,5,5,5,5,0,5,4,4,0,4,4,4,1,0,0,0,76,0.8351648351648352,""]
["Answers","72-h","Cell yield","EC","50 % inhibition of cell yield","","triplicate","minimum control cell yield of 16x","no mention of log growth phase algae being used but initial cell density was 3-6 x 10^3 cells/mL","filtered seawater (0.45 µm) that was autoclaved 10 µL of F2 media added to 10 mL of each test solution","static","","","","CETIS v1.8 software (Tidepool scientific)","48,900-60,700 µg/L 95% CL","Claimed it was measured but no results given just a general blanket statement that all QAQC requirements were met","Claimed it was measured but no results given just a general blanket statement that all QAQC requirements were met","Claimed it was measured but no results given just a general blanket statement that all QAQC requirements were met","Controls were analysed by ICP-OES"]
["Category","MEW_plant","Paper and data unique identifier(eg. 1-1,10-150)","13-1"]
["Scores",10,10,5,5,5,5,5,5,5,0,0,0,4,4,4,1,0,0,0,70,0.76923076923076927,"The highest possible grade for this datum is acceptable."]
["Answers","96-h","Rating scale of sporulation conducted using image software","EC","10% inhibition of sporulation","","quadruplicate replicates",">80% sporulation in the controls","4mm diameter algal discs","artificial seawater (Coralife brand)","","","","","Linear interpolation using Toxcalc v5.0","1,200-1,500 µg/L 95% CL","35 PSU",8.1999999999999993,"15 oC",""]
["Category","MEW_plant","Paper and data unique identifier(eg. 1-1,10-150)","13-2"]
["Scores",10,10,5,5,5,5,5,5,5,0,0,0,4,4,4,1,0,0,0,70,0.76923076923076927,"The highest possible grade for this datum is acceptable."]
["Answers","96-h","Rating scale of sporulation conducted using microscope","EC","10% inhibition of sporulation","","quadruplicate replicates",">80% sporulation in the controls","4mm diameter algal discs","artificial seawater (Coralife brand)","","","","","Linear interpolation using Toxcalc v5.0","1,240-1,562 µg/L 95% CL","35 PSU",8.1999999999999993,"15 oC",""]
["Category","MEW_plant","Paper and data unique identifier(eg. 1-1,10-150)","13-3"]
["Scores",10,10,5,5,5,5,5,5,5,0,0,0,4,4,4,1,0,0,0,70,0.76923076923076927,"The highest possible grade for this datum is acceptable."]
["Answers","96-h","Rating scale of sporulation conducted using image software","EC","50% inhibition of sporulation","","quadruplicate replicates",">80% sporulation in the controls","4mm diameter algal discs","artificial seawater (Coralife brand)","","","","","Linear interpolation using Toxcalc v5.0","2,331-2,885 µg/L 95% CL","35 PSU",8.1999999999999993,"15 oC",""]
["Category","MEW_plant","Paper and data unique identifier(eg. 1-1,10-150)","13-4"]
["Scores",10,10,5,5,5,5,5,5,5,0,0,0,4,4,4,1,0,0,0,70,0.76923076923076927,"The highest possible grade for this datum is acceptable."]
["Answers","96-h","Rating scale of sporulation conducted using microscope","EC","50% inhibition of sporulation","","quadruplicate replicates",">80% sporulation in the controls","4mm diameter algal discs","artificial seawater (Coralife brand)","","","","","Linear interpolation using Toxcalc v5.0","2,473-2,976 µg/L 95% CL","35 PSU",8.1999999999999993,"15 oC",""]
["Category","MEW_plant","Paper and data unique identifier(eg. 1-1,10-150)","13-5"]
["Scores",10,10,5,5,5,5,5,5,5,0,0,0,4,4,4,1,0,0,0,70,0.76923076923076927,"The highest possible grade for this datum is acceptable."]
["Answers","96-h","Rating scale of spore release using image software","EC","10% inhibition of spore release","","quadruplicate replicates",">80% sporulation in the controls","4mm diameter algal discs","artificial seawater (Coralife brand)","","","","","Linear interpolation using Toxcalc v5.0","510-1,217 µg/L 95% CL","35 PSU",8.1999999999999993,"15 oC",""]
["Category","MEW_plant","Paper and data unique identifier(eg. 1-1,10-150)","13-6"]
["Scores",10,10,5,5,5,5,5,5,5,0,0,0,4,4,4,1,0,0,0,70,0.76923076923076927,"The highest possible grade for this datum is acceptable."]
["Answers","96-h","Rating scale of spore release using image software","EC","50% inhibition of spore release","","quadruplicate replicates",">80% spore release in the controls","4mm diameter algal discs","artificial seawater (Coralife brand)","","","","","Linear interpolation using Toxcalc v5.0","1,243-1,591 µg/L 95% CL","35 PSU",8.1999999999999993,"15 oC",""]
["Category","MEW_plant","Paper and data unique identifier(eg. 1-1,10-150)","14-1"]
["Scores",10,5,5,5,5,5,5,5,5,4,2,0,0,4,0,1,0,0,0,66,0.72527472527472525,""]
["Answers","96-h","IC50","IC","50% cell yield inhibition","","triplicate reps","Mean increase in cell yield in the control by factor of 20","logarithmic growth and 1x10^6 cells/mL inoculum","nutrient enriched synthetic seawater (Marine Environment Brand), with Walnes solution, vitamins, silicate, and nitrate but  without EDTA","static non-renewal","","","","ICPIN program - USEPA","","30+/- 2 g/L","8.0+/-0.5","28 oC +/- 1oC","Controls were analysed - no data reported for the controls. No quality grade of the salts given. MnCl4.2H2O"]
["Category","MEW_plant","Paper and data unique identifier(eg. 1-1,10-150)","14-2"]
["Scores",10,5,5,5,5,5,5,5,5,4,2,0,0,4,0,1,0,0,0,66,0.72527472527472525,""]
["Answers","96-h","IC50","IC","50% cell yield inhibition","","triplicate reps","Mean increase in cell yield in the control by factor of 20","logarithmic growth and 1x10^6 cells/mL inoculum","nutrient enriched synthetic seawater (Marine Environment Brand), with Walnes solution, vitamins, silicate, and nitrate but  without EDTA","static non-renewal","","","","ICPIN program - USEPA","","30+/- 2 g/L","8.0+/-0.5","28 oC +/- 1oC","Controls were analysed - no data reported for the controls. No quality grade of the salts given. MnCl4.2H2O"]
["Category","MEW_plant","Paper and data unique identifier(eg. 1-1,10-150)","14-3"]
["Scores",10,5,5,5,5,5,5,5,5,4,2,0,0,4,0,1,0,0,0,66,0.72527472527472525,""]
["Answers","96-h","IC50","IC","50% cell yield inhibition","","triplicate reps","Mean increase in cell yield in the control by factor of 20","logarithmic growth and 1x10^6 cells/mL inoculum","nutrient enriched synthetic seawater (Marine Environment Brand), with Walnes solution, vitamins, silicate, and nitrate but  without EDTA","static non-renewal","","","","ICPIN program - USEPA","","30+/- 2 g/L","8.0+/-0.5","28 oC +/- 1oC","Controls were analysed - no data reported for the controls. No quality grade of the salts given. MnCl4.2H2O"]
["Category","MEW_plant","Paper and data unique identifier(eg. 1-1,10-150)","14-4"]
["Scores",10,5,5,5,5,5,5,5,5,4,2,0,0,4,0,1,0,0,0,66,0.72527472527472525,""]
["Answers","96-h","IC50","IC","50% cell yield inhibition","","triplicate reps","Mean increase in cell yield in the control by factor of 20","logarithmic growth and 1x10^6 cells/mL inoculum","nutrient enriched synthetic seawater (Marine Environment Brand), with Walnes solution, vitamins, silicate, and nitrate but  without EDTA","static non-renewal","","","","ICPIN program - USEPA","","30+/- 2 g/L","8.0+/-0.5","28 oC +/- 1oC","Controls were analysed - no data reported for the controls. No quality grade of the salts given. MnCl4.2H2O"]
["Category","MEW_plant","Paper and data unique identifier(eg. 1-1,10-150)","14-5"]
["Scores",10,5,5,5,5,5,5,5,5,4,2,0,0,4,0,1,0,0,0,66,0.72527472527472525,""]
["Answers","96-h","IC50","IC","50% cell yield inhibition","","triplicate reps","Mean increase in cell yield in the control by factor of 20","logarithmic growth and 1x10^6 cells/mL inoculum","nutrient enriched synthetic seawater (Marine Environment Brand), with Walnes solution, vitamins, silicate, and nitrate but  without EDTA","static non-renewal","","","","ICPIN program - USEPA","","30+/- 2 g/L","8.0+/-0.5","28 oC +/- 1oC","Controls were analysed - no data reported for the controls. No quality grade of the salts given. MnCl4.2H2O"]
["Category","MEW_plant","Paper and data unique identifier(eg. 1-1,10-150)","14-6"]
["Scores",10,5,5,5,5,5,5,5,5,4,2,0,0,4,0,1,0,0,0,66,0.72527472527472525,""]
["Answers","96-h","IC50","IC","50% cell yield inhibition","","triplicate reps","Mean increase in cell yield in the control by factor of 20","logarithmic growth and 1x10^6 cells/mL inoculum","nutrient enriched synthetic seawater (Marine Environment Brand), with Walnes solution, vitamins, silicate, and nitrate but  without EDTA","static non-renewal","","","","ICPIN program - USEPA","","30+/- 2 g/L","8.0+/-0.5","28 oC +/- 1oC","Controls were analysed - no data reported for the controls. No quality grade of the salts given. MnCl4.2H2O"]
["Category","MEW_plant","Paper and data unique identifier(eg. 1-1,10-150)","14-7"]
["Scores",10,5,5,5,5,5,5,5,5,4,2,0,0,4,0,1,0,0,0,66,0.72527472527472525,""]
["Answers","96-h","IC50","IC","50% cell yield inhibition","","triplicate reps","Mean increase in cell yield in the control by factor of 20","logarithmic growth and 1x10^6 cells/mL inoculum","nutrient enriched synthetic seawater (Marine Environment Brand), with Walnes solution, vitamins, silicate, and nitrate but  without EDTA","static non-renewal","","","","ICPIN program - USEPA","","30+/- 2 g/L","8.0+/-0.5","28 oC +/- 1oC","Controls were analysed - no data reported for the controls. No quality grade of the salts given. MnCl4.2H2O"]
["Category","MEW_plant","Paper and data unique identifier(eg. 1-1,10-150)","14-8"]
["Scores",10,5,5,5,5,5,5,5,5,4,2,0,0,4,0,1,0,0,0,66,0.72527472527472525,""]
["Answers","96-h","IC50","IC","50% cell yield inhibition","","triplicate reps","Mean increase in cell yield in the control by factor of 20","logarithmic growth and 1x10^6 cells/mL inoculum","nutrient enriched synthetic seawater (Marine Environment Brand), with Walnes solution, vitamins, silicate, and nitrate but  without EDTA","static non-renewal","","","","ICPIN program - USEPA","","30+/- 2 g/L","8.0+/-0.5","28 oC +/- 1oC","Controls were analysed - no data reported for the controls. No quality grade of the salts given. MnCl4.2H2O"]
["Category","MEW_plant","Paper and data unique identifier(eg. 1-1,10-150)","15-1"]
["Scores",10,10,5,5,5,0,2,5,5,0,4,0,4,4,4,0,0,0,0,66,0.72527472527472525,""]
["Answers","72-h","% Inhibition - Decrease in algal growth rate","EC50","50% decrease in growth rate","","Not given","OECD (2011) and Stauber et al. (1994)","Initial cell density of 2-4 x 10^4 cells/mL","filtered seawater - stated in the results","","Measured twice but T0h data used to calculate Mn in top concentration and then nominal for other dilutions that were prepare from the top concentration","Not mentioned","","ToxCalc Version 5.0.23","74,000-110,000 µg/L 95% CL","","","","Test solutions analysed by ICP-AES"]
["Category","MEW_plant","Paper and data unique identifier(eg. 1-1,10-150)","15-2"]
["Scores",10,10,5,5,5,0,2,5,5,0,4,0,4,4,4,0,0,0,0,66,0.72527472527472525,""]
["Answers","72-h","% Inhibition - Decrease in algal growth rate","NOEC","13 % inhibition","","Not given","OECD (2011) and Stauber et al. (1994)","Initial cell density of 2-4 x 10^4 cells/mL","filtered seawater - stated in the results","","Measured twice but T0h data used to calculate Mn in top concentration and then nominal for other dilutions that were prepare from the top concentration","Not mentioned","","ToxCalc Version 5.0.23","0.05 level of significance","","","","Test solutions analysed by ICP-AES"]
["Category","MEW_plant","Paper and data unique identifier(eg. 1-1,10-150)","25-1"]
["Scores",10,5,5,5,5,5,2,5,5,0,0,0,4,0,0,1,0,0,0,52,0.5714285714285714,"The highest possible grade for this datum is acceptable."]
["Answers","18-d or 432-h","Algal cell volume using coulter counter model T","EC50 reduction in cell volume","50 % reduction in cell volume","","triplicate","USEPA 1974 method for Dunaliella cited","1 x 10^ cells/mL","artificial seawater with nutrients and EDTA added","","","","The response curve did not match the cell volume data in the table","Use of BMDO8V Biomedical Computer Programs (Dixon, 1973) for factorial ANOVA design but no method given for deriving the effect concentration. Mostly likely it was read directly from Figure 4","","28 PSU","","","Used MnCl2.4H2O"]
["Category","MEW_plant","Paper and data unique identifier(eg. 1-1,10-150)","26-1"]
["Scores",0,5,5,5,0,0,0,0,0,0,0,0,0,0,0,0,0,0,0,15,0.16483516483516483,"The highest possible grade for this datum is acceptable."]
["Answers","","50% reduction in algal cell division rate","EC50","50% reduction in algal cell division rate","","","","","","","","","","","","","","",""]

{"sheet":"FW metal nonplant","index":9,"n_rows":90,"n_cols":54,"rows_kept":90,"cut":false,"hidden":false,"merged":[[62,7,64,7],[74,2,77,2],[74,7,77,7],[52,2,54,2],[52,7,54,7],[56,7,58,7],[65,7,67,7],[68,7,70,7],[71,2,73,2],[71,7,73,7],[59,7,61,7],[43,2,45,2],[43,7,45,7],[46,2,48,2],[46,7,48,7],[49,2,51,2],[49,7,51,7],[34,2,36,2],[34,7,36,7],[37,2,39,2],[37,7,39,7],[40,2,42,2],[40,7,42,7],[25,2,27,2],[25,7,27,7],[28,2,30,2],[28,7,30,7],[31,2,33,2],[31,7,33,7],[17,2,19,2],[17,7,19,7],[20,2,21,2],[20,7,21,7],[22,2,24,2],[22,7,24,7],[3,4,7,4],[9,2,9,4],[11,2,13,2],[11,7,13,7],[14,2,16,2],[14,7,16,7]]}
[null,1,"Fill in the blank cells below, based on information provided in the paper being assessed. You can either pick an option from the dropdown list or add the appropriate detail using the 'Add to list' button. ",null,null,null,null,null,null,null,null,null,null,null,"* All the text in RED are used for drop down list ,make changes with caution."]
[null,null,"Category",{"$f":"IF(AF3=\"\",0,1)","v":0},"Freshwater/metal/non- plant",{"$f":"IF(E3=\"\",0,1)","v":0},"Citation No.",{"$f":"IF(ISERROR(FIND(\"-\",E3)),E3,LEFT(E3,FIND(\"-\",E3)-1))","v":0},null,"Taxonomic group",null,null,null,null,"Species",null,null,"Lifestage",null,null,"Exposure duration",null,null,"Measure of toxicity",null,null,"Toxicity endpoint",null,null,"Taxonomic group",null,null,"Phylum",null,null,"Class",null,null,"Media",null,null,"Temperature ",null,null,"Acute Or Chronic",null,null,"PH",null,null,"Salinity/Comdictivity"]
[null,null,"Paper and data unique identifier(eg. 1-1,10-150)",{"$f":"IF(AI3=\"\",0,1)","v":0},null,{"$f":"IF(E4=\"\",0,1)","v":0},"Species (Scientific name)",null,null,"Phylum",null,null,null,null,"Aedes albopictus",0,{"$f":"IF(P3=0,\"\",INDEX(O3:O111,P3))","v":""},"1 month",0,{"$f":"IF(S3=0,\"\",INDEX(R3:R111,S3))","v":""},"11 hour",0,{"$f":"IF(V3=0,\"\",INDEX(U3:U111,V3))","v":""},"LC50",0,{"$f":"IF(Y3=0,\"\",INDEX(X3:X111,Y3))","v":""},"Mortality",0,{"$f":"IF(AB3=0,\"\",INDEX(AA3:AA111,AB3))","v":""},"Fish",0,{"$f":"IF(AE3=0,\"\",INDEX(AD3:AD111,AE3))","v":""},"Chlorophyta",0,{"$f":"IF(AH3=0,\"\",INDEX(AG3:AG111,AH3))","v":""},"Branchiopoda",0,{"$f":"IF(AK3=0,\"\",INDEX(AJ3:AJ111,AK3))","v":""},"Freshwater",0,{"$f":"IF(AN3=0,\"\",INDEX(AM3:AM111,AN3))","v":""},"15°C",0,{"$f":"IF(AQ3=0,\"\",INDEX(AP3:AP111,AQ3))","v":""},"Acute ",0,{"$f":"IF(AT3=0,\"\",INDEX(AS3:AS111,AT3))","v":""},"N.A.",0,{"$f":"IF(AW3=0,\"\",INDEX(AV3:AV111,AW3))","v":""},null,null,"N.A.",1]
[null,null,"Citation",{"$f":"IF(AL3=\"\",0,1)","v":0},null,{"$f":"IF(H8=\"\",0,1)","v":0},"Lifestage",null,null,"Class",null,null,null,null,"Australian Bass",null,null,"1 year old",null,null,"13 days",null,null,"N.A.",null,null,"N.A.",null,null,"Microalga",null,null,"N.A.",null,null,"Chlorophyceae",null,null,"Marinewater",null,null,"25°C",null,null,"Chronic",null,null,"PH11"]
[null,null,null,{"$f":"IF(AO3=\"\",0,1)","v":0},null,{"$f":"IF(AX3=\"\",0,1)","v":0},"Exposure duration",null,null,"Media",null,null,null,null,"N.A.",null,null,"N.A.",null,null,"N.A.",null,null,"NOEC",null,null,"Reproduction",null,null,"N.A.",null,null,"Tracheophyta",null,null,"N.A.",null,null,"N.A.",null,null,"N.A.",null,null,"N.A.",null,null,"PH7.0"]
[null,null,null,{"$f":"IF(AR3=\"\",0,1)","v":0},null,{"$f":"IF(Q3=\"\",0,1)","v":0},"Measure of toxicity",null,null,"Temperature "]
[null,null,null,{"$f":"IF(AU3=\"\",0,1)","v":0},null,{"$f":"IF(T3=\"\",0,1)","v":0},"Toxicity endpoint",null,null,"Acute Or Chronic "]
[null,null,null,null,null,{"$f":"IF(W3=\"\",0,1)","v":0},"Toxicity value",null,null,"PH"]
[null,2,"Select the appropriate answer option to each question. Comments can be added to the cells in column H.",null,null,{"$f":"IF(Z3=\"\",0,1)","v":0},null,null,null,"Salinity/Conductivity","N.A."]
[null,"*","If the selected answer option does not work try clicking on any other cell first and then click back on the answer option again.",null,null,{"$f":"IF(AC3=\"\",0,1)","v":0}]
[null,"No.","Question","Marks Awarded","Answer Options","Option References","Scores","Answers"]
[null,null,"Was the duration of the exposure stated (e.g. 48 or 96 h)?",10,null,0,{"$f":"IF(F15=0,0,INDEX($D12:$D13,F12,1))","v":0}]
[null,1,null,0]
[]
[null,null,"Was the biological endpoint (e.g. immobilization or population growth) stated and defined (10 marks)? Award 5 marks if the biological endpoint is only stated.",10,null,0,{"$f":"IF(F15=0,0,INDEX($D15:$D17,F15,1))","v":0}]
[null,2,null,5]
[null,null,null,0]
[null,null,"Was the biological effect stated (e.g. LC or NOEC)?",5,null,0,{"$f":"IF(F18=0,0,INDEX($D18:$D19,F18,1))","v":0}]
[null,3,null,0]
[]
[null,4,"Was the biological effect quantified (e.g. 50% effect, 25% effect)? \nNote: The effect for NOEC and LOEC data must be quantified.",5,null,0,{"$f":"IF(F21=0,0,INDEX($D21:$D22,F21,1))","v":0}]
[null,null,null,0]
[null,5,"Were appropriate controls (e.g. a no-toxicant control and/or solvent control) used?",5,null,0,{"$f":"IF(F23=0,0,INDEX($D23:$D24,F23,1))","v":0}]
[null,null,null,0]
[]
[null,6,"Was each control and contaminant concentration at least duplicated?",5,null,0,{"$f":"IF(F26=0,0,INDEX($D26:$D27,F26,1))","v":0}]
[null,null,null,0]
[]
[null,7,"Were test acceptability criteria stated (e.g. mortality in controls must not exceed a certain percentage) (5 marks)?\nOR Were test acceptability criteria inferred (e.g. test method used [USEPA, OECD, ASTM etc.]) (award 2 marks). \nNote: Data that fail the acceptability criteria are automatically deemed to be of unacceptable quality and must not be used. ",5,null,0,{"$f":"IF(F29=0,0,INDEX($D29:$D31,F29,1))","v":0}]
[null,null,null,2]
[null,null,null,0]
[null,8,"Were the characteristics of the test organism (e.g. length, mass, age) stated?",5,null,0,{"$f":"IF(F32=0,0,INDEX($D32:$D34,F32,1))","v":0}]
[null,null,null,0]
[]
[null,9,"Was the type of test media used stated?",5,null,0,{"$f":"IF(F35=0,0,INDEX($D35:$D37,F35,1))","v":0}]
[null,null,null,0]
[]
[null,null,"Was the type of exposure (e.g. static, flow through) stated? ",4,null,0,{"$f":"IF(F38=0,0,INDEX($D38:$D40,F38,1))","v":0}]
[null,10,null,0]
[]
[null,null,"Were the contaminant concentrations measured at the beginning and end of the exposure (4 marks)? Award 2 marks if they were measured only once during the test.\nNote: If the concentrations were not measured then automatically the data cannot be high quality. ",4,null,0,{"$f":"IF(F41=0,0,INDEX($D41:$D43,F41,1))","v":0}]
[null,11,null,2]
[null,null,null,0]
[null,null,"Were parallel reference toxicant toxicity tests conducted?",4,null,0,{"$f":"IF(F44=0,0,INDEX($D44:$D46,F44,1))","v":0}]
[null,12,null,0]
[]
[null,null,"Was there a concentration–response relationship either observable or stated?",4,null,0,{"$f":"IF(F47=0,0,INDEX($D47:$D49,F47,1))","v":0}]
[null,13,null,0]
[]
[null,null,"Was an appropriate statistical method or model used to determine the toxicity?\nNote: They should be accepted by a recognised national or international regulatory body (e.g. USEPA, OECD, ASTM). ",4,null,0,{"$f":"IF(F50=0,0,INDEX($D50:$D52,F50,1))","v":0}]
[null,14,null,0]
[]
[null,15,"For LC/EC/BEC data was an estimate of variability provided? \nOR \nFor NO EC/LOEC data was the significance level 0.05 or less?  \n\n",4,null,0,{"$f":"IF(F53=0,0,INDEX($D53:$D55,F53,1))","v":0}]
[null,null,null,0]
[]
[null,16,"Were the following parameters measured and stated? (3 marks if measured and stated, 1 mark if just measured)."]
[null,null,null,3,null,0,{"$f":"IF(F57=0,0,INDEX($D57:$D59,F57,1))","v":0}]
[null,16.100000000000001,"pH",1]
[null,null,null,0]
[null,null,null,3,null,0,{"$f":"IF(F60=0,0,INDEX($D60:$D62,F60,1))","v":0}]
[null,16.2,"Hardness",1]
[null,null,null,0]
[null,null,null,3,null,0,{"$f":"IF(F63=0,0,INDEX($D63:$D65,F63,1))","v":0}]
[null,16.3,"Alkalinity",1]
[null,null,null,0]
[null,null,null,3,null,0,{"$f":"IF(F66=0,0,INDEX($D66:$D68,F66,1))","v":0}]
[null,16.399999999999999,"Organic carbon concentration",1]
[null,null,null,0]
[null,null,null,3,null,0,{"$f":"IF(F69=0,0,INDEX($D69:$D71,F69,1))","v":0}]
[null,16.5,"Dissolved Oxygen",1]
[null,null,null,0]
[null,null,"Was the temperature measured and stated (3 marks)? Award 1 mark if the temperature was measured but not stated or if only the temperature settings of the room or chamber are stated.",3,null,0,{"$f":"IF(F72=0,0,INDEX($D72:$D74,F72,1))","v":0}]
[null,17,null,1]
[null,null,null,0]
[null,null,"Were test solutions, blanks and/or controls tested for contamination OR were analytical reagent grade chemicals used or the highest possible purity chemicals used for the experiment? (3 marks).",3,null,0,{"$f":"IF(F75=0,0,INDEX($D75:$D76,F75,1))","v":0}]
[null,18,null,0]
[]
[null,null,null,null,null,null,null,null,{"$f":"(COUNTIF(F12:F76,\"=0\"))+COUNTIF(F2:F10,\"=0\")+COUNTIF(D2:D7,\"=0\")","v":37}]
[]
[]
[null,null,"Total score",null,null,null,{"$f":"IF(SUM(G12:G75)=0,\"\",SUM(G12:G75))","v":""}]
[null,null,"Total Max. possible score for the various types of data and contaminants ",null,{"$f":"D12+D15+D18+D21+D23+D26+D29+D32+D35+D38+D41+D44+D47+D50+D53+D57+D66+D69+D72+D75+D63+D60","v":100}]
[null,null,"Quality Score",null,{"$f":"\"= [Total score / Total possible score] * 100 = \"","v":"= [Total score / Total possible score] * 100 = "},null,{"$f":"IF(ISERROR(G81/E82),#N/A,G81/E82)","v":{"$error":"#N/A"}},{"$f":"IF(F41=3,\"The highest possible grade for this datum is acceptable.\",\"\")","v":""}]
[]
[null,null,"H = high quality                           Quality score ≥ 80%     "]
[null,null,"A = acceptable quality         > 50% Quality score < 80%  "]
[null,null,"U = unacceptable quality              Quality score ≤ 50% "]
[]
[3,null,"Click the 'Save & Update' button to save and export the answers to the 'All results' worksheet. "]
[null,null,"Select the 'Reset Answers' button if you wish to clear all answers."]

{"sheet":"FW metal nonplant_WS","index":10,"n_rows":5,"n_cols":25,"rows_kept":5,"cut":false,"hidden":false,"merged":[]}
[]
["Question No.",1,2,3,4,5,6,7,8,9,10,11,12,13,14,15,16.100000000000001,16.2,16.3,16.399999999999999,16.600000000000001,17,18,"Total Score","Quality Score"]
["Short Questions","Duration of the exposure ","Biological endpoint","Biological effect stated or not","Biological effect quantified or not","Appropriate controls","Control & contaminant concentration","Test acceptability criteria","Characteristics of the test organism"," Type of test media","Type of exposure","Contaminant concentrations","Parallel reference toxicant toxicity tests","Concentration–response relationship","Determine the toxicity","NOEC/LOEC or LC/EC/BEC","pH","Hardness","Alkalinity","Organic carbon concentration","Dissolved Oxygen","Temperature","Grade or purity"]
["Marks Awarded ","10 or 0","10,5 or 0","5 or 0 ","5 or 0 ","5 or 0 ","5 or 0 ","5 or 0 ","5 or 0 ","5 or 0 ","4 or 0","4 or 2 or 0","4 or 2","4 or 2","4 or 2","4 or 2","3 or 1 or 0","3 or 1 or 0","3 or 1 or 0","3 or 1 or 0","3 or 1 or 0","3 or 0","3 or 0 "]
["Max. Possible Score",10,10,5,5,5,5,5,5,5,4,4,4,4,4,4,3,3,3,3,3,3,3,{"$f":"SUM(B5:W5)","v":100}]

{"sheet":"FW nonmetal nonplant","index":11,"n_rows":81,"n_cols":53,"rows_kept":81,"cut":false,"hidden":false,"merged":[[65,2,68,2],[65,7,68,7],[59,7,61,7],[52,2,54,2],[52,7,54,7],[56,7,58,7],[62,2,64,2],[62,7,64,7],[43,2,45,2],[43,7,45,7],[46,2,48,2],[46,7,48,7],[49,2,51,2],[49,7,51,7],[34,2,36,2],[34,7,36,7],[37,2,39,2],[37,7,39,7],[40,2,42,2],[40,7,42,7],[25,2,27,2],[25,7,27,7],[28,2,30,2],[28,7,30,7],[31,2,33,2],[31,7,33,7],[17,2,19,2],[17,7,19,7],[20,2,21,2],[20,7,21,7],[22,2,24,2],[22,7,24,7],[3,4,7,4],[9,2,9,4],[11,2,13,2],[11,7,13,7],[14,2,16,2],[14,7,16,7]]}
[null,1,"Fill in the blank cells below, based on information provided in the paper being assessed. You can either pick an option from the dropdown list or add the appropriate detail using the 'Add to list' button. ",null,null,null,null,null,null,null,null,null,null,null,"* All the text in RED are used for drop down list ,make changes with caution."]
[null,null,"Category",{"$f":"IF(AF3=\"\",0,1)","v":0},"Freshwater/non-metal/non- plant",{"$f":"IF(E3=\"\",0,1)","v":0},"Citation No.",{"$f":"IF(ISERROR(FIND(\"-\",E3)),E3,LEFT(E3,FIND(\"-\",E3)-1))","v":0},null,"Taxonomic group",null,null,null,null,"Species",null,null,"Lifestage",null,null,"Exposure duration",null,null,"Measure of toxicity",null,null,"Toxicity endpoint",null,null,"Taxonomic group",null,null,"Phylum",null,null,"Class",null,null,"Media",null,null,"Temperature ",null,null,"Acute Or Chronic",null,null,"PH",null,null,"Salinity/Comdictivity"]
[null,null,"Paper and data unique identifier(eg. 1-1,10-150)",{"$f":"IF(AI3=\"\",0,1)","v":0},null,{"$f":"IF(E4=\"\",0,1)","v":0},"Species (Scientific name)",null,null,"Phylum",null,null,null,null,"Aedes albopictus",0,{"$f":"IF(P3=0,\"\",INDEX(O3:O102,P3))","v":""},"1 month",0,{"$f":"IF(S3=0,\"\",INDEX(R3:R102,S3))","v":""},"11 hour",0,{"$f":"IF(V3=0,\"\",INDEX(U3:U102,V3))","v":""},"LC50",0,{"$f":"IF(Y3=0,\"\",INDEX(X3:X102,Y3))","v":""},"Mortality",0,{"$f":"IF(AB3=0,\"\",INDEX(AA3:AA102,AB3))","v":""},"Fish",0,{"$f":"IF(AE3=0,\"\",INDEX(AD3:AD102,AE3))","v":""},"Chlorophyta",0,{"$f":"IF(AH3=0,\"\",INDEX(AG3:AG102,AH3))","v":""},"Branchiopoda",0,{"$f":"IF(AK3=0,\"\",INDEX(AJ3:AJ102,AK3))","v":""},"Freshwater",0,{"$f":"IF(AN3=0,\"\",INDEX(AM3:AM102,AN3))","v":""},"15°C",0,{"$f":"IF(AQ3=0,\"\",INDEX(AP3:AP102,AQ3))","v":""},"Acute ",0,{"$f":"IF(AT3=0,\"\",INDEX(AS3:AS102,AT3))","v":""},"N.A.",0,{"$f":"IF(AW3=0,\"\",INDEX(AV3:AV102,AW3))","v":""},null,null,"N.A."]
[null,null,"Citation",{"$f":"IF(AL3=\"\",0,1)","v":0},null,{"$f":"IF(H8=\"\",0,1)","v":0},"Lifestage",null,null,"Class",null,null,null,null,"Australian Bass",null,null,"1 year old",null,null,"13 days",null,null,"N.A.",null,null,"N.A.",null,null,"Microalga",null,null,"N.A.",null,null,"Chlorophyceae  ",null,null,"Marinewater",null,null,"25°C",null,null,"Chronic",null,null,"PH11"]
[null,null,null,{"$f":"IF(AO3=\"\",0,1)","v":0},null,{"$f":"IF(W3=\"\",0,1)","v":0},"Exposure duration",null,null,"Media",null,null,null,null,"N.A.",null,null,"N.A.",null,null,"N.A.",null,null,"NOEC",null,null,"Reproduction",null,null,"N.A.",null,null,"Tracheophyta",null,null,"N.A.",null,null,"N.A.",null,null,"N.A.",null,null,"N.A.",null,null,"PH7.0"]
[null,null,null,{"$f":"IF(AR3=\"\",0,1)","v":0},null,{"$f":"IF(Q3=\"\",0,1)","v":0},"Measure of toxicity",null,null,"Temperature "]
[null,null,null,{"$f":"IF(AU3=\"\",0,1)","v":0},null,{"$f":"IF(T3=\"\",0,1)","v":0},"Toxicity endpoint",null,null,"Acute Or Chronic "]
[null,null,null,null,null,{"$f":"IF(W3=\"\",0,1)","v":0},"Toxicity value",null,null,"PH"]
[null,2,"Select the appropriate answer option to each question. Comments can be added to the cells in column H.",null,null,{"$f":"IF(Z3=\"\",0,1)","v":0},null,null,null,"Salinity/Conductivity","N.A."]
[null,"*","If the selected answer option does not work try clicking on any other cell first and then click back on the answer option again.",null,null,{"$f":"IF(AC3=\"\",0,1)","v":0}]
[null,"No.","Question","Marks Awarded","Answer Options","Option References","Scores","Answers"]
[null,null,"Was the duration of the exposure stated (e.g. 48 or 96 h)?",10,null,0,{"$f":"IF(F12=0,0,INDEX($D12:$D13,F12,1))","v":0}]
[null,1,null,0]
[]
[null,null,"Was the biological endpoint (e.g. immobilization or population growth) stated and defined (10 marks)? Award 5 marks if the biological endpoint is only stated.",10,null,0,{"$f":"IF(F15=0,0,INDEX($D15:$D17,F15,1))","v":0}]
[null,2,null,5]
[null,null,null,0]
[null,null,"Was the biological effect stated (e.g. LC or NOEC)?",5,null,0,{"$f":"IF(F18=0,0,INDEX($D18:$D19,F18,1))","v":0}]
[null,3,null,0]
[]
[null,4,"Was the biological effect quantified (e.g. 50% effect, 25% effect)? \nNote: The effect for NOEC and LOEC data must be quantified.",5,null,0,{"$f":"IF(F21=0,0,INDEX($D21:$D22,F21,1))","v":0}]
[null,null,null,0]
[null,5,"Were appropriate controls (e.g. a no-toxicant control and/or solvent control) used?",5,null,0,{"$f":"IF(F23=0,0,INDEX($D23:$D24,F23,1))","v":0}]
[null,null,null,0]
[]
[null,6,"Was each control and contaminant concentration at least duplicated?",5,null,0,{"$f":"IF(F26=0,0,INDEX($D26:$D27,F26,1))","v":0}]
[null,null,null,0]
[]
[null,7,"Were test acceptability criteria stated (e.g. mortality in controls must not exceed a certain percentage) (5 marks)?\nOR Were test acceptability criteria inferred (e.g. test method used [USEPA, OECD, ASTM etc.]) (award 2 marks). \nNote: Data that fail the acceptability criteria are automatically deemed to be of unacceptable quality and must not be used. ",5,null,0,{"$f":"IF(F29=0,0,INDEX($D29:$D31,F29,1))","v":0}]
[null,null,null,2]
[null,null,null,0]
[null,8,"Were the characteristics of the test organism (e.g. length, mass, age) stated?",5,null,0,{"$f":"IF(F32=0,0,INDEX($D32:$D34,F32,1))","v":0}]
[null,null,null,0]
[]
[null,9,"Was the type of test media used stated?",5,null,0,{"$f":"IF(F35=0,0,INDEX($D35:$D37,F35,1))","v":0}]
[null,null,null,0]
[]
[null,null,"Was the type of exposure (e.g. static, flow through) stated? ",4,null,0,{"$f":"IF(F38=0,0,INDEX($D38:$D40,F38,1))","v":0}]
[null,10,null,0]
[]
[null,null,"Were the contaminant concentrations measured at the beginning and end of the exposure (4 marks)? Award 2 marks if they were measured only once during the test.\nNote: If the concentrations were not measured then automatically the data cannot be high quality. ",4,null,0,{"$f":"IF(F41=0,0,INDEX($D41:$D43,F41,1))","v":0}]
[null,11,null,2]
[null,null,null,0]
[null,null,"Were parallel reference toxicant toxicity tests conducted?",4,null,0,{"$f":"IF(F44=0,0,INDEX($D44:$D46,F44,1))","v":0}]
[null,12,null,0]
[]
[null,null,"Was there a concentration–response relationship either observable or stated?",4,null,0,{"$f":"IF(F47=0,0,INDEX($D47:$D49,F47,1))","v":0}]
[null,13,null,0]
[]
[null,null,"Was an appropriate statistical method or model used to determine the toxicity?\nNote: They should be accepted by a recognised national or international regulatory body (e.g. USEPA, OECD, ASTM). ",4,null,0,{"$f":"IF(F50=0,0,INDEX($D50:$D52,F50,1))","v":0}]
[null,14,null,0]
[]
[null,15,"For LC/EC/BEC data was an estimate of variability provided? \nOR \nFor NO EC/LOEC data was the significance level 0.05 or less?  \n\n",4,null,0,{"$f":"IF(F53=0,0,INDEX($D53:$D55,F53,1))","v":0}]
[null,null,null,0]
[]
[null,16,"Were the following parameters measured and stated? (3 marks if measured and stated, 1 mark if just measured)."]
[null,null,null,3,null,0,{"$f":"IF(F57=0,0,INDEX($D57:$D59,F57,1))","v":0}]
[null,16.100000000000001,"pH",1]
[null,null,null,0]
[null,null,null,3,null,0,{"$f":"IF(F60=0,0,INDEX($D60:$D62,F60,1))","v":0}]
[null,16.2,"Dissolved Oxygen",1]
[null,null,null,0]
[null,null,"Was the temperature measured and stated (3 marks)? Award 1 mark if the temperature was measured but not stated or if only the temperature settings of the room or chamber are stated.",3,null,0,{"$f":"IF(F63=0,0,INDEX(D63:D65,F63,1))","v":0}]
[null,17,null,1]
[null,null,null,0]
[null,null,"Were test solutions, blanks and/or controls tested for contamination OR were analytical reagent grade chemicals used or the highest possible purity chemicals used for the experiment? (3 marks).",3,null,0,{"$f":"IF(F66=0,0,INDEX($D66:$D67,F66,1))","v":0}]
[null,18,null,0]
[]
[null,null,null,null,null,null,null,null,{"$f":"(COUNTIF(F12:F67,\"=0\"))+COUNTIF(F2:F10,\"=0\")+COUNTIF(D2:D7,\"=0\")","v":34}]
[]
[]
[null,null,"Total score",null,null,null,{"$f":"IF(SUM(G12:G66)=0,\"\",SUM(G12:G66))","v":""}]
[null,null,"Total Max. possible score for the various types of data and contaminants ",null,{"$f":"D12+D15+D18+D21+D23+D26+D29+D32+D35+D38+D41+D44+D47+D50+D53+D57+D60+D63+D66","v":91}]
[null,null,"Quality Score",null,{"$f":"\"= [Total score / Total possible score] * 100 = \"","v":"= [Total score / Total possible score] * 100 = "},null,{"$f":"IF(ISERROR(G72/E73),#N/A,G72/E73)","v":{"$error":"#N/A"}},{"$f":"IF(F41=3,\"The highest possible grade for this datum is acceptable.\",\"\")","v":""}]
[]
[null,null,"H = high quality                           Quality score ≥ 80%      "]
[null,null,"A = acceptable quality         > 50% Quality score < 80%        "]
[null,null,"U = unacceptable quality              Quality score ≤ 50%  "]
[]
[3,null,"Click the 'Save & Update' button to save and export the answers to the 'All results' worksheet. "]
[null,null,"Select the 'Reset Answers' button if you wish to clear all answers."]

{"sheet":"FW nonmetal nonplant_WS","index":12,"n_rows":3,"n_cols":24,"rows_kept":3,"cut":false,"hidden":false,"merged":[]}
[]
["Question No.",1,2,3,4,5,6,7,8,9,10,11,12,13,14,15,16.100000000000001,16.600000000000001,17,18,"Total Score","Quality Score",null,"Comment "]
["Short Questions","Duration of the exposure ","Biological endpoint","Biological effect stated or not","Biological effect quantified or not","Appropriate controls","Control & contaminant concentration","Test acceptability criteria","Characteristics of the test organism"," Type of test media","Type of exposure","Contaminant concentrations","Parallel reference toxicant toxicity tests","Concentration–response relationship","Determine the toxicity","NOEC/LOEC or LC/EC/BEC","pH","Dissolved oxygen","Temperature","Grade or purity"]

{"sheet":"FW metal plant","index":13,"n_rows":87,"n_cols":53,"rows_kept":87,"cut":false,"hidden":false,"merged":[[71,2,74,2],[71,7,74,7],[52,2,54,2],[52,7,54,7],[68,2,70,2],[68,7,70,7],[65,7,67,7],[56,7,58,7],[59,7,61,7],[62,7,64,7],[43,2,45,2],[43,7,45,7],[46,2,48,2],[46,7,48,7],[49,2,51,2],[49,7,51,7],[34,2,36,2],[34,7,36,7],[37,2,39,2],[37,7,39,7],[40,2,42,2],[40,7,42,7],[25,2,27,2],[25,7,27,7],[28,2,30,2],[28,7,30,7],[31,2,33,2],[31,7,33,7],[17,2,19,2],[17,7,19,7],[20,2,21,2],[20,7,21,7],[22,2,24,2],[22,7,24,7],[3,4,7,4],[9,2,9,4],[11,2,13,2],[11,7,13,7],[14,2,16,2],[14,7,16,7]]}
[null,1,"Fill in the blank cells below, based on information provided in the paper being assessed. You can either pick an option from the dropdown list or add the appropriate detail using the 'Add to list' button. ",null,null,null,null,null,null,null,null,null,null,null,"* All the text in RED are used for drop down list ,make changes with caution."]
[null,null,"Category",{"$f":"IF(AF3=\"\",0,1)","v":0},"Freshwater/metal/plant",{"$f":"IF(E3=\"\",0,1)","v":0},"Citation No.",{"$f":"IF(ISERROR(FIND(\"-\",E3)),E3,LEFT(E3,FIND(\"-\",E3)-1))","v":0},null,"Taxonomic group",null,null,null,null,"Species",null,null,"Lifestage",null,null,"Exposure duration",null,null,"Measure of toxicity",null,null,"Toxicity endpoint",null,null,"Taxonomic group",null,null,"Phylum",null,null,"Class",null,null,"Media",null,null,"Temperature ",null,null,"Acute Or Chronic",null,null,"PH",null,null,"Salinity/Comdictivity"]
[null,null,"Paper and data unique identifier(eg. 1-1,10-150)",{"$f":"IF(AI3=\"\",0,1)","v":0},null,{"$f":"IF(E4=\"\",0,1)","v":0},"Species (Scientific name)",null,null,"Phylum",null,null,null,null,"Aedes albopictus",0,{"$f":"IF(P3=0,\"\",INDEX(O3:O108,P3))","v":""},"1 month",0,{"$f":"IF(S3=0,\"\",INDEX(R3:R108,S3))","v":""},"11 hour",0,{"$f":"IF(V3=0,\"\",INDEX(U3:U108,V3))","v":""},"LC50",0,{"$f":"IF(Y3=0,\"\",INDEX(X3:X108,Y3))","v":""},"Mortality",0,{"$f":"IF(AB3=0,\"\",INDEX(AA3:AA108,AB3))","v":""},"Fish ",0,{"$f":"IF(AE3=0,\"\",INDEX(AD3:AD108,AE3))","v":""},"Chlorophyta",0,{"$f":"IF(AH3=0,\"\",INDEX(AG3:AG108,AH3))","v":""},"Branchiopoda",0,{"$f":"IF(AK3=0,\"\",INDEX(AJ3:AJ108,AK3))","v":""},"Freshwater",0,{"$f":"IF(AN3=0,\"\",INDEX(AM3:AM108,AN3))","v":""},"15°C",0,{"$f":"IF(AQ3=0,\"\",INDEX(AP3:AP108,AQ3))","v":""},"Acute ",0,{"$f":"IF(AT3=0,\"\",INDEX(AS3:AS108,AT3))","v":""},"N.A.",0,{"$f":"IF(AW3=0,\"\",INDEX(AV3:AV108,AW3))","v":""},"Salinity1",null,"N.A."]
[null,null,"Citation",{"$f":"IF(AL3=\"\",0,1)","v":0},null,{"$f":"IF(H8=\"\",0,1)","v":0},"Lifestage",null,null,"Class",null,null,null,null,"Australian Bass",null,null,"1 year old",null,null,"13 days",null,null,"N.A.",null,null,"N.A.",null,null,"Microalga",null,null,"N.A.",null,null,"Chlorophyceae",null,null,"Marinewater",null,null,"25°C",null,null,"Chronic",null,null,"PH11",null,null,"Salinity2"]
[null,null,null,{"$f":"IF(AO3=\"\",0,1)","v":0},null,{"$f":"IF(AX3=\"\",0,1)","v":0},"Exposure duration",null,null,"Media",null,null,null,null,"N.A.",null,null,"N.A.",null,null,"N.A.",null,null,"NOEC",null,null,"Reproduction",null,null,"N.A.",null,null,"Tracheophyta",null,null,"N.A.",null,null,"N.A.",null,null,"N.A.",null,null,"N.A.",null,null,"PH7.0 "]
[null,null,null,{"$f":"IF(AR3=\"\",0,1)","v":0},null,{"$f":"IF(Q3=\"\",0,1)","v":0},"Measure of toxicity",null,null,"Temperature "]
[null,null,null,{"$f":"IF(AU3=\"\",0,1)","v":0},null,{"$f":"IF(T3=\"\",0,1)","v":0},"Toxicity endpoint",null,null,"Acute Or Chronic "]
[null,null,null,null,null,{"$f":"IF(W3=\"\",0,1)","v":0},"Toxicity value",null,null,"PH"]
[null,2,"Select the appropriate answer option to each question. Comments can be added to the cells in column H.",null,null,{"$f":"IF(Z3=\"\",0,1)","v":0},null,null,null,"Salinity/Conductivity","N.A."]
[null,"*","If the selected answer option does not work try clicking on any other cell first and then click back on the answer option again.",null,null,{"$f":"IF(AC3=\"\",0,1)","v":0}]
[null,"No.","Question","Marks Awarded","Answer Options","Option References","Scores","Answers"]
[null,null,"Was the duration of the exposure stated (e.g. 48 or 96 h)?",10,null,0,{"$f":"IF(F15=0,0,INDEX($D12:$D13,F12,1))","v":0}]
[null,1,null,0]
[]
[null,null,"Was the biological endpoint (e.g., immobilization or population growth) stated and defined (10 marks)? Award 5 marks if the biological endpoint is only stated.",10,null,0,{"$f":"IF(F15=0,0,INDEX($D15:$D17,F15,1))","v":0}]
[null,2,null,5]
[null,null,null,0]
[null,null,"Was the biological effect stated (e.g. LC or NOEC)?",5,null,0,{"$f":"IF(F18=0,0,INDEX($D18:$D19,F18,1))","v":0}]
[null,3,null,0]
[]
[null,4,"Was the biological effect quantified (e.g. 50% effect, 25% effect)? \nNote: The effect for NOEC and LOEC data must be quantified.",5,null,0,{"$f":"IF(F21=0,0,INDEX($D21:$D22,F21,1))","v":0}]
[null,null,null,0]
[null,5,"Were appropriate controls (e.g. a no-toxicant control and/or solvent control) used?",5,null,0,{"$f":"IF(F23=0,0,INDEX($D23:$D24,F23,1))","v":0}]
[null,null,null,0]
[]
[null,6,"Was each control and contaminant concentration at least duplicated?",5,null,0,{"$f":"IF(F26=0,0,INDEX($D26:$D27,F26,1))","v":0}]
[null,null,null,0]
[]
[null,7,"Were test acceptability criteria stated (e.g. mortality in controls must not exceed a certain percentage) (5 marks)?\nOR Were test acceptability criteria inferred (e.g. test method used [USEPA, OECD, ASTM etc.]) (award 2 marks). \nNote: Data that fail the acceptability criteria are automatically deemed to be of unacceptable quality and must not be used. ",5,null,0,{"$f":"IF(F29=0,0,INDEX($D29:$D31,F29,1))","v":0}]
[null,null,null,2]
[null,null,null,0]
[null,8,"Were the characteristics of the test organism (e.g. length, mass, age) stated?",5,null,0,{"$f":"IF(F32=0,0,INDEX($D32:$D34,F32,1))","v":0}]
[null,null,null,0]
[]
[null,9,"Was the type of test media used stated?",5,null,0,{"$f":"IF(F35=0,0,INDEX($D35:$D37,F35,1))","v":0}]
[null,null,null,0]
[]
[null,null,"Was the type of exposure (e.g. static, flow through) stated? ",4,null,0,{"$f":"IF(F38=0,0,INDEX($D38:$D40,F38,1))","v":0}]
[null,10,null,0]
[]
[null,null,"Were the contaminant concentrations measured at the beginning and end of the exposure (4 marks)? Award 2 marks if they were measured only once during the test.\nNote: If the concentrations were not measured then automatically the data cannot be high quality. ",4,null,0,{"$f":"IF(F41=0,0,INDEX($D41:$D43,F41,1))","v":0}]
[null,11,null,2]
[null,null,null,0]
[null,null,"Were parallel reference toxicant toxicity tests conducted?",4,null,0,{"$f":"IF(F44=0,0,INDEX($D44:$D46,F44,1))","v":0}]
[null,12,null,0]
[]
[null,null,"Was there a concentration–response relationship either observable or stated?",4,null,0,{"$f":"IF(F47=0,0,INDEX($D47:$D49,F47,1))","v":0}]
[null,13,null,0]
[]
[null,null,"Was an appropriate statistical method or model used to determine the toxicity?\nNote: They should be accepted by a recognised national or international regulatory body (e.g. USEPA, OECD, ASTM). ",4,null,0,{"$f":"IF(F50=0,0,INDEX($D50:$D52,F50,1))","v":0}]
[null,14,null,0]
[]
[null,15,"For LC/EC/BEC data was an estimate of variability provided? \nOR \nFor NO EC/LOEC data was the significance level 0.05 or less?  \n\n",4,null,0,{"$f":"IF(F53=0,0,INDEX($D53:$D55,F53,1))","v":0}]
[null,null,null,0]
[]
[null,16,"Were the following parameters measured and stated? (3 marks if measured and stated, 1 mark if just measured)."]
[null,null,null,3,null,0,{"$f":"IF(F57=0,0,INDEX($D57:$D59,F57,1))","v":0}]
[null,16.100000000000001,"pH ",1]
[null,null,null,0]
[null,null,null,3,null,0,{"$f":"IF(F60=0,0,INDEX($D60:$D62,F60,1))","v":0}]
[null,16.2,"Hardness",1]
[null,null,null,0]
[null,null,null,3,null,0,{"$f":"IF(F63=0,0,INDEX($D63:$D65,F63,1))","v":0}]
[null,16.3,"Alkalinity ",1]
[null,null,null,0]
[null,null,null,3,null,0,{"$f":"IF(F66=0,0,INDEX($D66:$D68,F66,1))","v":0}]
[null,16.399999999999999,"Organic carbon concentration",1]
[null,null,null,0]
[null,null,"Was the temperature measured and stated (3 marks)? Award 1 mark if the temperature was measured but not stated or if only the temperature settings of the room or chamber are stated.",3,null,0,{"$f":"IF(F69=0,0,INDEX($D69:$D71,F69,1))","v":0}]
[null,17,null,1]
[null,null,null,0]
[null,null,"Were test solutions, blanks and/or controls tested for contamination OR were analytical reagent grade chemicals used or the highest possible purity chemicals used for the experiment? (3 marks).",3,null,0,{"$f":"IF(F72=0,0,INDEX($D72:$D73,F72,1))","v":0}]
[null,18,null,0]
[]
[null,null,null,null,null,null,null,null,{"$f":"(COUNTIF(F12:F73,\"=0\"))+COUNTIF(F2:F10,\"=0\")+COUNTIF(D2:D7,\"=0\")","v":36}]
[]
[]
[null,null,"Total score",null,null,null,{"$f":"IF(SUM(G12:G72)=0,\"\",SUM(G12:G72))","v":""}]
[null,null,"Total Max. possible score for the various types of data and contaminants ",null,{"$f":"D12+D15+D18+D21+D23+D26+D29+D32+D35+D38+D41+D44+D47+D50+D53+D57+D66+D69+D72+D60+D63","v":97}]
[null,null,"Quality Score",null,{"$f":"\"= [Total score / Total possible score] * 100 = \"","v":"= [Total score / Total possible score] * 100 = "},null,{"$f":"IF(ISERROR(G78/E79),#N/A,G78/E79)","v":{"$error":"#N/A"}},{"$f":"IF(F41=3,\"The highest possible grade for this datum is acceptable.\",\"\")","v":""}]
[]
[null,null,"H = high quality                           Quality score ≥ 80%      "]
[null,null,"A = acceptable quality         > 50% Quality score < 80%      "]
[null,null,"U = unacceptable quality              Quality score ≤ 50%  "]
[]
[3,null,"Click the 'Save & Update' button to save and export the answers to the 'All results' worksheet. "]
[null,null,"Select the 'Reset Answers' button if you wish to clear all answers."]

{"sheet":"FW metal plant_WS","index":14,"n_rows":5,"n_cols":24,"rows_kept":5,"cut":false,"hidden":false,"merged":[]}
[]
["Question No.",1,2,3,4,5,6,7,8,9,10,11,12,13,14,15,16.100000000000001,16.2,16.3,16.399999999999999,17,18,"Total Score","Quality Score"]
["Short Questions","Duration of the exposure ","Biological endpoint","Biological effect stated or not","Biological effect quantified or not","Appropriate controls","Control & contaminant concentration","Test acceptability criteria","Characteristics of the test organism"," Type of test media","Type of exposure","Contaminant concentrations","Parallel reference toxicant toxicity tests","Concentration–response relationship","Determine the toxicity","NOEC/LOEC or LC/EC/BEC","pH","Hardness","Alkalinity ","Organic carbon concentration","Temperature","Grade or purity"]
["Marks Awarded ","10 or 0","10,5 or 0","5 or 0 ","5 or 0 ","5 or 0 ","5 or 0 ","5 or 0 ","5 or 0 ","5 or 0 ","4 or 0","4 or 2 or 0","4 or 2","4 or 2","4 or 2","4 or 2","3 or 1 or 0","3 or 1 or 0","3 or 1 or 0","3 or 1 or 0","3 or 0","3 or 0 "]
["Max. Possible Score",10,10,5,5,5,5,5,5,5,4,4,4,4,4,4,3,3,3,3,3,3,{"$f":"SUM(B5:V5)","v":97}]

{"sheet":"FW nonmetal plant","index":15,"n_rows":79,"n_cols":53,"rows_kept":79,"cut":false,"hidden":false,"merged":[[60,2,62,2],[60,7,62,7],[63,2,66,2],[63,7,66,7],[52,2,54,2],[52,7,54,7],[56,2,59,2],[56,7,59,7],[43,2,45,2],[43,7,45,7],[46,2,48,2],[46,7,48,7],[49,2,51,2],[49,7,51,7],[34,2,36,2],[34,7,36,7],[37,2,39,2],[37,7,39,7],[40,2,42,2],[40,7,42,7],[25,2,27,2],[25,7,27,7],[28,2,30,2],[28,7,30,7],[31,2,33,2],[31,7,33,7],[17,2,19,2],[17,7,19,7],[20,2,21,2],[20,7,21,7],[22,2,24,2],[22,7,24,7],[3,4,7,4],[9,2,9,4],[11,2,13,2],[11,7,13,7],[14,2,16,2],[14,7,16,7]]}
[null,1,"Fill in the blank cells below, based on information provided in the paper being assessed. You can either pick an option from the dropdown list or add the appropriate detail using the 'Add to list' button. ",null,null,null,null,null,null,null,null,null,null,null,"* All the text in RED are used for drop down list ,make changes with caution."]
[null,null,"Category",{"$f":"IF(AF3=\"\",0,1)","v":0},"Freshwater/non-metal/plant",{"$f":"IF(E3=\"\",0,1)","v":0},"Citation No.",{"$f":"IF(ISERROR(FIND(\"-\",E3)),E3,LEFT(E3,FIND(\"-\",E3)-1))","v":0},null,"Taxonomic group",null,null,null,null,"Species",null,null,"Lifestage",null,null,"Exposure duration",null,null,"Measure of toxicity",null,null,"Toxicity endpoint",null,null,"Taxonomic group",null,null,"Phylum",null,null,"Class",null,null,"Media",null,null,"Temperature ",null,null,"Acute Or Chronic",null,null,"PH",null,null,"Salinity/Conductivity"]
[null,null,"Paper and data unique identifier(eg. 1-1,10-150)",{"$f":"IF(AI3=\"\",0,1)","v":0},null,{"$f":"IF(E4=\"\",0,1)","v":0},"Species (Scientific name)",null,null,"Phylum",null,null,null,null,"Aedes albopictus",0,{"$f":"IF(P3=0,\"\",INDEX(O3:O100,P3))","v":""},"1 month",0,{"$f":"IF(S3=0,\"\",INDEX(R3:R100,S3))","v":""},"11 hours",0,{"$f":"IF(V3=0,\"\",INDEX(U3:U100,V3))","v":""},"LC50",0,{"$f":"IF(Y3=0,\"\",INDEX(X3:X100,Y3))","v":""},"Mortality",0,{"$f":"IF(AB3=0,\"\",INDEX(AA3:AA100,AB3))","v":""},"Fish",0,{"$f":"IF(AE3=0,\"\",INDEX(AD3:AD100,AE3))","v":""},"Chlorophyta",0,{"$f":"IF(AH3=0,\"\",INDEX(AG3:AG100,AH3))","v":""},"Branchiopoda",0,{"$f":"IF(AK3=0,\"\",INDEX(AJ3:AJ102,AK3))","v":""},"Freshwater",0,{"$f":"IF(AN3=0,\"\",INDEX(AM3:AM100,AN3))","v":""},"15°C",0,{"$f":"IF(AQ3=0,\"\",INDEX(AP3:AP100,AQ3))","v":""},"Acute ",0,{"$f":"IF(AT3=0,\"\",INDEX(AS3:AS100,AT3))","v":""},"N.A.",0,{"$f":"IF(AW3=0,\"\",INDEX(AV3:AV100,AW3))","v":""},"30 ppt",null,"N.A."]
[null,null,"Citation",{"$f":"IF(AL3=\"\",0,1)","v":0},null,{"$f":"IF(AX3=\"\",0,1)","v":0},"Lifestage",null,null,"Class",null,null,null,null,"Australian Bass",null,null,"1 year old",null,null,"13 days ",null,null,"N.A.",null,null,"N.A.",null,null,"Microalga",null,null,"N.A.",null,null,"Chlorophyceae",null,null,"Marinewater",null,null,"25°C",null,null,"Chronic",null,null,"PH11",null,null,"150 uS/cm"]
[null,null,null,{"$f":"IF(AO3=\"\",0,1)","v":0},null,{"$f":"IF(H8=\"\",0,1)","v":0},"Exposure duration",null,null,"Media",null,null,null,null,"N.A.",null,null,"N.A.",null,null,"N.A.",null,null,"NOEC",null,null,"Reproduction",null,null,"N.A.",null,null,"Tracheophyta",null,null,"N.A.",null,null,"N.A.",null,null,"N.A.",null,null,"N.A.",null,null,"PH7.0",null,null,"N.A."]
[null,null,null,{"$f":"IF(AR3=\"\",0,1)","v":0},null,{"$f":"IF(Q3=\"\",0,1)","v":0},"Measure of toxicity",null,null,"Temperature "]
[null,null,null,{"$f":"IF(AU3=\"\",0,1)","v":0},null,{"$f":"IF(T3=\"\",0,1)","v":0},"Toxicity endpoint",null,null,"Acute Or Chronic "]
[null,null,null,null,null,{"$f":"IF(W3=\"\",0,1)","v":0},"Toxicity value",null,null,"PH"]
[null,2,"Select the appropriate answer option to each question. Comments can be added to the cells in column H.",null,null,{"$f":"IF(Z3=\"\",0,1)","v":0},null,null,null,"Salinity/Conductivity","N.A."]
[null,"*","If the selected answer option does not work try clicking on any other cell first and then click back on the answer option again.",null,null,{"$f":"IF(AC3=\"\",0,1)","v":0}]
[null,"No.","Question","Marks Awarded","Answer Options","Option References","Scores","Answers"]
[null,null,"Was the duration of the exposure stated (e.g. 48 or 96 h)?",10,null,0,{"$f":"IF(F15=0,0,INDEX($D12:$D13,F12,1))","v":0}]
[null,1,null,0]
[]
[null,null,"Was the biological endpoint (e.g., immobilization or population growth) stated and defined (10 marks)? Award 5 marks if the biological endpoint is only stated.",10,null,0,{"$f":"IF(F15=0,0,INDEX($D15:$D17,F15,1))","v":0}]
[null,2,null,5]
[null,null,null,0]
[null,null,"Was the biological effect stated (e.g. LC or NOEC)?",5,null,0,{"$f":"IF(F18=0,0,INDEX($D18:$D19,F18,1))","v":0}]
[null,3,null,0]
[]
[null,4,"Was the biological effect quantified (e.g. 50% effect, 25% effect)? \nNote: The effect for NOEC and LOEC data must be quantified.",5,null,0,{"$f":"IF(F21=0,0,INDEX($D21:$D22,F21,1))","v":0}]
[null,null,null,0]
[null,5,"Were appropriate controls (e.g. a no-toxicant control and/or solvent control) used?",5,null,0,{"$f":"IF(F23=0,0,INDEX($D23:$D24,F23,1))","v":0}]
[null,null,null,0]
[]
[null,6,"Was each control and contaminant concentration at least duplicated?",5,null,0,{"$f":"IF(F26=0,0,INDEX($D26:$D27,F26,1))","v":0}]
[null,null,null,0]
[]
[null,7,"Were test acceptability criteria stated (e.g. mortality in controls must not exceed a certain percentage) (5 marks)?\nOR Were test acceptability criteria inferred (e.g. test method used [USEPA, OECD, ASTM etc.]) (award 2 marks). \nNote: Data that fail the acceptability criteria are automatically deemed to be of unacceptable quality and must not be used. ",5,null,0,{"$f":"IF(F29=0,0,INDEX($D29:$D31,F29,1))","v":0}]
[null,null,null,2]
[null,null,null,0]
[null,8,"Were the characteristics of the test organism (e.g. length, mass, age) stated?",5,null,0,{"$f":"IF(F32=0,0,INDEX($D32:$D34,F32,1))","v":0}]
[null,null,null,0]
[]
[null,9,"Was the type of test media used stated?",5,null,0,{"$f":"IF(F35=0,0,INDEX($D35:$D37,F35,1))","v":0}]
[null,null,null,0]
[]
[null,null,"Was the type of exposure (e.g. static, flow through) stated? ",4,null,0,{"$f":"IF(F38=0,0,INDEX($D38:$D40,F38,1))","v":0}]
[null,10,null,0]
[]
[null,null,"Were the contaminant concentrations measured at the beginning and end of the exposure (4 marks)? Award 2 marks if they were measured only once during the test.\nNote: If the concentrations were not measured then automatically the data cannot be high quality. ",4,null,0,{"$f":"IF(F41=0,0,INDEX($D41:$D43,F41,1))","v":0}]
[null,11,null,2]
[null,null,null,0]
[null,null,"Were parallel reference toxicant toxicity tests conducted?",4,null,0,{"$f":"IF(F44=0,0,INDEX($D44:$D46,F44,1))","v":0}]
[null,12,null,0]
[]
[null,null,"Was there a concentration–response relationship either observable or stated?",4,null,0,{"$f":"IF(F47=0,0,INDEX($D47:$D49,F47,1))","v":0}]
[null,13,null,0]
[]
[null,null,"Was an appropriate statistical method or model used to determine the toxicity?\nNote: They should be accepted by a recognised national or international regulatory body (e.g. USEPA, OECD, ASTM). ",4,null,0,{"$f":"IF(F50=0,0,INDEX($D50:$D52,F50,1))","v":0}]
[null,14,null,0]
[]
[null,15,"For LC/EC/BEC data was an estimate of variability provided? \nOR \nFor NO EC/LOEC data was the significance level 0.05 or less?  \n\n",4,null,0,{"$f":"IF(F53=0,0,INDEX($D53:$D55,F53,1))","v":0}]
[null,null,null,0]
[]
[null,16,"Were the following parameters measured and stated? (3 marks if measured and stated, 1 mark if just measured)."]
[null,null,"pH",3,null,0,{"$f":"IF(F57=0,0,INDEX($D57:$D59,F57,1))","v":0}]
[null,16.100000000000001,null,1]
[null,null,null,0]
[]
[null,null,"Was the temperature measured and stated (3 marks)? Award 1 mark if the temperature was measured but not stated or if only the temperature settings of the room or chamber are stated.",3,null,0,{"$f":"IF(F61=0,0,INDEX($D61:$D63,F61,1))","v":0}]
[null,17,null,1]
[null,null,null,0]
[null,null,"Were test solutions, blanks and/or controls tested for contamination OR were analytical reagent grade chemicals used or the highest possible purity chemicals used for the experiment? (3 marks).",3,null,0,{"$f":"IF(F64=0,0,INDEX($D64:$D65,F64,1))","v":0}]
[null,18,null,0]
[]
[null,null,null,null,null,null,null,null,{"$f":"COUNTIF(D2:D7,\"=0\")+COUNTIF(F2:F10,\"=0\")+COUNTIF(F12:F64,\"=0\")","v":33}]
[]
[]
[null,null,"Total score",null,null,null,{"$f":"IF(SUM(G12:G67)=0,\"\",SUM(G12:G67))","v":""}]
[null,null,"Total Max. possible score for the various types of data and contaminants ",null,{"$f":"D12+D15+D18+D21+D23+D26+D29+D32+D35+D38+D41+D44+D47+D50+D53+D57+D61+D64","v":88}]
[null,null,"Quality Score",null,{"$f":"\"= [Total score / Total possible score] * 100 = \"","v":"= [Total score / Total possible score] * 100 = "},null,{"$f":"IF(ISERROR(G70/E71),#N/A,G70/E71)","v":{"$error":"#N/A"}},{"$f":"IF(F41=3,\"The highest possible grade for this datum is acceptable.\",\"\")","v":""}]
[]
[null,null,"H = high quality                           Quality score ≥ 80%  "]
[null,null,"A = acceptable quality         > 50% Quality score < 80%     "]
[null,null,"U = unacceptable quality              Quality score ≤ 50%"]
[]
[3,null,"Click the 'Save & Update' button to save and export the answers to the 'All results' worksheet. "]
[null,null,"Select the 'Reset Answers' button if you wish to clear all answers."]

{"sheet":"FW nonmetal plant_WS","index":16,"n_rows":3,"n_cols":22,"rows_kept":3,"cut":false,"hidden":false,"merged":[]}
[]
["Question No.",1,2,3,4,5,6,7,8,9,10,11,12,13,14,15,16.100000000000001,17,18,"Total Score","Quality Score","Comment "]
["Short Questions","Duration of the exposure ","Biological endpoint","Biological effect stated or not","Biological effect quantified or not","Appropriate controls","Control & contaminant concentration","Test acceptability criteria","Characteristics of the test organism"," Type of test media","Type of exposure","Contaminant concentrations","Parallel reference toxicant toxicity tests","Concentration–response relationship","Determine the toxicity","NOEC/LOEC or LC/EC/BEC","pH","Temperature","Grade or purity"]

{"sheet":"Terrestrial Data QA","index":17,"n_rows":98,"n_cols":25,"rows_kept":98,"cut":false,"hidden":false,"merged":[[72,7,75,7],[34,2,36,2],[28,2,30,2],[57,2,60,2],[37,2,39,2],[40,2,42,2],[72,2,75,2],[43,2,45,2],[31,2,33,2],[69,2,71,2],[46,2,48,2],[49,2,51,2],[53,2,56,2],[61,2,64,2],[65,2,68,2],[69,7,71,7],[11,2,13,2],[20,2,21,2],[22,2,24,2],[25,2,27,2],[14,2,16,2],[17,2,19,2],[61,7,64,7],[65,7,68,7],[11,7,13,7],[49,7,51,7],[14,7,16,7],[22,7,24,7],[25,7,27,7],[17,7,19,7],[20,7,21,7],[3,4,7,4],[53,7,56,7],[57,7,60,7],[37,7,39,7],[40,7,42,7],[43,7,45,7],[46,7,48,7],[34,7,36,7],[28,7,30,7],[31,7,33,7],[80,2,82,2],[80,7,82,7],[83,2,86,2],[83,7,86,7],[76,2,79,2],[76,7,79,7]]}
[null,1,"FILL IN BLANKS BELOW,PICK OPTIONS FROM DROPDOWN LIST",null,null,null,null,null,null,null,"* All the text in Blue are used for drop down list ,make changes with caution."]
[null,null,"Category",null,"Terrestrial Quality",{"$f":"IF(M3=\"\",0,1)","v":0},"Citation No.",{"$f":"IF(ISERROR(FIND(\"-\",E3)),E3,LEFT(E3,FIND(\"-\",E3)-1))","v":0},null,null,"Species",null,null,"Lifestage",null,null,"Exposure duration",null,null,"Measure of toxicity",null,null,"Toxicity endpoint"]
[null,null,"Paper and data unique identifier(eg. 1-1,10-150)",null,null,{"$f":"IF(E3=\"\",0,1)","v":0},"Species (Scientific name)",null,null,null,"Australian Bass",0,{"$f":"IF(L3=0,\"\",INDEX(K3:K47,L3))","v":""},"Phase 1",0,{"$f":"IF(O3=0,\"\",INDEX(N3:N47,O3))","v":""},"1 hour ",0,{"$f":"IF(R3=0,\"\",INDEX(Q3:Q47,R3))","v":""},"Method 1",0,{"$f":"IF(U3=0,\"\",INDEX(T3:T47,U3))","v":""},0.01,0,{"$f":"IF(X3=0,\"\",INDEX(W3:W47,X3))","v":""}]
[null,null,"Citation",null,null,{"$f":"IF(E4=\"\",0,1)","v":0},"Lifestage",null,null,null,"Bala Shark",null,null,"Phase 2",null,null,"2 hours",null,null,"Method 2",null,null,0.02]
[null,null,null,null,null,{"$f":"IF(S3=\"\",0,1)","v":0},"Exposure duration",null,null,null,"Basa",null,null,"Phase 3",null,null,"3 hours",null,null,"Method 3",null,null,0.03]
[null,null,null,null,null,{"$f":"IF(V3=\"\",0,1)","v":0},"Measure of toxicity",null,null,null,"Black Parinha",null,null,"Phase 4",null,null,"4 hours",null,null,"Method 4",null,null,0.04]
[null,null,null,null,null,{"$f":"IF(Y3=\"\",0,1)","v":0},"Toxicity endpoint",null,null,null,"Catfish",null,null,"Phase 5",null,null,"5 Hours",null,null,"Method 5",null,null,0.05]
[null,null,null,null,null,{"$f":"IF(H8=\"\",0,1)","v":0},"Toxicity value",null,null,null,null,null,null,"phase 6"]
[null,2,"CHOOSE ANSWER OPTIONS AND FILL IN ANSWERS IN ANSWER COLUMN",null,null,{"$f":"IF(M3=\"\",0,1)","v":0}]
[null,"*","If had problem click on answer options,click on any  other cells first and then click back again",null,null,{"$f":"IF(P3=\"\",0,1)","v":0}]
[null,"No.","Question","Marks Awarded","Answer Options","Option References","Scores","Answers"]
[null,null,"Was the duration of the exposure stated (e.g., 48 or 96 h)?",10,null,0,{"$f":"IF(F15=0,0,INDEX($D12:$D13,F12,1))","v":0}]
[null,1,null,0]
[]
[null,null,"Was the biological endpoint (e.g., immobilization or population growth) stated and defined (10 marks)? Award 5 marks if the biological endpoint is only stated.",10,null,0,{"$f":"IF(F15=0,0,INDEX($D15:$D17,F15,1))","v":0}]
[null,2,null,5]
[null,null,null,0]
[null,null,"Was the biological effect stated (e.g., LC or NOEC)?",5,null,0,{"$f":"IF(F18=0,0,INDEX($D18:$D19,F18,1))","v":0}]
[null,3,null,0]
[]
[null,4,"Was the biological effect quantified (e.g., 50% effect, 25% effect)? The effect for NOEC and LOEC data must be quantified.",5,null,0,{"$f":"IF(F21=0,0,INDEX($D21:$D22,F21,1))","v":0}]
[null,null,null,0]
[null,5,"Were appropriate controls (e.g., a no-toxicant control and/or solvent control) used?",5,null,0,{"$f":"IF(F23=0,0,INDEX($D23:$D24,F23,1))","v":0}]
[null,null,null,0]
[]
[null,6,"Was each control and contaminant concentration at least duplicated?",5,null,0,{"$f":"IF(F26=0,0,INDEX($D26:$D27,F26,1))","v":0}]
[null,null,null,0]
[]
[null,7,"Were test acceptability criteria stated (e.g., mortality in controls must not exceed a certain percentage) (5 marks)?\nOR\nWere test acceptability criteria inferred (e.g., test method used [USEPA, OECD, ASTM etc]) (award 2 marks). Note: Invalid data must no",5,null,0,{"$f":"IF(F29=0,0,INDEX($D29:$D31,F29,1))","v":0}]
[null,null,null,2]
[null,null,null,0]
[null,8,"Were the characteristics of the test organism (e.g., length, mass, age) stated?",5,null,0,{"$f":"IF(F32=0,0,INDEX($D32:$D34,F32,1))","v":0}]
[null,null,null,0]
[]
[null,9,"Was the type of test media used stated?",5,null,0,{"$f":"IF(F35=0,0,INDEX($D35:$D37,F35,1))","v":0}]
[null,null,null,0]
[]
[null,null,"Were the contaminant concentrations measured?",4,null,0,{"$f":"IF(F38=0,0,INDEX($D38:$D40,F38,1))","v":0}]
[null,10,null,0]
[]
[null,null,"Were parallel reference toxicant toxicity tests conducted?",4,null,0,{"$f":"IF(F41=0,0,INDEX($D41:$D43,F41,1))","v":0}]
[null,11,null,0]
[]
[null,null,"Was there a concentration–response relationship either observable or stated",4,null,0,{"$f":"IF(F44=0,0,INDEX($D44:$D46,F44,1))","v":0}]
[null,12,null,0]
[]
[null,null,"Was an appropriate statistical method or model used to determine the toxicity?",4,null,0,{"$f":"IF(F47=0,0,INDEX($D47:$D49,F47,1))","v":0}]
[null,13,null,0]
[]
[null,14,"For NOEC/LOEC data was the significance level 0.05 or less?   Or                                         For LC/EC/BEC data was an estimate of variability provided?\n\n",4,null,0,{"$f":"IF(F50=0,0,INDEX($D50:$D52,F50,1))","v":0}]
[null,null,null,0]
[]
[null,15,"Were the following parameters measured and stated? (3 marks if measured and stated, 1 if just measured)"]
[null,null,"pH",3,null,0,{"$f":"IF(F54=0,0,INDEX($D54:$D56,F54,1))","v":0}]
[null,15.1,null,1]
[null,null,null,0]
[]
[null,null,"OM or OC content",3,null,0,{"$f":"IF(F58=0,0,INDEX($D58:$D60,F58,1))","v":0}]
[null,15.2,null,1]
[null,null,null,0]
[]
[null,null,"Clay Contect",3,null,0,{"$f":"IF(F62=0,0,INDEX($D62:$D64,F62,1))","v":0}]
[null,15.3,null,1]
[null,null,null,0]
[]
[null,null,"CEC",3,null,0,{"$f":"IF(F66=0,0,INDEX($D66:$D68,F66,1))","v":0}]
[null,15.4,null,1]
[null,null,null,0]
[]
[null,null,"Was the temperature measured and stated?",3,null,0,{"$f":"IF(F70=0,0,INDEX($D70:$D72,F70,1))","v":0}]
[null,16,null,0]
[]
[null,null,"Was the grade or purity of the test contaminant stated?",3,null,0,{"$f":"IF(F73=0,0,INDEX($D73:$D74,F73,1))","v":0}]
[null,17,null,0]
[]
[]
[null,null,"Were other cations and or major soil elements measured?                                                  Or                                                                                                                             Were known interacting elements on bioavailability measured (e.g. Mo for Cu and Cl for Cd)?",3,null,0,{"$f":"IF(F77=0,0,INDEX($D77:$D78,F77,1))","v":0}]
[null,18,null,0]
[]
[]
[null,null,"For spiked soils with metal salts: Were the soils leached after spiking?",3,null,0,{"$f":"IF(F81=0,0,INDEX($D81:$D83,F81,1))","v":0}]
[null,19,null,0]
[]
[null,null,"Were the incubation conditions and duration stated?",3,null,0,{"$f":"IF(F84=0,0,INDEX($D84:$D87,F84,1))","v":0}]
[null,20,null,1]
[null,null,null,0]
[null,null,null,null,null,null,null,null,{"$f":"(COUNTIF(F12:F87,\"=0\"))+COUNTIF(F2:F10,\"=0\")","v":32}]
[]
[]
[null,null,"Total Score",null,null,null,{"$f":"IF(SUM(G12:G84)=0,\"\",SUM(G12:G84))","v":""}]
[null,null,"Total Max. possible score for the various types of data and contaminants ",null,{"$f":"D12+D15+D18+D21+D23+D26+D29+D32+D35+D38+D41+D44+D47+D50+D54+D58+D62+D66+D70+D73+D77+D81+D84","v":102}]
[null,null,"Quality Score",null,{"$f":"\"= [Total score / Total possible score] * 100 = \"","v":"= [Total score / Total possible score] * 100 = "},null,{"$f":"IF(ISERROR(G90/E91),#N/A,G90/E91)","v":{"$error":"#N/A"}}]
[]
[null,null,"H = high quality                           Quality score >=80%      "]
[null,null,"A = acceptable quality         80%>Quality score>50%      "]
[null,null,"U = unacceptable quality              Quality score <=50%  "]
[]
[3,null,"CLICK \"Save&Update\" BUTTON TO SAVE ANSWER TO SAMPLE FINALISED ASSESSMENT SHEET"]

{"sheet":"Terrestrial Quality","index":18,"n_rows":5,"n_cols":26,"rows_kept":5,"cut":false,"hidden":false,"merged":[]}
[]
["Question No.",1,2,3,4,5,6,7,8,9,10,11,12,13,14,15.1,15.2,15.3,15.4,16,17,18,19,20,"Total Score","Quality Score"]
["Short Questions","duration of the exposure  ","biological endpoint","biological effect stated or not","biological effect qualified or not","appropriate controls","control & contaminant concentration","test acceptability criteria ","characteristics of the test organism"," type of test media"," contaminant concentrations "," parallel reference toxicant toxicity","concentration–response relationship"," statistical method or model to determine the toxicity","LC/EC/BEC data","pH","OM or OC content","Clay content","CEC","Temperature","Grade or purity","cations and or major soil elements measured or  interacting elements on bioavailability measured ","soils leached after spiking","incubation conditions and duration"]
["Marks Awarded","10 or 0","10,5 or 0","5 or 0 ","5 or 0 ","5 or 0 ","5 or 0 ","5 ,2 or 0 ","5 or 0 ","5 or 0 ","4 or 0","4 or 0","4 or 0","4 or 0","4 or 0","3,1,or 0","3,1,or 0","3,1,or 0","3,1,or 0","3 or 0","3 or 0","3 or 0","3 or 0","3 or 0"]
["Max. Possible Score",10,10,5,5,5,5,5,5,5,4,4,4,4,4,3,3,3,3,3,3,3,3,3,{"$f":"SUM(B5:X5)","v":102}]

{"sheet":"Sediment Data QA","index":19,"n_rows":103,"n_cols":25,"rows_kept":103,"cut":false,"hidden":false,"merged":[[3,4,7,4],[56,7,59,7],[60,7,63,7],[40,7,42,7],[43,7,45,7],[46,7,48,7],[11,7,13,7],[17,7,19,7],[49,7,51,7],[34,7,36,7],[14,7,16,7],[20,7,21,7],[28,7,30,7],[31,7,33,7],[11,2,13,2],[20,2,21,2],[22,2,24,2],[25,2,27,2],[14,2,16,2],[17,2,19,2],[28,2,30,2],[22,7,24,7],[25,7,27,7],[31,2,33,2],[37,7,39,7],[34,2,36,2],[37,2,39,2],[40,2,42,2],[46,2,48,2],[49,2,51,2],[52,2,54,2],[43,2,45,2],[91,2,92,2],[89,7,90,7],[91,7,92,7],[87,7,88,7],[83,7,86,7],[83,2,86,2],[72,7,75,7],[76,7,79,7],[52,7,54,7],[89,2,90,2],[68,2,71,2],[80,2,82,2],[72,2,75,2],[76,2,79,2],[80,7,82,7],[64,2,67,2],[64,7,67,7],[68,7,71,7],[60,2,63,2],[56,2,59,2]]}
[null,1,"FILL IN BLANKS BELOW,PICK OPTIONS FROM DROPDOWN LIST",null,null,null,null,null,null,null,"* All the text in Blue are used for drop down list ,make changes with caution."]
[null,null,"Category",null,"Sediment ",{"$f":"IF(M3=\"\",0,1)","v":0},"Citation No.",{"$f":"IF(ISERROR(FIND(\"-\",E3)),E3,LEFT(E3,FIND(\"-\",E3)-1))","v":0},null,null,"Species",null,null,"Lifestage",null,null,"Exposure duration",null,null,"Measure of toxicity",null,null,"Toxicity endpoint"]
[null,null,"Paper and data unique identifier(eg. 1-1,10-150)",null,null,{"$f":"IF(E3=\"\",0,1)","v":0},"Species (Scientific name)",null,null,null,"Australian Bass",0,{"$f":"IF(L3=0,\"\",INDEX(K3:K50,L3))","v":""},"Phase 1",0,{"$f":"IF(O3=0,\"\",INDEX(N3:N50,O3))","v":""},"1 hour ",0,{"$f":"IF(R3=0,\"\",INDEX(Q3:Q50,R3))","v":""},"Method 1",0,{"$f":"IF(U3=0,\"\",INDEX(T3:T50,U3))","v":""},0.01,0,{"$f":"IF(X3=0,\"\",INDEX(W3:W50,X3))","v":""}]
[null,null,"Citation",null,null,{"$f":"IF(E4=\"\",0,1)","v":0},"Lifestage",null,null,null,"Bala Shark",null,null,"Phase 10",null,null,"2 hours",null,null,"Method 10",null,null,0.02]
[null,null,null,null,null,{"$f":"IF(S3=\"\",0,1)","v":0},"Exposure duration",null,null,null,"Basa",null,null,"phase 14",null,null,"3 hours",null,null,"Method 2",null,null,0.03]
[null,null,null,null,null,{"$f":"IF(V3=\"\",0,1)","v":0},"Measure of toxicity",null,null,null,"Black Parinha",null,null,"Phase 2",null,null,"4 hours",null,null,"Method 3",null,null,0.04]
[null,null,null,null,null,{"$f":"IF(Y3=\"\",0,1)","v":0},"Toxicity endpoint",null,null,null,"Catfish",null,null,"Phase 3",null,null,"5 hours",null,null,"Method 4",null,null,0.05]
[null,null,null,null,null,{"$f":"IF(H8=\"\",0,1)","v":0},"Toxicity value",null,null,null,"Eel",null,null,"Phase 4",null,null,"6 hours",null,null,"Method 5",null,null,0.06]
[null,2,"CHOOSE ANSWER OPTIONS AND FILL IN ANSWERS IN ANSWER COLUMN",null,null,{"$f":"IF(M3=\"\",0,1)","v":0},null,null,null,null,"Lungfish",null,null,"Phase 5",null,null,"7 hours",null,null,"Method 6",null,null,7.0000000000000007E-2]
[null,"*","If had problem click on answer options,click on any  other cells first and then click back again",null,null,{"$f":"IF(P3=\"\",0,1)","v":0},null,null,null,null,"Murray Cod",null,null,"Phase 6",null,null,"8 hours",null,null,"Method 7",null,null,0.08]
[null,"No.","Question","Marks Awarded","Answer Options","Option References","Scores","Answers",null,null,"Nemo",null,null,"Phase 7 ",null,null,"9 hours",null,null,"Method 8",null,null,0.09]
[null,null,"Was the duration of the exposure stated (e.g., 48 or 96 h)?",10,null,0,{"$f":"IF(F15=0,0,INDEX($D12:$D13,F12,1))","v":0},null,null,null,"Redclaw",null,null,"Phase 8",null,null,null,null,null,null,null,null,0.1]
[null,1,null,0,null,null,null,null,null,null,"Sea Mullet",null,null,"Phase 9"]
[null,null,null,null,null,null,null,null,null,null,"SilverPerch"]
[null,null,"Was the biological endpoint (e.g., immobilization or population growth) stated and defined (10 marks)? Award 5 marks if the biological endpoint is only stated.",10,null,0,{"$f":"IF(F15=0,0,INDEX($D15:$D17,F15,1))","v":0},null,null,null,"Whale"]
[null,2,null,5]
[null,null,null,0]
[null,null,"Was the biological effect stated (e.g., LC or NOEC)?",5,null,0,{"$f":"IF(F18=0,0,INDEX($D18:$D19,F18,1))","v":0}]
[null,3,null,0]
[]
[null,4,"Was the biological effect quantified (e.g., 50% effect, 25% effect)? The effect for NOEC and LOEC data must be quantified.",5,null,0,{"$f":"IF(F21=0,0,INDEX($D21:$D22,F21,1))","v":0}]
[null,null,null,0]
[null,5,"Were appropriate controls (e.g., a no-toxicant control and/or solvent control) used?",5,null,0,{"$f":"IF(F23=0,0,INDEX($D23:$D24,F23,1))","v":0}]
[null,null,null,0]
[]
[null,6,"Was each control and contaminant concentration at least duplicated?",5,null,0,{"$f":"IF(F26=0,0,INDEX($D26:$D27,F26,1))","v":0}]
[null,null,null,0]
[]
[null,7,"Were test acceptability criteria stated (e.g., mortality in controls must not exceed a certain percentage) (5 marks)?\nOR\nWere test acceptability criteria inferred (e.g., test method used [USEPA, OECD, ASTM etc]) (award 2 marks). Note: Invalid data must no",5,null,0,{"$f":"IF(F29=0,0,INDEX($D29:$D31,F29,1))","v":0}]
[null,null,null,2]
[null,null,null,0]
[null,8,"Were the characteristics of the test organism (e.g., length, mass, age) stated?",5,null,0,{"$f":"IF(F32=0,0,INDEX($D32:$D34,F32,1))","v":0}]
[null,null,null,0]
[]
[null,9,"Was the type of test media used stated?",5,null,0,{"$f":"IF(F35=0,0,INDEX($D35:$D37,F35,1))","v":0}]
[null,null,null,0]
[]
[null,null,"Was the type of exposure (e.g. static, flow through) stated? ",4,null,0,{"$f":"IF(F38=0,0,INDEX($D38:$D40,F38,1))","v":0}]
[null,10,null,0]
[]
[null,null,"Were the contaminant concentrations measured?",4,null,0,{"$f":"IF(F41=0,0,INDEX($D41:$D43,F41,1))","v":0}]
[null,11,null,0]
[]
[null,null,"Were parallel reference toxicant toxicity tests conducted?",4,null,0,{"$f":"IF(F44=0,0,INDEX($D44:$D46,F44,1))","v":0}]
[null,12,null,0]
[]
[null,null,"Was there a concentration–response relationship either observable or stated",4,null,0,{"$f":"IF(F47=0,0,INDEX($D47:$D49,F47,1))","v":0}]
[null,13,null,0]
[]
[null,null,"Was an appropriate statistical method or model used to determine the toxicity?",4,null,0,{"$f":"IF(F50=0,0,INDEX($D50:$D52,F50,1))","v":0}]
[null,14,null,0]
[]
[null,15,"For LC/EC/BEC data values derived was an estimate of variability provided? (10/20 effects data desirable)\nOR If NO EC/LOEC data, was the significance level 0.05 or less?                                                 \n\n",4,null,0,{"$f":"IF(F53=0,0,INDEX($D53:$D55,F53,1))","v":0}]
[null,null,null,0]
[]
[null,16,"Were the following parameters measured and stated? (3 marks if measured and stated, 1 if just measured)"]
[null,null,"pH",3,null,0,{"$f":"IF(F57=0,0,INDEX($D57:$D59,F57,1))","v":0}]
[null,16.100000000000001,null,1]
[null,null,null,0]
[]
[null,null,"Particulate organic carbon (POC)",3,null,0,{"$f":"IF(F61=0,0,INDEX($D61:$D63,F61,1))","v":0}]
[null,16.2,null,1]
[null,null,null,0]
[]
[null,null,"Particle size (e.g. <63 µm or silt/clay)",3,null,0,{"$f":"IF(F65=0,0,INDEX($D65:$D67,F65,1))","v":0}]
[null,16.3,null,1]
[null,null,null,0]
[]
[null,null,"Acid-volatile sulfide (AVS) and 1-M HCl extractable metals",3,null,0,{"$f":"IF(F69=0,0,INDEX($D69:$D71,F69,1))","v":0}]
[null,16.399999999999999,null,1]
[null,null,null,0]
[]
[null,null,"Dissolved contaminants (e.g. metals) in porewater or overlying water",3,null,0,{"$f":"IF(F73=0,0,INDEX($D73:$D75,F73,1))","v":0}]
[null,16.5,null,1]
[null,null,null,0]
[]
[null,null,"Dissolved ammonia and sulfide in porewater or overlying water",3,null,0,{"$f":"IF(F77=0,0,INDEX($D77:$D79,F77,1))","v":0}]
[null,16.600000000000001,null,1]
[null,null,null,0]
[]
[null,null,"Was the temperature measured and stated?",3,null,0,{"$f":"IF(F81=0,0,INDEX($D81:$D83,F81,1))","v":0}]
[null,17,null,0]
[]
[null,null,"Was the grade or purity of the test contaminant stated?",3,null,0,{"$f":"IF(F84=0,0,INDEX($D84:$D85,F84,1))","v":0}]
[null,18,null,0]
[]
[]
[null,19,"Was the salinity/conductivity measured and stated?",3,null,0,{"$f":"IF(F88=0,0,INDEX($D88:$D89,F88,1))","v":0}]
[null,null,null,0]
[null,20,"Was the alkalinity, hardness, or concentrations of Ca and Mg measured in the overlying water?Were known interacting elements on bioavailability measured (e.g. Cl for Cd)?",3,null,0,{"$f":"IF(F90=0,0,INDEX($D90:$D91,F90,1))","v":0}]
[null,null,null,0]
[null,21,"For sediments spiked with metal salts were the equilibration conditions adequate?",3,null,0,{"$f":"IF(F92=0,0,INDEX($D92:$D93,F92,1))","v":0}]
[null,null,null,0,null,null,null,null,{"$f":"(COUNTIF(F12:F93,\"=0\"))+COUNTIF(F2:F10,\"=0\")","v":35}]
[]
[null,null,"Total score",null,null,null,{"$f":"IF(SUM(G12:G92)=0,\"\",SUM(G12:G92))","v":""}]
[null,null,"Total Max. possible score for the various types of data and contaminants ",null,{"$f":"D12+D15+D18+D21+D23+D26+D29+D32+D35+D38+D41+D44+D47+D50+D53+D57+D61+D65+D69+D73+D77+D81+D84+D88+D90+D92","v":112}]
[null,null,"Quality Score",null,{"$f":"\"= [Total score / Total possible score] * 100 = \"","v":"= [Total score / Total possible score] * 100 = "},null,{"$f":"IF(ISERROR(G95/E96),#N/A,G95/E96)","v":{"$error":"#N/A"}}]
[]
[null,null,"H = high quality                           Quality score >=80%      "]
[null,null,"A = acceptable quality         80%>Quality score>50%      "]
[null,null,"U = unacceptable quality              Quality score <=50%  "]
[]
[3,null,"CLICK \"Save&Update\" BUTTON TO SAVE ANSWER TO SAMPLE FINALISED ASSESSMENT SHEET"]

{"sheet":"Sediment Quality","index":20,"n_rows":5,"n_cols":29,"rows_kept":5,"cut":false,"hidden":false,"merged":[]}
[]
["Question No.",1,2,3,4,5,6,7,8,9,10,11,12,13,14,15,16.100000000000001,16.2,16.3,16.399999999999999,16.5,16.600000000000001,17,18,19,20,21,"Total Score","Quality Score"]
["Short Questions","duration of the exposure ","biological endpoint","biological effect stated ornot","biological effect quantified or not","appropriate controls","control & contaminant concentration","test acceptability criteria","characteristics of the test organism"," type of test media","type of exposure","contaminant concentrations","parallel reference toxicant toxicity tests","concentration–response relationship","determine the toxicity","LC/EC/BEC ","pH","POC","Particle size","AVS & 1-M HCl extractable metals","Dissolved contaminants","Dissolved ammonia and sulfide","Temperature","Grade or purity"," salinity/conductivity","alkalinity, hardness, or concentrations of Ca and Mg","equilibration conditions "]
["Marks Awarded","10 or 0","10,5 or 0","5 or 0 ","5 or 0 ","5 or 0 ","5 or 0 ","5 or 0 ","5 or 0 ","5 or 0 ","4 or 0","4 or 0","4 or 0","4 or 0","4 or 0","4 or 0","3,1,or 0","3,1,or 0","3,1,or 0","3,1,or 0","3,1,or 0","3,1,or 0","3 or 0","3 or 0","3 or 0","3 or 0"]
["Max. Possible Score",10,10,5,5,5,5,5,5,5,4,4,4,4,4,4,3,3,3,3,3,3,3,3,3,3,3,{"$f":"SUM(B5:AA5)","v":112}]

{"sheet":"Sheet2","index":21,"n_rows":0,"n_cols":0,"rows_kept":0,"cut":false,"hidden":false,"merged":[]}